{"text_format":"1","workbook":"xlsx","n_sheets":8,"sheets":["About","All regions","Suggested management Options","Wheatbelt_filtered","Swan_filtered","Translocations","Decision Nodes","Notes"],"not_rendered":{"charts":0,"images":0,"macros":1,"external_links":0,"defined_names":2,"comments":4,"pivot_tables":0},"unopened":[],"bounds":{"document_bytes":16777216,"sheet_cells":100000,"rows_first":2000,"rows_last":500,"rows_between":2000,"halvings":0,"cell_chars":16384,"cell_head_chars":4096},"cells_cut":0,"cells_raw":0,"read":"whole","date_system":"1900"}

{"sheet":"About","index":0,"n_rows":1,"n_cols":1,"rows_kept":1,"cut":false,"hidden":false,"merged":[[0,0,20,22]]}
["DEPARTMENT OF BIODIVERSITY, CONSERVATION AND ATTRACTIONS THREATENED AND PRIORITY FLORA LIST 05 DECEMBER 2018"]

{"sheet":"All regions","index":1,"n_rows":302,"n_cols":62,"rows_kept":302,"cut":false,"hidden":false,"merged":[[0,13,1,13],[0,14,1,14],[0,15,1,15],[0,22,1,22],[0,29,1,29],[0,27,1,27],[0,28,1,28],[0,12,1,12],[0,1,1,1],[0,0,1,0],[0,2,1,2],[0,11,1,11],[0,9,1,9],[0,8,1,8],[0,7,1,7],[0,6,1,6],[0,5,1,5],[0,4,1,4],[0,3,1,3],[0,10,1,10]]}
["Taxon","Name ID","Status","Rank","IUCN Criteria","EPBC","DBCA Region","DBCA District","Distribution","Flowering Period","Recovery Plan","Already translocated? If yes, year(s) and site","Current Translocation (DBCA/P&W)","Flagged for possible future translocation (DBCA)?","Germination protocol? ","Transloaction and  germination comments","Decision Node 1","Decision Node 2 (Answer for species with less than 250 mature individuals)","Disturbance Comments","Decision Node 2.1 (Answer only if species is a disturbance opportunist)","Decision Node 3","Decision Node 0","Longevity comments","Decision Node 4","Decision Node 5","Decision Node 6","Decision Node 1.1 (Answer only for species with more than 250 mature individuals)","CLASSIFICATION","DESCRIPTION OF CLASSIFICATION","TRANSLOCATE BASED ON SPECIES' GROUP?",null,"Node 1","Node 2","Node 2.1","Node 3","Node 0","Node 4","Node 5","Node 6","Node 1.1",null,"Group A.1","Group A.2(i)","Group A.2(ii)","Group B","Group C","Froup D","Group E","Group F","Group G","Group O","Group X","Result",null,{"$f":"\"Highlight \"&AG1","v":"Highlight Node 2"},"Highlight Node 2.1","Highlight Node 3","Highlight Node 0","Highlight Node 4","Highlight Node 5","Highlight Node 6","Highlight Node 1.1"]
[null,null,null,null,null,null,null,null,null,null,null,null,null,null,null,null,"Does the species have less than 250 mature individuals (IUCN criterion C2(a) or criterion D) OR Is it present in only a few locations / have a severely fragmented area of occupancy (IUCN criterion B2(a))?","Will the species respond positively to introduction of disturbance as a management technique? (Consider lifehistory, previous evidence. If yes, please choose what TYPE of disturbance)","Generally we use fire, but increasingly push to consider utiliisation of other techniques, might be worth eperimemntal adaptation actions, esp if fire deemed too expensive/risky","Has disturbance been applied for disturbance opportunists?","Is there one known population of more than 250 reproductively mature individuals?","Is it a long-lived (greater than 5-10 years) or a short-lived (less than 5-10 years) taxa?",null,"Is the total size of any single population, (including seedlings and juveniles) greater than 250?","Is a viable and genetically diverse seed bank present at the site/population?","Is it feasible to manage the threats in-situ (including resources and tenure considerations)?","Is there a significant declining trend towards less than 250 mature individuals?",null,null,null,null,"1 = yes. \n0 = no.","1 = yes-fire, yes-other or likely yes. 0 = likely no or no. −1 = unknown.","1 = yes. \n0 = no.","1 = yes. \n0 = no.","1 = long.\n0 = short.","1 = yes. \n0 = no.","1 = yes or likely yes. 0 = likely no or no. −1 = unknown.","1 = yes. \n0 = no.","1 = yes. \n0 = no."]
["Acacia aprica",14049,"T","CR","B1ab(iii,v)+2ab(iii,v)","EN","MWST","MOORA","Carnamah - Coorow","Jun-Aug","IRP","Carnamah Shire Recreation Reserve, 1998; Hanningtons Property Coorow, 2010",null,null,null,null,{"$f":"IF(OR(ISNUMBER(FIND(\"D\",E3)), ISNUMBER(FIND(\"C2a\", E3)),ISNUMBER(FIND(\"C2(a)\",E3)),ISNUMBER(FIND(\"B2a\",E3)), ISNUMBER(FIND(\"2a\",E3))), \"Yes\", \"No\")","v":"Yes"},"Yes-fire",null,"No",null,null,null,null,null,null,null,{"$f":"BA3","v":"Group O"},{"$f":"IF(AB3=\"Group A.1\",'Suggested management Options'!$C$4, IF(AB3=\"Group A.2(i)\", 'Suggested management Options'!$C$5, IF(AB3=\"Group A.2(ii)\", 'Suggested management Options'!$C$6, IF(AB3=\"Group B\",'Suggested management Options'!$C$7,IF(AB3=\"Group C\",'Suggested management Options'!$C$8,IF(AB3=\"Group D\",'Suggested management Options'!$C$9,IF(AB3=\"Group E\",'Suggested management Options'!$C$10,IF(AB3=\"Group F\",'Suggested management Options'!$C$11,IF(AB3=\"Group G\",'Suggested management Options'!$C$12,IF(AB3=\"Group O\",'Suggested management Options'!$C$13,IF(AB3=\"Group X\",'Suggested management Options'!$C$14,\"\")))))))))))","v":"Introduce disturbance and then re-evaluate"},{"$f":"IF(OR(AB3=\"Group A.1\", AB3=\"Group A.2(i)\", AB3=\"Group A.2(ii)\", AB3=\"Group D\"), \"DON'T TRANSLOCATE\", IF(OR(AB3=\"Group B\", AB3=\"Group C\", AB3=\"Group E\"), \"MAYBE TRANSLOCATE IF COST-EFFECTIVE\", IF(OR(AB3=\"Group F\", AB3=\"Group G\"), \"DEFINITELY TRANSLOCATE\", IF(AB3=\"Group X\", \"EVALUATE SEED BANK\", IF(AB3=\"Group O\", \"INTRODUCE DISTURBANCE FIRST\", \"\")))))","v":"INTRODUCE DISTURBANCE FIRST"},null,{"$f":"IF(Q3=\"Yes\",1,IF(Q3=\"No\",0,\"\"))","v":1},{"$f":"IF(OR(R3=\"Yes-fire\",R3=\"Yes-other\",R3=\"Likely Yes\"),1,IF(OR(R3=\"Likely No\",R3=\"No\"),0,IF(R3=\"Unknown\",-1,\"\")))","v":1},{"$f":"IF(T3=\"Yes\",1,IF(T3=\"No\",0,\"\"))","v":0},{"$f":"IF(U3=\"Yes\",1,IF(U3=\"No\",0,\"\"))","v":""},{"$f":"IF(V3=\"Long-lived\",1,IF(V3=\"Short-lived\",0,\"\"))","v":""},{"$f":"IF(X3=\"Yes\",1,IF(X3=\"No\",0,\"\"))","v":""},{"$f":"IF(OR(Y3=\"Yes\",Y3=\"Likely Yes\"),1,IF(OR(Y3=\"Likely No\",Y3=\"No\"),0,IF(Y3=\"Unknown\",-1,\"\")))","v":""},{"$f":"IF(Z3=\"Yes\",1,IF(Z3=\"No\",0,\"\"))","v":""},"",null,{"$f":"AND(AF3=0,AN3=0)","v":false},{"$f":"AND(AF3=0,AJ3=1,AN3=1)","v":false},{"$f":"AND(AF3=0,AJ3=0,AN3=1)","v":false},{"$f":"AND(AF3=1,OR(AND(AG3=1,AH3=1),AG3=0),AI3=1,AJ3=1)","v":false},{"$f":"AND(AF3=1,OR(AND(AG3=1,AH3=1),AG3=0),AI3=1,AJ3=0)","v":false},{"$f":"AND(AF3=1,OR(AND(AG3=1,AH3=1),AG3=0),AI3=0,AK3=1)","v":false},{"$f":"AND(AF3=1,OR(AND(AG3=1,AH3=1),AG3=0),AI3=0,AK3=0,AL3=1,AM3=1)","v":false},{"$f":"AND(AF3=1,OR(AND(AG3=1,AH3=1),AG3=0),AI3=0,AK3=0,AL3=1,AM3=0)","v":false},{"$f":"AND(AF3=1,OR(AND(AG3=1,AH3=1),AG3=0),AI3=0,AK3=0,AL3=0)","v":false},{"$f":"AND(AF3=1,AG3=1,AH3=0)","v":true},{"$f":"AND(AF3=1,OR(AND(AG3=1,AH3=1),AG3=0),AI3=0,AK3=0,AL3=-1)","v":false},{"$f":"IF(AP3,\"Group A.1\",\"\")&IF(AQ3,\"Group A.2(i)\",\"\")&IF(AR3,\"Group A.2(ii)\",\"\")&IF(AS3,\"Group B\",\"\")&IF(AT3,\"Group C\",\"\")&IF(AU3,\"Group D\",\"\")&IF(AV3,\"Group E\",\"\")&IF(AW3,\"Group F\",\"\")&IF(AX3,\"Group G\",\"\")&IF(AY3,\"Group O\",\"\")&IF(AZ3,\"Group X\",\"\")","v":"Group O"},null,{"$f":"IF(AF3=1,1,0)","v":1},{"$f":"IF(AG3=1,1,0)","v":1},{"$f":"IF(AND(BA3<>\"\",OR(AND(AG3=1,AH3=1),AG3=0)),1,0)","v":0},{"$f":"IF(AND(BA3<>\"\",OR(AI3=1,AN3=1)),1,0)","v":0},{"$f":"IF(AND(BA3<>\"\",AI3=0),1,0)","v":0},{"$f":"IF(AND(BA3<>\"\",AK3=0),1,0)","v":0},{"$f":"IF(AND(BA3<>\"\",AL3=1),1,0)","v":0},{"$f":"IF(AND(BA3<>\"\",AF3=0),1,0)","v":0}]
["Acacia aristulata",14051,"T","EN","B1+2c; C2a","EN","MWST","MOORA","Moora, Jingemia Hill","Sep-Dec",null,"No",null,null,null,null,"Yes","Yes-fire",null,"Yes","Yes","Long-lived",null,null,null,null,null,{"$f":"BA4","v":"Group B"},{"$f":"IF(AB4=\"Group A.1\",'Suggested management Options'!$C$4, IF(AB4=\"Group A.2(i)\", 'Suggested management Options'!$C$5, IF(AB4=\"Group A.2(ii)\", 'Suggested management Options'!$C$6, IF(AB4=\"Group B\",'Suggested management Options'!$C$7,IF(AB4=\"Group C\",'Suggested management Options'!$C$8,IF(AB4=\"Group D\",'Suggested management Options'!$C$9,IF(AB4=\"Group E\",'Suggested management Options'!$C$10,IF(AB4=\"Group F\",'Suggested management Options'!$C$11,IF(AB4=\"Group G\",'Suggested management Options'!$C$12,IF(AB4=\"Group O\",'Suggested management Options'!$C$13,IF(AB4=\"Group X\",'Suggested management Options'!$C$14,\"\")))))))))))","v":"Maintain effective population sizes of >250 reproductively mature individuals. Augment populations of <250 individuals if cost effective."},{"$f":"IF(OR(AB4=\"Group A.1\", AB4=\"Group A.2(i)\", AB4=\"Group A.2(ii)\", AB4=\"Group D\"), \"DON'T TRANSLOCATE\", IF(OR(AB4=\"Group B\", AB4=\"Group C\", AB4=\"Group E\"), \"MAYBE TRANSLOCATE IF COST-EFFECTIVE\", IF(OR(AB4=\"Group F\", AB4=\"Group G\"), \"DEFINITELY TRANSLOCATE\", IF(AB4=\"Group X\", \"EVALUATE SEED BANK\", IF(AB4=\"Group O\", \"INTRODUCE DISTURBANCE FIRST\", \"\")))))","v":"MAYBE TRANSLOCATE IF COST-EFFECTIVE"},null,{"$f":"IF(Q4=\"Yes\",1,IF(Q4=\"No\",0,\"\"))","v":1},{"$f":"IF(OR(R4=\"Yes-fire\",R4=\"Yes-other\",R4=\"Likely Yes\"),1,IF(OR(R4=\"Likely No\",R4=\"No\"),0,IF(R4=\"Unknown\",-1,\"\")))","v":1},{"$f":"IF(T4=\"Yes\",1,IF(T4=\"No\",0,\"\"))","v":1},{"$f":"IF(U4=\"Yes\",1,IF(U4=\"No\",0,\"\"))","v":1},{"$f":"IF(V4=\"Long-lived\",1,IF(V4=\"Short-lived\",0,\"\"))","v":1},{"$f":"IF(X4=\"Yes\",1,IF(X4=\"No\",0,\"\"))","v":""},{"$f":"IF(OR(Y4=\"Yes\",Y4=\"Likely Yes\"),1,IF(OR(Y4=\"Likely No\",Y4=\"No\"),0,IF(Y4=\"Unknown\",-1,\"\")))","v":""},{"$f":"IF(Z4=\"Yes\",1,IF(Z4=\"No\",0,\"\"))","v":""},{"$f":"IF(AA4=\"Yes\",1,IF(AA4=\"No\",0,\"\"))","v":""},null,{"$f":"AND(AF4=0,AN4=0)","v":false},{"$f":"AND(AF4=0,AJ4=1,AN4=1)","v":false},{"$f":"AND(AF4=0,AJ4=0,AN4=1)","v":false},{"$f":"AND(AF4=1,OR(AND(AG4=1,AH4=1),AG4=0),AI4=1,AJ4=1)","v":true},{"$f":"AND(AF4=1,OR(AND(AG4=1,AH4=1),AG4=0),AI4=1,AJ4=0)","v":false},{"$f":"AND(AF4=1,OR(AND(AG4=1,AH4=1),AG4=0),AI4=0,AK4=1)","v":false},{"$f":"AND(AF4=1,OR(AND(AG4=1,AH4=1),AG4=0),AI4=0,AK4=0,AL4=1,AM4=1)","v":false},{"$f":"AND(AF4=1,OR(AND(AG4=1,AH4=1),AG4=0),AI4=0,AK4=0,AL4=1,AM4=0)","v":false},{"$f":"AND(AF4=1,OR(AND(AG4=1,AH4=1),AG4=0),AI4=0,AK4=0,AL4=0)","v":false},{"$f":"AND(AF4=1,AG4=1,AH4=0)","v":false},{"$f":"AND(AF4=1,OR(AND(AG4=1,AH4=1),AG4=0),AI4=0,AK4=0,AL4=-1)","v":false},"Group B",null,{"$f":"IF(AF4=1,1,0)","v":1},{"$f":"IF(AG4=1,1,0)","v":1},{"$f":"IF(AND(BA4<>\"\",OR(AND(AG4=1,AH4=1),AG4=0)),1,0)","v":1},{"$f":"IF(AND(BA4<>\"\",OR(AI4=1,AN4=1)),1,0)","v":1},{"$f":"IF(AND(BA4<>\"\",AI4=0),1,0)","v":0},{"$f":"IF(AND(BA4<>\"\",AK4=0),1,0)","v":0},{"$f":"IF(AND(BA4<>\"\",AL4=1),1,0)","v":0},{"$f":"IF(AND(BA4<>\"\",AF4=0),1,0)","v":0}]
["Acacia ataxiphylla subsp. magna",14687,"T","EN","B1ab(iii,iv,v)+2ab(iii,iv,v); C2a(i); D","EN","WHTB","CENTRAL WHEATBELT","Charles Gardner Reserve, Cunderdin","Jul","IRP","No",null,"No",null,null,"Yes","Likely Yes","most populations discovered on roadsides. ","No","Yes","Long-lived","assumption",null,null,null,null,"Group O",{"$f":"IF(AB5=\"Group A.1\",'Suggested management Options'!$C$4, IF(AB5=\"Group A.2(i)\", 'Suggested management Options'!$C$5, IF(AB5=\"Group A.2(ii)\", 'Suggested management Options'!$C$6, IF(AB5=\"Group B\",'Suggested management Options'!$C$7,IF(AB5=\"Group C\",'Suggested management Options'!$C$8,IF(AB5=\"Group D\",'Suggested management Options'!$C$9,IF(AB5=\"Group E\",'Suggested management Options'!$C$10,IF(AB5=\"Group F\",'Suggested management Options'!$C$11,IF(AB5=\"Group G\",'Suggested management Options'!$C$12,IF(AB5=\"Group O\",'Suggested management Options'!$C$13,IF(AB5=\"Group X\",'Suggested management Options'!$C$14,\"\")))))))))))","v":"Introduce disturbance and then re-evaluate"},"INTRODUCE DISTURBANCE FIRST",null,1,1,0,1,1,"","","","",null,false,false,false,false,false,false,false,false,false,true,false,"Group O",null,1,1,0,1,0,0,0,0]
["Acacia awestoniana",12249,"T","CR","C2a(ii)","VU","SCST","ALBANY","Stirling Range N.P.","Oct-Nov","IRP","Stirling Range NP, 2010",null,null,null,null,"Yes","Yes-fire",null,"Yes","Yes","Short-lived",null,null,null,null,null,"Group C",{"$f":"IF(AB6=\"Group A.1\",'Suggested management Options'!$C$4, IF(AB6=\"Group A.2(i)\", 'Suggested management Options'!$C$5, IF(AB6=\"Group A.2(ii)\", 'Suggested management Options'!$C$6, IF(AB6=\"Group B\",'Suggested management Options'!$C$7,IF(AB6=\"Group C\",'Suggested management Options'!$C$8,IF(AB6=\"Group D\",'Suggested management Options'!$C$9,IF(AB6=\"Group E\",'Suggested management Options'!$C$10,IF(AB6=\"Group F\",'Suggested management Options'!$C$11,IF(AB6=\"Group G\",'Suggested management Options'!$C$12,IF(AB6=\"Group O\",'Suggested management Options'!$C$13,IF(AB6=\"Group X\",'Suggested management Options'!$C$14,\"\")))))))))))","v":"Maintain effective population size of >250 reproductively mature individuals. Translocate (immediately?) if cost effective."},"MAYBE TRANSLOCATE IF COST-EFFECTIVE",null,1,1,1,1,0,"","","","",null,false,false,false,false,true,false,false,false,false,false,false,"Group C",null,1,1,1,1,0,0,0,0]
["Acacia chapmanii subsp. australis",14059,"T","EN","B1ab(v)+2ab(v);C1","EN","SWAN,WHTB","PERTH HILLS,CENTRAL WHEATBELT","Bolgart, Wyening",null,"IRP","No",null,"No",null,null,"Yes","Likely Yes",null,"No","Yes","Long-lived","assumption",null,null,null,null,"Group O",{"$f":"IF(AB7=\"Group A.1\",'Suggested management Options'!$C$4, IF(AB7=\"Group A.2(i)\", 'Suggested management Options'!$C$5, IF(AB7=\"Group A.2(ii)\", 'Suggested management Options'!$C$6, IF(AB7=\"Group B\",'Suggested management Options'!$C$7,IF(AB7=\"Group C\",'Suggested management Options'!$C$8,IF(AB7=\"Group D\",'Suggested management Options'!$C$9,IF(AB7=\"Group E\",'Suggested management Options'!$C$10,IF(AB7=\"Group F\",'Suggested management Options'!$C$11,IF(AB7=\"Group G\",'Suggested management Options'!$C$12,IF(AB7=\"Group O\",'Suggested management Options'!$C$13,IF(AB7=\"Group X\",'Suggested management Options'!$C$14,\"\")))))))))))","v":"Introduce disturbance and then re-evaluate"},"INTRODUCE DISTURBANCE FIRST",null,1,1,0,1,1,"","","","",null,false,false,false,false,false,false,false,false,false,true,false,"Group O",null,1,1,0,1,0,0,0,0]
["Acacia cochlocarpa subsp. cochlocarpa",14062,"T","CR","B1ab(iii,v)+2ab(iii,v)","EN","MWST","MOORA","Watheroo","Jun-Jul","IRP","Gunyidi NR Nth, 1998; Gunyidi NR Sth, 1999; Gunyidi, East Midlands Hwy, 2010 &2017",null,null,null,null,"Yes","Yes-fire",null,"Yes","No",null,null,"No","Yes","Yes",null,"Group E",{"$f":"IF(AB8=\"Group A.1\",'Suggested management Options'!$C$4, IF(AB8=\"Group A.2(i)\", 'Suggested management Options'!$C$5, IF(AB8=\"Group A.2(ii)\", 'Suggested management Options'!$C$6, IF(AB8=\"Group B\",'Suggested management Options'!$C$7,IF(AB8=\"Group C\",'Suggested management Options'!$C$8,IF(AB8=\"Group D\",'Suggested management Options'!$C$9,IF(AB8=\"Group E\",'Suggested management Options'!$C$10,IF(AB8=\"Group F\",'Suggested management Options'!$C$11,IF(AB8=\"Group G\",'Suggested management Options'!$C$12,IF(AB8=\"Group O\",'Suggested management Options'!$C$13,IF(AB8=\"Group X\",'Suggested management Options'!$C$14,\"\")))))))))))","v":"Population will be maintained in-situ in the long term. Highest priority will be to increase effective population size to >250 mature plants through promoting in-situ recruitment and/or seed collection, external propagation and subsequent restocking."},"MAYBE TRANSLOCATE IF COST-EFFECTIVE",null,1,1,1,0,"",0,1,1,"",null,false,false,false,false,false,false,true,false,false,false,false,"Group E",null,1,1,1,0,1,1,1,0]
["Acacia cochlocarpa subsp. velutinosa",14063,"T","CR","B1ab(v)+2ab(v)","CR","WHTB","CENTRAL WHEATBELT","Manmanning, Wongan Hills, Cunderdin","Jun-Aug","IRP","No",null,"Yes",null,"All road, rail pops in poor condition, low numbers. Only one on townsite UCL, poor cond, small remnant - edge effects if we were to encourage burning.","Yes","Likely No",null,"No","No","Long-lived","assumption","No","Likely Yes","No","Yes","Group F",{"$f":"IF(AB9=\"Group A.1\",'Suggested management Options'!$C$4, IF(AB9=\"Group A.2(i)\", 'Suggested management Options'!$C$5, IF(AB9=\"Group A.2(ii)\", 'Suggested management Options'!$C$6, IF(AB9=\"Group B\",'Suggested management Options'!$C$7,IF(AB9=\"Group C\",'Suggested management Options'!$C$8,IF(AB9=\"Group D\",'Suggested management Options'!$C$9,IF(AB9=\"Group E\",'Suggested management Options'!$C$10,IF(AB9=\"Group F\",'Suggested management Options'!$C$11,IF(AB9=\"Group G\",'Suggested management Options'!$C$12,IF(AB9=\"Group O\",'Suggested management Options'!$C$13,IF(AB9=\"Group X\",'Suggested management Options'!$C$14,\"\")))))))))))","v":"Population will be maintained in-situ in the medium term for the purpose of \"salvage\". Collect cuttings and/or seeds for ex-situ conservation. If cost effective consider augmentation of other populations and/or translocation. For species with soil seed banks this may involve regenerating and managing the population in-situ to recover plant material from 1st and 2nd generations for subsequent salvage."},"DEFINITELY TRANSLOCATE",null,1,0,0,0,1,0,1,0,1,null,false,false,false,false,false,false,false,true,false,false,false,"Group F",null,1,0,1,1,1,1,1,0]
["Acacia depressa",3295,"T","EN","C2a","VU","WHTB","GREAT SOUTHERN","W of Lake Grace","Dec-Jan",null,"No","No","No",null,null,{"$f":"IF(OR(ISNUMBER(FIND(\"D\",E10)), ISNUMBER(FIND(\"C2a\", E10)),ISNUMBER(FIND(\"C2(a)\",E10)),ISNUMBER(FIND(\"B2a\",E10)), ISNUMBER(FIND(\"2a\",E10))), \"Yes\", \"No\")","v":"Yes"},"Yes-fire","germination post bushfire","No","Yes","Long-lived","assumption","No","Likely Yes","Yes","No","Group O",{"$f":"IF(AB10=\"Group A.1\",'Suggested management Options'!$C$4, IF(AB10=\"Group A.2(i)\", 'Suggested management Options'!$C$5, IF(AB10=\"Group A.2(ii)\", 'Suggested management Options'!$C$6, IF(AB10=\"Group B\",'Suggested management Options'!$C$7,IF(AB10=\"Group C\",'Suggested management Options'!$C$8,IF(AB10=\"Group D\",'Suggested management Options'!$C$9,IF(AB10=\"Group E\",'Suggested management Options'!$C$10,IF(AB10=\"Group F\",'Suggested management Options'!$C$11,IF(AB10=\"Group G\",'Suggested management Options'!$C$12,IF(AB10=\"Group O\",'Suggested management Options'!$C$13,IF(AB10=\"Group X\",'Suggested management Options'!$C$14,\"\")))))))))))","v":"Introduce disturbance and then re-evaluate"},"INTRODUCE DISTURBANCE FIRST",null,1,1,0,1,1,0,1,1,0,null,false,false,false,false,false,false,false,false,false,true,false,"Group O",null,1,1,0,1,0,1,1,0]
["Acacia imitans",14118,"T","CR","B1ab(iii)+B2ab(iii)","EN","MWST","GERALDTON","Mt Singleton, Mt Gibson, Ningham","Aug.","IRP","Mt Gibson station, 2010",null,null,null,null,"Yes","No",null,null,"No",null,null,"No","Likely Yes","No",null,"Group F",{"$f":"IF(AB11=\"Group A.1\",'Suggested management Options'!$C$4, IF(AB11=\"Group A.2(i)\", 'Suggested management Options'!$C$5, IF(AB11=\"Group A.2(ii)\", 'Suggested management Options'!$C$6, IF(AB11=\"Group B\",'Suggested management Options'!$C$7,IF(AB11=\"Group C\",'Suggested management Options'!$C$8,IF(AB11=\"Group D\",'Suggested management Options'!$C$9,IF(AB11=\"Group E\",'Suggested management Options'!$C$10,IF(AB11=\"Group F\",'Suggested management Options'!$C$11,IF(AB11=\"Group G\",'Suggested management Options'!$C$12,IF(AB11=\"Group O\",'Suggested management Options'!$C$13,IF(AB11=\"Group X\",'Suggested management Options'!$C$14,\"\")))))))))))","v":"Population will be maintained in-situ in the medium term for the purpose of \"salvage\". Collect cuttings and/or seeds for ex-situ conservation. If cost effective consider augmentation of other populations and/or translocation. For species with soil seed banks this may involve regenerating and managing the population in-situ to recover plant material from 1st and 2nd generations for subsequent salvage."},"DEFINITELY TRANSLOCATE",null,1,0,"",0,"",0,1,0,"",null,false,false,false,false,false,false,false,true,false,false,false,"Group F",null,1,0,1,0,1,1,1,0]
["Acacia insolita subsp. recurva",14121,"T","CR","B1ab(ii,iii,v)+2ab(ii.iii.v)","EN","WHTB","GREAT SOUTHERN","East Yornaning NR, Narrogin","Sep","IRP","No","No","Yes",null,null,"Yes","Yes-fire","experimental fire plots and prescribed burning have promoted recruitment (but seems very specific fire regime required) and regeneration highly reliant on post fire grazing control and prefire control of seed predation.","Yes","No","Long-lived","assumption","No","Likely No",null,null,"Group G",{"$f":"IF(AB12=\"Group A.1\",'Suggested management Options'!$C$4, IF(AB12=\"Group A.2(i)\", 'Suggested management Options'!$C$5, IF(AB12=\"Group A.2(ii)\", 'Suggested management Options'!$C$6, IF(AB12=\"Group B\",'Suggested management Options'!$C$7,IF(AB12=\"Group C\",'Suggested management Options'!$C$8,IF(AB12=\"Group D\",'Suggested management Options'!$C$9,IF(AB12=\"Group E\",'Suggested management Options'!$C$10,IF(AB12=\"Group F\",'Suggested management Options'!$C$11,IF(AB12=\"Group G\",'Suggested management Options'!$C$12,IF(AB12=\"Group O\",'Suggested management Options'!$C$13,IF(AB12=\"Group X\",'Suggested management Options'!$C$14,\"\")))))))))))","v":"Population will only be maintained in-situ in the short term for the purpose of salvage, where practical. Collect cuttings, seeds, germplasm etc. and maintain in ex-situ collections OR translocate/augment to create a population >250. (maybe need to add actions beyond translocate for non-Wheatbelt regions)"},"DEFINITELY TRANSLOCATE",null,1,1,1,0,1,0,0,"","",null,false,false,false,false,false,false,false,false,true,false,false,"Group G",null,1,1,1,0,1,1,0,0]
["Acacia leptoneura",3415,"T","CR","B1ab(iii)+2ab(iii); D","CR","WHTB","CENTRAL WHEATBELT","Dowerin",null,"IRP","No","No","Yes","No","Seed availability poor. Propagation from seed and cuttings has been insuccessful in the past","Yes","Likely Yes","Pop size prior to decline unknown, Only ever 1 plant at populations","No","No","Long-lived","Assumption","No","Unknown","No",null,"Group O",{"$f":"IF(AB13=\"Group A.1\",'Suggested management Options'!$C$4, IF(AB13=\"Group A.2(i)\", 'Suggested management Options'!$C$5, IF(AB13=\"Group A.2(ii)\", 'Suggested management Options'!$C$6, IF(AB13=\"Group B\",'Suggested management Options'!$C$7,IF(AB13=\"Group C\",'Suggested management Options'!$C$8,IF(AB13=\"Group D\",'Suggested management Options'!$C$9,IF(AB13=\"Group E\",'Suggested management Options'!$C$10,IF(AB13=\"Group F\",'Suggested management Options'!$C$11,IF(AB13=\"Group G\",'Suggested management Options'!$C$12,IF(AB13=\"Group O\",'Suggested management Options'!$C$13,IF(AB13=\"Group X\",'Suggested management Options'!$C$14,\"\")))))))))))","v":"Introduce disturbance and then re-evaluate"},"INTRODUCE DISTURBANCE FIRST",null,1,1,0,0,1,0,-1,0,"",null,false,false,false,false,false,false,false,false,false,true,false,"Group O",null,1,1,0,0,1,1,0,0]
["Acacia lobulata",12263,"T","EN","B1+2e","EN","WHTB","CENTRAL WHEATBELT","Warralakkin","Jun-Jul","IRP","No","No","No",null,"declining trends are not apparent. Reassess after next population survey","No","Likely Yes","Plants found near outcrops, some fire noted at populaitons in the past. ","No","Yes","Long-lived","assumption","Yes","Likely Yes","Yes","No","Group A.1",{"$f":"IF(AB14=\"Group A.1\",'Suggested management Options'!$C$4, IF(AB14=\"Group A.2(i)\", 'Suggested management Options'!$C$5, IF(AB14=\"Group A.2(ii)\", 'Suggested management Options'!$C$6, IF(AB14=\"Group B\",'Suggested management Options'!$C$7,IF(AB14=\"Group C\",'Suggested management Options'!$C$8,IF(AB14=\"Group D\",'Suggested management Options'!$C$9,IF(AB14=\"Group E\",'Suggested management Options'!$C$10,IF(AB14=\"Group F\",'Suggested management Options'!$C$11,IF(AB14=\"Group G\",'Suggested management Options'!$C$12,IF(AB14=\"Group O\",'Suggested management Options'!$C$13,IF(AB14=\"Group X\",'Suggested management Options'!$C$14,\"\")))))))))))","v":"These species are secure relative to other threatened species. Lower priority for intervention beyond monitoring. This may change should fragmentation or immediate threat arise."},"DON'T TRANSLOCATE",null,0,1,0,1,1,1,1,1,0,null,true,false,false,false,false,false,false,false,false,false,false,"Group A.1",null,0,1,0,1,0,0,1,1]
["Acacia pharangites",3487,"T","CR","B1ab(v)+2ab(v);C2a(i)","EN","WHTB","CENTRAL WHEATBELT","Wongan Hills","Aug-Sep","IRP","No","No","No",null,"germination occurs infrequently in the absence of disturbance","Yes","Likely No","assumption","No","No","Long-lived","assumption","No","Likely Yes","Yes",null,"Group E",{"$f":"IF(AB15=\"Group A.1\",'Suggested management Options'!$C$4, IF(AB15=\"Group A.2(i)\", 'Suggested management Options'!$C$5, IF(AB15=\"Group A.2(ii)\", 'Suggested management Options'!$C$6, IF(AB15=\"Group B\",'Suggested management Options'!$C$7,IF(AB15=\"Group C\",'Suggested management Options'!$C$8,IF(AB15=\"Group D\",'Suggested management Options'!$C$9,IF(AB15=\"Group E\",'Suggested management Options'!$C$10,IF(AB15=\"Group F\",'Suggested management Options'!$C$11,IF(AB15=\"Group G\",'Suggested management Options'!$C$12,IF(AB15=\"Group O\",'Suggested management Options'!$C$13,IF(AB15=\"Group X\",'Suggested management Options'!$C$14,\"\")))))))))))","v":"Population will be maintained in-situ in the long term. Highest priority will be to increase effective population size to >250 mature plants through promoting in-situ recruitment and/or seed collection, external propagation and subsequent restocking."},"MAYBE TRANSLOCATE IF COST-EFFECTIVE",null,1,0,0,0,1,0,1,1,"",null,false,false,false,false,false,false,true,false,false,false,false,"Group E",null,1,0,1,0,1,1,1,0]
["Acacia pygmaea",13611,"T","EN","D","EN","WHTB","CENTRAL WHEATBELT","Wongan Hills","Mar-May","IRP","No","No","No",null,null,"Yes","Likely Yes","assumption","No","No","Long-lived","assumption","No","Likely Yes","Yes",null,"Group O",{"$f":"IF(AB16=\"Group A.1\",'Suggested management Options'!$C$4, IF(AB16=\"Group A.2(i)\", 'Suggested management Options'!$C$5, IF(AB16=\"Group A.2(ii)\", 'Suggested management Options'!$C$6, IF(AB16=\"Group B\",'Suggested management Options'!$C$7,IF(AB16=\"Group C\",'Suggested management Options'!$C$8,IF(AB16=\"Group D\",'Suggested management Options'!$C$9,IF(AB16=\"Group E\",'Suggested management Options'!$C$10,IF(AB16=\"Group F\",'Suggested management Options'!$C$11,IF(AB16=\"Group G\",'Suggested management Options'!$C$12,IF(AB16=\"Group O\",'Suggested management Options'!$C$13,IF(AB16=\"Group X\",'Suggested management Options'!$C$14,\"\")))))))))))","v":"Introduce disturbance and then re-evaluate"},"INTRODUCE DISTURBANCE FIRST",null,1,1,0,0,1,0,1,1,"",null,false,false,false,false,false,false,false,false,false,true,false,"Group O",null,1,1,0,0,1,1,1,0]
["Acacia rhamphophylla",14140,"T","CR","B1ab(v)+2ab(v)","EN","SCST","ALBANY","Kundip","Aug-Sep","IRP","No",null,null,null,null,"Yes","Yes-fire",null,"Yes","No",null,null,"Yes",null,null,null,"Group D",{"$f":"IF(AB17=\"Group A.1\",'Suggested management Options'!$C$4, IF(AB17=\"Group A.2(i)\", 'Suggested management Options'!$C$5, IF(AB17=\"Group A.2(ii)\", 'Suggested management Options'!$C$6, IF(AB17=\"Group B\",'Suggested management Options'!$C$7,IF(AB17=\"Group C\",'Suggested management Options'!$C$8,IF(AB17=\"Group D\",'Suggested management Options'!$C$9,IF(AB17=\"Group E\",'Suggested management Options'!$C$10,IF(AB17=\"Group F\",'Suggested management Options'!$C$11,IF(AB17=\"Group G\",'Suggested management Options'!$C$12,IF(AB17=\"Group O\",'Suggested management Options'!$C$13,IF(AB17=\"Group X\",'Suggested management Options'!$C$14,\"\")))))))))))","v":"Protect seedlings and juveniles to increase chances of reaching reproductive maturity"},"DON'T TRANSLOCATE",null,1,1,1,0,"",1,"","","",null,false,false,false,false,false,true,false,false,false,false,false,"Group D",null,1,1,1,0,1,0,0,0]
["Acacia sciophanes",3531,"T","CR","B1ab(iii,v)+2ab(iii,v)","EN","WHTB","CENTRAL WHEATBELT","Mukinbudin, Victoria Rock","Sep-Jan","IRP","No","No","No",null,null,"Yes","Yes-fire","population regenerated after prescribed burn","Yes","Yes","Long-lived","assumption","Yes",null,null,null,"Group B",{"$f":"IF(AB18=\"Group A.1\",'Suggested management Options'!$C$4, IF(AB18=\"Group A.2(i)\", 'Suggested management Options'!$C$5, IF(AB18=\"Group A.2(ii)\", 'Suggested management Options'!$C$6, IF(AB18=\"Group B\",'Suggested management Options'!$C$7,IF(AB18=\"Group C\",'Suggested management Options'!$C$8,IF(AB18=\"Group D\",'Suggested management Options'!$C$9,IF(AB18=\"Group E\",'Suggested management Options'!$C$10,IF(AB18=\"Group F\",'Suggested management Options'!$C$11,IF(AB18=\"Group G\",'Suggested management Options'!$C$12,IF(AB18=\"Group O\",'Suggested management Options'!$C$13,IF(AB18=\"Group X\",'Suggested management Options'!$C$14,\"\")))))))))))","v":"Maintain effective population sizes of >250 reproductively mature individuals. Augment populations of <250 individuals if cost effective."},"MAYBE TRANSLOCATE IF COST-EFFECTIVE",null,1,1,1,1,1,1,"","","",null,false,false,false,true,false,false,false,false,false,false,false,"Group B",null,1,1,1,1,0,0,0,0]
["Acacia splendens",20439,"T","CR","B1ab(iii)+2ab(iii)","EN","MWST","MOORA","Dandaragan","Aug-Sep","IRP","No",null,null,null,null,"Yes",null,null,null,null,null,null,null,null,null,null,"",{"$f":"IF(AB19=\"Group A.1\",'Suggested management Options'!$C$4, IF(AB19=\"Group A.2(i)\", 'Suggested management Options'!$C$5, IF(AB19=\"Group A.2(ii)\", 'Suggested management Options'!$C$6, IF(AB19=\"Group B\",'Suggested management Options'!$C$7,IF(AB19=\"Group C\",'Suggested management Options'!$C$8,IF(AB19=\"Group D\",'Suggested management Options'!$C$9,IF(AB19=\"Group E\",'Suggested management Options'!$C$10,IF(AB19=\"Group F\",'Suggested management Options'!$C$11,IF(AB19=\"Group G\",'Suggested management Options'!$C$12,IF(AB19=\"Group O\",'Suggested management Options'!$C$13,IF(AB19=\"Group X\",'Suggested management Options'!$C$14,\"\")))))))))))","v":""},"",null,1,"","","","","","","","",null,false,false,false,false,false,false,false,false,false,false,false,{"$f":"IF(AP19,\"Group A.1\",\"\")&IF(AQ19,\"Group A.2(i)\",\"\")&IF(AR19,\"Group A.2(ii)\",\"\")&IF(AS19,\"Group B\",\"\")&IF(AT19,\"Group C\",\"\")&IF(AU19,\"Group D\",\"\")&IF(AV19,\"Group E\",\"\")&IF(AW19,\"Group F\",\"\")&IF(AX19,\"Group G\",\"\")&IF(AY19,\"Group O\",\"\")&IF(AZ19,\"Group X\",\"\")","v":""},null,1,0,0,0,0,0,0,0]
["Acacia subflexuosa subsp. capillata",14146,"T","CR","D","EN","WHTB","CENTRAL WHEATBELT","S of Cunderdin","Aug-Sep","IRP","Charles Gardener NR, Tammin, 2008","Yes","Yes",null,"more translocation activities required due to small pops and lack of habitat","Yes","Likely No","in-situ disturbance not suitable due to small pop size and little available habitat/edge effects","No","No","Long-lived","assumption","No","No","No",null,"Group G",{"$f":"IF(AB20=\"Group A.1\",'Suggested management Options'!$C$4, IF(AB20=\"Group A.2(i)\", 'Suggested management Options'!$C$5, IF(AB20=\"Group A.2(ii)\", 'Suggested management Options'!$C$6, IF(AB20=\"Group B\",'Suggested management Options'!$C$7,IF(AB20=\"Group C\",'Suggested management Options'!$C$8,IF(AB20=\"Group D\",'Suggested management Options'!$C$9,IF(AB20=\"Group E\",'Suggested management Options'!$C$10,IF(AB20=\"Group F\",'Suggested management Options'!$C$11,IF(AB20=\"Group G\",'Suggested management Options'!$C$12,IF(AB20=\"Group O\",'Suggested management Options'!$C$13,IF(AB20=\"Group X\",'Suggested management Options'!$C$14,\"\")))))))))))","v":"Population will only be maintained in-situ in the short term for the purpose of salvage, where practical. Collect cuttings, seeds, germplasm etc. and maintain in ex-situ collections OR translocate/augment to create a population >250. (maybe need to add actions beyond translocate for non-Wheatbelt regions)"},"DEFINITELY TRANSLOCATE",null,1,0,0,0,1,0,0,0,"",null,false,false,false,false,false,false,false,false,true,false,false,"Group G",null,1,0,1,0,1,1,0,0]
["Acacia unguicula",12271,"T","CR","B1ab(iii)+B2ab(iii); C2a(i); D","CR","MWST","GERALDTON","Mt Singleton","Aug-Sep","IRP","Mt Gibson station, 2010",null,null,null,null,"Yes",null,null,null,null,null,null,null,null,null,null,"",{"$f":"IF(AB21=\"Group A.1\",'Suggested management Options'!$C$4, IF(AB21=\"Group A.2(i)\", 'Suggested management Options'!$C$5, IF(AB21=\"Group A.2(ii)\", 'Suggested management Options'!$C$6, IF(AB21=\"Group B\",'Suggested management Options'!$C$7,IF(AB21=\"Group C\",'Suggested management Options'!$C$8,IF(AB21=\"Group D\",'Suggested management Options'!$C$9,IF(AB21=\"Group E\",'Suggested management Options'!$C$10,IF(AB21=\"Group F\",'Suggested management Options'!$C$11,IF(AB21=\"Group G\",'Suggested management Options'!$C$12,IF(AB21=\"Group O\",'Suggested management Options'!$C$13,IF(AB21=\"Group X\",'Suggested management Options'!$C$14,\"\")))))))))))","v":""},"",null,1,"","","","","","","","",null,false,false,false,false,false,false,false,false,false,false,false,"",null,1,0,0,0,0,0,0,0]
["Acacia vassalii",3594,"T","CR","B2ab(iii,v)","EN","MWST,WHTB","MOORA,CENTRAL WHEATBELT","Wongan Hills-Watheroo","Jul-Aug","IRP","No","No","No",null,null,"Yes","Likely Yes",null,"No","Yes","Long-lived","assumption","Yes","Likely Yes","Yes","Yes","Group O",{"$f":"IF(AB22=\"Group A.1\",'Suggested management Options'!$C$4, IF(AB22=\"Group A.2(i)\", 'Suggested management Options'!$C$5, IF(AB22=\"Group A.2(ii)\", 'Suggested management Options'!$C$6, IF(AB22=\"Group B\",'Suggested management Options'!$C$7,IF(AB22=\"Group C\",'Suggested management Options'!$C$8,IF(AB22=\"Group D\",'Suggested management Options'!$C$9,IF(AB22=\"Group E\",'Suggested management Options'!$C$10,IF(AB22=\"Group F\",'Suggested management Options'!$C$11,IF(AB22=\"Group G\",'Suggested management Options'!$C$12,IF(AB22=\"Group O\",'Suggested management Options'!$C$13,IF(AB22=\"Group X\",'Suggested management Options'!$C$14,\"\")))))))))))","v":"Introduce disturbance and then re-evaluate"},"INTRODUCE DISTURBANCE FIRST",null,1,1,0,1,1,1,1,1,1,null,false,false,false,false,false,false,false,false,false,true,false,"Group O",null,1,1,0,1,0,0,1,0]
["Acacia volubilis",3597,"T","CR","B1ab(iii,v)+2ab(iii,v); C2a(i)","EN","WHTB","CENTRAL WHEATBELT","Cunderdin","-","IRP","Museum Grounds @ Cunderdin, 2004; Christison's property, Cunderdin, 2004","Yes","Yes",null,"more translocation activities required due to small pops and lack of habitat","Yes","Likely No",null,"No","No","Long-lived","assumption","No","No","No",null,"Group G",{"$f":"IF(AB23=\"Group A.1\",'Suggested management Options'!$C$4, IF(AB23=\"Group A.2(i)\", 'Suggested management Options'!$C$5, IF(AB23=\"Group A.2(ii)\", 'Suggested management Options'!$C$6, IF(AB23=\"Group B\",'Suggested management Options'!$C$7,IF(AB23=\"Group C\",'Suggested management Options'!$C$8,IF(AB23=\"Group D\",'Suggested management Options'!$C$9,IF(AB23=\"Group E\",'Suggested management Options'!$C$10,IF(AB23=\"Group F\",'Suggested management Options'!$C$11,IF(AB23=\"Group G\",'Suggested management Options'!$C$12,IF(AB23=\"Group O\",'Suggested management Options'!$C$13,IF(AB23=\"Group X\",'Suggested management Options'!$C$14,\"\")))))))))))","v":"Population will only be maintained in-situ in the short term for the purpose of salvage, where practical. Collect cuttings, seeds, germplasm etc. and maintain in ex-situ collections OR translocate/augment to create a population >250. (maybe need to add actions beyond translocate for non-Wheatbelt regions)"},"DEFINITELY TRANSLOCATE",null,1,0,0,0,1,0,0,0,"",null,false,false,false,false,false,false,false,false,true,false,false,"Group G",null,1,0,1,0,1,1,0,0]
["Acacia wilsonii",14154,"T","EN","B1ab(iii,v)+2ab(iii,v); C2a(i)","EN","MWST","MOORA","Badgingarra, Alexander Morrison N.P., Eneabba","-","IRP","No",null,null,null,null,"Yes",null,null,null,null,null,null,null,null,null,null,"",{"$f":"IF(AB24=\"Group A.1\",'Suggested management Options'!$C$4, IF(AB24=\"Group A.2(i)\", 'Suggested management Options'!$C$5, IF(AB24=\"Group A.2(ii)\", 'Suggested management Options'!$C$6, IF(AB24=\"Group B\",'Suggested management Options'!$C$7,IF(AB24=\"Group C\",'Suggested management Options'!$C$8,IF(AB24=\"Group D\",'Suggested management Options'!$C$9,IF(AB24=\"Group E\",'Suggested management Options'!$C$10,IF(AB24=\"Group F\",'Suggested management Options'!$C$11,IF(AB24=\"Group G\",'Suggested management Options'!$C$12,IF(AB24=\"Group O\",'Suggested management Options'!$C$13,IF(AB24=\"Group X\",'Suggested management Options'!$C$14,\"\")))))))))))","v":""},"",null,1,"","","","","","","","",null,false,false,false,false,false,false,false,false,false,false,false,"",null,1,0,0,0,0,0,0,0]
["Acacia woodmaniorum",30460,"T","EN","B1ab(i,ii,iii,iv,v)+2ab(i,ii,iii,iv,v)",null,"MWST","GERALDTON","Blue Hill Range, Karara","-","IRP","Karara, ?",null,null,null,null,"Yes",null,null,null,null,null,null,null,null,null,null,"",{"$f":"IF(AB25=\"Group A.1\",'Suggested management Options'!$C$4, IF(AB25=\"Group A.2(i)\", 'Suggested management Options'!$C$5, IF(AB25=\"Group A.2(ii)\", 'Suggested management Options'!$C$6, IF(AB25=\"Group B\",'Suggested management Options'!$C$7,IF(AB25=\"Group C\",'Suggested management Options'!$C$8,IF(AB25=\"Group D\",'Suggested management Options'!$C$9,IF(AB25=\"Group E\",'Suggested management Options'!$C$10,IF(AB25=\"Group F\",'Suggested management Options'!$C$11,IF(AB25=\"Group G\",'Suggested management Options'!$C$12,IF(AB25=\"Group O\",'Suggested management Options'!$C$13,IF(AB25=\"Group X\",'Suggested management Options'!$C$14,\"\")))))))))))","v":""},"",null,1,"","","","","","","","",null,false,false,false,false,false,false,false,false,false,false,false,"",null,1,0,0,0,0,0,0,0]
["Adenanthos eyrei",1781,"T","EN","D","EN","SCST","ESPERANCE","Nullarbor Plain","Jan-Dec","IRP","No",null,null,null,null,"Yes",null,null,null,null,null,null,null,null,null,null,"",{"$f":"IF(AB26=\"Group A.1\",'Suggested management Options'!$C$4, IF(AB26=\"Group A.2(i)\", 'Suggested management Options'!$C$5, IF(AB26=\"Group A.2(ii)\", 'Suggested management Options'!$C$6, IF(AB26=\"Group B\",'Suggested management Options'!$C$7,IF(AB26=\"Group C\",'Suggested management Options'!$C$8,IF(AB26=\"Group D\",'Suggested management Options'!$C$9,IF(AB26=\"Group E\",'Suggested management Options'!$C$10,IF(AB26=\"Group F\",'Suggested management Options'!$C$11,IF(AB26=\"Group G\",'Suggested management Options'!$C$12,IF(AB26=\"Group O\",'Suggested management Options'!$C$13,IF(AB26=\"Group X\",'Suggested management Options'!$C$14,\"\")))))))))))","v":""},"",null,1,"","","","","","","","",null,false,false,false,false,false,false,false,false,false,false,false,"",null,1,0,0,0,0,0,0,0]
["Adenanthos pungens subsp. effusus",11593,"T","CR","B2ab(iii,v)","EN","WHTB","GREAT SOUTHERN","Marribank, Tambellup","Aug-Nov","IRP","No","No","No",null,null,"Yes","Likely Yes","populations discovered on roadsides, railway lines and in valley floor locations","No","Yes","Long-lived",null,"Yes","Yes","Yes","Yes","Group O",{"$f":"IF(AB27=\"Group A.1\",'Suggested management Options'!$C$4, IF(AB27=\"Group A.2(i)\", 'Suggested management Options'!$C$5, IF(AB27=\"Group A.2(ii)\", 'Suggested management Options'!$C$6, IF(AB27=\"Group B\",'Suggested management Options'!$C$7,IF(AB27=\"Group C\",'Suggested management Options'!$C$8,IF(AB27=\"Group D\",'Suggested management Options'!$C$9,IF(AB27=\"Group E\",'Suggested management Options'!$C$10,IF(AB27=\"Group F\",'Suggested management Options'!$C$11,IF(AB27=\"Group G\",'Suggested management Options'!$C$12,IF(AB27=\"Group O\",'Suggested management Options'!$C$13,IF(AB27=\"Group X\",'Suggested management Options'!$C$14,\"\")))))))))))","v":"Introduce disturbance and then re-evaluate"},"INTRODUCE DISTURBANCE FIRST",null,1,1,0,1,1,1,1,1,1,null,false,false,false,false,false,false,false,false,false,true,false,"Group O",null,1,1,0,1,0,0,1,0]
["Adenanthos pungens subsp. pungens",12021,"T","EN","B1+2c","VU","SCST,WHTB","ALBANY,GREAT SOUTHERN","Stirling Range, Chinocup","Aug-Nov",null,"No","No","No",null,null,"No","Likely Yes",null,"No","Yes","Long-lived",null,"Yes","Yes","Yes","Yes","Group A.2(i)",{"$f":"IF(AB28=\"Group A.1\",'Suggested management Options'!$C$4, IF(AB28=\"Group A.2(i)\", 'Suggested management Options'!$C$5, IF(AB28=\"Group A.2(ii)\", 'Suggested management Options'!$C$6, IF(AB28=\"Group B\",'Suggested management Options'!$C$7,IF(AB28=\"Group C\",'Suggested management Options'!$C$8,IF(AB28=\"Group D\",'Suggested management Options'!$C$9,IF(AB28=\"Group E\",'Suggested management Options'!$C$10,IF(AB28=\"Group F\",'Suggested management Options'!$C$11,IF(AB28=\"Group G\",'Suggested management Options'!$C$12,IF(AB28=\"Group O\",'Suggested management Options'!$C$13,IF(AB28=\"Group X\",'Suggested management Options'!$C$14,\"\")))))))))))","v":"Species is relatively less secure compared to Group A.1. Monitoring required. Management could include….. ?"},"DON'T TRANSLOCATE",null,0,1,0,1,1,1,1,1,1,null,false,true,false,false,false,false,false,false,false,false,false,"Group A.2(i)",null,0,1,0,1,0,0,1,1]
["Adenanthos velutinus",1796,"T","EN","B1+2c","EN","WHTB","GREAT SOUTHERN","Cranbrook","Jul-Sep",null,"No","No","Yes","No","only one population of this species","No","Likely Yes","historical evidence of burning at the population, single aged cohort present","No","Yes","Long-lived",null,"Yes","Likely Yes","Yes","Yes","Group A.2(i)",{"$f":"IF(AB29=\"Group A.1\",'Suggested management Options'!$C$4, IF(AB29=\"Group A.2(i)\", 'Suggested management Options'!$C$5, IF(AB29=\"Group A.2(ii)\", 'Suggested management Options'!$C$6, IF(AB29=\"Group B\",'Suggested management Options'!$C$7,IF(AB29=\"Group C\",'Suggested management Options'!$C$8,IF(AB29=\"Group D\",'Suggested management Options'!$C$9,IF(AB29=\"Group E\",'Suggested management Options'!$C$10,IF(AB29=\"Group F\",'Suggested management Options'!$C$11,IF(AB29=\"Group G\",'Suggested management Options'!$C$12,IF(AB29=\"Group O\",'Suggested management Options'!$C$13,IF(AB29=\"Group X\",'Suggested management Options'!$C$14,\"\")))))))))))","v":"Species is relatively less secure compared to Group A.1. Monitoring required. Management could include….. ?"},"DON'T TRANSLOCATE",null,0,1,0,1,1,1,1,1,1,null,false,true,false,false,false,false,false,false,false,false,false,"Group A.2(i)",null,0,1,0,1,0,0,1,1]
["Aluta quadrata",19448,"T","EN","B1ab(iii,v)+2ab(iii,v)",null,"PILB","KARRATHA","Mt Channar, Paraburdoo","May-Jun",null,"No",null,null,null,null,"Yes",null,null,null,null,null,null,null,null,null,null,"",{"$f":"IF(AB30=\"Group A.1\",'Suggested management Options'!$C$4, IF(AB30=\"Group A.2(i)\", 'Suggested management Options'!$C$5, IF(AB30=\"Group A.2(ii)\", 'Suggested management Options'!$C$6, IF(AB30=\"Group B\",'Suggested management Options'!$C$7,IF(AB30=\"Group C\",'Suggested management Options'!$C$8,IF(AB30=\"Group D\",'Suggested management Options'!$C$9,IF(AB30=\"Group E\",'Suggested management Options'!$C$10,IF(AB30=\"Group F\",'Suggested management Options'!$C$11,IF(AB30=\"Group G\",'Suggested management Options'!$C$12,IF(AB30=\"Group O\",'Suggested management Options'!$C$13,IF(AB30=\"Group X\",'Suggested management Options'!$C$14,\"\")))))))))))","v":""},"",null,1,"","","","","","","","",null,false,false,false,false,false,false,false,false,false,false,false,"",null,1,0,0,0,0,0,0,0]
["Andersonia annelsii",14455,"T","CR","B1ab(v); B2ab(v)","CR","WARR","DONNELLY","Perup, Manjimup","Oct","IRP","Greater Kingston NP, 2016",null,null,null,null,"Yes",null,null,null,null,null,null,null,null,null,null,"",{"$f":"IF(AB31=\"Group A.1\",'Suggested management Options'!$C$4, IF(AB31=\"Group A.2(i)\", 'Suggested management Options'!$C$5, IF(AB31=\"Group A.2(ii)\", 'Suggested management Options'!$C$6, IF(AB31=\"Group B\",'Suggested management Options'!$C$7,IF(AB31=\"Group C\",'Suggested management Options'!$C$8,IF(AB31=\"Group D\",'Suggested management Options'!$C$9,IF(AB31=\"Group E\",'Suggested management Options'!$C$10,IF(AB31=\"Group F\",'Suggested management Options'!$C$11,IF(AB31=\"Group G\",'Suggested management Options'!$C$12,IF(AB31=\"Group O\",'Suggested management Options'!$C$13,IF(AB31=\"Group X\",'Suggested management Options'!$C$14,\"\")))))))))))","v":""},"",null,1,"","","","","","","","",null,false,false,false,false,false,false,false,false,false,false,false,"",null,1,0,0,0,0,0,0,0]
["Andersonia axilliflora",6302,"T","CR","A3e","EN","SCST","ALBANY","Stirling Range N.P.","Oct-Nov","IRP","No",null,null,null,null,"No",null,null,null,null,null,null,null,null,null,null,"",{"$f":"IF(AB32=\"Group A.1\",'Suggested management Options'!$C$4, IF(AB32=\"Group A.2(i)\", 'Suggested management Options'!$C$5, IF(AB32=\"Group A.2(ii)\", 'Suggested management Options'!$C$6, IF(AB32=\"Group B\",'Suggested management Options'!$C$7,IF(AB32=\"Group C\",'Suggested management Options'!$C$8,IF(AB32=\"Group D\",'Suggested management Options'!$C$9,IF(AB32=\"Group E\",'Suggested management Options'!$C$10,IF(AB32=\"Group F\",'Suggested management Options'!$C$11,IF(AB32=\"Group G\",'Suggested management Options'!$C$12,IF(AB32=\"Group O\",'Suggested management Options'!$C$13,IF(AB32=\"Group X\",'Suggested management Options'!$C$14,\"\")))))))))))","v":""},"",null,0,"","","","","","","","",null,false,false,false,false,false,false,false,false,false,false,false,"",null,0,0,0,0,0,0,0,0]
["Androcalva adenothalia",40902,"T","CR","B1ab(i,ii,iii,iv)+2ab(i,ii,iii,iv); D",null,"MWST,WHTB","GERALDTON,CENTRAL WHEATBELT","Canna, Morawa.",null,"IRP","No",null,null,null,null,"Yes",null,null,null,null,null,null,null,null,null,null,"",{"$f":"IF(AB33=\"Group A.1\",'Suggested management Options'!$C$4, IF(AB33=\"Group A.2(i)\", 'Suggested management Options'!$C$5, IF(AB33=\"Group A.2(ii)\", 'Suggested management Options'!$C$6, IF(AB33=\"Group B\",'Suggested management Options'!$C$7,IF(AB33=\"Group C\",'Suggested management Options'!$C$8,IF(AB33=\"Group D\",'Suggested management Options'!$C$9,IF(AB33=\"Group E\",'Suggested management Options'!$C$10,IF(AB33=\"Group F\",'Suggested management Options'!$C$11,IF(AB33=\"Group G\",'Suggested management Options'!$C$12,IF(AB33=\"Group O\",'Suggested management Options'!$C$13,IF(AB33=\"Group X\",'Suggested management Options'!$C$14,\"\")))))))))))","v":""},"",null,1,"","","","","","","","",null,false,false,false,false,false,false,false,false,false,false,false,"",null,1,0,0,0,0,0,0,0]
["Androcalva bivillosa",40911,"T","CR","B2ab(iii,v); C2(a)(i)","CR","MWST","GERALDTON","Binnu, Northampton, Hutt River","Jul-Oct","IRP","Airport, 2017; Hawkes Head, 2017; Rangers Station, 2017",null,null,null,null,"Yes",null,null,null,null,null,null,null,null,null,null,"",{"$f":"IF(AB34=\"Group A.1\",'Suggested management Options'!$C$4, IF(AB34=\"Group A.2(i)\", 'Suggested management Options'!$C$5, IF(AB34=\"Group A.2(ii)\", 'Suggested management Options'!$C$6, IF(AB34=\"Group B\",'Suggested management Options'!$C$7,IF(AB34=\"Group C\",'Suggested management Options'!$C$8,IF(AB34=\"Group D\",'Suggested management Options'!$C$9,IF(AB34=\"Group E\",'Suggested management Options'!$C$10,IF(AB34=\"Group F\",'Suggested management Options'!$C$11,IF(AB34=\"Group G\",'Suggested management Options'!$C$12,IF(AB34=\"Group O\",'Suggested management Options'!$C$13,IF(AB34=\"Group X\",'Suggested management Options'!$C$14,\"\")))))))))))","v":""},"",null,1,"","","","","","","","",null,false,false,false,false,false,false,false,false,false,false,false,"",null,1,0,0,0,0,0,0,0]
["Androcalva perlaria",40907,"T","EN","C2a(i)",null,"SCST","ALBANY","Mt Groper",null,"IRP","Wellstead, ?",null,null,null,null,"Yes",null,null,null,null,null,null,null,null,null,null,"",{"$f":"IF(AB35=\"Group A.1\",'Suggested management Options'!$C$4, IF(AB35=\"Group A.2(i)\", 'Suggested management Options'!$C$5, IF(AB35=\"Group A.2(ii)\", 'Suggested management Options'!$C$6, IF(AB35=\"Group B\",'Suggested management Options'!$C$7,IF(AB35=\"Group C\",'Suggested management Options'!$C$8,IF(AB35=\"Group D\",'Suggested management Options'!$C$9,IF(AB35=\"Group E\",'Suggested management Options'!$C$10,IF(AB35=\"Group F\",'Suggested management Options'!$C$11,IF(AB35=\"Group G\",'Suggested management Options'!$C$12,IF(AB35=\"Group O\",'Suggested management Options'!$C$13,IF(AB35=\"Group X\",'Suggested management Options'!$C$14,\"\")))))))))))","v":""},"",null,1,"","","","","","","","",null,false,false,false,false,false,false,false,false,false,false,false,"",null,1,0,0,0,0,0,0,0]
["Apium prostratum subsp. Porongurup Range (G.J. Keighery 8631)",25891,"T","EN","C2a; D","VU","SCST","ALBANY","Porongurups","Nov-Jan",null,"No",null,null,null,null,"Yes",null,null,null,null,null,null,null,null,null,null,"",{"$f":"IF(AB36=\"Group A.1\",'Suggested management Options'!$C$4, IF(AB36=\"Group A.2(i)\", 'Suggested management Options'!$C$5, IF(AB36=\"Group A.2(ii)\", 'Suggested management Options'!$C$6, IF(AB36=\"Group B\",'Suggested management Options'!$C$7,IF(AB36=\"Group C\",'Suggested management Options'!$C$8,IF(AB36=\"Group D\",'Suggested management Options'!$C$9,IF(AB36=\"Group E\",'Suggested management Options'!$C$10,IF(AB36=\"Group F\",'Suggested management Options'!$C$11,IF(AB36=\"Group G\",'Suggested management Options'!$C$12,IF(AB36=\"Group O\",'Suggested management Options'!$C$13,IF(AB36=\"Group X\",'Suggested management Options'!$C$14,\"\")))))))))))","v":""},"",null,1,"","","","","","","","",null,false,false,false,false,false,false,false,false,false,false,false,"",null,1,0,0,0,0,0,0,0]
["Austrostipa bronwenae",38480,"T","EN","B1ab(ii,iii,v)+B2ab(ii,iii,v); C2(a)(i)","EN","SWAN,SWST","SWAN COASTAL,WELLINGTON","Kenwick, Kemerton, Bunbury","Oct-Nov","IRP","No",null,null,null,null,"Yes",null,null,null,null,null,null,null,null,null,null,"",{"$f":"IF(AB37=\"Group A.1\",'Suggested management Options'!$C$4, IF(AB37=\"Group A.2(i)\", 'Suggested management Options'!$C$5, IF(AB37=\"Group A.2(ii)\", 'Suggested management Options'!$C$6, IF(AB37=\"Group B\",'Suggested management Options'!$C$7,IF(AB37=\"Group C\",'Suggested management Options'!$C$8,IF(AB37=\"Group D\",'Suggested management Options'!$C$9,IF(AB37=\"Group E\",'Suggested management Options'!$C$10,IF(AB37=\"Group F\",'Suggested management Options'!$C$11,IF(AB37=\"Group G\",'Suggested management Options'!$C$12,IF(AB37=\"Group O\",'Suggested management Options'!$C$13,IF(AB37=\"Group X\",'Suggested management Options'!$C$14,\"\")))))))))))","v":""},"",null,1,"","","","","","","","",null,false,false,false,false,false,false,false,false,false,false,false,"",null,1,0,0,0,0,0,0,0]
["Austrostipa jacobsiana",38481,"T","CR","B2ab(ii,iii)","CR","SWAN,SWST","SWAN COASTAL,WELLINGTON","Gosnells, Bunbury","Oct-Nov","IRP","No",null,null,null,null,"Yes",null,null,null,null,null,null,null,null,null,null,"",{"$f":"IF(AB38=\"Group A.1\",'Suggested management Options'!$C$4, IF(AB38=\"Group A.2(i)\", 'Suggested management Options'!$C$5, IF(AB38=\"Group A.2(ii)\", 'Suggested management Options'!$C$6, IF(AB38=\"Group B\",'Suggested management Options'!$C$7,IF(AB38=\"Group C\",'Suggested management Options'!$C$8,IF(AB38=\"Group D\",'Suggested management Options'!$C$9,IF(AB38=\"Group E\",'Suggested management Options'!$C$10,IF(AB38=\"Group F\",'Suggested management Options'!$C$11,IF(AB38=\"Group G\",'Suggested management Options'!$C$12,IF(AB38=\"Group O\",'Suggested management Options'!$C$13,IF(AB38=\"Group X\",'Suggested management Options'!$C$14,\"\")))))))))))","v":""},"",null,1,"","","","","","","","",null,false,false,false,false,false,false,false,false,false,false,false,"",null,1,0,0,0,0,0,0,0]
["Banksia anatona",32686,"T","CR","B1+2a-e","CR","SCST","ALBANY","Stirling Range","Feb-Mar","IRP","Luscombe's Seed Orchard, 2007; Benmore ITC Tree Farm, 2008; Stirling Range NP, 2019",null,null,null,null,"Yes",null,null,null,null,null,null,null,null,null,null,"",{"$f":"IF(AB39=\"Group A.1\",'Suggested management Options'!$C$4, IF(AB39=\"Group A.2(i)\", 'Suggested management Options'!$C$5, IF(AB39=\"Group A.2(ii)\", 'Suggested management Options'!$C$6, IF(AB39=\"Group B\",'Suggested management Options'!$C$7,IF(AB39=\"Group C\",'Suggested management Options'!$C$8,IF(AB39=\"Group D\",'Suggested management Options'!$C$9,IF(AB39=\"Group E\",'Suggested management Options'!$C$10,IF(AB39=\"Group F\",'Suggested management Options'!$C$11,IF(AB39=\"Group G\",'Suggested management Options'!$C$12,IF(AB39=\"Group O\",'Suggested management Options'!$C$13,IF(AB39=\"Group X\",'Suggested management Options'!$C$14,\"\")))))))))))","v":""},"",null,1,"","","","","","","","",null,false,false,false,false,false,false,false,false,false,false,false,"",null,1,0,0,0,0,0,0,0]
["Banksia brownii",1806,"T","CR","A3ce","EN","SCST","ALBANY","Albany-Stirling Range","Jan-Jul","IRP","Benmore ITC Tree Farm, 2007; Luscombe's Seed Orchard, 2007; Torndirrup NP, 2008; Burcher, 2017",null,null,null,null,"No",null,null,null,null,null,null,null,null,null,null,"",{"$f":"IF(AB40=\"Group A.1\",'Suggested management Options'!$C$4, IF(AB40=\"Group A.2(i)\", 'Suggested management Options'!$C$5, IF(AB40=\"Group A.2(ii)\", 'Suggested management Options'!$C$6, IF(AB40=\"Group B\",'Suggested management Options'!$C$7,IF(AB40=\"Group C\",'Suggested management Options'!$C$8,IF(AB40=\"Group D\",'Suggested management Options'!$C$9,IF(AB40=\"Group E\",'Suggested management Options'!$C$10,IF(AB40=\"Group F\",'Suggested management Options'!$C$11,IF(AB40=\"Group G\",'Suggested management Options'!$C$12,IF(AB40=\"Group O\",'Suggested management Options'!$C$13,IF(AB40=\"Group X\",'Suggested management Options'!$C$14,\"\")))))))))))","v":""},"",null,0,"","","","","","","","",null,false,false,false,false,false,false,false,false,false,false,false,"",null,0,0,0,0,0,0,0,0]
["Banksia cuneata",1812,"T","EN","B1ab(i,ii,iii,iv,v)+2ab(i,ii,iii,iv,v); C1+2a(i)","EN","WHTB","GREAT SOUTHERN,CENTRAL WHEATBELT","Beverley-Quairading","Jun-Dec","IRP","Quairading Stacey study site, 1995; Quairading Johnston study site, 1995; Quairading  Reserve 12397, 1996; Quairading, Stone Road, 1996; Lazaway Farm, 1996","Yes","Yes","Yes","successful germination at TFSC and BGPA","Yes","Yes-fire","No inter-fire recruitment obserevd. Bushfire at Quairading killed adult plants and resulted in good germination and recruitment.","Yes","No","Long-lived","known","Yes","No","Yes","Yes","Group D",{"$f":"IF(AB41=\"Group A.1\",'Suggested management Options'!$C$4, IF(AB41=\"Group A.2(i)\", 'Suggested management Options'!$C$5, IF(AB41=\"Group A.2(ii)\", 'Suggested management Options'!$C$6, IF(AB41=\"Group B\",'Suggested management Options'!$C$7,IF(AB41=\"Group C\",'Suggested management Options'!$C$8,IF(AB41=\"Group D\",'Suggested management Options'!$C$9,IF(AB41=\"Group E\",'Suggested management Options'!$C$10,IF(AB41=\"Group F\",'Suggested management Options'!$C$11,IF(AB41=\"Group G\",'Suggested management Options'!$C$12,IF(AB41=\"Group O\",'Suggested management Options'!$C$13,IF(AB41=\"Group X\",'Suggested management Options'!$C$14,\"\")))))))))))","v":"Protect seedlings and juveniles to increase chances of reaching reproductive maturity"},"DON'T TRANSLOCATE",null,1,1,1,0,1,1,0,1,1,null,false,false,false,false,false,true,false,false,false,false,false,"Group D",null,1,1,1,1,1,0,0,0]
["Banksia fuscobractea",32520,"T","CR","C2a(i); D","CR","MWST","MOORA","Gillingarra","Jul-Oct","IRP","No",null,null,null,null,"Yes",null,null,null,null,null,null,null,null,null,null,"",{"$f":"IF(AB42=\"Group A.1\",'Suggested management Options'!$C$4, IF(AB42=\"Group A.2(i)\", 'Suggested management Options'!$C$5, IF(AB42=\"Group A.2(ii)\", 'Suggested management Options'!$C$6, IF(AB42=\"Group B\",'Suggested management Options'!$C$7,IF(AB42=\"Group C\",'Suggested management Options'!$C$8,IF(AB42=\"Group D\",'Suggested management Options'!$C$9,IF(AB42=\"Group E\",'Suggested management Options'!$C$10,IF(AB42=\"Group F\",'Suggested management Options'!$C$11,IF(AB42=\"Group G\",'Suggested management Options'!$C$12,IF(AB42=\"Group O\",'Suggested management Options'!$C$13,IF(AB42=\"Group X\",'Suggested management Options'!$C$14,\"\")))))))))))","v":""},"",null,1,"","","","","","","","",null,false,false,false,false,false,false,false,false,false,false,false,"",null,1,0,0,0,0,0,0,0]
["Banksia ionthocarpa subsp. chrysophoenix",32219,"T","CR","B1ab(iii,v)+2ab(iii,v)","EN","WHTB","GREAT SOUTHERN","Pingelly","Oct","IRP","No","No","Yes","No","currently studying micropropagation techniques","Yes","Likely Yes","populations discovered on roadsides, railway lines and in a recently burnt reserve","Yes","No","Long-lived","assumption","No","No","Yes","Yes","Group G",{"$f":"IF(AB43=\"Group A.1\",'Suggested management Options'!$C$4, IF(AB43=\"Group A.2(i)\", 'Suggested management Options'!$C$5, IF(AB43=\"Group A.2(ii)\", 'Suggested management Options'!$C$6, IF(AB43=\"Group B\",'Suggested management Options'!$C$7,IF(AB43=\"Group C\",'Suggested management Options'!$C$8,IF(AB43=\"Group D\",'Suggested management Options'!$C$9,IF(AB43=\"Group E\",'Suggested management Options'!$C$10,IF(AB43=\"Group F\",'Suggested management Options'!$C$11,IF(AB43=\"Group G\",'Suggested management Options'!$C$12,IF(AB43=\"Group O\",'Suggested management Options'!$C$13,IF(AB43=\"Group X\",'Suggested management Options'!$C$14,\"\")))))))))))","v":"Population will only be maintained in-situ in the short term for the purpose of salvage, where practical. Collect cuttings, seeds, germplasm etc. and maintain in ex-situ collections OR translocate/augment to create a population >250. (maybe need to add actions beyond translocate for non-Wheatbelt regions)"},"DEFINITELY TRANSLOCATE",null,1,1,1,0,1,0,0,1,1,null,false,false,false,false,false,false,false,false,true,false,false,"Group G",null,1,1,1,1,1,1,0,0]
["Banksia ionthocarpa subsp. ionthocarpa",32218,"T","CR","B1ab(v)+B2ab(v)","EN","SCST","ALBANY","Kamballup","Oct","IRP","Kalgan Plains NR, 1999",null,null,null,null,"Yes",null,null,null,null,null,null,null,null,null,null,"",{"$f":"IF(AB44=\"Group A.1\",'Suggested management Options'!$C$4, IF(AB44=\"Group A.2(i)\", 'Suggested management Options'!$C$5, IF(AB44=\"Group A.2(ii)\", 'Suggested management Options'!$C$6, IF(AB44=\"Group B\",'Suggested management Options'!$C$7,IF(AB44=\"Group C\",'Suggested management Options'!$C$8,IF(AB44=\"Group D\",'Suggested management Options'!$C$9,IF(AB44=\"Group E\",'Suggested management Options'!$C$10,IF(AB44=\"Group F\",'Suggested management Options'!$C$11,IF(AB44=\"Group G\",'Suggested management Options'!$C$12,IF(AB44=\"Group O\",'Suggested management Options'!$C$13,IF(AB44=\"Group X\",'Suggested management Options'!$C$14,\"\")))))))))))","v":""},"",null,1,"","","","","","","","",null,false,false,false,false,false,false,false,false,false,false,false,"",null,1,0,0,0,0,0,0,0]
["Banksia montana",32210,"T","CR","B1ab(iii,v)+2ab(iii,v); C2a(i); D","EN","SCST","ALBANY","Stirling Range","Feb","IRP","Luscombe's Seed Orchard, 2003; Benmore ITC Tree Farm, 2010; Stirling Range NP, 2019",null,null,null,null,"Yes",null,null,null,null,null,null,null,null,null,null,"",{"$f":"IF(AB45=\"Group A.1\",'Suggested management Options'!$C$4, IF(AB45=\"Group A.2(i)\", 'Suggested management Options'!$C$5, IF(AB45=\"Group A.2(ii)\", 'Suggested management Options'!$C$6, IF(AB45=\"Group B\",'Suggested management Options'!$C$7,IF(AB45=\"Group C\",'Suggested management Options'!$C$8,IF(AB45=\"Group D\",'Suggested management Options'!$C$9,IF(AB45=\"Group E\",'Suggested management Options'!$C$10,IF(AB45=\"Group F\",'Suggested management Options'!$C$11,IF(AB45=\"Group G\",'Suggested management Options'!$C$12,IF(AB45=\"Group O\",'Suggested management Options'!$C$13,IF(AB45=\"Group X\",'Suggested management Options'!$C$14,\"\")))))))))))","v":""},"",null,1,"","","","","","","","",null,false,false,false,false,false,false,false,false,false,false,false,"",null,1,0,0,0,0,0,0,0]
["Banksia nivea subsp. uliginosa",32204,"T","EN","A2c","EN","SWST","BLACKWOOD","Whicher Range, Scott River, Tutunup","Aug-Sep","IRP","Augusta, 2003",null,null,null,null,"No",null,null,null,null,null,null,null,null,null,null,"",{"$f":"IF(AB46=\"Group A.1\",'Suggested management Options'!$C$4, IF(AB46=\"Group A.2(i)\", 'Suggested management Options'!$C$5, IF(AB46=\"Group A.2(ii)\", 'Suggested management Options'!$C$6, IF(AB46=\"Group B\",'Suggested management Options'!$C$7,IF(AB46=\"Group C\",'Suggested management Options'!$C$8,IF(AB46=\"Group D\",'Suggested management Options'!$C$9,IF(AB46=\"Group E\",'Suggested management Options'!$C$10,IF(AB46=\"Group F\",'Suggested management Options'!$C$11,IF(AB46=\"Group G\",'Suggested management Options'!$C$12,IF(AB46=\"Group O\",'Suggested management Options'!$C$13,IF(AB46=\"Group X\",'Suggested management Options'!$C$14,\"\")))))))))))","v":""},"",null,0,"","","","","","","","",null,false,false,false,false,false,false,false,false,false,false,false,"",null,0,0,0,0,0,0,0,0]
["Banksia oligantha",11152,"T","EN","B1ab(iii)+2ab(iii)","EN","WHTB","GREAT SOUTHERN","Wagin, Harrismith, Wangeling Gully N.R.","Oct-Nov","IRP","No","No","No",null,null,"Yes","Yes-fire","inter-fire recruitment observed in previously cleared populations where there is space to expand, prescribed burning unsuccessful at population 1, killed adult plants, seed available, but no recruits. ","Yes","Yes","Long-lived","known","Yes","Yes","Yes","Yes","Group B",{"$f":"IF(AB47=\"Group A.1\",'Suggested management Options'!$C$4, IF(AB47=\"Group A.2(i)\", 'Suggested management Options'!$C$5, IF(AB47=\"Group A.2(ii)\", 'Suggested management Options'!$C$6, IF(AB47=\"Group B\",'Suggested management Options'!$C$7,IF(AB47=\"Group C\",'Suggested management Options'!$C$8,IF(AB47=\"Group D\",'Suggested management Options'!$C$9,IF(AB47=\"Group E\",'Suggested management Options'!$C$10,IF(AB47=\"Group F\",'Suggested management Options'!$C$11,IF(AB47=\"Group G\",'Suggested management Options'!$C$12,IF(AB47=\"Group O\",'Suggested management Options'!$C$13,IF(AB47=\"Group X\",'Suggested management Options'!$C$14,\"\")))))))))))","v":"Maintain effective population sizes of >250 reproductively mature individuals. Augment populations of <250 individuals if cost effective."},"MAYBE TRANSLOCATE IF COST-EFFECTIVE",null,1,1,1,1,1,1,1,1,1,null,false,false,false,true,false,false,false,false,false,false,false,"Group B",null,1,1,1,1,0,0,1,0]
["Banksia pseudoplumosa",32141,"T","EN","B2ab(ii)","EN","SCST","ALBANY","Stirling Range, Woogenilup, Toompup","Nov-Dec","IRP","No",null,null,null,null,"Yes",null,null,null,null,null,null,null,null,null,null,"",{"$f":"IF(AB48=\"Group A.1\",'Suggested management Options'!$C$4, IF(AB48=\"Group A.2(i)\", 'Suggested management Options'!$C$5, IF(AB48=\"Group A.2(ii)\", 'Suggested management Options'!$C$6, IF(AB48=\"Group B\",'Suggested management Options'!$C$7,IF(AB48=\"Group C\",'Suggested management Options'!$C$8,IF(AB48=\"Group D\",'Suggested management Options'!$C$9,IF(AB48=\"Group E\",'Suggested management Options'!$C$10,IF(AB48=\"Group F\",'Suggested management Options'!$C$11,IF(AB48=\"Group G\",'Suggested management Options'!$C$12,IF(AB48=\"Group O\",'Suggested management Options'!$C$13,IF(AB48=\"Group X\",'Suggested management Options'!$C$14,\"\")))))))))))","v":""},"",null,1,"","","","","","","","",null,false,false,false,false,false,false,false,false,false,false,false,"",null,1,0,0,0,0,0,0,0]
["Banksia rufa subsp. pumila",32091,"T","EN","B1ab(ii,iii,iv,v) + 2ab(ii,iii,iv,v)","EN","SCST","ALBANY","Stirling Range N.P.","Sep-Oct",null,"No",null,null,null,null,"Yes",null,null,null,null,null,null,null,null,null,null,"",{"$f":"IF(AB49=\"Group A.1\",'Suggested management Options'!$C$4, IF(AB49=\"Group A.2(i)\", 'Suggested management Options'!$C$5, IF(AB49=\"Group A.2(ii)\", 'Suggested management Options'!$C$6, IF(AB49=\"Group B\",'Suggested management Options'!$C$7,IF(AB49=\"Group C\",'Suggested management Options'!$C$8,IF(AB49=\"Group D\",'Suggested management Options'!$C$9,IF(AB49=\"Group E\",'Suggested management Options'!$C$10,IF(AB49=\"Group F\",'Suggested management Options'!$C$11,IF(AB49=\"Group G\",'Suggested management Options'!$C$12,IF(AB49=\"Group O\",'Suggested management Options'!$C$13,IF(AB49=\"Group X\",'Suggested management Options'!$C$14,\"\")))))))))))","v":""},"",null,1,"","","","","","","","",null,false,false,false,false,false,false,false,false,false,false,false,"",null,1,0,0,0,0,0,0,0]
["Banksia serratuloides subsp. perissa",32083,"T","CR","B1ab(iii,v)+2ab(iii,v)","CR","MWST","MOORA","Badgingarra, Coomallo, Alexander Morrison NP, Tootbardi","Sep","IRP","No",null,null,null,null,"Yes",null,null,null,null,null,null,null,null,null,null,"",{"$f":"IF(AB50=\"Group A.1\",'Suggested management Options'!$C$4, IF(AB50=\"Group A.2(i)\", 'Suggested management Options'!$C$5, IF(AB50=\"Group A.2(ii)\", 'Suggested management Options'!$C$6, IF(AB50=\"Group B\",'Suggested management Options'!$C$7,IF(AB50=\"Group C\",'Suggested management Options'!$C$8,IF(AB50=\"Group D\",'Suggested management Options'!$C$9,IF(AB50=\"Group E\",'Suggested management Options'!$C$10,IF(AB50=\"Group F\",'Suggested management Options'!$C$11,IF(AB50=\"Group G\",'Suggested management Options'!$C$12,IF(AB50=\"Group O\",'Suggested management Options'!$C$13,IF(AB50=\"Group X\",'Suggested management Options'!$C$14,\"\")))))))))))","v":""},"",null,1,"","","","","","","","",null,false,false,false,false,false,false,false,false,false,false,false,"",null,1,0,0,0,0,0,0,0]
["Banksia verticillata",1854,"T","CR","A3ce","VU","SCST,WARR","ALBANY,FRANKLAND","Albany-Walpole","Jan-Apr","IRP","No",null,null,null,null,"No",null,null,null,null,null,null,null,null,null,null,"",{"$f":"IF(AB51=\"Group A.1\",'Suggested management Options'!$C$4, IF(AB51=\"Group A.2(i)\", 'Suggested management Options'!$C$5, IF(AB51=\"Group A.2(ii)\", 'Suggested management Options'!$C$6, IF(AB51=\"Group B\",'Suggested management Options'!$C$7,IF(AB51=\"Group C\",'Suggested management Options'!$C$8,IF(AB51=\"Group D\",'Suggested management Options'!$C$9,IF(AB51=\"Group E\",'Suggested management Options'!$C$10,IF(AB51=\"Group F\",'Suggested management Options'!$C$11,IF(AB51=\"Group G\",'Suggested management Options'!$C$12,IF(AB51=\"Group O\",'Suggested management Options'!$C$13,IF(AB51=\"Group X\",'Suggested management Options'!$C$14,\"\")))))))))))","v":""},"",null,0,"","","","","","","","",null,false,false,false,false,false,false,false,false,false,false,false,"",null,0,0,0,0,0,0,0,0]
["Boronia clavata",4408,"T","EN","B1+2ce; D","EN","SCST","ALBANY,ESPERANCE","Bremer River, Jerramungup, Cape Arid N.P.","Sep",null,"No",null,null,null,null,"Yes",null,null,null,null,null,null,null,null,null,null,"",{"$f":"IF(AB52=\"Group A.1\",'Suggested management Options'!$C$4, IF(AB52=\"Group A.2(i)\", 'Suggested management Options'!$C$5, IF(AB52=\"Group A.2(ii)\", 'Suggested management Options'!$C$6, IF(AB52=\"Group B\",'Suggested management Options'!$C$7,IF(AB52=\"Group C\",'Suggested management Options'!$C$8,IF(AB52=\"Group D\",'Suggested management Options'!$C$9,IF(AB52=\"Group E\",'Suggested management Options'!$C$10,IF(AB52=\"Group F\",'Suggested management Options'!$C$11,IF(AB52=\"Group G\",'Suggested management Options'!$C$12,IF(AB52=\"Group O\",'Suggested management Options'!$C$13,IF(AB52=\"Group X\",'Suggested management Options'!$C$14,\"\")))))))))))","v":""},"",null,1,"","","","","","","","",null,false,false,false,false,false,false,false,false,false,false,false,"",null,1,0,0,0,0,0,0,0]
["Boronia exilis",16318,"T","EN","B1ab(i,ii,iii,v)+2ab(i,ii,iii,v)","EN","SWST","BLACKWOOD","Scott River Plain, Chester Block","Sep","IRP","No",null,null,null,null,"Yes",null,null,null,null,null,null,null,null,null,null,"",{"$f":"IF(AB53=\"Group A.1\",'Suggested management Options'!$C$4, IF(AB53=\"Group A.2(i)\", 'Suggested management Options'!$C$5, IF(AB53=\"Group A.2(ii)\", 'Suggested management Options'!$C$6, IF(AB53=\"Group B\",'Suggested management Options'!$C$7,IF(AB53=\"Group C\",'Suggested management Options'!$C$8,IF(AB53=\"Group D\",'Suggested management Options'!$C$9,IF(AB53=\"Group E\",'Suggested management Options'!$C$10,IF(AB53=\"Group F\",'Suggested management Options'!$C$11,IF(AB53=\"Group G\",'Suggested management Options'!$C$12,IF(AB53=\"Group O\",'Suggested management Options'!$C$13,IF(AB53=\"Group X\",'Suggested management Options'!$C$14,\"\")))))))))))","v":""},"",null,1,"","","","","","","","",null,false,false,false,false,false,false,false,false,false,false,false,"",null,1,0,0,0,0,0,0,0]
["Bossiaea sp. Frankland (E.M. Sandiford EMS 896)",25873,"T","EN","B1ab(iii,v)+2ab(iii,v)",null,"WARR","DONNELLY","Frankland","Oct",null,"No",null,null,null,null,"Yes",null,null,null,null,null,null,null,null,null,null,"",{"$f":"IF(AB54=\"Group A.1\",'Suggested management Options'!$C$4, IF(AB54=\"Group A.2(i)\", 'Suggested management Options'!$C$5, IF(AB54=\"Group A.2(ii)\", 'Suggested management Options'!$C$6, IF(AB54=\"Group B\",'Suggested management Options'!$C$7,IF(AB54=\"Group C\",'Suggested management Options'!$C$8,IF(AB54=\"Group D\",'Suggested management Options'!$C$9,IF(AB54=\"Group E\",'Suggested management Options'!$C$10,IF(AB54=\"Group F\",'Suggested management Options'!$C$11,IF(AB54=\"Group G\",'Suggested management Options'!$C$12,IF(AB54=\"Group O\",'Suggested management Options'!$C$13,IF(AB54=\"Group X\",'Suggested management Options'!$C$14,\"\")))))))))))","v":""},"",null,1,"","","","","","","","",null,false,false,false,false,false,false,false,false,false,false,false,"",null,1,0,0,0,0,0,0,0]
["Brachyscias verecundus",18492,"T","CR","B1ab(iii,v)+2ab(iii,v); C2a(i,ii)b; D","CR","SWST,WARR","BLACKWOOD,DONNELLY","Busselton, Shannon","Nov","IRP","No",null,null,null,null,"Yes",null,null,null,null,null,null,null,null,null,null,"",{"$f":"IF(AB55=\"Group A.1\",'Suggested management Options'!$C$4, IF(AB55=\"Group A.2(i)\", 'Suggested management Options'!$C$5, IF(AB55=\"Group A.2(ii)\", 'Suggested management Options'!$C$6, IF(AB55=\"Group B\",'Suggested management Options'!$C$7,IF(AB55=\"Group C\",'Suggested management Options'!$C$8,IF(AB55=\"Group D\",'Suggested management Options'!$C$9,IF(AB55=\"Group E\",'Suggested management Options'!$C$10,IF(AB55=\"Group F\",'Suggested management Options'!$C$11,IF(AB55=\"Group G\",'Suggested management Options'!$C$12,IF(AB55=\"Group O\",'Suggested management Options'!$C$13,IF(AB55=\"Group X\",'Suggested management Options'!$C$14,\"\")))))))))))","v":""},"",null,1,"","","","","","","","",null,false,false,false,false,false,false,false,false,false,false,false,"",null,1,0,0,0,0,0,0,0]
["Caladenia barbarella",19218,"T","EN","D","EN","MWST","GERALDTON,SHARK BAY","NE of Kalbarri","Aug-Sep",null,"No",null,null,null,null,"Yes",null,null,null,null,null,null,null,null,null,null,"",{"$f":"IF(AB56=\"Group A.1\",'Suggested management Options'!$C$4, IF(AB56=\"Group A.2(i)\", 'Suggested management Options'!$C$5, IF(AB56=\"Group A.2(ii)\", 'Suggested management Options'!$C$6, IF(AB56=\"Group B\",'Suggested management Options'!$C$7,IF(AB56=\"Group C\",'Suggested management Options'!$C$8,IF(AB56=\"Group D\",'Suggested management Options'!$C$9,IF(AB56=\"Group E\",'Suggested management Options'!$C$10,IF(AB56=\"Group F\",'Suggested management Options'!$C$11,IF(AB56=\"Group G\",'Suggested management Options'!$C$12,IF(AB56=\"Group O\",'Suggested management Options'!$C$13,IF(AB56=\"Group X\",'Suggested management Options'!$C$14,\"\")))))))))))","v":""},"",null,1,"","","","","","","","",null,false,false,false,false,false,false,false,false,false,false,false,"",null,1,0,0,0,0,0,0,0]
["Caladenia bryceana subsp. bryceana",15336,"T","EN","C2a(i)","EN","SCST,SWST","ALBANY,WELLINGTON","Jerramungup-Boyup Brook, Wild Horse Swamp N.R.","Aug-Oct","IRP","No",null,null,null,null,"Yes",null,null,null,null,null,null,null,null,null,null,"",{"$f":"IF(AB57=\"Group A.1\",'Suggested management Options'!$C$4, IF(AB57=\"Group A.2(i)\", 'Suggested management Options'!$C$5, IF(AB57=\"Group A.2(ii)\", 'Suggested management Options'!$C$6, IF(AB57=\"Group B\",'Suggested management Options'!$C$7,IF(AB57=\"Group C\",'Suggested management Options'!$C$8,IF(AB57=\"Group D\",'Suggested management Options'!$C$9,IF(AB57=\"Group E\",'Suggested management Options'!$C$10,IF(AB57=\"Group F\",'Suggested management Options'!$C$11,IF(AB57=\"Group G\",'Suggested management Options'!$C$12,IF(AB57=\"Group O\",'Suggested management Options'!$C$13,IF(AB57=\"Group X\",'Suggested management Options'!$C$14,\"\")))))))))))","v":""},"",null,1,"","","","","","","","",null,false,false,false,false,false,false,false,false,false,false,false,"",null,1,0,0,0,0,0,0,0]
["Caladenia bryceana subsp. cracens",15337,"T","EN","B1ab(iii,iv,v)+B2ab(iii,iv,v)","VU","MWST","GERALDTON","Northampton-Kalbarri, East Yuna NR","Aug-Sep",null,"No",null,null,null,null,"Yes",null,null,null,null,null,null,null,null,null,null,"",{"$f":"IF(AB58=\"Group A.1\",'Suggested management Options'!$C$4, IF(AB58=\"Group A.2(i)\", 'Suggested management Options'!$C$5, IF(AB58=\"Group A.2(ii)\", 'Suggested management Options'!$C$6, IF(AB58=\"Group B\",'Suggested management Options'!$C$7,IF(AB58=\"Group C\",'Suggested management Options'!$C$8,IF(AB58=\"Group D\",'Suggested management Options'!$C$9,IF(AB58=\"Group E\",'Suggested management Options'!$C$10,IF(AB58=\"Group F\",'Suggested management Options'!$C$11,IF(AB58=\"Group G\",'Suggested management Options'!$C$12,IF(AB58=\"Group O\",'Suggested management Options'!$C$13,IF(AB58=\"Group X\",'Suggested management Options'!$C$14,\"\")))))))))))","v":""},"",null,1,"","","","","","","","",null,false,false,false,false,false,false,false,false,false,false,false,"",null,1,0,0,0,0,0,0,0]
["Caladenia busselliana",13615,"T","CR","B1ab(iii,v)+2ab(iii,v); D","EN","SWST","BLACKWOOD","Marybrook, Capel","Sep-Oct","IRP","No",null,null,null,null,"Yes",null,null,null,null,null,null,null,null,null,null,"",{"$f":"IF(AB59=\"Group A.1\",'Suggested management Options'!$C$4, IF(AB59=\"Group A.2(i)\", 'Suggested management Options'!$C$5, IF(AB59=\"Group A.2(ii)\", 'Suggested management Options'!$C$6, IF(AB59=\"Group B\",'Suggested management Options'!$C$7,IF(AB59=\"Group C\",'Suggested management Options'!$C$8,IF(AB59=\"Group D\",'Suggested management Options'!$C$9,IF(AB59=\"Group E\",'Suggested management Options'!$C$10,IF(AB59=\"Group F\",'Suggested management Options'!$C$11,IF(AB59=\"Group G\",'Suggested management Options'!$C$12,IF(AB59=\"Group O\",'Suggested management Options'!$C$13,IF(AB59=\"Group X\",'Suggested management Options'!$C$14,\"\")))))))))))","v":""},"",null,1,"","","","","","","","",null,false,false,false,false,false,false,false,false,false,false,false,"",null,1,0,0,0,0,0,0,0]
["Caladenia caesarea subsp. maritima",13616,"T","CR","B1+2c; C2a","EN","SWST","BLACKWOOD","Dunsborough","Aug-Sep","IRP","No",null,null,null,null,"Yes",null,null,null,null,null,null,null,null,null,null,"",{"$f":"IF(AB60=\"Group A.1\",'Suggested management Options'!$C$4, IF(AB60=\"Group A.2(i)\", 'Suggested management Options'!$C$5, IF(AB60=\"Group A.2(ii)\", 'Suggested management Options'!$C$6, IF(AB60=\"Group B\",'Suggested management Options'!$C$7,IF(AB60=\"Group C\",'Suggested management Options'!$C$8,IF(AB60=\"Group D\",'Suggested management Options'!$C$9,IF(AB60=\"Group E\",'Suggested management Options'!$C$10,IF(AB60=\"Group F\",'Suggested management Options'!$C$11,IF(AB60=\"Group G\",'Suggested management Options'!$C$12,IF(AB60=\"Group O\",'Suggested management Options'!$C$13,IF(AB60=\"Group X\",'Suggested management Options'!$C$14,\"\")))))))))))","v":""},"",null,1,"","","","","","","","",null,false,false,false,false,false,false,false,false,false,false,false,"",null,1,0,0,0,0,0,0,0]
["Caladenia christineae",13617,"T","EN","D","VU","WARR,WHTB","DONNELLY,FRANKLAND,GREAT SOUTHERN","Manjimup-Mount Barker, Bridgetown, Lake Muir, Nuniup Lake","Sep-Oct",null,"No","No","No",null,null,"Yes","Likely No","assumption",null,"Yes","Long-lived","assumption","Yes","Unknown","Yes",null,"Group B",{"$f":"IF(AB61=\"Group A.1\",'Suggested management Options'!$C$4, IF(AB61=\"Group A.2(i)\", 'Suggested management Options'!$C$5, IF(AB61=\"Group A.2(ii)\", 'Suggested management Options'!$C$6, IF(AB61=\"Group B\",'Suggested management Options'!$C$7,IF(AB61=\"Group C\",'Suggested management Options'!$C$8,IF(AB61=\"Group D\",'Suggested management Options'!$C$9,IF(AB61=\"Group E\",'Suggested management Options'!$C$10,IF(AB61=\"Group F\",'Suggested management Options'!$C$11,IF(AB61=\"Group G\",'Suggested management Options'!$C$12,IF(AB61=\"Group O\",'Suggested management Options'!$C$13,IF(AB61=\"Group X\",'Suggested management Options'!$C$14,\"\")))))))))))","v":"Maintain effective population sizes of >250 reproductively mature individuals. Augment populations of <250 individuals if cost effective."},"MAYBE TRANSLOCATE IF COST-EFFECTIVE",null,1,0,"",1,1,1,-1,1,"",null,false,false,false,true,false,false,false,false,false,false,false,"Group B",null,1,0,1,1,0,0,0,0]
["Caladenia dorrienii",10850,"T","EN","B1ab(iii,iv,v)+B2ab(iii,iv,v)","EN","SWAN, SWST, WARR, WHTB","BLACKWOOD,DONNELLY,PERTH HILLS,GREAT SOUTHERN","Frankland-Brookton, Boyup Brook, Perup","Sep-Oct",null,"No","No","No",null,null,"Yes","Likely No","assumption",null,"Yes","Long-lived","assumption","Yes","Unknown","Yes",null,"Group B",{"$f":"IF(AB62=\"Group A.1\",'Suggested management Options'!$C$4, IF(AB62=\"Group A.2(i)\", 'Suggested management Options'!$C$5, IF(AB62=\"Group A.2(ii)\", 'Suggested management Options'!$C$6, IF(AB62=\"Group B\",'Suggested management Options'!$C$7,IF(AB62=\"Group C\",'Suggested management Options'!$C$8,IF(AB62=\"Group D\",'Suggested management Options'!$C$9,IF(AB62=\"Group E\",'Suggested management Options'!$C$10,IF(AB62=\"Group F\",'Suggested management Options'!$C$11,IF(AB62=\"Group G\",'Suggested management Options'!$C$12,IF(AB62=\"Group O\",'Suggested management Options'!$C$13,IF(AB62=\"Group X\",'Suggested management Options'!$C$14,\"\")))))))))))","v":"Maintain effective population sizes of >250 reproductively mature individuals. Augment populations of <250 individuals if cost effective."},"MAYBE TRANSLOCATE IF COST-EFFECTIVE",null,1,0,"",1,1,1,-1,1,"",null,false,false,false,true,false,false,false,false,false,false,false,"Group B",null,1,0,1,1,0,0,0,0]
["Caladenia drakeoides",19217,"T","CR","B2a,b,(ii,iii,iv,v)","EN","MWST,WHTB","MOORA,CENTRAL WHEATBELT","Meckering-Coorow","Aug-Oct","IRP","No","No",null,null,null,"Yes","Likely No","assumption",null,"Yes","Long-lived","assumption ","Yes","Unknown","Yes",null,"Group B",{"$f":"IF(AB63=\"Group A.1\",'Suggested management Options'!$C$4, IF(AB63=\"Group A.2(i)\", 'Suggested management Options'!$C$5, IF(AB63=\"Group A.2(ii)\", 'Suggested management Options'!$C$6, IF(AB63=\"Group B\",'Suggested management Options'!$C$7,IF(AB63=\"Group C\",'Suggested management Options'!$C$8,IF(AB63=\"Group D\",'Suggested management Options'!$C$9,IF(AB63=\"Group E\",'Suggested management Options'!$C$10,IF(AB63=\"Group F\",'Suggested management Options'!$C$11,IF(AB63=\"Group G\",'Suggested management Options'!$C$12,IF(AB63=\"Group O\",'Suggested management Options'!$C$13,IF(AB63=\"Group X\",'Suggested management Options'!$C$14,\"\")))))))))))","v":"Maintain effective population sizes of >250 reproductively mature individuals. Augment populations of <250 individuals if cost effective."},"MAYBE TRANSLOCATE IF COST-EFFECTIVE",null,1,0,"",1,1,1,-1,1,"",null,false,false,false,true,false,false,false,false,false,false,false,"Group B",null,1,0,1,1,0,0,0,0]
["Caladenia elegans",13618,"T","CR","B1ab(iii,v)+2ab (iii,v)","EN","MWST","GERALDTON","N of Northampton","Jul-Aug","IRP","No",null,null,null,null,"Yes",null,null,null,null,null,null,null,null,null,null,"",{"$f":"IF(AB64=\"Group A.1\",'Suggested management Options'!$C$4, IF(AB64=\"Group A.2(i)\", 'Suggested management Options'!$C$5, IF(AB64=\"Group A.2(ii)\", 'Suggested management Options'!$C$6, IF(AB64=\"Group B\",'Suggested management Options'!$C$7,IF(AB64=\"Group C\",'Suggested management Options'!$C$8,IF(AB64=\"Group D\",'Suggested management Options'!$C$9,IF(AB64=\"Group E\",'Suggested management Options'!$C$10,IF(AB64=\"Group F\",'Suggested management Options'!$C$11,IF(AB64=\"Group G\",'Suggested management Options'!$C$12,IF(AB64=\"Group O\",'Suggested management Options'!$C$13,IF(AB64=\"Group X\",'Suggested management Options'!$C$14,\"\")))))))))))","v":""},"",null,1,"","","","","","","","",null,false,false,false,false,false,false,false,false,false,false,false,"",null,1,0,0,0,0,0,0,0]
["Caladenia excelsa",13619,"T","EN","B1ab(iii,iv,v)+B2ab(iii,iv,v); C2a(i)","EN","SWST","BLACKWOOD","Yallingup-Witchcliffe, Margaret River, Cowaramup, Gracetown","Sep-Oct",null,"No",null,null,null,null,"Yes",null,null,null,null,null,null,null,null,null,null,"",{"$f":"IF(AB65=\"Group A.1\",'Suggested management Options'!$C$4, IF(AB65=\"Group A.2(i)\", 'Suggested management Options'!$C$5, IF(AB65=\"Group A.2(ii)\", 'Suggested management Options'!$C$6, IF(AB65=\"Group B\",'Suggested management Options'!$C$7,IF(AB65=\"Group C\",'Suggested management Options'!$C$8,IF(AB65=\"Group D\",'Suggested management Options'!$C$9,IF(AB65=\"Group E\",'Suggested management Options'!$C$10,IF(AB65=\"Group F\",'Suggested management Options'!$C$11,IF(AB65=\"Group G\",'Suggested management Options'!$C$12,IF(AB65=\"Group O\",'Suggested management Options'!$C$13,IF(AB65=\"Group X\",'Suggested management Options'!$C$14,\"\")))))))))))","v":""},"",null,1,"","","","","","","","",null,false,false,false,false,false,false,false,false,false,false,false,"",null,1,0,0,0,0,0,0,0]
["Caladenia graniticola",20716,"T","EN","B1ab(iii,v)+2ab(iii,v); C2a(i); D",null,"WHTB","GREAT SOUTHERN","Pingaring","Sep-Oct","IRP","No","No","Yes","Yes","experimental germination trials and translocations completed but plants did not establish","Yes","Likely No","assumption",null,"No","Long-lived","assumption ","No","No","Yes",null,"Group G",{"$f":"IF(AB66=\"Group A.1\",'Suggested management Options'!$C$4, IF(AB66=\"Group A.2(i)\", 'Suggested management Options'!$C$5, IF(AB66=\"Group A.2(ii)\", 'Suggested management Options'!$C$6, IF(AB66=\"Group B\",'Suggested management Options'!$C$7,IF(AB66=\"Group C\",'Suggested management Options'!$C$8,IF(AB66=\"Group D\",'Suggested management Options'!$C$9,IF(AB66=\"Group E\",'Suggested management Options'!$C$10,IF(AB66=\"Group F\",'Suggested management Options'!$C$11,IF(AB66=\"Group G\",'Suggested management Options'!$C$12,IF(AB66=\"Group O\",'Suggested management Options'!$C$13,IF(AB66=\"Group X\",'Suggested management Options'!$C$14,\"\")))))))))))","v":"Population will only be maintained in-situ in the short term for the purpose of salvage, where practical. Collect cuttings, seeds, germplasm etc. and maintain in ex-situ collections OR translocate/augment to create a population >250. (maybe need to add actions beyond translocate for non-Wheatbelt regions)"},"DEFINITELY TRANSLOCATE",null,1,0,"",0,1,0,0,1,"",null,false,false,false,false,false,false,false,false,true,false,false,"Group G",null,1,0,1,0,1,1,0,0]
["Caladenia granitora",13856,"T","EN","D","EN","SCST","ALBANY","Mount Manypeak N.R., Waychinocup N.P.","Oct-Nov","IRP","No",null,null,null,null,{"$f":"IF(OR(ISNUMBER(FIND(\"D\",E67)), ISNUMBER(FIND(\"C2a\", E67)),ISNUMBER(FIND(\"C2(a)\",E67)),ISNUMBER(FIND(\"B2a\",E67)), ISNUMBER(FIND(\"2a\",E67))), \"Yes\", \"No\")","v":"Yes"},null,null,null,null,null,null,null,null,null,null,"",{"$f":"IF(AB67=\"Group A.1\",'Suggested management Options'!$C$4, IF(AB67=\"Group A.2(i)\", 'Suggested management Options'!$C$5, IF(AB67=\"Group A.2(ii)\", 'Suggested management Options'!$C$6, IF(AB67=\"Group B\",'Suggested management Options'!$C$7,IF(AB67=\"Group C\",'Suggested management Options'!$C$8,IF(AB67=\"Group D\",'Suggested management Options'!$C$9,IF(AB67=\"Group E\",'Suggested management Options'!$C$10,IF(AB67=\"Group F\",'Suggested management Options'!$C$11,IF(AB67=\"Group G\",'Suggested management Options'!$C$12,IF(AB67=\"Group O\",'Suggested management Options'!$C$13,IF(AB67=\"Group X\",'Suggested management Options'!$C$14,\"\")))))))))))","v":""},"",null,1,"","","","","","","","",null,false,false,false,false,false,false,false,false,false,false,false,"",null,1,0,0,0,0,0,0,0]
["Caladenia hoffmanii",13857,"T","EN","B1b(iii)+2ab(iii)","EN","MWST","GERALDTON","Geraldton-Kalbarri","Aug-Sep",null,"No",null,null,null,null,"Yes",null,null,null,null,null,null,null,null,null,null,{"$f":"BA68","v":""},{"$f":"IF(AB68=\"Group A.1\",'Suggested management Options'!$C$4, IF(AB68=\"Group A.2(i)\", 'Suggested management Options'!$C$5, IF(AB68=\"Group A.2(ii)\", 'Suggested management Options'!$C$6, IF(AB68=\"Group B\",'Suggested management Options'!$C$7,IF(AB68=\"Group C\",'Suggested management Options'!$C$8,IF(AB68=\"Group D\",'Suggested management Options'!$C$9,IF(AB68=\"Group E\",'Suggested management Options'!$C$10,IF(AB68=\"Group F\",'Suggested management Options'!$C$11,IF(AB68=\"Group G\",'Suggested management Options'!$C$12,IF(AB68=\"Group O\",'Suggested management Options'!$C$13,IF(AB68=\"Group X\",'Suggested management Options'!$C$14,\"\")))))))))))","v":""},{"$f":"IF(OR(AB68=\"Group A.1\", AB68=\"Group A.2(i)\", AB68=\"Group A.2(ii)\", AB68=\"Group D\"), \"DON'T TRANSLOCATE\", IF(OR(AB68=\"Group B\", AB68=\"Group C\", AB68=\"Group E\"), \"MAYBE TRANSLOCATE IF COST-EFFECTIVE\", IF(OR(AB68=\"Group F\", AB68=\"Group G\"), \"DEFINITELY TRANSLOCATE\", IF(AB68=\"Group X\", \"EVALUATE SEED BANK\", IF(AB68=\"Group O\", \"INTRODUCE DISTURBANCE FIRST\", \"\")))))","v":""},null,{"$f":"IF(Q68=\"Yes\",1,IF(Q68=\"No\",0,\"\"))","v":1},{"$f":"IF(OR(R68=\"Yes-fire\",R68=\"Yes-other\",R68=\"Likely Yes\"),1,IF(OR(R68=\"Likely No\",R68=\"No\"),0,IF(R68=\"Unknown\",-1,\"\")))","v":""},{"$f":"IF(T68=\"Yes\",1,IF(T68=\"No\",0,\"\"))","v":""},{"$f":"IF(U68=\"Yes\",1,IF(U68=\"No\",0,\"\"))","v":""},{"$f":"IF(V68=\"Long-lived\",1,IF(V68=\"Short-lived\",0,\"\"))","v":""},{"$f":"IF(X68=\"Yes\",1,IF(X68=\"No\",0,\"\"))","v":""},{"$f":"IF(OR(Y68=\"Yes\",Y68=\"Likely Yes\"),1,IF(OR(Y68=\"Likely No\",Y68=\"No\"),0,IF(Y68=\"Unknown\",-1,\"\")))","v":""},{"$f":"IF(Z68=\"Yes\",1,IF(Z68=\"No\",0,\"\"))","v":""},{"$f":"IF(AA68=\"Yes\",1,IF(AA68=\"No\",0,\"\"))","v":""},null,{"$f":"AND(AF68=0,AN68=0)","v":false},{"$f":"AND(AF68=0,AJ68=1,AN68=1)","v":false},{"$f":"AND(AF68=0,AJ68=0,AN68=1)","v":false},{"$f":"AND(AF68=1,OR(AND(AG68=1,AH68=1),AG68=0),AI68=1,AJ68=1)","v":false},{"$f":"AND(AF68=1,OR(AND(AG68=1,AH68=1),AG68=0),AI68=1,AJ68=0)","v":false},{"$f":"AND(AF68=1,OR(AND(AG68=1,AH68=1),AG68=0),AI68=0,AK68=1)","v":false},{"$f":"AND(AF68=1,OR(AND(AG68=1,AH68=1),AG68=0),AI68=0,AK68=0,AL68=1,AM68=1)","v":false},{"$f":"AND(AF68=1,OR(AND(AG68=1,AH68=1),AG68=0),AI68=0,AK68=0,AL68=1,AM68=0)","v":false},{"$f":"AND(AF68=1,OR(AND(AG68=1,AH68=1),AG68=0),AI68=0,AK68=0,AL68=0)","v":false},{"$f":"AND(AF68=1,AG68=1,AH68=0)","v":false},{"$f":"AND(AF68=1,OR(AND(AG68=1,AH68=1),AG68=0),AI68=0,AK68=0,AL68=-1)","v":false},"",null,{"$f":"IF(AF68=1,1,0)","v":1},{"$f":"IF(AG68=1,1,0)","v":0},{"$f":"IF(AND(BA68<>\"\",OR(AND(AG68=1,AH68=1),AG68=0)),1,0)","v":0},{"$f":"IF(AND(BA68<>\"\",OR(AI68=1,AN68=1)),1,0)","v":0},{"$f":"IF(AND(BA68<>\"\",AI68=0),1,0)","v":0},{"$f":"IF(AND(BA68<>\"\",AK68=0),1,0)","v":0},{"$f":"IF(AND(BA68<>\"\",AL68=1),1,0)","v":0},{"$f":"IF(AND(BA68<>\"\",AF68=0),1,0)","v":0}]
["Caladenia hopperiana",44901,"T","EN","B1ab(iii)+2ab(iii)","EN","SWAN,WHTB","PERTH HILLS,GREAT SOUTHERN","Quindanning","Sep-Oct","IRP","No","No",null,null,null,"Yes","Likely No","assumption",null,"No","Long-lived","assumption ","No","Likely Yes","Yes",null,"Group E",{"$f":"IF(AB69=\"Group A.1\",'Suggested management Options'!$C$4, IF(AB69=\"Group A.2(i)\", 'Suggested management Options'!$C$5, IF(AB69=\"Group A.2(ii)\", 'Suggested management Options'!$C$6, IF(AB69=\"Group B\",'Suggested management Options'!$C$7,IF(AB69=\"Group C\",'Suggested management Options'!$C$8,IF(AB69=\"Group D\",'Suggested management Options'!$C$9,IF(AB69=\"Group E\",'Suggested management Options'!$C$10,IF(AB69=\"Group F\",'Suggested management Options'!$C$11,IF(AB69=\"Group G\",'Suggested management Options'!$C$12,IF(AB69=\"Group O\",'Suggested management Options'!$C$13,IF(AB69=\"Group X\",'Suggested management Options'!$C$14,\"\")))))))))))","v":"Population will be maintained in-situ in the long term. Highest priority will be to increase effective population size to >250 mature plants through promoting in-situ recruitment and/or seed collection, external propagation and subsequent restocking."},"MAYBE TRANSLOCATE IF COST-EFFECTIVE",null,1,0,"",0,1,0,1,1,"",null,false,false,false,false,false,false,true,false,false,false,false,"Group E",null,1,0,1,0,1,1,1,0]
["Caladenia huegelii",1596,"T","CR","B2ab(i,ii,iii,iv)","EN","SWAN,SWST","BLACKWOOD,SWAN COASTAL,WELLINGTON","Perth - Capel","Aug-Oct","IRP","?, 2007",null,null,null,null,"Yes",null,null,null,null,null,null,null,null,null,null,"",{"$f":"IF(AB70=\"Group A.1\",'Suggested management Options'!$C$4, IF(AB70=\"Group A.2(i)\", 'Suggested management Options'!$C$5, IF(AB70=\"Group A.2(ii)\", 'Suggested management Options'!$C$6, IF(AB70=\"Group B\",'Suggested management Options'!$C$7,IF(AB70=\"Group C\",'Suggested management Options'!$C$8,IF(AB70=\"Group D\",'Suggested management Options'!$C$9,IF(AB70=\"Group E\",'Suggested management Options'!$C$10,IF(AB70=\"Group F\",'Suggested management Options'!$C$11,IF(AB70=\"Group G\",'Suggested management Options'!$C$12,IF(AB70=\"Group O\",'Suggested management Options'!$C$13,IF(AB70=\"Group X\",'Suggested management Options'!$C$14,\"\")))))))))))","v":""},"",null,1,"","","","","","","","",null,false,false,false,false,false,false,false,false,false,false,false,"",null,1,0,0,0,0,0,0,0]
["Caladenia leucochila",44903,"T","EN","A3cd; B1ab(i,ii,iii,iv,v)+ B2ab(i,ii,iii,iv,v)","EN","SWST","WELLINGTON","Collie","Sep-Oct","IRP","?, 2013",null,null,null,null,"Yes",null,null,null,null,null,null,null,null,null,null,"",{"$f":"IF(AB71=\"Group A.1\",'Suggested management Options'!$C$4, IF(AB71=\"Group A.2(i)\", 'Suggested management Options'!$C$5, IF(AB71=\"Group A.2(ii)\", 'Suggested management Options'!$C$6, IF(AB71=\"Group B\",'Suggested management Options'!$C$7,IF(AB71=\"Group C\",'Suggested management Options'!$C$8,IF(AB71=\"Group D\",'Suggested management Options'!$C$9,IF(AB71=\"Group E\",'Suggested management Options'!$C$10,IF(AB71=\"Group F\",'Suggested management Options'!$C$11,IF(AB71=\"Group G\",'Suggested management Options'!$C$12,IF(AB71=\"Group O\",'Suggested management Options'!$C$13,IF(AB71=\"Group X\",'Suggested management Options'!$C$14,\"\")))))))))))","v":""},"",null,1,"","","","","","","","",null,false,false,false,false,false,false,false,false,false,false,false,"",null,1,0,0,0,0,0,0,0]
["Caladenia lodgeana",18037,"T","CR","B2ab(ii,iii,v)","CR","SWST","BLACKWOOD,WELLINGTON","Margaret River, Augusta, Collie","Oct-Nov","IRP","No",null,null,null,null,"Yes",null,null,null,null,null,null,null,null,null,null,"",{"$f":"IF(AB72=\"Group A.1\",'Suggested management Options'!$C$4, IF(AB72=\"Group A.2(i)\", 'Suggested management Options'!$C$5, IF(AB72=\"Group A.2(ii)\", 'Suggested management Options'!$C$6, IF(AB72=\"Group B\",'Suggested management Options'!$C$7,IF(AB72=\"Group C\",'Suggested management Options'!$C$8,IF(AB72=\"Group D\",'Suggested management Options'!$C$9,IF(AB72=\"Group E\",'Suggested management Options'!$C$10,IF(AB72=\"Group F\",'Suggested management Options'!$C$11,IF(AB72=\"Group G\",'Suggested management Options'!$C$12,IF(AB72=\"Group O\",'Suggested management Options'!$C$13,IF(AB72=\"Group X\",'Suggested management Options'!$C$14,\"\")))))))))))","v":""},"",null,1,"","","","","","","","",null,false,false,false,false,false,false,false,false,false,false,false,"",null,1,0,0,0,0,0,0,0]
["Caladenia luteola",17864,"T","CR","B1ab(iii,v)+B2ab(iii,v); C2a(ii)","CR","WHTB","GREAT SOUTHERN","Woodanilling","Sep-Oct","IRP","No","No",null,null,null,"Yes","Likely No","assumption",null,"No","Long-lived","assumption ","No","Likely Yes","Yes",null,"Group E",{"$f":"IF(AB73=\"Group A.1\",'Suggested management Options'!$C$4, IF(AB73=\"Group A.2(i)\", 'Suggested management Options'!$C$5, IF(AB73=\"Group A.2(ii)\", 'Suggested management Options'!$C$6, IF(AB73=\"Group B\",'Suggested management Options'!$C$7,IF(AB73=\"Group C\",'Suggested management Options'!$C$8,IF(AB73=\"Group D\",'Suggested management Options'!$C$9,IF(AB73=\"Group E\",'Suggested management Options'!$C$10,IF(AB73=\"Group F\",'Suggested management Options'!$C$11,IF(AB73=\"Group G\",'Suggested management Options'!$C$12,IF(AB73=\"Group O\",'Suggested management Options'!$C$13,IF(AB73=\"Group X\",'Suggested management Options'!$C$14,\"\")))))))))))","v":"Population will be maintained in-situ in the long term. Highest priority will be to increase effective population size to >250 mature plants through promoting in-situ recruitment and/or seed collection, external propagation and subsequent restocking."},"MAYBE TRANSLOCATE IF COST-EFFECTIVE",null,1,0,"",0,1,0,1,1,"",null,false,false,false,false,false,false,true,false,false,false,false,"Group E",null,1,0,1,0,1,1,1,0]
["Caladenia melanema",13861,"T","CR","B2ab(iii); C2a(ii)","CR","WHTB","GREAT SOUTHERN","Pingrup, Lake Altham","Aug-Sep","IRP","No","No",null,null,null,"Yes","Likely No","assumption",null,"No","Long-lived","assumption ","No","Likely Yes","Yes",null,"Group E",{"$f":"IF(AB74=\"Group A.1\",'Suggested management Options'!$C$4, IF(AB74=\"Group A.2(i)\", 'Suggested management Options'!$C$5, IF(AB74=\"Group A.2(ii)\", 'Suggested management Options'!$C$6, IF(AB74=\"Group B\",'Suggested management Options'!$C$7,IF(AB74=\"Group C\",'Suggested management Options'!$C$8,IF(AB74=\"Group D\",'Suggested management Options'!$C$9,IF(AB74=\"Group E\",'Suggested management Options'!$C$10,IF(AB74=\"Group F\",'Suggested management Options'!$C$11,IF(AB74=\"Group G\",'Suggested management Options'!$C$12,IF(AB74=\"Group O\",'Suggested management Options'!$C$13,IF(AB74=\"Group X\",'Suggested management Options'!$C$14,\"\")))))))))))","v":"Population will be maintained in-situ in the long term. Highest priority will be to increase effective population size to >250 mature plants through promoting in-situ recruitment and/or seed collection, external propagation and subsequent restocking."},"MAYBE TRANSLOCATE IF COST-EFFECTIVE",null,1,0,"",0,1,0,1,1,"",null,false,false,false,false,false,false,true,false,false,false,false,"Group E",null,1,0,1,0,1,1,1,0]
["Caladenia procera",18038,"T","CR","B1ab(iii)+B2ab(iii); C1","CR","SWST","BLACKWOOD,WELLINGTON","Carbunup, Busselton, Benger","Spe-Oct","IRP","Peppermint Park, 2006",null,null,null,null,"Yes",null,null,null,null,null,null,null,null,null,null,"",{"$f":"IF(AB75=\"Group A.1\",'Suggested management Options'!$C$4, IF(AB75=\"Group A.2(i)\", 'Suggested management Options'!$C$5, IF(AB75=\"Group A.2(ii)\", 'Suggested management Options'!$C$6, IF(AB75=\"Group B\",'Suggested management Options'!$C$7,IF(AB75=\"Group C\",'Suggested management Options'!$C$8,IF(AB75=\"Group D\",'Suggested management Options'!$C$9,IF(AB75=\"Group E\",'Suggested management Options'!$C$10,IF(AB75=\"Group F\",'Suggested management Options'!$C$11,IF(AB75=\"Group G\",'Suggested management Options'!$C$12,IF(AB75=\"Group O\",'Suggested management Options'!$C$13,IF(AB75=\"Group X\",'Suggested management Options'!$C$14,\"\")))))))))))","v":""},"",null,1,"","","","","","","","",null,false,false,false,false,false,false,false,false,false,false,false,"",null,1,0,0,0,0,0,0,0]
["Caladenia viridescens",13622,"T","CR","B1ab(iii,v)+2ab(iii,v); C2a(i);D","EN","SWST","BLACKWOOD","Dunsborough","Sep-Oct","IRP","No",null,null,null,null,"Yes",null,null,null,null,null,null,null,null,null,null,"",{"$f":"IF(AB76=\"Group A.1\",'Suggested management Options'!$C$4, IF(AB76=\"Group A.2(i)\", 'Suggested management Options'!$C$5, IF(AB76=\"Group A.2(ii)\", 'Suggested management Options'!$C$6, IF(AB76=\"Group B\",'Suggested management Options'!$C$7,IF(AB76=\"Group C\",'Suggested management Options'!$C$8,IF(AB76=\"Group D\",'Suggested management Options'!$C$9,IF(AB76=\"Group E\",'Suggested management Options'!$C$10,IF(AB76=\"Group F\",'Suggested management Options'!$C$11,IF(AB76=\"Group G\",'Suggested management Options'!$C$12,IF(AB76=\"Group O\",'Suggested management Options'!$C$13,IF(AB76=\"Group X\",'Suggested management Options'!$C$14,\"\")))))))))))","v":""},"",null,1,"","","","","","","","",null,false,false,false,false,false,false,false,false,false,false,false,"",null,1,0,0,0,0,0,0,0]
["Caladenia wanosa",1620,"T","EN","B1ab(iii)+B2ab(iii)","VU","MWST","GERALDTON","Kalbarri-Mullewa","Aug-Sep",null,"No",null,null,null,null,"Yes",null,null,null,null,null,null,null,null,null,null,"",{"$f":"IF(AB77=\"Group A.1\",'Suggested management Options'!$C$4, IF(AB77=\"Group A.2(i)\", 'Suggested management Options'!$C$5, IF(AB77=\"Group A.2(ii)\", 'Suggested management Options'!$C$6, IF(AB77=\"Group B\",'Suggested management Options'!$C$7,IF(AB77=\"Group C\",'Suggested management Options'!$C$8,IF(AB77=\"Group D\",'Suggested management Options'!$C$9,IF(AB77=\"Group E\",'Suggested management Options'!$C$10,IF(AB77=\"Group F\",'Suggested management Options'!$C$11,IF(AB77=\"Group G\",'Suggested management Options'!$C$12,IF(AB77=\"Group O\",'Suggested management Options'!$C$13,IF(AB77=\"Group X\",'Suggested management Options'!$C$14,\"\")))))))))))","v":""},"",null,1,"","","","","","","","",null,false,false,false,false,false,false,false,false,false,false,false,"",null,1,0,0,0,0,0,0,0]
["Caladenia williamsiae",19873,"T","CR","D","EN","WHTB","GREAT SOUTHERN","Brookton","Aug-Sep","IRP","No","No",null,null,null,"Yes","Likely No","assumption",null,"No","Long-lived","assumption ","No","Likely Yes","Yes",null,"Group E",{"$f":"IF(AB78=\"Group A.1\",'Suggested management Options'!$C$4, IF(AB78=\"Group A.2(i)\", 'Suggested management Options'!$C$5, IF(AB78=\"Group A.2(ii)\", 'Suggested management Options'!$C$6, IF(AB78=\"Group B\",'Suggested management Options'!$C$7,IF(AB78=\"Group C\",'Suggested management Options'!$C$8,IF(AB78=\"Group D\",'Suggested management Options'!$C$9,IF(AB78=\"Group E\",'Suggested management Options'!$C$10,IF(AB78=\"Group F\",'Suggested management Options'!$C$11,IF(AB78=\"Group G\",'Suggested management Options'!$C$12,IF(AB78=\"Group O\",'Suggested management Options'!$C$13,IF(AB78=\"Group X\",'Suggested management Options'!$C$14,\"\")))))))))))","v":"Population will be maintained in-situ in the long term. Highest priority will be to increase effective population size to >250 mature plants through promoting in-situ recruitment and/or seed collection, external propagation and subsequent restocking."},"MAYBE TRANSLOCATE IF COST-EFFECTIVE",null,1,0,"",0,1,0,1,1,"",null,false,false,false,false,false,false,true,false,false,false,false,"Group E",null,1,0,1,0,1,1,1,0]
["Caladenia winfieldii",13864,"T","EN","D","EN","WARR","DONNELLY","Strachan","Oct-Nov","IRP","No",null,null,null,null,"Yes",null,null,null,null,null,null,null,null,null,null,"",{"$f":"IF(AB79=\"Group A.1\",'Suggested management Options'!$C$4, IF(AB79=\"Group A.2(i)\", 'Suggested management Options'!$C$5, IF(AB79=\"Group A.2(ii)\", 'Suggested management Options'!$C$6, IF(AB79=\"Group B\",'Suggested management Options'!$C$7,IF(AB79=\"Group C\",'Suggested management Options'!$C$8,IF(AB79=\"Group D\",'Suggested management Options'!$C$9,IF(AB79=\"Group E\",'Suggested management Options'!$C$10,IF(AB79=\"Group F\",'Suggested management Options'!$C$11,IF(AB79=\"Group G\",'Suggested management Options'!$C$12,IF(AB79=\"Group O\",'Suggested management Options'!$C$13,IF(AB79=\"Group X\",'Suggested management Options'!$C$14,\"\")))))))))))","v":""},"",null,1,"","","","","","","","",null,false,false,false,false,false,false,false,false,false,false,false,"",null,1,0,0,0,0,0,0,0]
["Calectasia cyanea",1213,"T","CR","C2a(i); D","CR","SCST","ALBANY","Albany","Aug-Dec","IRP","No",null,null,null,null,"Yes",null,null,null,null,null,null,null,null,null,null,"",{"$f":"IF(AB80=\"Group A.1\",'Suggested management Options'!$C$4, IF(AB80=\"Group A.2(i)\", 'Suggested management Options'!$C$5, IF(AB80=\"Group A.2(ii)\", 'Suggested management Options'!$C$6, IF(AB80=\"Group B\",'Suggested management Options'!$C$7,IF(AB80=\"Group C\",'Suggested management Options'!$C$8,IF(AB80=\"Group D\",'Suggested management Options'!$C$9,IF(AB80=\"Group E\",'Suggested management Options'!$C$10,IF(AB80=\"Group F\",'Suggested management Options'!$C$11,IF(AB80=\"Group G\",'Suggested management Options'!$C$12,IF(AB80=\"Group O\",'Suggested management Options'!$C$13,IF(AB80=\"Group X\",'Suggested management Options'!$C$14,\"\")))))))))))","v":""},"",null,1,"","","","","","","","",null,false,false,false,false,false,false,false,false,false,false,false,"",null,1,0,0,0,0,0,0,0]
["Calochilus pruinosus",33657,"T","CR","C2a(i)",null,"SCST","ALBANY,ESPERANCE","Hopetoun, Eyre","Sep","IRP","No",null,null,null,null,"Yes",null,null,null,null,null,null,null,null,null,null,"",{"$f":"IF(AB81=\"Group A.1\",'Suggested management Options'!$C$4, IF(AB81=\"Group A.2(i)\", 'Suggested management Options'!$C$5, IF(AB81=\"Group A.2(ii)\", 'Suggested management Options'!$C$6, IF(AB81=\"Group B\",'Suggested management Options'!$C$7,IF(AB81=\"Group C\",'Suggested management Options'!$C$8,IF(AB81=\"Group D\",'Suggested management Options'!$C$9,IF(AB81=\"Group E\",'Suggested management Options'!$C$10,IF(AB81=\"Group F\",'Suggested management Options'!$C$11,IF(AB81=\"Group G\",'Suggested management Options'!$C$12,IF(AB81=\"Group O\",'Suggested management Options'!$C$13,IF(AB81=\"Group X\",'Suggested management Options'!$C$14,\"\")))))))))))","v":""},"",null,1,"","","","","","","","",null,false,false,false,false,false,false,false,false,false,false,false,"",null,1,0,0,0,0,0,0,0]
["Calytrix breviseta subsp. breviseta",13653,"T","CR","B1ab(iii,v)+2ab(iii,v)","EN","SWAN","PERTH HILLS,SWAN COASTAL","Kenwick (Gosnells, Bellevue)","Sep-Oct","IRP","Boundaray Road, 2007; Nicholson Road, 2008",null,null,null,null,"Yes",null,null,null,null,null,null,null,null,null,null,"",{"$f":"IF(AB82=\"Group A.1\",'Suggested management Options'!$C$4, IF(AB82=\"Group A.2(i)\", 'Suggested management Options'!$C$5, IF(AB82=\"Group A.2(ii)\", 'Suggested management Options'!$C$6, IF(AB82=\"Group B\",'Suggested management Options'!$C$7,IF(AB82=\"Group C\",'Suggested management Options'!$C$8,IF(AB82=\"Group D\",'Suggested management Options'!$C$9,IF(AB82=\"Group E\",'Suggested management Options'!$C$10,IF(AB82=\"Group F\",'Suggested management Options'!$C$11,IF(AB82=\"Group G\",'Suggested management Options'!$C$12,IF(AB82=\"Group O\",'Suggested management Options'!$C$13,IF(AB82=\"Group X\",'Suggested management Options'!$C$14,\"\")))))))))))","v":""},"",null,1,"","","","","","","","",null,false,false,false,false,false,false,false,false,false,false,false,"",null,1,0,0,0,0,0,0,0]
["Chorizema humile",13115,"T","CR","B2ab(iii,v)","EN","MWST","MOORA,GERALDTON","Strawberry, Carnamah, Geraldton, Kojarena, Coorow","Jul-Sep","IRP","Waddington NR, 2007; Falconer's Property, 2008",null,null,null,null,"Yes",null,null,null,null,null,null,null,null,null,null,"",{"$f":"IF(AB83=\"Group A.1\",'Suggested management Options'!$C$4, IF(AB83=\"Group A.2(i)\", 'Suggested management Options'!$C$5, IF(AB83=\"Group A.2(ii)\", 'Suggested management Options'!$C$6, IF(AB83=\"Group B\",'Suggested management Options'!$C$7,IF(AB83=\"Group C\",'Suggested management Options'!$C$8,IF(AB83=\"Group D\",'Suggested management Options'!$C$9,IF(AB83=\"Group E\",'Suggested management Options'!$C$10,IF(AB83=\"Group F\",'Suggested management Options'!$C$11,IF(AB83=\"Group G\",'Suggested management Options'!$C$12,IF(AB83=\"Group O\",'Suggested management Options'!$C$13,IF(AB83=\"Group X\",'Suggested management Options'!$C$14,\"\")))))))))))","v":""},"",null,1,"","","","","","","","",null,false,false,false,false,false,false,false,false,false,false,false,{"$f":"IF(AP83,\"Group A.1\",\"\")&IF(AQ83,\"Group A.2(i)\",\"\")&IF(AR83,\"Group A.2(ii)\",\"\")&IF(AS83,\"Group B\",\"\")&IF(AT83,\"Group C\",\"\")&IF(AU83,\"Group D\",\"\")&IF(AV83,\"Group E\",\"\")&IF(AW83,\"Group F\",\"\")&IF(AX83,\"Group G\",\"\")&IF(AY83,\"Group O\",\"\")&IF(AZ83,\"Group X\",\"\")","v":""},null,1,0,0,0,0,0,0,0]
["Chorizema varium",3764,"T","EN","A2C; B1+2a","EN","SWAN","SWAN COASTAL","Breton Bay, (Fremantle)","Sep",null,"No",null,null,null,null,"Yes",null,null,null,null,null,null,null,null,null,null,"",{"$f":"IF(AB84=\"Group A.1\",'Suggested management Options'!$C$4, IF(AB84=\"Group A.2(i)\", 'Suggested management Options'!$C$5, IF(AB84=\"Group A.2(ii)\", 'Suggested management Options'!$C$6, IF(AB84=\"Group B\",'Suggested management Options'!$C$7,IF(AB84=\"Group C\",'Suggested management Options'!$C$8,IF(AB84=\"Group D\",'Suggested management Options'!$C$9,IF(AB84=\"Group E\",'Suggested management Options'!$C$10,IF(AB84=\"Group F\",'Suggested management Options'!$C$11,IF(AB84=\"Group G\",'Suggested management Options'!$C$12,IF(AB84=\"Group O\",'Suggested management Options'!$C$13,IF(AB84=\"Group X\",'Suggested management Options'!$C$14,\"\")))))))))))","v":""},"",null,1,"","","","","","","","",null,false,false,false,false,false,false,false,false,false,false,false,"",null,1,0,0,0,0,0,0,0]
["Commersonia apella",40871,"T","CR","A4ac; B2ab(iii,iv); C2a(i,ii); D","CR","SCST,WARR","ESPERANCE,DONNELLY,FRANKLAND","Denmark, Pemberton, Walpole, Cape Le Grand N.P.",null,"IRP","No",null,null,null,null,"Yes",null,null,null,null,null,null,null,null,null,null,"",{"$f":"IF(AB85=\"Group A.1\",'Suggested management Options'!$C$4, IF(AB85=\"Group A.2(i)\", 'Suggested management Options'!$C$5, IF(AB85=\"Group A.2(ii)\", 'Suggested management Options'!$C$6, IF(AB85=\"Group B\",'Suggested management Options'!$C$7,IF(AB85=\"Group C\",'Suggested management Options'!$C$8,IF(AB85=\"Group D\",'Suggested management Options'!$C$9,IF(AB85=\"Group E\",'Suggested management Options'!$C$10,IF(AB85=\"Group F\",'Suggested management Options'!$C$11,IF(AB85=\"Group G\",'Suggested management Options'!$C$12,IF(AB85=\"Group O\",'Suggested management Options'!$C$13,IF(AB85=\"Group X\",'Suggested management Options'!$C$14,\"\")))))))))))","v":""},"",null,1,"","","","","","","","",null,false,false,false,false,false,false,false,false,false,false,false,"",null,1,0,0,0,0,0,0,0]
["Commersonia erythrogyna",40921,"T","CR","A1c; B1ab(iii)+B2ab(iii); C2a(i); D","EN","SWST","BLACKWOOD,WELLINGTON","West Arthur","Sep","IRP","Trigwell NR, Collie, 1997; Wild Horse Swamp NR, Collie, 1997; Bennelaking Conservation Park, Collie, 1998",null,null,null,null,"Yes",null,null,null,null,null,null,null,null,null,null,"",{"$f":"IF(AB86=\"Group A.1\",'Suggested management Options'!$C$4, IF(AB86=\"Group A.2(i)\", 'Suggested management Options'!$C$5, IF(AB86=\"Group A.2(ii)\", 'Suggested management Options'!$C$6, IF(AB86=\"Group B\",'Suggested management Options'!$C$7,IF(AB86=\"Group C\",'Suggested management Options'!$C$8,IF(AB86=\"Group D\",'Suggested management Options'!$C$9,IF(AB86=\"Group E\",'Suggested management Options'!$C$10,IF(AB86=\"Group F\",'Suggested management Options'!$C$11,IF(AB86=\"Group G\",'Suggested management Options'!$C$12,IF(AB86=\"Group O\",'Suggested management Options'!$C$13,IF(AB86=\"Group X\",'Suggested management Options'!$C$14,\"\")))))))))))","v":""},"",null,1,"","","","","","","","",null,false,false,false,false,false,false,false,false,false,false,false,"",null,1,0,0,0,0,0,0,0]
["Conospermum densiflorum subsp. unicephalatum",14000,"T","EN","B1ab(iii)+2ab(iii)","EN","MWST","MOORA","Gingin, Gillingarra",null,"IRP","No",null,null,null,null,"Yes",null,null,null,null,null,null,null,null,null,null,"",{"$f":"IF(AB87=\"Group A.1\",'Suggested management Options'!$C$4, IF(AB87=\"Group A.2(i)\", 'Suggested management Options'!$C$5, IF(AB87=\"Group A.2(ii)\", 'Suggested management Options'!$C$6, IF(AB87=\"Group B\",'Suggested management Options'!$C$7,IF(AB87=\"Group C\",'Suggested management Options'!$C$8,IF(AB87=\"Group D\",'Suggested management Options'!$C$9,IF(AB87=\"Group E\",'Suggested management Options'!$C$10,IF(AB87=\"Group F\",'Suggested management Options'!$C$11,IF(AB87=\"Group G\",'Suggested management Options'!$C$12,IF(AB87=\"Group O\",'Suggested management Options'!$C$13,IF(AB87=\"Group X\",'Suggested management Options'!$C$14,\"\")))))))))))","v":""},"",null,1,"","","","","","","","",null,false,false,false,false,false,false,false,false,false,false,false,"",null,1,0,0,0,0,0,0,0]
["Conospermum galeatum",14002,"T","CR","B1ab(iii,iv)+B2ab(iii,iv); D","CR","WHTB","CENTRAL WHEATBELT","Kellerberrin, Yilgarn",null,null,"No","No","Yes",null,"disease and inundation currently impacting habitat","Yes","Yes-fire","recruits following prescribed burn and bushfire","Yes","Yes","Long-lived","assumption","Yes","Likely Yes","No","No","Group B",{"$f":"IF(AB88=\"Group A.1\",'Suggested management Options'!$C$4, IF(AB88=\"Group A.2(i)\", 'Suggested management Options'!$C$5, IF(AB88=\"Group A.2(ii)\", 'Suggested management Options'!$C$6, IF(AB88=\"Group B\",'Suggested management Options'!$C$7,IF(AB88=\"Group C\",'Suggested management Options'!$C$8,IF(AB88=\"Group D\",'Suggested management Options'!$C$9,IF(AB88=\"Group E\",'Suggested management Options'!$C$10,IF(AB88=\"Group F\",'Suggested management Options'!$C$11,IF(AB88=\"Group G\",'Suggested management Options'!$C$12,IF(AB88=\"Group O\",'Suggested management Options'!$C$13,IF(AB88=\"Group X\",'Suggested management Options'!$C$14,\"\")))))))))))","v":"Maintain effective population sizes of >250 reproductively mature individuals. Augment populations of <250 individuals if cost effective."},"MAYBE TRANSLOCATE IF COST-EFFECTIVE",null,1,1,1,1,1,1,1,0,0,null,false,false,false,true,false,false,false,false,false,false,false,"Group B",null,1,1,1,1,0,0,1,0]
["Conostylis drummondii",1433,"T","EN","A2c","EN","WHTB","GREAT SOUTHERN","Arthur River- Wagin, Kojonup, Bokal","Oct-Nov",null,"No","No","No",null,null,"No","Yes-fire","resporouted following prescribed burn","No","Yes","Short-lived","assumption","Yes","Unknown","Yes","No","Group A.1",{"$f":"IF(AB89=\"Group A.1\",'Suggested management Options'!$C$4, IF(AB89=\"Group A.2(i)\", 'Suggested management Options'!$C$5, IF(AB89=\"Group A.2(ii)\", 'Suggested management Options'!$C$6, IF(AB89=\"Group B\",'Suggested management Options'!$C$7,IF(AB89=\"Group C\",'Suggested management Options'!$C$8,IF(AB89=\"Group D\",'Suggested management Options'!$C$9,IF(AB89=\"Group E\",'Suggested management Options'!$C$10,IF(AB89=\"Group F\",'Suggested management Options'!$C$11,IF(AB89=\"Group G\",'Suggested management Options'!$C$12,IF(AB89=\"Group O\",'Suggested management Options'!$C$13,IF(AB89=\"Group X\",'Suggested management Options'!$C$14,\"\")))))))))))","v":"These species are secure relative to other threatened species. Lower priority for intervention beyond monitoring. This may change should fragmentation or immediate threat arise."},"DON'T TRANSLOCATE",null,0,1,0,1,0,1,-1,1,0,null,true,false,false,false,false,false,false,false,false,false,false,"Group A.1",null,0,1,0,1,0,0,0,1]
["Conostylis seorsiflora subsp. trichophylla",11748,"T","EN","B1+2c; C1","EN","WHTB","GREAT SOUTHERN","Tincurrin, Kukerin","Oct-Nov","IRP","No","No","No",null,null,"No","Yes-fire",null,"No","No","Short-lived","assumption","No","Unknown","No","Yes","Group A.2(ii)",{"$f":"IF(AB90=\"Group A.1\",'Suggested management Options'!$C$4, IF(AB90=\"Group A.2(i)\", 'Suggested management Options'!$C$5, IF(AB90=\"Group A.2(ii)\", 'Suggested management Options'!$C$6, IF(AB90=\"Group B\",'Suggested management Options'!$C$7,IF(AB90=\"Group C\",'Suggested management Options'!$C$8,IF(AB90=\"Group D\",'Suggested management Options'!$C$9,IF(AB90=\"Group E\",'Suggested management Options'!$C$10,IF(AB90=\"Group F\",'Suggested management Options'!$C$11,IF(AB90=\"Group G\",'Suggested management Options'!$C$12,IF(AB90=\"Group O\",'Suggested management Options'!$C$13,IF(AB90=\"Group X\",'Suggested management Options'!$C$14,\"\")))))))))))","v":"Species is relatively less secure compared to Group A.1 and A.2(i). Monitoring required. Management could include collecting seed material/germplasm?."},"DON'T TRANSLOCATE",null,0,1,0,0,0,0,-1,0,1,null,false,false,true,false,false,false,false,false,false,false,false,"Group A.2(ii)",null,0,1,0,1,1,1,0,1]
["Conostylis setigera subsp. dasys",11363,"T","CR","B1ab(iii)+2ab(iii)","CR","WHTB","GREAT SOUTHERN","Kojonup","Oct-Nov","IRP","No","No","Yes",null,"only one population of this taxon","Yes","Yes-fire","resprouted following prescribed burn","No","Yes","Short-lived","assumption","Yes","Unknown","Yes","No","Group O",{"$f":"IF(AB91=\"Group A.1\",'Suggested management Options'!$C$4, IF(AB91=\"Group A.2(i)\", 'Suggested management Options'!$C$5, IF(AB91=\"Group A.2(ii)\", 'Suggested management Options'!$C$6, IF(AB91=\"Group B\",'Suggested management Options'!$C$7,IF(AB91=\"Group C\",'Suggested management Options'!$C$8,IF(AB91=\"Group D\",'Suggested management Options'!$C$9,IF(AB91=\"Group E\",'Suggested management Options'!$C$10,IF(AB91=\"Group F\",'Suggested management Options'!$C$11,IF(AB91=\"Group G\",'Suggested management Options'!$C$12,IF(AB91=\"Group O\",'Suggested management Options'!$C$13,IF(AB91=\"Group X\",'Suggested management Options'!$C$14,\"\")))))))))))","v":"Introduce disturbance and then re-evaluate"},"INTRODUCE DISTURBANCE FIRST",null,1,1,0,1,0,1,-1,1,0,null,false,false,false,false,false,false,false,false,false,true,false,"Group O",null,1,1,0,1,0,0,0,0]
["Conostylis wonganensis",1462,"T","EN","B1+3d","EN","WHTB","CENTRAL WHEATBELT","Wongan Hills and Manmanning","Jul-Sep",null,"No","No","No",null,null,"No","Yes-fire","no germination post-fire n an area where plants had historically been found ","No","Yes","Short-lived","assumption","Yes","Unknown","Yes","Yes","Group A.2(ii)",{"$f":"IF(AB92=\"Group A.1\",'Suggested management Options'!$C$4, IF(AB92=\"Group A.2(i)\", 'Suggested management Options'!$C$5, IF(AB92=\"Group A.2(ii)\", 'Suggested management Options'!$C$6, IF(AB92=\"Group B\",'Suggested management Options'!$C$7,IF(AB92=\"Group C\",'Suggested management Options'!$C$8,IF(AB92=\"Group D\",'Suggested management Options'!$C$9,IF(AB92=\"Group E\",'Suggested management Options'!$C$10,IF(AB92=\"Group F\",'Suggested management Options'!$C$11,IF(AB92=\"Group G\",'Suggested management Options'!$C$12,IF(AB92=\"Group O\",'Suggested management Options'!$C$13,IF(AB92=\"Group X\",'Suggested management Options'!$C$14,\"\")))))))))))","v":"Species is relatively less secure compared to Group A.1 and A.2(i). Monitoring required. Management could include collecting seed material/germplasm?."},"DON'T TRANSLOCATE",null,0,1,0,1,0,1,-1,1,1,null,false,false,true,false,false,false,false,false,false,false,false,"Group A.2(ii)",null,0,1,0,1,0,0,0,1]
["Coopernookia georgei",7417,"T","EN","D","EN","SCST","ALBANY","Fitzgerald River Nat.Pk.","Jul-Nov",null,"No",null,null,null,null,"Yes",null,null,null,null,null,null,null,null,null,null,"",{"$f":"IF(AB93=\"Group A.1\",'Suggested management Options'!$C$4, IF(AB93=\"Group A.2(i)\", 'Suggested management Options'!$C$5, IF(AB93=\"Group A.2(ii)\", 'Suggested management Options'!$C$6, IF(AB93=\"Group B\",'Suggested management Options'!$C$7,IF(AB93=\"Group C\",'Suggested management Options'!$C$8,IF(AB93=\"Group D\",'Suggested management Options'!$C$9,IF(AB93=\"Group E\",'Suggested management Options'!$C$10,IF(AB93=\"Group F\",'Suggested management Options'!$C$11,IF(AB93=\"Group G\",'Suggested management Options'!$C$12,IF(AB93=\"Group O\",'Suggested management Options'!$C$13,IF(AB93=\"Group X\",'Suggested management Options'!$C$14,\"\")))))))))))","v":""},"",null,1,"","","","","","","","",null,false,false,false,false,false,false,false,false,false,false,false,"",null,1,0,0,0,0,0,0,0]
["Cyphanthera odgersii subsp. occidentalis",11751,"T","CR","B1ab(iii,v)+2ab(iii,v); C2a(ii)","EN","WHTB","CENTRAL WHEATBELT","Cowcowing","Sep-Dec","IRP","Cowcowing, 2014","Yes","Yes",null,"another translocation would be beneficial","Yes","Yes-other","likely seedbank present, roadside pops, disturbance applied, opportunistic recruitment observed, burn trials done","Yes","No","Short-lived","?check ","No","Yes","No",null,"Group F",{"$f":"IF(AB94=\"Group A.1\",'Suggested management Options'!$C$4, IF(AB94=\"Group A.2(i)\", 'Suggested management Options'!$C$5, IF(AB94=\"Group A.2(ii)\", 'Suggested management Options'!$C$6, IF(AB94=\"Group B\",'Suggested management Options'!$C$7,IF(AB94=\"Group C\",'Suggested management Options'!$C$8,IF(AB94=\"Group D\",'Suggested management Options'!$C$9,IF(AB94=\"Group E\",'Suggested management Options'!$C$10,IF(AB94=\"Group F\",'Suggested management Options'!$C$11,IF(AB94=\"Group G\",'Suggested management Options'!$C$12,IF(AB94=\"Group O\",'Suggested management Options'!$C$13,IF(AB94=\"Group X\",'Suggested management Options'!$C$14,\"\")))))))))))","v":"Population will be maintained in-situ in the medium term for the purpose of \"salvage\". Collect cuttings and/or seeds for ex-situ conservation. If cost effective consider augmentation of other populations and/or translocation. For species with soil seed banks this may involve regenerating and managing the population in-situ to recover plant material from 1st and 2nd generations for subsequent salvage."},"DEFINITELY TRANSLOCATE",null,1,1,1,0,0,0,1,0,"",null,false,false,false,false,false,false,false,true,false,false,false,"Group F",null,1,1,1,0,1,1,1,0]
["Darwinia acerosa",5504,"T","EN","B1+2c","EN","MWST,SWAN,WHTB","MOORA,PERTH HILLS,CENTRAL WHEATBELT","Mogumber, Wannamal, Gillingarra","Sep-Nov",null,"No","No","No",null,null,"No","Unknown","check with other Regions","No","Yes","Long-lived","assumption","Yes","Unknown","No","Yes","Group A.2(i)",{"$f":"IF(AB95=\"Group A.1\",'Suggested management Options'!$C$4, IF(AB95=\"Group A.2(i)\", 'Suggested management Options'!$C$5, IF(AB95=\"Group A.2(ii)\", 'Suggested management Options'!$C$6, IF(AB95=\"Group B\",'Suggested management Options'!$C$7,IF(AB95=\"Group C\",'Suggested management Options'!$C$8,IF(AB95=\"Group D\",'Suggested management Options'!$C$9,IF(AB95=\"Group E\",'Suggested management Options'!$C$10,IF(AB95=\"Group F\",'Suggested management Options'!$C$11,IF(AB95=\"Group G\",'Suggested management Options'!$C$12,IF(AB95=\"Group O\",'Suggested management Options'!$C$13,IF(AB95=\"Group X\",'Suggested management Options'!$C$14,\"\")))))))))))","v":"Species is relatively less secure compared to Group A.1. Monitoring required. Management could include….. ?"},"DON'T TRANSLOCATE",null,0,-1,0,1,1,1,-1,0,1,null,false,true,false,false,false,false,false,false,false,false,false,"Group A.2(i)",null,0,0,0,1,0,0,0,1]
["Darwinia apiculata",5505,"T","EN","B1+2c","EN","SWAN","PERTH HILLS","Kalamunda","Oct-Nov","IRP","No",null,null,null,null,"No",null,null,null,null,null,null,null,null,null,null,"",{"$f":"IF(AB96=\"Group A.1\",'Suggested management Options'!$C$4, IF(AB96=\"Group A.2(i)\", 'Suggested management Options'!$C$5, IF(AB96=\"Group A.2(ii)\", 'Suggested management Options'!$C$6, IF(AB96=\"Group B\",'Suggested management Options'!$C$7,IF(AB96=\"Group C\",'Suggested management Options'!$C$8,IF(AB96=\"Group D\",'Suggested management Options'!$C$9,IF(AB96=\"Group E\",'Suggested management Options'!$C$10,IF(AB96=\"Group F\",'Suggested management Options'!$C$11,IF(AB96=\"Group G\",'Suggested management Options'!$C$12,IF(AB96=\"Group O\",'Suggested management Options'!$C$13,IF(AB96=\"Group X\",'Suggested management Options'!$C$14,\"\")))))))))))","v":""},"",null,0,"","","","","","","","",null,false,false,false,false,false,false,false,false,false,false,false,"",null,0,0,0,0,0,0,0,0]
["Darwinia carnea",5507,"T","CR","B1ab(iii,v)+2ab(iii,v); C2a(i)","EN","MWST,WHTB","MOORA,GREAT SOUTHERN","Narrogin, Mogumber","Oct-Dec","IRP","Private property Loc 935, 1985; Shire Gravel Pit, Narrogin, 1999; State Forest # 51, Cuballing, 1999; Udamung NR, 2006","Yes","Yes","Yes","Very few individuals to establish translocated populations, Northern and southern pops being kept separate","Yes","Likely No",null,"No","No","Long-lived","known","No","No","No",null,"Group G",{"$f":"IF(AB97=\"Group A.1\",'Suggested management Options'!$C$4, IF(AB97=\"Group A.2(i)\", 'Suggested management Options'!$C$5, IF(AB97=\"Group A.2(ii)\", 'Suggested management Options'!$C$6, IF(AB97=\"Group B\",'Suggested management Options'!$C$7,IF(AB97=\"Group C\",'Suggested management Options'!$C$8,IF(AB97=\"Group D\",'Suggested management Options'!$C$9,IF(AB97=\"Group E\",'Suggested management Options'!$C$10,IF(AB97=\"Group F\",'Suggested management Options'!$C$11,IF(AB97=\"Group G\",'Suggested management Options'!$C$12,IF(AB97=\"Group O\",'Suggested management Options'!$C$13,IF(AB97=\"Group X\",'Suggested management Options'!$C$14,\"\")))))))))))","v":"Population will only be maintained in-situ in the short term for the purpose of salvage, where practical. Collect cuttings, seeds, germplasm etc. and maintain in ex-situ collections OR translocate/augment to create a population >250. (maybe need to add actions beyond translocate for non-Wheatbelt regions)"},"DEFINITELY TRANSLOCATE",null,1,0,0,0,1,0,0,0,"",null,false,false,false,false,false,false,false,false,true,false,false,"Group G",null,1,0,1,0,1,1,0,0]
["Darwinia collina",5509,"T","CR","A3ce; B1ab(iii,iv,v)+2ab(iii,iv,v)","EN","SCST","ALBANY","Stirling Range","Mar-Apr","IRP","No",null,null,null,null,"Yes",null,null,null,null,null,null,null,null,null,null,"",{"$f":"IF(AB98=\"Group A.1\",'Suggested management Options'!$C$4, IF(AB98=\"Group A.2(i)\", 'Suggested management Options'!$C$5, IF(AB98=\"Group A.2(ii)\", 'Suggested management Options'!$C$6, IF(AB98=\"Group B\",'Suggested management Options'!$C$7,IF(AB98=\"Group C\",'Suggested management Options'!$C$8,IF(AB98=\"Group D\",'Suggested management Options'!$C$9,IF(AB98=\"Group E\",'Suggested management Options'!$C$10,IF(AB98=\"Group F\",'Suggested management Options'!$C$11,IF(AB98=\"Group G\",'Suggested management Options'!$C$12,IF(AB98=\"Group O\",'Suggested management Options'!$C$13,IF(AB98=\"Group X\",'Suggested management Options'!$C$14,\"\")))))))))))","v":""},"",null,1,"","","","","","","","",null,false,false,false,false,false,false,false,false,false,false,false,"",null,1,0,0,0,0,0,0,0]
["Darwinia ferricola",34774,"T","EN","B1ab(i, ii, iii, iv, v)+2b(i, ii, iii, iv, v)","EN","SWST","BLACKWOOD","Scott River plains","Dec-Jan","IRP","Augusta, 2003",null,null,null,null,"No",null,null,null,null,null,null,null,null,null,null,"",{"$f":"IF(AB99=\"Group A.1\",'Suggested management Options'!$C$4, IF(AB99=\"Group A.2(i)\", 'Suggested management Options'!$C$5, IF(AB99=\"Group A.2(ii)\", 'Suggested management Options'!$C$6, IF(AB99=\"Group B\",'Suggested management Options'!$C$7,IF(AB99=\"Group C\",'Suggested management Options'!$C$8,IF(AB99=\"Group D\",'Suggested management Options'!$C$9,IF(AB99=\"Group E\",'Suggested management Options'!$C$10,IF(AB99=\"Group F\",'Suggested management Options'!$C$11,IF(AB99=\"Group G\",'Suggested management Options'!$C$12,IF(AB99=\"Group O\",'Suggested management Options'!$C$13,IF(AB99=\"Group X\",'Suggested management Options'!$C$14,\"\")))))))))))","v":""},"",null,0,"","","","","","","","",null,false,false,false,false,false,false,false,false,false,false,false,"",null,0,0,0,0,0,0,0,0]
["Darwinia foetida",34773,"T","EN","B1ab(iii)+2ab(iii)","CR","SWAN","SWAN COASTAL","Muchea",null,null,"No",null,null,null,null,"Yes",null,null,null,null,null,null,null,null,null,null,"",{"$f":"IF(AB100=\"Group A.1\",'Suggested management Options'!$C$4, IF(AB100=\"Group A.2(i)\", 'Suggested management Options'!$C$5, IF(AB100=\"Group A.2(ii)\", 'Suggested management Options'!$C$6, IF(AB100=\"Group B\",'Suggested management Options'!$C$7,IF(AB100=\"Group C\",'Suggested management Options'!$C$8,IF(AB100=\"Group D\",'Suggested management Options'!$C$9,IF(AB100=\"Group E\",'Suggested management Options'!$C$10,IF(AB100=\"Group F\",'Suggested management Options'!$C$11,IF(AB100=\"Group G\",'Suggested management Options'!$C$12,IF(AB100=\"Group O\",'Suggested management Options'!$C$13,IF(AB100=\"Group X\",'Suggested management Options'!$C$14,\"\")))))))))))","v":""},"",null,1,"","","","","","","","",null,false,false,false,false,false,false,false,false,false,false,false,"",null,1,0,0,0,0,0,0,0]
["Darwinia masonii",5516,"T","CR","B1ab(ii,iii,v)","VU","MWST","GERALDTON","Ninghan, Mt Gibson","Jul-Nov","IRP","Mt Gibson, ?",null,null,null,null,"No",null,null,null,null,null,null,null,null,null,null,"",{"$f":"IF(AB101=\"Group A.1\",'Suggested management Options'!$C$4, IF(AB101=\"Group A.2(i)\", 'Suggested management Options'!$C$5, IF(AB101=\"Group A.2(ii)\", 'Suggested management Options'!$C$6, IF(AB101=\"Group B\",'Suggested management Options'!$C$7,IF(AB101=\"Group C\",'Suggested management Options'!$C$8,IF(AB101=\"Group D\",'Suggested management Options'!$C$9,IF(AB101=\"Group E\",'Suggested management Options'!$C$10,IF(AB101=\"Group F\",'Suggested management Options'!$C$11,IF(AB101=\"Group G\",'Suggested management Options'!$C$12,IF(AB101=\"Group O\",'Suggested management Options'!$C$13,IF(AB101=\"Group X\",'Suggested management Options'!$C$14,\"\")))))))))))","v":""},"",null,0,"","","","","","","","",null,false,false,false,false,false,false,false,false,false,false,false,"",null,0,0,0,0,0,0,0,0]
["Darwinia nubigena",34764,"T","EN","B1+2c","VU","SCST","ALBANY","Mt Success, Stirling Range","Nov",null,"No",null,null,null,null,"No",null,null,null,null,null,null,null,null,null,null,"",{"$f":"IF(AB102=\"Group A.1\",'Suggested management Options'!$C$4, IF(AB102=\"Group A.2(i)\", 'Suggested management Options'!$C$5, IF(AB102=\"Group A.2(ii)\", 'Suggested management Options'!$C$6, IF(AB102=\"Group B\",'Suggested management Options'!$C$7,IF(AB102=\"Group C\",'Suggested management Options'!$C$8,IF(AB102=\"Group D\",'Suggested management Options'!$C$9,IF(AB102=\"Group E\",'Suggested management Options'!$C$10,IF(AB102=\"Group F\",'Suggested management Options'!$C$11,IF(AB102=\"Group G\",'Suggested management Options'!$C$12,IF(AB102=\"Group O\",'Suggested management Options'!$C$13,IF(AB102=\"Group X\",'Suggested management Options'!$C$14,\"\")))))))))))","v":""},"",null,0,"","","","","","","","",null,false,false,false,false,false,false,false,false,false,false,false,"",null,0,0,0,0,0,0,0,0]
["Darwinia oxylepis",5521,"T","EN","B1+2c","EN","SCST","ALBANY","Mondurup, Stirling Range","Aug-Nov","IRP","No",null,null,null,null,"No",null,null,null,null,null,null,null,null,null,null,"",{"$f":"IF(AB103=\"Group A.1\",'Suggested management Options'!$C$4, IF(AB103=\"Group A.2(i)\", 'Suggested management Options'!$C$5, IF(AB103=\"Group A.2(ii)\", 'Suggested management Options'!$C$6, IF(AB103=\"Group B\",'Suggested management Options'!$C$7,IF(AB103=\"Group C\",'Suggested management Options'!$C$8,IF(AB103=\"Group D\",'Suggested management Options'!$C$9,IF(AB103=\"Group E\",'Suggested management Options'!$C$10,IF(AB103=\"Group F\",'Suggested management Options'!$C$11,IF(AB103=\"Group G\",'Suggested management Options'!$C$12,IF(AB103=\"Group O\",'Suggested management Options'!$C$13,IF(AB103=\"Group X\",'Suggested management Options'!$C$14,\"\")))))))))))","v":""},"",null,0,"","","","","","","","",null,false,false,false,false,false,false,false,false,false,false,false,"",null,0,0,0,0,0,0,0,0]
["Darwinia polychroma",34763,"T","EN","A2c","EN","MWST","MOORA,GERALDTON","Carnamah, Latham","Oct",null,"No",null,null,null,null,"No",null,null,null,null,null,null,null,null,null,null,"",{"$f":"IF(AB104=\"Group A.1\",'Suggested management Options'!$C$4, IF(AB104=\"Group A.2(i)\", 'Suggested management Options'!$C$5, IF(AB104=\"Group A.2(ii)\", 'Suggested management Options'!$C$6, IF(AB104=\"Group B\",'Suggested management Options'!$C$7,IF(AB104=\"Group C\",'Suggested management Options'!$C$8,IF(AB104=\"Group D\",'Suggested management Options'!$C$9,IF(AB104=\"Group E\",'Suggested management Options'!$C$10,IF(AB104=\"Group F\",'Suggested management Options'!$C$11,IF(AB104=\"Group G\",'Suggested management Options'!$C$12,IF(AB104=\"Group O\",'Suggested management Options'!$C$13,IF(AB104=\"Group X\",'Suggested management Options'!$C$14,\"\")))))))))))","v":""},"",null,0,"","","","","","","","",null,false,false,false,false,false,false,false,false,false,false,false,"",null,0,0,0,0,0,0,0,0]
["Darwinia whicherensis",34765,"T","CR","A4ce; B1ab(iii)+2ab(iii); C2a(ii)","EN","SWST","BLACKWOOD,WELLINGTON","Williamson (below Whicher Range), Boyanup","Oct, Dec","IRP","Negus' Block, Busselton, 2001; Oates Road, Busselton, 2001",null,null,null,null,"Yes",null,null,null,null,null,null,null,null,null,null,"",{"$f":"IF(AB105=\"Group A.1\",'Suggested management Options'!$C$4, IF(AB105=\"Group A.2(i)\", 'Suggested management Options'!$C$5, IF(AB105=\"Group A.2(ii)\", 'Suggested management Options'!$C$6, IF(AB105=\"Group B\",'Suggested management Options'!$C$7,IF(AB105=\"Group C\",'Suggested management Options'!$C$8,IF(AB105=\"Group D\",'Suggested management Options'!$C$9,IF(AB105=\"Group E\",'Suggested management Options'!$C$10,IF(AB105=\"Group F\",'Suggested management Options'!$C$11,IF(AB105=\"Group G\",'Suggested management Options'!$C$12,IF(AB105=\"Group O\",'Suggested management Options'!$C$13,IF(AB105=\"Group X\",'Suggested management Options'!$C$14,\"\")))))))))))","v":""},"",null,1,"","","","","","","","",null,false,false,false,false,false,false,false,false,false,false,false,"",null,1,0,0,0,0,0,0,0]
["Darwinia wittwerorum",5535,"T","EN","B1+2de","EN","SCST","ALBANY","Stirling Range","Sep-Nov","IRP","No",null,null,null,null,"No",null,null,null,null,null,null,null,null,null,null,"",{"$f":"IF(AB106=\"Group A.1\",'Suggested management Options'!$C$4, IF(AB106=\"Group A.2(i)\", 'Suggested management Options'!$C$5, IF(AB106=\"Group A.2(ii)\", 'Suggested management Options'!$C$6, IF(AB106=\"Group B\",'Suggested management Options'!$C$7,IF(AB106=\"Group C\",'Suggested management Options'!$C$8,IF(AB106=\"Group D\",'Suggested management Options'!$C$9,IF(AB106=\"Group E\",'Suggested management Options'!$C$10,IF(AB106=\"Group F\",'Suggested management Options'!$C$11,IF(AB106=\"Group G\",'Suggested management Options'!$C$12,IF(AB106=\"Group O\",'Suggested management Options'!$C$13,IF(AB106=\"Group X\",'Suggested management Options'!$C$14,\"\")))))))))))","v":""},"",null,0,"","","","","","","","",null,false,false,false,false,false,false,false,false,false,false,false,"",null,0,0,0,0,0,0,0,0]
["Dasymalla axillaris",41022,"T","CR","C1+C2a(i)b","CR","MWST,SWAN,WHTB","GERALDTON,SWAN COASTAL,CENTRAL WHEATBELT","Pithara, Morawa, Lake Moore, Gnangara, Wongan Hills, Maya, Caron, Buntine, Latham, Perenjori","Jul-Oct","IRP","No","No","No",null,null,"Yes","Yes-fire",null,"Yes","No","Short-lived","?check","No","Likely Yes","Yes",null,"Group E",{"$f":"IF(AB107=\"Group A.1\",'Suggested management Options'!$C$4, IF(AB107=\"Group A.2(i)\", 'Suggested management Options'!$C$5, IF(AB107=\"Group A.2(ii)\", 'Suggested management Options'!$C$6, IF(AB107=\"Group B\",'Suggested management Options'!$C$7,IF(AB107=\"Group C\",'Suggested management Options'!$C$8,IF(AB107=\"Group D\",'Suggested management Options'!$C$9,IF(AB107=\"Group E\",'Suggested management Options'!$C$10,IF(AB107=\"Group F\",'Suggested management Options'!$C$11,IF(AB107=\"Group G\",'Suggested management Options'!$C$12,IF(AB107=\"Group O\",'Suggested management Options'!$C$13,IF(AB107=\"Group X\",'Suggested management Options'!$C$14,\"\")))))))))))","v":"Population will be maintained in-situ in the long term. Highest priority will be to increase effective population size to >250 mature plants through promoting in-situ recruitment and/or seed collection, external propagation and subsequent restocking."},"MAYBE TRANSLOCATE IF COST-EFFECTIVE",null,1,1,1,0,0,0,1,1,"",null,false,false,false,false,false,false,true,false,false,false,false,"Group E",null,1,1,1,0,1,1,1,0]
["Daviesia bursarioides",13630,"T","CR","B2ab(iii); C2a(i)","EN","MWST","MOORA","Three Springs","Jun-Sep","IRP","Sweetman NR, 1998",null,null,null,null,"Yes",null,null,null,null,null,null,null,null,null,null,"",{"$f":"IF(AB108=\"Group A.1\",'Suggested management Options'!$C$4, IF(AB108=\"Group A.2(i)\", 'Suggested management Options'!$C$5, IF(AB108=\"Group A.2(ii)\", 'Suggested management Options'!$C$6, IF(AB108=\"Group B\",'Suggested management Options'!$C$7,IF(AB108=\"Group C\",'Suggested management Options'!$C$8,IF(AB108=\"Group D\",'Suggested management Options'!$C$9,IF(AB108=\"Group E\",'Suggested management Options'!$C$10,IF(AB108=\"Group F\",'Suggested management Options'!$C$11,IF(AB108=\"Group G\",'Suggested management Options'!$C$12,IF(AB108=\"Group O\",'Suggested management Options'!$C$13,IF(AB108=\"Group X\",'Suggested management Options'!$C$14,\"\")))))))))))","v":""},"",null,1,"","","","","","","","",null,false,false,false,false,false,false,false,false,false,false,false,"",null,1,0,0,0,0,0,0,0]
["Daviesia cunderdin",16988,"T","CR","B1ab(iii,v)+2ab(iii,v); C2a(ii); D","EN","WHTB","CENTRAL WHEATBELT","Cunderdin","May","IRP","Christison's property, 2004","Yes","Yes",null,"poor survival of seedlings, but once established they do well, consider another translocation","Yes","Likely No",null,"No","No","Short-lived","?check","No","Yes","No",null,"Group F",{"$f":"IF(AB109=\"Group A.1\",'Suggested management Options'!$C$4, IF(AB109=\"Group A.2(i)\", 'Suggested management Options'!$C$5, IF(AB109=\"Group A.2(ii)\", 'Suggested management Options'!$C$6, IF(AB109=\"Group B\",'Suggested management Options'!$C$7,IF(AB109=\"Group C\",'Suggested management Options'!$C$8,IF(AB109=\"Group D\",'Suggested management Options'!$C$9,IF(AB109=\"Group E\",'Suggested management Options'!$C$10,IF(AB109=\"Group F\",'Suggested management Options'!$C$11,IF(AB109=\"Group G\",'Suggested management Options'!$C$12,IF(AB109=\"Group O\",'Suggested management Options'!$C$13,IF(AB109=\"Group X\",'Suggested management Options'!$C$14,\"\")))))))))))","v":"Population will be maintained in-situ in the medium term for the purpose of \"salvage\". Collect cuttings and/or seeds for ex-situ conservation. If cost effective consider augmentation of other populations and/or translocation. For species with soil seed banks this may involve regenerating and managing the population in-situ to recover plant material from 1st and 2nd generations for subsequent salvage."},"DEFINITELY TRANSLOCATE",null,1,0,0,0,0,0,1,0,"",null,false,false,false,false,false,false,false,true,false,false,false,"Group F",null,1,0,1,0,1,1,1,0]
["Daviesia dielsii",3806,"T","EN","C1","EN","MWST","MOORA","Moora, Watheroo, Marchagee, Dalwallinu","Jul-Aug","IRP","No",null,null,null,null,"No",null,null,null,null,null,null,null,null,null,null,"",{"$f":"IF(AB110=\"Group A.1\",'Suggested management Options'!$C$4, IF(AB110=\"Group A.2(i)\", 'Suggested management Options'!$C$5, IF(AB110=\"Group A.2(ii)\", 'Suggested management Options'!$C$6, IF(AB110=\"Group B\",'Suggested management Options'!$C$7,IF(AB110=\"Group C\",'Suggested management Options'!$C$8,IF(AB110=\"Group D\",'Suggested management Options'!$C$9,IF(AB110=\"Group E\",'Suggested management Options'!$C$10,IF(AB110=\"Group F\",'Suggested management Options'!$C$11,IF(AB110=\"Group G\",'Suggested management Options'!$C$12,IF(AB110=\"Group O\",'Suggested management Options'!$C$13,IF(AB110=\"Group X\",'Suggested management Options'!$C$14,\"\")))))))))))","v":""},"",null,0,"","","","","","","","",null,false,false,false,false,false,false,false,false,false,false,false,"",null,0,0,0,0,0,0,0,0]
["Daviesia euphorbioides",3810,"T","CR","B2ab(iii,v); C2a(ii); D","EN","WHTB","CENTRAL WHEATBELT","Cadoux-Wongan Hills","Jun,Jul","IRP","Dowerin, 2005","No","No",null,"focus on increasing viability of pop 2, rather than investing in translocation efforts","Yes","Yes-fire",null,"Yes","Yes","Short-lived","known","Yes","Yes","Yes","Yes","Group C",{"$f":"IF(AB111=\"Group A.1\",'Suggested management Options'!$C$4, IF(AB111=\"Group A.2(i)\", 'Suggested management Options'!$C$5, IF(AB111=\"Group A.2(ii)\", 'Suggested management Options'!$C$6, IF(AB111=\"Group B\",'Suggested management Options'!$C$7,IF(AB111=\"Group C\",'Suggested management Options'!$C$8,IF(AB111=\"Group D\",'Suggested management Options'!$C$9,IF(AB111=\"Group E\",'Suggested management Options'!$C$10,IF(AB111=\"Group F\",'Suggested management Options'!$C$11,IF(AB111=\"Group G\",'Suggested management Options'!$C$12,IF(AB111=\"Group O\",'Suggested management Options'!$C$13,IF(AB111=\"Group X\",'Suggested management Options'!$C$14,\"\")))))))))))","v":"Maintain effective population size of >250 reproductively mature individuals. Translocate (immediately?) if cost effective."},"MAYBE TRANSLOCATE IF COST-EFFECTIVE",null,1,1,1,1,0,1,1,1,1,null,false,false,false,false,true,false,false,false,false,false,false,"Group C",null,1,1,1,1,0,0,1,0]
["Daviesia glossosema",15067,"T","CR","B1ab(iii,v)+2ab(iii,v); C2a(i); D","CR","SCST","ALBANY","Stirling Range NP",null,"IRP","Syred Rd, Kamballup, 2010",null,null,null,null,"Yes",null,null,null,null,null,null,null,null,null,null,"",{"$f":"IF(AB112=\"Group A.1\",'Suggested management Options'!$C$4, IF(AB112=\"Group A.2(i)\", 'Suggested management Options'!$C$5, IF(AB112=\"Group A.2(ii)\", 'Suggested management Options'!$C$6, IF(AB112=\"Group B\",'Suggested management Options'!$C$7,IF(AB112=\"Group C\",'Suggested management Options'!$C$8,IF(AB112=\"Group D\",'Suggested management Options'!$C$9,IF(AB112=\"Group E\",'Suggested management Options'!$C$10,IF(AB112=\"Group F\",'Suggested management Options'!$C$11,IF(AB112=\"Group G\",'Suggested management Options'!$C$12,IF(AB112=\"Group O\",'Suggested management Options'!$C$13,IF(AB112=\"Group X\",'Suggested management Options'!$C$14,\"\")))))))))))","v":""},"",null,1,"","","","","","","","",null,false,false,false,false,false,false,false,false,false,false,false,"",null,1,0,0,0,0,0,0,0]
["Daviesia megacalyx",13631,"T","EN","B1+2e","EN","SCST","ALBANY","Ravensthorpe Range","Aug-Sep","IRP","No",null,null,null,null,"No",null,null,null,null,null,null,null,null,null,null,"",{"$f":"IF(AB113=\"Group A.1\",'Suggested management Options'!$C$4, IF(AB113=\"Group A.2(i)\", 'Suggested management Options'!$C$5, IF(AB113=\"Group A.2(ii)\", 'Suggested management Options'!$C$6, IF(AB113=\"Group B\",'Suggested management Options'!$C$7,IF(AB113=\"Group C\",'Suggested management Options'!$C$8,IF(AB113=\"Group D\",'Suggested management Options'!$C$9,IF(AB113=\"Group E\",'Suggested management Options'!$C$10,IF(AB113=\"Group F\",'Suggested management Options'!$C$11,IF(AB113=\"Group G\",'Suggested management Options'!$C$12,IF(AB113=\"Group O\",'Suggested management Options'!$C$13,IF(AB113=\"Group X\",'Suggested management Options'!$C$14,\"\")))))))))))","v":""},"",null,0,"","","","","","","","",null,false,false,false,false,false,false,false,false,false,false,false,"",null,0,0,0,0,0,0,0,0]
["Daviesia microcarpa",12327,"T","CR","B2ab(iii,iv,v); C2a(i)","EN","SCST","ESPERANCE","NE of Norseman, Southern Cross","Aug-Sep","IRP","Population 1c, 2004; Water Reserve 6043, 2007, Southern Cross, ?",null,null,null,null,"Yes",null,null,null,null,null,null,null,null,null,null,"",{"$f":"IF(AB114=\"Group A.1\",'Suggested management Options'!$C$4, IF(AB114=\"Group A.2(i)\", 'Suggested management Options'!$C$5, IF(AB114=\"Group A.2(ii)\", 'Suggested management Options'!$C$6, IF(AB114=\"Group B\",'Suggested management Options'!$C$7,IF(AB114=\"Group C\",'Suggested management Options'!$C$8,IF(AB114=\"Group D\",'Suggested management Options'!$C$9,IF(AB114=\"Group E\",'Suggested management Options'!$C$10,IF(AB114=\"Group F\",'Suggested management Options'!$C$11,IF(AB114=\"Group G\",'Suggested management Options'!$C$12,IF(AB114=\"Group O\",'Suggested management Options'!$C$13,IF(AB114=\"Group X\",'Suggested management Options'!$C$14,\"\")))))))))))","v":""},"",null,1,"","","","","","","","",null,false,false,false,false,false,false,false,false,false,false,false,"",null,1,0,0,0,0,0,0,0]
["Daviesia obovata",3825,"T","EN","A1ce; B2ab(i; ii; iii; iv; v); C1","EN","SCST","ALBANY","Stirling Range NP, Fitzgerald River NP",null,null,"No",null,null,null,null,"Yes",null,null,null,null,null,null,null,null,null,null,"",{"$f":"IF(AB115=\"Group A.1\",'Suggested management Options'!$C$4, IF(AB115=\"Group A.2(i)\", 'Suggested management Options'!$C$5, IF(AB115=\"Group A.2(ii)\", 'Suggested management Options'!$C$6, IF(AB115=\"Group B\",'Suggested management Options'!$C$7,IF(AB115=\"Group C\",'Suggested management Options'!$C$8,IF(AB115=\"Group D\",'Suggested management Options'!$C$9,IF(AB115=\"Group E\",'Suggested management Options'!$C$10,IF(AB115=\"Group F\",'Suggested management Options'!$C$11,IF(AB115=\"Group G\",'Suggested management Options'!$C$12,IF(AB115=\"Group O\",'Suggested management Options'!$C$13,IF(AB115=\"Group X\",'Suggested management Options'!$C$14,\"\")))))))))))","v":""},"",null,1,"","","","","","","","",null,false,false,false,false,false,false,false,false,false,false,false,"",null,1,0,0,0,0,0,0,0]
["Daviesia ovata",3828,"T","CR","B1ab(iii,v)+2ab(iii,v)","CR","SCST","ALBANY","Mt Manypeaks","Sep-Oct","IRP","ManyPeaks NR, 2014",null,null,null,null,"Yes",null,null,null,null,null,null,null,null,null,null,"",{"$f":"IF(AB116=\"Group A.1\",'Suggested management Options'!$C$4, IF(AB116=\"Group A.2(i)\", 'Suggested management Options'!$C$5, IF(AB116=\"Group A.2(ii)\", 'Suggested management Options'!$C$6, IF(AB116=\"Group B\",'Suggested management Options'!$C$7,IF(AB116=\"Group C\",'Suggested management Options'!$C$8,IF(AB116=\"Group D\",'Suggested management Options'!$C$9,IF(AB116=\"Group E\",'Suggested management Options'!$C$10,IF(AB116=\"Group F\",'Suggested management Options'!$C$11,IF(AB116=\"Group G\",'Suggested management Options'!$C$12,IF(AB116=\"Group O\",'Suggested management Options'!$C$13,IF(AB116=\"Group X\",'Suggested management Options'!$C$14,\"\")))))))))))","v":""},"",null,1,"","","","","","","","",null,false,false,false,false,false,false,false,false,false,false,false,"",null,1,0,0,0,0,0,0,0]
["Daviesia pseudaphylla",12331,"T","CR","B1ab(iii,iv,v)+B2ab(ii,iv,v); C2a(i); D","EN","SCST","ALBANY","Stirling Range","Jul-Sep","IRP","Syred Rd, Kamballup, 2010",null,null,null,null,"Yes",null,null,null,null,null,null,null,null,null,null,"",{"$f":"IF(AB117=\"Group A.1\",'Suggested management Options'!$C$4, IF(AB117=\"Group A.2(i)\", 'Suggested management Options'!$C$5, IF(AB117=\"Group A.2(ii)\", 'Suggested management Options'!$C$6, IF(AB117=\"Group B\",'Suggested management Options'!$C$7,IF(AB117=\"Group C\",'Suggested management Options'!$C$8,IF(AB117=\"Group D\",'Suggested management Options'!$C$9,IF(AB117=\"Group E\",'Suggested management Options'!$C$10,IF(AB117=\"Group F\",'Suggested management Options'!$C$11,IF(AB117=\"Group G\",'Suggested management Options'!$C$12,IF(AB117=\"Group O\",'Suggested management Options'!$C$13,IF(AB117=\"Group X\",'Suggested management Options'!$C$14,\"\")))))))))))","v":""},"",null,1,"","","","","","","","",null,false,false,false,false,false,false,false,false,false,false,false,"",null,1,0,0,0,0,0,0,0]
["Daviesia speciosa",13632,"T","EN","B1+2d","EN","MWST","MOORA,GERALDTON","Eneabba-Carnarmah, Mingenew","Apr-Jun",null,"No",null,null,null,null,"No",null,null,null,null,null,null,null,null,null,null,"",{"$f":"IF(AB118=\"Group A.1\",'Suggested management Options'!$C$4, IF(AB118=\"Group A.2(i)\", 'Suggested management Options'!$C$5, IF(AB118=\"Group A.2(ii)\", 'Suggested management Options'!$C$6, IF(AB118=\"Group B\",'Suggested management Options'!$C$7,IF(AB118=\"Group C\",'Suggested management Options'!$C$8,IF(AB118=\"Group D\",'Suggested management Options'!$C$9,IF(AB118=\"Group E\",'Suggested management Options'!$C$10,IF(AB118=\"Group F\",'Suggested management Options'!$C$11,IF(AB118=\"Group G\",'Suggested management Options'!$C$12,IF(AB118=\"Group O\",'Suggested management Options'!$C$13,IF(AB118=\"Group X\",'Suggested management Options'!$C$14,\"\")))))))))))","v":""},"",null,0,"","","","","","","","",null,false,false,false,false,false,false,false,false,false,false,false,"",null,0,0,0,0,0,0,0,0]
["Diplolaena andrewsii",4452,"T","EN","B1ab(iii)+B2ab(iii)","EN","SWAN","PERTH HILLS","Swan View, Woorooloo Brook, John Forrest N.P.","Jul-Oct","IRP","No",null,null,null,null,"Yes",null,null,null,null,null,null,null,null,null,null,"",{"$f":"IF(AB119=\"Group A.1\",'Suggested management Options'!$C$4, IF(AB119=\"Group A.2(i)\", 'Suggested management Options'!$C$5, IF(AB119=\"Group A.2(ii)\", 'Suggested management Options'!$C$6, IF(AB119=\"Group B\",'Suggested management Options'!$C$7,IF(AB119=\"Group C\",'Suggested management Options'!$C$8,IF(AB119=\"Group D\",'Suggested management Options'!$C$9,IF(AB119=\"Group E\",'Suggested management Options'!$C$10,IF(AB119=\"Group F\",'Suggested management Options'!$C$11,IF(AB119=\"Group G\",'Suggested management Options'!$C$12,IF(AB119=\"Group O\",'Suggested management Options'!$C$13,IF(AB119=\"Group X\",'Suggested management Options'!$C$14,\"\")))))))))))","v":""},"",null,1,"","","","","","","","",null,false,false,false,false,false,false,false,false,false,false,false,"",null,1,0,0,0,0,0,0,0]
["Diuris purdiei",1637,"T","EN","B2ab(iii,iv,v); C2a(i)","EN","SWAN,SWST","BLACKWOOD,SWAN COASTAL","Perth-Waroona, Busselton","Sep-Oct",null,"No",null,null,null,null,"Yes",null,null,null,null,null,null,null,null,null,null,"",{"$f":"IF(AB120=\"Group A.1\",'Suggested management Options'!$C$4, IF(AB120=\"Group A.2(i)\", 'Suggested management Options'!$C$5, IF(AB120=\"Group A.2(ii)\", 'Suggested management Options'!$C$6, IF(AB120=\"Group B\",'Suggested management Options'!$C$7,IF(AB120=\"Group C\",'Suggested management Options'!$C$8,IF(AB120=\"Group D\",'Suggested management Options'!$C$9,IF(AB120=\"Group E\",'Suggested management Options'!$C$10,IF(AB120=\"Group F\",'Suggested management Options'!$C$11,IF(AB120=\"Group G\",'Suggested management Options'!$C$12,IF(AB120=\"Group O\",'Suggested management Options'!$C$13,IF(AB120=\"Group X\",'Suggested management Options'!$C$14,\"\")))))))))))","v":""},"",null,1,"","","","","","","","",null,false,false,false,false,false,false,false,false,false,false,false,"",null,1,0,0,0,0,0,0,0]
["Drakaea concolor",13633,"T","EN","B1+2ce; C2a","VU","MWST","GERALDTON","Murchison River, Kalbarri","Aug-Sep",null,"No",null,null,null,null,"Yes",null,null,null,null,null,null,null,null,null,null,"",{"$f":"IF(AB121=\"Group A.1\",'Suggested management Options'!$C$4, IF(AB121=\"Group A.2(i)\", 'Suggested management Options'!$C$5, IF(AB121=\"Group A.2(ii)\", 'Suggested management Options'!$C$6, IF(AB121=\"Group B\",'Suggested management Options'!$C$7,IF(AB121=\"Group C\",'Suggested management Options'!$C$8,IF(AB121=\"Group D\",'Suggested management Options'!$C$9,IF(AB121=\"Group E\",'Suggested management Options'!$C$10,IF(AB121=\"Group F\",'Suggested management Options'!$C$11,IF(AB121=\"Group G\",'Suggested management Options'!$C$12,IF(AB121=\"Group O\",'Suggested management Options'!$C$13,IF(AB121=\"Group X\",'Suggested management Options'!$C$14,\"\")))))))))))","v":""},"",null,1,"","","","","","","","",null,false,false,false,false,false,false,false,false,false,false,false,"",null,1,0,0,0,0,0,0,0]
["Drakaea confluens",13634,"T","CR","C2a","EN","SCST,SWST","BLACKWOOD,ALBANY,WELLINGTON","Boyup Brook, Stirling Range, Muja Conservation Park, Haddleton N.R.","Sep-Nov","IRP","No",null,null,null,null,"Yes",null,null,null,null,null,null,null,null,null,null,"",{"$f":"IF(AB122=\"Group A.1\",'Suggested management Options'!$C$4, IF(AB122=\"Group A.2(i)\", 'Suggested management Options'!$C$5, IF(AB122=\"Group A.2(ii)\", 'Suggested management Options'!$C$6, IF(AB122=\"Group B\",'Suggested management Options'!$C$7,IF(AB122=\"Group C\",'Suggested management Options'!$C$8,IF(AB122=\"Group D\",'Suggested management Options'!$C$9,IF(AB122=\"Group E\",'Suggested management Options'!$C$10,IF(AB122=\"Group F\",'Suggested management Options'!$C$11,IF(AB122=\"Group G\",'Suggested management Options'!$C$12,IF(AB122=\"Group O\",'Suggested management Options'!$C$13,IF(AB122=\"Group X\",'Suggested management Options'!$C$14,\"\")))))))))))","v":""},"",null,1,"","","","","","","","",null,false,false,false,false,false,false,false,false,false,false,false,"",null,1,0,0,0,0,0,0,0]
["Drakaea elastica",1639,"T","CR","B2ab(ii,iii,iv,v)","EN","MWST,SWAN,SWST","BLACKWOOD,MOORA,PERTH HILLS,SWAN COASTAL,WELLINGTON","Gingin-Busselton, Lake Guraga","Oct-Nov","IRP","No",null,null,null,null,"Yes",null,null,null,null,null,null,null,null,null,null,"",{"$f":"IF(AB123=\"Group A.1\",'Suggested management Options'!$C$4, IF(AB123=\"Group A.2(i)\", 'Suggested management Options'!$C$5, IF(AB123=\"Group A.2(ii)\", 'Suggested management Options'!$C$6, IF(AB123=\"Group B\",'Suggested management Options'!$C$7,IF(AB123=\"Group C\",'Suggested management Options'!$C$8,IF(AB123=\"Group D\",'Suggested management Options'!$C$9,IF(AB123=\"Group E\",'Suggested management Options'!$C$10,IF(AB123=\"Group F\",'Suggested management Options'!$C$11,IF(AB123=\"Group G\",'Suggested management Options'!$C$12,IF(AB123=\"Group O\",'Suggested management Options'!$C$13,IF(AB123=\"Group X\",'Suggested management Options'!$C$14,\"\")))))))))))","v":""},"",null,1,"","","","","","","","",null,false,false,false,false,false,false,false,false,false,false,false,"",null,1,0,0,0,0,0,0,0]
["Drakaea isolata",13828,"T","CR","C2b","EN","WHTB","GREAT SOUTHERN","Lake Chinocup","Sep-Oct","IRP","No","No","No","No",null,"No","Likely No","assumption",null,"Yes","Long-lived","assumption ","Yes","Unknown","Yes","Yes","Group A.2(i)",{"$f":"IF(AB124=\"Group A.1\",'Suggested management Options'!$C$4, IF(AB124=\"Group A.2(i)\", 'Suggested management Options'!$C$5, IF(AB124=\"Group A.2(ii)\", 'Suggested management Options'!$C$6, IF(AB124=\"Group B\",'Suggested management Options'!$C$7,IF(AB124=\"Group C\",'Suggested management Options'!$C$8,IF(AB124=\"Group D\",'Suggested management Options'!$C$9,IF(AB124=\"Group E\",'Suggested management Options'!$C$10,IF(AB124=\"Group F\",'Suggested management Options'!$C$11,IF(AB124=\"Group G\",'Suggested management Options'!$C$12,IF(AB124=\"Group O\",'Suggested management Options'!$C$13,IF(AB124=\"Group X\",'Suggested management Options'!$C$14,\"\")))))))))))","v":"Species is relatively less secure compared to Group A.1. Monitoring required. Management could include….. ?"},"DON'T TRANSLOCATE",null,0,0,"",1,1,1,-1,1,1,null,false,true,false,false,false,false,false,false,false,false,false,"Group A.2(i)",null,0,0,1,1,0,0,0,1]
["Drakaea micrantha",13635,"T","EN","C2a","VU","SCST,SWAN,SWST,WARR","BLACKWOOD,ALBANY,FRANKLAND,SWAN COASTAL,WELLINGTON","Perth-Augusta-Albany, Denmark, Margaret River","Sep-Oct",null,"No",null,null,null,null,"Yes",null,null,null,null,null,null,null,null,null,null,"",{"$f":"IF(AB125=\"Group A.1\",'Suggested management Options'!$C$4, IF(AB125=\"Group A.2(i)\", 'Suggested management Options'!$C$5, IF(AB125=\"Group A.2(ii)\", 'Suggested management Options'!$C$6, IF(AB125=\"Group B\",'Suggested management Options'!$C$7,IF(AB125=\"Group C\",'Suggested management Options'!$C$8,IF(AB125=\"Group D\",'Suggested management Options'!$C$9,IF(AB125=\"Group E\",'Suggested management Options'!$C$10,IF(AB125=\"Group F\",'Suggested management Options'!$C$11,IF(AB125=\"Group G\",'Suggested management Options'!$C$12,IF(AB125=\"Group O\",'Suggested management Options'!$C$13,IF(AB125=\"Group X\",'Suggested management Options'!$C$14,\"\")))))))))))","v":""},"",null,1,"","","","","","","","",null,false,false,false,false,false,false,false,false,false,false,false,"",null,1,0,0,0,0,0,0,0]
["Duma horrida subsp. abdita",44466,"T","EN","B1+2c","CR","WHTB","GREAT SOUTHERN","Pingrup, Lake Bryde","-","IRP","No","No","No","No",null,"No","Unknown","wetting, drying, hydroperiod and flood responses. This taxa has multiple regeneration methods","No","Yes","Long-lived","likely ","Yes","Likely Yes","Yes","No","Group A.1",{"$f":"IF(AB126=\"Group A.1\",'Suggested management Options'!$C$4, IF(AB126=\"Group A.2(i)\", 'Suggested management Options'!$C$5, IF(AB126=\"Group A.2(ii)\", 'Suggested management Options'!$C$6, IF(AB126=\"Group B\",'Suggested management Options'!$C$7,IF(AB126=\"Group C\",'Suggested management Options'!$C$8,IF(AB126=\"Group D\",'Suggested management Options'!$C$9,IF(AB126=\"Group E\",'Suggested management Options'!$C$10,IF(AB126=\"Group F\",'Suggested management Options'!$C$11,IF(AB126=\"Group G\",'Suggested management Options'!$C$12,IF(AB126=\"Group O\",'Suggested management Options'!$C$13,IF(AB126=\"Group X\",'Suggested management Options'!$C$14,\"\")))))))))))","v":"These species are secure relative to other threatened species. Lower priority for intervention beyond monitoring. This may change should fragmentation or immediate threat arise."},"DON'T TRANSLOCATE",null,0,-1,0,1,1,1,1,1,0,null,true,false,false,false,false,false,false,false,false,false,false,"Group A.1",null,0,0,0,1,0,0,1,1]
["Eremophila ciliata",14334,"T","EN","D","EN","SCST","ESPERANCE","Mt Newmont","Aug-Sep","IRP","No",null,null,null,null,"Yes",null,null,null,null,null,null,null,null,null,null,"",{"$f":"IF(AB127=\"Group A.1\",'Suggested management Options'!$C$4, IF(AB127=\"Group A.2(i)\", 'Suggested management Options'!$C$5, IF(AB127=\"Group A.2(ii)\", 'Suggested management Options'!$C$6, IF(AB127=\"Group B\",'Suggested management Options'!$C$7,IF(AB127=\"Group C\",'Suggested management Options'!$C$8,IF(AB127=\"Group D\",'Suggested management Options'!$C$9,IF(AB127=\"Group E\",'Suggested management Options'!$C$10,IF(AB127=\"Group F\",'Suggested management Options'!$C$11,IF(AB127=\"Group G\",'Suggested management Options'!$C$12,IF(AB127=\"Group O\",'Suggested management Options'!$C$13,IF(AB127=\"Group X\",'Suggested management Options'!$C$14,\"\")))))))))))","v":""},"",null,1,"","","","","","","","",null,false,false,false,false,false,false,false,false,false,false,false,"",null,1,0,0,0,0,0,0,0]
["Eremophila denticulata subsp. trisulcata",14592,"T","EN","B1ab(iv,v)+ 2ab(iv,v)","EN","SCST","ESPERANCE","Junana Rock, Ponier Rock, Mt Buraminya, Cape Arid NP","Nov-Mar","IRP","No",null,null,null,null,"Yes",null,null,null,null,null,null,null,null,null,null,"",{"$f":"IF(AB128=\"Group A.1\",'Suggested management Options'!$C$4, IF(AB128=\"Group A.2(i)\", 'Suggested management Options'!$C$5, IF(AB128=\"Group A.2(ii)\", 'Suggested management Options'!$C$6, IF(AB128=\"Group B\",'Suggested management Options'!$C$7,IF(AB128=\"Group C\",'Suggested management Options'!$C$8,IF(AB128=\"Group D\",'Suggested management Options'!$C$9,IF(AB128=\"Group E\",'Suggested management Options'!$C$10,IF(AB128=\"Group F\",'Suggested management Options'!$C$11,IF(AB128=\"Group G\",'Suggested management Options'!$C$12,IF(AB128=\"Group O\",'Suggested management Options'!$C$13,IF(AB128=\"Group X\",'Suggested management Options'!$C$14,\"\")))))))))))","v":""},"",null,1,"","","","","","","","",null,false,false,false,false,false,false,false,false,false,false,false,"",null,1,0,0,0,0,0,0,0]
["Eremophila glabra subsp. Scaddan (C. Turley s.n. 10/11/2005)",28351,"T","CR","C2a(i); D",null,"SCST","ESPERANCE","Scadden",null,null,"No",null,null,null,null,"Yes",null,null,null,null,null,null,null,null,null,null,"",{"$f":"IF(AB129=\"Group A.1\",'Suggested management Options'!$C$4, IF(AB129=\"Group A.2(i)\", 'Suggested management Options'!$C$5, IF(AB129=\"Group A.2(ii)\", 'Suggested management Options'!$C$6, IF(AB129=\"Group B\",'Suggested management Options'!$C$7,IF(AB129=\"Group C\",'Suggested management Options'!$C$8,IF(AB129=\"Group D\",'Suggested management Options'!$C$9,IF(AB129=\"Group E\",'Suggested management Options'!$C$10,IF(AB129=\"Group F\",'Suggested management Options'!$C$11,IF(AB129=\"Group G\",'Suggested management Options'!$C$12,IF(AB129=\"Group O\",'Suggested management Options'!$C$13,IF(AB129=\"Group X\",'Suggested management Options'!$C$14,\"\")))))))))))","v":""},"",null,1,"","","","","","","","",null,false,false,false,false,false,false,false,false,false,false,false,"",null,1,0,0,0,0,0,0,0]
["Eremophila glabra subsp. chlorella",17150,"T","EN","B2ab(i,ii,iii,iv,v)","EN","MWST,SWAN,WHTB","MOORA,SWAN COASTAL,CENTRAL WHEATBELT","Cannington, Kenwick, Mogumber,  Eneabba,","Jul-Aug","IRP","No",null,null,null,null,"Yes",null,null,null,null,null,null,null,null,null,null,"",{"$f":"IF(AB130=\"Group A.1\",'Suggested management Options'!$C$4, IF(AB130=\"Group A.2(i)\", 'Suggested management Options'!$C$5, IF(AB130=\"Group A.2(ii)\", 'Suggested management Options'!$C$6, IF(AB130=\"Group B\",'Suggested management Options'!$C$7,IF(AB130=\"Group C\",'Suggested management Options'!$C$8,IF(AB130=\"Group D\",'Suggested management Options'!$C$9,IF(AB130=\"Group E\",'Suggested management Options'!$C$10,IF(AB130=\"Group F\",'Suggested management Options'!$C$11,IF(AB130=\"Group G\",'Suggested management Options'!$C$12,IF(AB130=\"Group O\",'Suggested management Options'!$C$13,IF(AB130=\"Group X\",'Suggested management Options'!$C$14,\"\")))))))))))","v":""},"",null,1,"","","","","","","","",null,false,false,false,false,false,false,false,false,false,false,false,"",null,1,0,0,0,0,0,0,0]
["Eremophila koobabbiensis",20190,"T","CR","B1ab(iii,v)+2ab(iii,v); C2a(i); D","CR","MWST","MOORA","Coorow","Aug","IRP","Coorow, 2008",null,null,null,null,{"$f":"IF(OR(ISNUMBER(FIND(\"D\",E131)), ISNUMBER(FIND(\"C2a\", E131)),ISNUMBER(FIND(\"C2(a)\",E131)),ISNUMBER(FIND(\"B2a\",E131)), ISNUMBER(FIND(\"2a\",E131))), \"Yes\", \"No\")","v":"Yes"},null,null,null,null,null,null,null,null,null,null,"",{"$f":"IF(AB131=\"Group A.1\",'Suggested management Options'!$C$4, IF(AB131=\"Group A.2(i)\", 'Suggested management Options'!$C$5, IF(AB131=\"Group A.2(ii)\", 'Suggested management Options'!$C$6, IF(AB131=\"Group B\",'Suggested management Options'!$C$7,IF(AB131=\"Group C\",'Suggested management Options'!$C$8,IF(AB131=\"Group D\",'Suggested management Options'!$C$9,IF(AB131=\"Group E\",'Suggested management Options'!$C$10,IF(AB131=\"Group F\",'Suggested management Options'!$C$11,IF(AB131=\"Group G\",'Suggested management Options'!$C$12,IF(AB131=\"Group O\",'Suggested management Options'!$C$13,IF(AB131=\"Group X\",'Suggested management Options'!$C$14,\"\")))))))))))","v":""},"",null,1,"","","","","","","","",null,false,false,false,false,false,false,false,false,false,false,false,"",null,1,0,0,0,0,0,0,0]
["Eremophila lactea",7229,"T","CR","B2ab(iii,v)","EN","SCST","ESPERANCE","West of Grass Patch","Dec","IRP","Belgian rd. Rehabilited Lime borrow pit, 2009",null,null,null,null,"Yes",null,null,null,null,null,null,null,null,null,null,{"$f":"BA132","v":""},{"$f":"IF(AB132=\"Group A.1\",'Suggested management Options'!$C$4, IF(AB132=\"Group A.2(i)\", 'Suggested management Options'!$C$5, IF(AB132=\"Group A.2(ii)\", 'Suggested management Options'!$C$6, IF(AB132=\"Group B\",'Suggested management Options'!$C$7,IF(AB132=\"Group C\",'Suggested management Options'!$C$8,IF(AB132=\"Group D\",'Suggested management Options'!$C$9,IF(AB132=\"Group E\",'Suggested management Options'!$C$10,IF(AB132=\"Group F\",'Suggested management Options'!$C$11,IF(AB132=\"Group G\",'Suggested management Options'!$C$12,IF(AB132=\"Group O\",'Suggested management Options'!$C$13,IF(AB132=\"Group X\",'Suggested management Options'!$C$14,\"\")))))))))))","v":""},{"$f":"IF(OR(AB132=\"Group A.1\", AB132=\"Group A.2(i)\", AB132=\"Group A.2(ii)\", AB132=\"Group D\"), \"DON'T TRANSLOCATE\", IF(OR(AB132=\"Group B\", AB132=\"Group C\", AB132=\"Group E\"), \"MAYBE TRANSLOCATE IF COST-EFFECTIVE\", IF(OR(AB132=\"Group F\", AB132=\"Group G\"), \"DEFINITELY TRANSLOCATE\", IF(AB132=\"Group X\", \"EVALUATE SEED BANK\", IF(AB132=\"Group O\", \"INTRODUCE DISTURBANCE FIRST\", \"\")))))","v":""},null,{"$f":"IF(Q132=\"Yes\",1,IF(Q132=\"No\",0,\"\"))","v":1},{"$f":"IF(OR(R132=\"Yes-fire\",R132=\"Yes-other\",R132=\"Likely Yes\"),1,IF(OR(R132=\"Likely No\",R132=\"No\"),0,IF(R132=\"Unknown\",-1,\"\")))","v":""},{"$f":"IF(T132=\"Yes\",1,IF(T132=\"No\",0,\"\"))","v":""},{"$f":"IF(U132=\"Yes\",1,IF(U132=\"No\",0,\"\"))","v":""},{"$f":"IF(V132=\"Long-lived\",1,IF(V132=\"Short-lived\",0,\"\"))","v":""},{"$f":"IF(X132=\"Yes\",1,IF(X132=\"No\",0,\"\"))","v":""},{"$f":"IF(OR(Y132=\"Yes\",Y132=\"Likely Yes\"),1,IF(OR(Y132=\"Likely No\",Y132=\"No\"),0,IF(Y132=\"Unknown\",-1,\"\")))","v":""},{"$f":"IF(Z132=\"Yes\",1,IF(Z132=\"No\",0,\"\"))","v":""},{"$f":"IF(AA132=\"Yes\",1,IF(AA132=\"No\",0,\"\"))","v":""},null,{"$f":"AND(AF132=0,AN132=0)","v":false},{"$f":"AND(AF132=0,AJ132=1,AN132=1)","v":false},{"$f":"AND(AF132=0,AJ132=0,AN132=1)","v":false},{"$f":"AND(AF132=1,OR(AND(AG132=1,AH132=1),AG132=0),AI132=1,AJ132=1)","v":false},{"$f":"AND(AF132=1,OR(AND(AG132=1,AH132=1),AG132=0),AI132=1,AJ132=0)","v":false},{"$f":"AND(AF132=1,OR(AND(AG132=1,AH132=1),AG132=0),AI132=0,AK132=1)","v":false},{"$f":"AND(AF132=1,OR(AND(AG132=1,AH132=1),AG132=0),AI132=0,AK132=0,AL132=1,AM132=1)","v":false},{"$f":"AND(AF132=1,OR(AND(AG132=1,AH132=1),AG132=0),AI132=0,AK132=0,AL132=1,AM132=0)","v":false},{"$f":"AND(AF132=1,OR(AND(AG132=1,AH132=1),AG132=0),AI132=0,AK132=0,AL132=0)","v":false},{"$f":"AND(AF132=1,AG132=1,AH132=0)","v":false},{"$f":"AND(AF132=1,OR(AND(AG132=1,AH132=1),AG132=0),AI132=0,AK132=0,AL132=-1)","v":false},"",null,{"$f":"IF(AF132=1,1,0)","v":1},{"$f":"IF(AG132=1,1,0)","v":0},{"$f":"IF(AND(BA132<>\"\",OR(AND(AG132=1,AH132=1),AG132=0)),1,0)","v":0},{"$f":"IF(AND(BA132<>\"\",OR(AI132=1,AN132=1)),1,0)","v":0},{"$f":"IF(AND(BA132<>\"\",AI132=0),1,0)","v":0},{"$f":"IF(AND(BA132<>\"\",AK132=0),1,0)","v":0},{"$f":"IF(AND(BA132<>\"\",AL132=1),1,0)","v":0},{"$f":"IF(AND(BA132<>\"\",AF132=0),1,0)","v":0}]
["Eremophila nivea",7244,"T","CR","A2c; B1+2c","EN","MWST","MOORA","W of Three Springs","Aug-Oct","IRP","Private Property (Milloy's), 2001; West Perenjori NR, 2001",null,null,null,null,"No",null,null,null,null,null,null,null,null,null,null,"",{"$f":"IF(AB133=\"Group A.1\",'Suggested management Options'!$C$4, IF(AB133=\"Group A.2(i)\", 'Suggested management Options'!$C$5, IF(AB133=\"Group A.2(ii)\", 'Suggested management Options'!$C$6, IF(AB133=\"Group B\",'Suggested management Options'!$C$7,IF(AB133=\"Group C\",'Suggested management Options'!$C$8,IF(AB133=\"Group D\",'Suggested management Options'!$C$9,IF(AB133=\"Group E\",'Suggested management Options'!$C$10,IF(AB133=\"Group F\",'Suggested management Options'!$C$11,IF(AB133=\"Group G\",'Suggested management Options'!$C$12,IF(AB133=\"Group O\",'Suggested management Options'!$C$13,IF(AB133=\"Group X\",'Suggested management Options'!$C$14,\"\")))))))))))","v":""},"",null,0,"","","","","","","","",null,false,false,false,false,false,false,false,false,false,false,false,"",null,0,0,0,0,0,0,0,0]
["Eremophila pinnatifida",16039,"T","CR","B1ab(iii)+2ab(iii)","EN","WHTB","CENTRAL WHEATBELT","Dalwallinu","Oct-Dec","IRP","No","No","Yes",null,null,"Yes","Yes-other","fire and flood","Yes","No","Short-lived","likely ","No","Yes","No",null,"Group F",{"$f":"IF(AB134=\"Group A.1\",'Suggested management Options'!$C$4, IF(AB134=\"Group A.2(i)\", 'Suggested management Options'!$C$5, IF(AB134=\"Group A.2(ii)\", 'Suggested management Options'!$C$6, IF(AB134=\"Group B\",'Suggested management Options'!$C$7,IF(AB134=\"Group C\",'Suggested management Options'!$C$8,IF(AB134=\"Group D\",'Suggested management Options'!$C$9,IF(AB134=\"Group E\",'Suggested management Options'!$C$10,IF(AB134=\"Group F\",'Suggested management Options'!$C$11,IF(AB134=\"Group G\",'Suggested management Options'!$C$12,IF(AB134=\"Group O\",'Suggested management Options'!$C$13,IF(AB134=\"Group X\",'Suggested management Options'!$C$14,\"\")))))))))))","v":"Population will be maintained in-situ in the medium term for the purpose of \"salvage\". Collect cuttings and/or seeds for ex-situ conservation. If cost effective consider augmentation of other populations and/or translocation. For species with soil seed banks this may involve regenerating and managing the population in-situ to recover plant material from 1st and 2nd generations for subsequent salvage."},"DEFINITELY TRANSLOCATE",null,1,1,1,0,0,0,1,0,"",null,false,false,false,false,false,false,false,true,false,false,false,"Group F",null,1,1,1,0,1,1,1,0]
["Eremophila resinosa",7262,"T","EN","C2a","EN","WHTB","CENTRAL WHEATBELT","Yellowdine, Wyalkatchem","Sep-Jan","IRP","Westonia, 2004; Westonia twice in 2009","Yes","Yes",null,null,"Yes","Yes-fire",null,"No","No","Short-lived","likely ","Yes","Yes","Yes",null,"Group O",{"$f":"IF(AB135=\"Group A.1\",'Suggested management Options'!$C$4, IF(AB135=\"Group A.2(i)\", 'Suggested management Options'!$C$5, IF(AB135=\"Group A.2(ii)\", 'Suggested management Options'!$C$6, IF(AB135=\"Group B\",'Suggested management Options'!$C$7,IF(AB135=\"Group C\",'Suggested management Options'!$C$8,IF(AB135=\"Group D\",'Suggested management Options'!$C$9,IF(AB135=\"Group E\",'Suggested management Options'!$C$10,IF(AB135=\"Group F\",'Suggested management Options'!$C$11,IF(AB135=\"Group G\",'Suggested management Options'!$C$12,IF(AB135=\"Group O\",'Suggested management Options'!$C$13,IF(AB135=\"Group X\",'Suggested management Options'!$C$14,\"\")))))))))))","v":"Introduce disturbance and then re-evaluate"},"INTRODUCE DISTURBANCE FIRST",null,1,1,0,0,0,1,1,1,"",null,false,false,false,false,false,false,false,false,false,true,false,"Group O",null,1,1,0,0,1,0,1,0]
["Eremophila rostrata subsp. rostrata",31192,"T","CR","B1ab(iii)+2ab(iii)","CR","MWST","GERALDTON","Cue","Jun-Jul","IRP","No",null,null,null,null,"Yes",null,null,null,null,null,null,null,null,null,null,"",{"$f":"IF(AB136=\"Group A.1\",'Suggested management Options'!$C$4, IF(AB136=\"Group A.2(i)\", 'Suggested management Options'!$C$5, IF(AB136=\"Group A.2(ii)\", 'Suggested management Options'!$C$6, IF(AB136=\"Group B\",'Suggested management Options'!$C$7,IF(AB136=\"Group C\",'Suggested management Options'!$C$8,IF(AB136=\"Group D\",'Suggested management Options'!$C$9,IF(AB136=\"Group E\",'Suggested management Options'!$C$10,IF(AB136=\"Group F\",'Suggested management Options'!$C$11,IF(AB136=\"Group G\",'Suggested management Options'!$C$12,IF(AB136=\"Group O\",'Suggested management Options'!$C$13,IF(AB136=\"Group X\",'Suggested management Options'!$C$14,\"\")))))))))))","v":""},"",null,1,"","","","","","","","",null,false,false,false,false,false,false,false,false,false,false,false,"",null,1,0,0,0,0,0,0,0]
["Eremophila rostrata subsp. trifida",31191,"T","CR","B1ab(iii,v)+2 ab(iii,v); C2a(i); D","CR","MWST","GERALDTON","Perenjori","Sep","IRP","West Perenjori NR, 2015",null,null,null,null,"Yes",null,null,null,null,null,null,null,null,null,null,"",{"$f":"IF(AB137=\"Group A.1\",'Suggested management Options'!$C$4, IF(AB137=\"Group A.2(i)\", 'Suggested management Options'!$C$5, IF(AB137=\"Group A.2(ii)\", 'Suggested management Options'!$C$6, IF(AB137=\"Group B\",'Suggested management Options'!$C$7,IF(AB137=\"Group C\",'Suggested management Options'!$C$8,IF(AB137=\"Group D\",'Suggested management Options'!$C$9,IF(AB137=\"Group E\",'Suggested management Options'!$C$10,IF(AB137=\"Group F\",'Suggested management Options'!$C$11,IF(AB137=\"Group G\",'Suggested management Options'!$C$12,IF(AB137=\"Group O\",'Suggested management Options'!$C$13,IF(AB137=\"Group X\",'Suggested management Options'!$C$14,\"\")))))))))))","v":""},"",null,1,"","","","","","","","",null,false,false,false,false,false,false,false,false,false,false,false,"",null,1,0,0,0,0,0,0,0]
["Eremophila scaberula",7266,"T","CR","A2c; B1+2c","EN","MWST","MOORA","Moora","Jun-Aug","IRP","Bulbarnet NR, 2001",null,null,null,null,"No",null,null,null,null,null,null,null,null,null,null,"",{"$f":"IF(AB138=\"Group A.1\",'Suggested management Options'!$C$4, IF(AB138=\"Group A.2(i)\", 'Suggested management Options'!$C$5, IF(AB138=\"Group A.2(ii)\", 'Suggested management Options'!$C$6, IF(AB138=\"Group B\",'Suggested management Options'!$C$7,IF(AB138=\"Group C\",'Suggested management Options'!$C$8,IF(AB138=\"Group D\",'Suggested management Options'!$C$9,IF(AB138=\"Group E\",'Suggested management Options'!$C$10,IF(AB138=\"Group F\",'Suggested management Options'!$C$11,IF(AB138=\"Group G\",'Suggested management Options'!$C$12,IF(AB138=\"Group O\",'Suggested management Options'!$C$13,IF(AB138=\"Group X\",'Suggested management Options'!$C$14,\"\")))))))))))","v":""},"",null,0,"","","","","","","","",null,false,false,false,false,false,false,false,false,false,false,false,"",null,0,0,0,0,0,0,0,0]
["Eremophila subangustifolia",48632,"T","CR","B1ab(ii,iii,v)+2ab(ii,iii,v)",null,"MWST","MOORA","Lake Logue, Eneabba","July-September","IRP","No",null,null,null,null,"Yes",null,null,null,null,null,null,null,null,null,null,"",{"$f":"IF(AB139=\"Group A.1\",'Suggested management Options'!$C$4, IF(AB139=\"Group A.2(i)\", 'Suggested management Options'!$C$5, IF(AB139=\"Group A.2(ii)\", 'Suggested management Options'!$C$6, IF(AB139=\"Group B\",'Suggested management Options'!$C$7,IF(AB139=\"Group C\",'Suggested management Options'!$C$8,IF(AB139=\"Group D\",'Suggested management Options'!$C$9,IF(AB139=\"Group E\",'Suggested management Options'!$C$10,IF(AB139=\"Group F\",'Suggested management Options'!$C$11,IF(AB139=\"Group G\",'Suggested management Options'!$C$12,IF(AB139=\"Group O\",'Suggested management Options'!$C$13,IF(AB139=\"Group X\",'Suggested management Options'!$C$14,\"\")))))))))))","v":""},"",null,1,"","","","","","","","",null,false,false,false,false,false,false,false,false,false,false,false,"",null,1,0,0,0,0,0,0,0]
["Eremophila subteretifolia",13642,"T","CR","C2a","EN","WHTB","GREAT SOUTHERN","Lake Pallarup-Oldfield River, Lake Milarup","Oct-Jan","IRP","No","No","No",null,null,"Yes","Yes-other","Yes to other, species occurs in valley floor locations. Flood events promote adult plant death and mass germination","No","Yes","Short-lived","likely ","Yes","Yes","Yes","No","Group O",{"$f":"IF(AB140=\"Group A.1\",'Suggested management Options'!$C$4, IF(AB140=\"Group A.2(i)\", 'Suggested management Options'!$C$5, IF(AB140=\"Group A.2(ii)\", 'Suggested management Options'!$C$6, IF(AB140=\"Group B\",'Suggested management Options'!$C$7,IF(AB140=\"Group C\",'Suggested management Options'!$C$8,IF(AB140=\"Group D\",'Suggested management Options'!$C$9,IF(AB140=\"Group E\",'Suggested management Options'!$C$10,IF(AB140=\"Group F\",'Suggested management Options'!$C$11,IF(AB140=\"Group G\",'Suggested management Options'!$C$12,IF(AB140=\"Group O\",'Suggested management Options'!$C$13,IF(AB140=\"Group X\",'Suggested management Options'!$C$14,\"\")))))))))))","v":"Introduce disturbance and then re-evaluate"},"INTRODUCE DISTURBANCE FIRST",null,1,1,0,1,0,1,1,1,0,null,false,false,false,false,false,false,false,false,false,true,false,"Group O",null,1,1,0,1,0,0,1,0]
["Eremophila verticillata",7279,"T","CR","A2c; B1a; b(ii; v)+2a; b(ii; iv); C1","EN","WHTB","GREAT SOUTHERN","NW of Ravensthorpe","Oct-Jan","IRP","Newdegate, 2002","No","Yes",null,"Only one viable population","Yes","Yes-fire","Yes to fire and yes to other. Species has responded positivley to scalping, ripping, fire and flood","Yes","Yes","Short-lived","known","Yes","Yes","No","Yes","Group C",{"$f":"IF(AB141=\"Group A.1\",'Suggested management Options'!$C$4, IF(AB141=\"Group A.2(i)\", 'Suggested management Options'!$C$5, IF(AB141=\"Group A.2(ii)\", 'Suggested management Options'!$C$6, IF(AB141=\"Group B\",'Suggested management Options'!$C$7,IF(AB141=\"Group C\",'Suggested management Options'!$C$8,IF(AB141=\"Group D\",'Suggested management Options'!$C$9,IF(AB141=\"Group E\",'Suggested management Options'!$C$10,IF(AB141=\"Group F\",'Suggested management Options'!$C$11,IF(AB141=\"Group G\",'Suggested management Options'!$C$12,IF(AB141=\"Group O\",'Suggested management Options'!$C$13,IF(AB141=\"Group X\",'Suggested management Options'!$C$14,\"\")))))))))))","v":"Maintain effective population size of >250 reproductively mature individuals. Translocate (immediately?) if cost effective."},"MAYBE TRANSLOCATE IF COST-EFFECTIVE",null,1,1,1,1,0,1,1,0,1,null,false,false,false,false,true,false,false,false,false,false,false,"Group C",null,1,1,1,1,0,0,1,0]
["Eremophila virens",7280,"T","EN","B1+2Ca","EN","WHTB","CENTRAL WHEATBELT","Mukinbudin, Westonia,","Aug-Oct","IRP","No","Yes","Yes",null,null,"No","Yes-fire","yes to fie yes to other, flood events kill adult plants and promote germination","Yes","No","Short-lived","likely ","No","Likely No","Yes","Yes","Group A.2(ii)",{"$f":"IF(AB142=\"Group A.1\",'Suggested management Options'!$C$4, IF(AB142=\"Group A.2(i)\", 'Suggested management Options'!$C$5, IF(AB142=\"Group A.2(ii)\", 'Suggested management Options'!$C$6, IF(AB142=\"Group B\",'Suggested management Options'!$C$7,IF(AB142=\"Group C\",'Suggested management Options'!$C$8,IF(AB142=\"Group D\",'Suggested management Options'!$C$9,IF(AB142=\"Group E\",'Suggested management Options'!$C$10,IF(AB142=\"Group F\",'Suggested management Options'!$C$11,IF(AB142=\"Group G\",'Suggested management Options'!$C$12,IF(AB142=\"Group O\",'Suggested management Options'!$C$13,IF(AB142=\"Group X\",'Suggested management Options'!$C$14,\"\")))))))))))","v":"Species is relatively less secure compared to Group A.1 and A.2(i). Monitoring required. Management could include collecting seed material/germplasm?."},"DON'T TRANSLOCATE",null,0,1,1,0,0,0,0,1,1,null,false,false,true,false,false,false,false,false,false,false,false,"Group A.2(ii)",null,0,1,1,1,1,1,0,1]
["Eremophila viscida",7282,"T","EN","A4c; C1","EN","MWST,WHTB","GERALDTON,CENTRAL WHEATBELT","Between Mullewa and Lake Hope, Ballidu","Sep-Oct","IRP","No","No","Yes",null,null,"No","Yes-fire",null,"No","No","Short-lived","likely ","No","Likely Yes","Yes","Yes",{"$f":"BA143","v":"Group A.2(ii)"},{"$f":"IF(AB143=\"Group A.1\",'Suggested management Options'!$C$4, IF(AB143=\"Group A.2(i)\", 'Suggested management Options'!$C$5, IF(AB143=\"Group A.2(ii)\", 'Suggested management Options'!$C$6, IF(AB143=\"Group B\",'Suggested management Options'!$C$7,IF(AB143=\"Group C\",'Suggested management Options'!$C$8,IF(AB143=\"Group D\",'Suggested management Options'!$C$9,IF(AB143=\"Group E\",'Suggested management Options'!$C$10,IF(AB143=\"Group F\",'Suggested management Options'!$C$11,IF(AB143=\"Group G\",'Suggested management Options'!$C$12,IF(AB143=\"Group O\",'Suggested management Options'!$C$13,IF(AB143=\"Group X\",'Suggested management Options'!$C$14,\"\")))))))))))","v":"Species is relatively less secure compared to Group A.1 and A.2(i). Monitoring required. Management could include collecting seed material/germplasm?."},"DON'T TRANSLOCATE",null,0,1,0,0,0,0,1,1,1,null,false,false,true,false,false,false,false,false,false,false,false,"Group A.2(ii)",null,0,1,0,1,1,1,1,1]
["Eucalyptus absita",13093,"T","CR","B1ab(iii)+B2ab(iii)","EN","MWST","MOORA","Badgingarra","Apr-Jul","IRP","No",null,null,null,null,"Yes",null,null,null,null,null,null,null,null,null,null,"",{"$f":"IF(AB144=\"Group A.1\",'Suggested management Options'!$C$4, IF(AB144=\"Group A.2(i)\", 'Suggested management Options'!$C$5, IF(AB144=\"Group A.2(ii)\", 'Suggested management Options'!$C$6, IF(AB144=\"Group B\",'Suggested management Options'!$C$7,IF(AB144=\"Group C\",'Suggested management Options'!$C$8,IF(AB144=\"Group D\",'Suggested management Options'!$C$9,IF(AB144=\"Group E\",'Suggested management Options'!$C$10,IF(AB144=\"Group F\",'Suggested management Options'!$C$11,IF(AB144=\"Group G\",'Suggested management Options'!$C$12,IF(AB144=\"Group O\",'Suggested management Options'!$C$13,IF(AB144=\"Group X\",'Suggested management Options'!$C$14,\"\")))))))))))","v":""},"",null,1,"","","","","","","","",null,false,false,false,false,false,false,false,false,false,false,false,"",null,1,0,0,0,0,0,0,0]
["Eucalyptus articulata",13542,"T","EN","D","VU","GOLD","KALGOORLIE","NW of Queen Victoria Spring","?",null,"No",null,null,null,null,"Yes",null,null,null,null,null,null,null,null,null,null,"",{"$f":"IF(AB145=\"Group A.1\",'Suggested management Options'!$C$4, IF(AB145=\"Group A.2(i)\", 'Suggested management Options'!$C$5, IF(AB145=\"Group A.2(ii)\", 'Suggested management Options'!$C$6, IF(AB145=\"Group B\",'Suggested management Options'!$C$7,IF(AB145=\"Group C\",'Suggested management Options'!$C$8,IF(AB145=\"Group D\",'Suggested management Options'!$C$9,IF(AB145=\"Group E\",'Suggested management Options'!$C$10,IF(AB145=\"Group F\",'Suggested management Options'!$C$11,IF(AB145=\"Group G\",'Suggested management Options'!$C$12,IF(AB145=\"Group O\",'Suggested management Options'!$C$13,IF(AB145=\"Group X\",'Suggested management Options'!$C$14,\"\")))))))))))","v":""},"",null,1,"","","","","","","","",null,false,false,false,false,false,false,false,false,false,false,false,"",null,1,0,0,0,0,0,0,0]
["Eucalyptus beardiana",5560,"T","EN","D","VU","MWST","GERALDTON,SHARK BAY","South of Shark Bay, Kalbarri NP","May,Aug-Sep",null,"No",null,null,null,null,"Yes",null,null,null,null,null,null,null,null,null,null,"",{"$f":"IF(AB146=\"Group A.1\",'Suggested management Options'!$C$4, IF(AB146=\"Group A.2(i)\", 'Suggested management Options'!$C$5, IF(AB146=\"Group A.2(ii)\", 'Suggested management Options'!$C$6, IF(AB146=\"Group B\",'Suggested management Options'!$C$7,IF(AB146=\"Group C\",'Suggested management Options'!$C$8,IF(AB146=\"Group D\",'Suggested management Options'!$C$9,IF(AB146=\"Group E\",'Suggested management Options'!$C$10,IF(AB146=\"Group F\",'Suggested management Options'!$C$11,IF(AB146=\"Group G\",'Suggested management Options'!$C$12,IF(AB146=\"Group O\",'Suggested management Options'!$C$13,IF(AB146=\"Group X\",'Suggested management Options'!$C$14,\"\")))))))))))","v":""},"",null,1,"","","","","","","","",null,false,false,false,false,false,false,false,false,false,false,false,"",null,1,0,0,0,0,0,0,0]
["Eucalyptus brevipes",5567,"T","EN","D1","EN","WHTB","CENTRAL WHEATBELT","NE of Mukinbudin","Jul-Sep",null,"No","No","No",null,null,"Yes","Likely Yes","canopy stores seed and resprouter","No","No","Long-lived","likely ","No","Likely Yes","Yes",null,"Group O",{"$f":"IF(AB147=\"Group A.1\",'Suggested management Options'!$C$4, IF(AB147=\"Group A.2(i)\", 'Suggested management Options'!$C$5, IF(AB147=\"Group A.2(ii)\", 'Suggested management Options'!$C$6, IF(AB147=\"Group B\",'Suggested management Options'!$C$7,IF(AB147=\"Group C\",'Suggested management Options'!$C$8,IF(AB147=\"Group D\",'Suggested management Options'!$C$9,IF(AB147=\"Group E\",'Suggested management Options'!$C$10,IF(AB147=\"Group F\",'Suggested management Options'!$C$11,IF(AB147=\"Group G\",'Suggested management Options'!$C$12,IF(AB147=\"Group O\",'Suggested management Options'!$C$13,IF(AB147=\"Group X\",'Suggested management Options'!$C$14,\"\")))))))))))","v":"Introduce disturbance and then re-evaluate"},"INTRODUCE DISTURBANCE FIRST",null,1,1,0,0,1,0,1,1,"",null,false,false,false,false,false,false,false,false,false,true,false,{"$f":"IF(AP147,\"Group A.1\",\"\")&IF(AQ147,\"Group A.2(i)\",\"\")&IF(AR147,\"Group A.2(ii)\",\"\")&IF(AS147,\"Group B\",\"\")&IF(AT147,\"Group C\",\"\")&IF(AU147,\"Group D\",\"\")&IF(AV147,\"Group E\",\"\")&IF(AW147,\"Group F\",\"\")&IF(AX147,\"Group G\",\"\")&IF(AY147,\"Group O\",\"\")&IF(AZ147,\"Group X\",\"\")","v":"Group O"},null,1,1,0,0,1,1,1,0]
["Eucalyptus coronata",5606,"T","EN","D","VU","SCST","ALBANY","Fitzgerald River NP","Jul-Aug",null,"No",null,null,null,null,"Yes",null,null,null,null,null,null,null,null,null,null,"",{"$f":"IF(AB148=\"Group A.1\",'Suggested management Options'!$C$4, IF(AB148=\"Group A.2(i)\", 'Suggested management Options'!$C$5, IF(AB148=\"Group A.2(ii)\", 'Suggested management Options'!$C$6, IF(AB148=\"Group B\",'Suggested management Options'!$C$7,IF(AB148=\"Group C\",'Suggested management Options'!$C$8,IF(AB148=\"Group D\",'Suggested management Options'!$C$9,IF(AB148=\"Group E\",'Suggested management Options'!$C$10,IF(AB148=\"Group F\",'Suggested management Options'!$C$11,IF(AB148=\"Group G\",'Suggested management Options'!$C$12,IF(AB148=\"Group O\",'Suggested management Options'!$C$13,IF(AB148=\"Group X\",'Suggested management Options'!$C$14,\"\")))))))))))","v":""},"",null,1,"","","","","","","","",null,false,false,false,false,false,false,false,false,false,false,false,"",null,1,0,0,0,0,0,0,0]
["Eucalyptus crispata",12885,"T","EN","D","VU","MWST","MOORA","Three Springs-Jurien","Apr-Jun",null,"No",null,null,null,null,"Yes",null,null,null,null,null,null,null,null,null,null,"",{"$f":"IF(AB149=\"Group A.1\",'Suggested management Options'!$C$4, IF(AB149=\"Group A.2(i)\", 'Suggested management Options'!$C$5, IF(AB149=\"Group A.2(ii)\", 'Suggested management Options'!$C$6, IF(AB149=\"Group B\",'Suggested management Options'!$C$7,IF(AB149=\"Group C\",'Suggested management Options'!$C$8,IF(AB149=\"Group D\",'Suggested management Options'!$C$9,IF(AB149=\"Group E\",'Suggested management Options'!$C$10,IF(AB149=\"Group F\",'Suggested management Options'!$C$11,IF(AB149=\"Group G\",'Suggested management Options'!$C$12,IF(AB149=\"Group O\",'Suggested management Options'!$C$13,IF(AB149=\"Group X\",'Suggested management Options'!$C$14,\"\")))))))))))","v":""},"",null,1,"","","","","","","","",null,false,false,false,false,false,false,false,false,false,false,false,"",null,1,0,0,0,0,0,0,0]
["Eucalyptus crucis subsp. crucis",11294,"T","EN","C2a","VU","GOLD,WHTB","KALGOORLIE,CENTRAL WHEATBELT","Westonia, Southern Cross, Burracoppin, Ora Banda","Dec-Mar",null,"No","No","No",null,null,"Yes","Likely Yes","canopy stored seed and resprouter but suitable habitat are granite outcrops","No","No","Long-lived","likely ","No","Likely Yes","No",null,"Group O",{"$f":"IF(AB150=\"Group A.1\",'Suggested management Options'!$C$4, IF(AB150=\"Group A.2(i)\", 'Suggested management Options'!$C$5, IF(AB150=\"Group A.2(ii)\", 'Suggested management Options'!$C$6, IF(AB150=\"Group B\",'Suggested management Options'!$C$7,IF(AB150=\"Group C\",'Suggested management Options'!$C$8,IF(AB150=\"Group D\",'Suggested management Options'!$C$9,IF(AB150=\"Group E\",'Suggested management Options'!$C$10,IF(AB150=\"Group F\",'Suggested management Options'!$C$11,IF(AB150=\"Group G\",'Suggested management Options'!$C$12,IF(AB150=\"Group O\",'Suggested management Options'!$C$13,IF(AB150=\"Group X\",'Suggested management Options'!$C$14,\"\")))))))))))","v":"Introduce disturbance and then re-evaluate"},"INTRODUCE DISTURBANCE FIRST",null,1,1,0,0,1,0,1,0,"",null,false,false,false,false,false,false,false,false,false,true,false,"Group O",null,1,1,0,0,1,1,1,0]
["Eucalyptus crucis subsp. praecipua",13526,"T","EN","D","EN","MWST","GERALDTON","S of Paynes Find","Dec-Mar","IRP","No",null,null,null,null,"Yes",null,null,null,null,null,null,null,null,null,null,"",{"$f":"IF(AB151=\"Group A.1\",'Suggested management Options'!$C$4, IF(AB151=\"Group A.2(i)\", 'Suggested management Options'!$C$5, IF(AB151=\"Group A.2(ii)\", 'Suggested management Options'!$C$6, IF(AB151=\"Group B\",'Suggested management Options'!$C$7,IF(AB151=\"Group C\",'Suggested management Options'!$C$8,IF(AB151=\"Group D\",'Suggested management Options'!$C$9,IF(AB151=\"Group E\",'Suggested management Options'!$C$10,IF(AB151=\"Group F\",'Suggested management Options'!$C$11,IF(AB151=\"Group G\",'Suggested management Options'!$C$12,IF(AB151=\"Group O\",'Suggested management Options'!$C$13,IF(AB151=\"Group X\",'Suggested management Options'!$C$14,\"\")))))))))))","v":""},"",null,1,"","","","","","","","",null,false,false,false,false,false,false,false,false,false,false,false,"",null,1,0,0,0,0,0,0,0]
["Eucalyptus cuprea",13510,"T","EN","B1ab(iii)+B2ab(iii)","EN","MWST","GERALDTON","Murchison River","Aug-Nov","IRP","Morseby CP, 2015",null,null,null,null,"Yes",null,null,null,null,null,null,null,null,null,null,"",{"$f":"IF(AB152=\"Group A.1\",'Suggested management Options'!$C$4, IF(AB152=\"Group A.2(i)\", 'Suggested management Options'!$C$5, IF(AB152=\"Group A.2(ii)\", 'Suggested management Options'!$C$6, IF(AB152=\"Group B\",'Suggested management Options'!$C$7,IF(AB152=\"Group C\",'Suggested management Options'!$C$8,IF(AB152=\"Group D\",'Suggested management Options'!$C$9,IF(AB152=\"Group E\",'Suggested management Options'!$C$10,IF(AB152=\"Group F\",'Suggested management Options'!$C$11,IF(AB152=\"Group G\",'Suggested management Options'!$C$12,IF(AB152=\"Group O\",'Suggested management Options'!$C$13,IF(AB152=\"Group X\",'Suggested management Options'!$C$14,\"\")))))))))))","v":""},"",null,1,"","","","","","","","",null,false,false,false,false,false,false,false,false,false,false,false,"",null,1,0,0,0,0,0,0,0]
["Eucalyptus dolorosa",13546,"T","CR","D","EN","MWST","MOORA","W of Dandaragan","Mar","IRP","No",null,null,null,null,"Yes",null,null,null,null,null,null,null,null,null,null,"",{"$f":"IF(AB153=\"Group A.1\",'Suggested management Options'!$C$4, IF(AB153=\"Group A.2(i)\", 'Suggested management Options'!$C$5, IF(AB153=\"Group A.2(ii)\", 'Suggested management Options'!$C$6, IF(AB153=\"Group B\",'Suggested management Options'!$C$7,IF(AB153=\"Group C\",'Suggested management Options'!$C$8,IF(AB153=\"Group D\",'Suggested management Options'!$C$9,IF(AB153=\"Group E\",'Suggested management Options'!$C$10,IF(AB153=\"Group F\",'Suggested management Options'!$C$11,IF(AB153=\"Group G\",'Suggested management Options'!$C$12,IF(AB153=\"Group O\",'Suggested management Options'!$C$13,IF(AB153=\"Group X\",'Suggested management Options'!$C$14,\"\")))))))))))","v":""},"",null,1,"","","","","","","","",null,false,false,false,false,false,false,false,false,false,false,false,"",null,1,0,0,0,0,0,0,0]
["Eucalyptus impensa",13532,"T","CR","D","EN","MWST","MOORA","S of Eneabba","?","IRP","No",null,null,null,null,"Yes",null,null,null,null,null,null,null,null,null,null,"",{"$f":"IF(AB154=\"Group A.1\",'Suggested management Options'!$C$4, IF(AB154=\"Group A.2(i)\", 'Suggested management Options'!$C$5, IF(AB154=\"Group A.2(ii)\", 'Suggested management Options'!$C$6, IF(AB154=\"Group B\",'Suggested management Options'!$C$7,IF(AB154=\"Group C\",'Suggested management Options'!$C$8,IF(AB154=\"Group D\",'Suggested management Options'!$C$9,IF(AB154=\"Group E\",'Suggested management Options'!$C$10,IF(AB154=\"Group F\",'Suggested management Options'!$C$11,IF(AB154=\"Group G\",'Suggested management Options'!$C$12,IF(AB154=\"Group O\",'Suggested management Options'!$C$13,IF(AB154=\"Group X\",'Suggested management Options'!$C$14,\"\")))))))))))","v":""},"",null,1,"","","","","","","","",null,false,false,false,false,false,false,false,false,false,false,false,"",null,1,0,0,0,0,0,0,0]
["Eucalyptus insularis subsp. continentalis",44538,"T","EN","D",null,"SCST","ESPERANCE","E of Esperance","May",null,"No",null,null,null,null,"Yes",null,null,null,null,null,null,null,null,null,null,"",{"$f":"IF(AB155=\"Group A.1\",'Suggested management Options'!$C$4, IF(AB155=\"Group A.2(i)\", 'Suggested management Options'!$C$5, IF(AB155=\"Group A.2(ii)\", 'Suggested management Options'!$C$6, IF(AB155=\"Group B\",'Suggested management Options'!$C$7,IF(AB155=\"Group C\",'Suggested management Options'!$C$8,IF(AB155=\"Group D\",'Suggested management Options'!$C$9,IF(AB155=\"Group E\",'Suggested management Options'!$C$10,IF(AB155=\"Group F\",'Suggested management Options'!$C$11,IF(AB155=\"Group G\",'Suggested management Options'!$C$12,IF(AB155=\"Group O\",'Suggested management Options'!$C$13,IF(AB155=\"Group X\",'Suggested management Options'!$C$14,\"\")))))))))))","v":""},"",null,1,"","","","","","","","",null,false,false,false,false,false,false,false,false,false,false,false,"",null,1,0,0,0,0,0,0,0]
["Eucalyptus lateritica",5691,"T","EN","D","VU","MWST","MOORA","Jurien","Apr-Sep",null,"No",null,null,null,null,"Yes",null,null,null,null,null,null,null,null,null,null,"",{"$f":"IF(AB156=\"Group A.1\",'Suggested management Options'!$C$4, IF(AB156=\"Group A.2(i)\", 'Suggested management Options'!$C$5, IF(AB156=\"Group A.2(ii)\", 'Suggested management Options'!$C$6, IF(AB156=\"Group B\",'Suggested management Options'!$C$7,IF(AB156=\"Group C\",'Suggested management Options'!$C$8,IF(AB156=\"Group D\",'Suggested management Options'!$C$9,IF(AB156=\"Group E\",'Suggested management Options'!$C$10,IF(AB156=\"Group F\",'Suggested management Options'!$C$11,IF(AB156=\"Group G\",'Suggested management Options'!$C$12,IF(AB156=\"Group O\",'Suggested management Options'!$C$13,IF(AB156=\"Group X\",'Suggested management Options'!$C$14,\"\")))))))))))","v":""},"",null,1,"","","","","","","","",null,false,false,false,false,false,false,false,false,false,false,false,"",null,1,0,0,0,0,0,0,0]
["Eucalyptus leprophloia",13543,"T","EN","D","EN","MWST","MOORA","Jurien","Aug-Dec","IRP","No",null,null,null,null,"Yes",null,null,null,null,null,null,null,null,null,null,"",{"$f":"IF(AB157=\"Group A.1\",'Suggested management Options'!$C$4, IF(AB157=\"Group A.2(i)\", 'Suggested management Options'!$C$5, IF(AB157=\"Group A.2(ii)\", 'Suggested management Options'!$C$6, IF(AB157=\"Group B\",'Suggested management Options'!$C$7,IF(AB157=\"Group C\",'Suggested management Options'!$C$8,IF(AB157=\"Group D\",'Suggested management Options'!$C$9,IF(AB157=\"Group E\",'Suggested management Options'!$C$10,IF(AB157=\"Group F\",'Suggested management Options'!$C$11,IF(AB157=\"Group G\",'Suggested management Options'!$C$12,IF(AB157=\"Group O\",'Suggested management Options'!$C$13,IF(AB157=\"Group X\",'Suggested management Options'!$C$14,\"\")))))))))))","v":""},"",null,1,"","","","","","","","",null,false,false,false,false,false,false,false,false,false,false,false,"",null,1,0,0,0,0,0,0,0]
["Eucalyptus pruiniramis",13040,"T","EN","D","EN","MWST","MOORA","Mogumber-Three Springs","Jan",null,"No",null,null,null,null,"Yes",null,null,null,null,null,null,null,null,null,null,"",{"$f":"IF(AB158=\"Group A.1\",'Suggested management Options'!$C$4, IF(AB158=\"Group A.2(i)\", 'Suggested management Options'!$C$5, IF(AB158=\"Group A.2(ii)\", 'Suggested management Options'!$C$6, IF(AB158=\"Group B\",'Suggested management Options'!$C$7,IF(AB158=\"Group C\",'Suggested management Options'!$C$8,IF(AB158=\"Group D\",'Suggested management Options'!$C$9,IF(AB158=\"Group E\",'Suggested management Options'!$C$10,IF(AB158=\"Group F\",'Suggested management Options'!$C$11,IF(AB158=\"Group G\",'Suggested management Options'!$C$12,IF(AB158=\"Group O\",'Suggested management Options'!$C$13,IF(AB158=\"Group X\",'Suggested management Options'!$C$14,\"\")))))))))))","v":""},"",null,1,"","","","","","","","",null,false,false,false,false,false,false,false,false,false,false,false,"",null,1,0,0,0,0,0,0,0]
["Eucalyptus x balanites",13090,"T","CR","D","EN","MWST,SWAN","MOORA,SWAN COASTAL","Badgingarra, Armadale","Oct-Jan","IRP","No",null,null,null,null,"Yes",null,null,null,null,null,null,null,null,null,null,"",{"$f":"IF(AB159=\"Group A.1\",'Suggested management Options'!$C$4, IF(AB159=\"Group A.2(i)\", 'Suggested management Options'!$C$5, IF(AB159=\"Group A.2(ii)\", 'Suggested management Options'!$C$6, IF(AB159=\"Group B\",'Suggested management Options'!$C$7,IF(AB159=\"Group C\",'Suggested management Options'!$C$8,IF(AB159=\"Group D\",'Suggested management Options'!$C$9,IF(AB159=\"Group E\",'Suggested management Options'!$C$10,IF(AB159=\"Group F\",'Suggested management Options'!$C$11,IF(AB159=\"Group G\",'Suggested management Options'!$C$12,IF(AB159=\"Group O\",'Suggested management Options'!$C$13,IF(AB159=\"Group X\",'Suggested management Options'!$C$14,\"\")))))))))))","v":""},"",null,1,"","","","","","","","",null,false,false,false,false,false,false,false,false,false,false,false,"",null,1,0,0,0,0,0,0,0]
["Eucalyptus x phylacis",13024,"T","CR","D","EN","SWST","BLACKWOOD","W of Busselton","Feb-Mar","IRP","No",null,null,null,null,"Yes",null,null,null,null,null,null,null,null,null,null,"",{"$f":"IF(AB160=\"Group A.1\",'Suggested management Options'!$C$4, IF(AB160=\"Group A.2(i)\", 'Suggested management Options'!$C$5, IF(AB160=\"Group A.2(ii)\", 'Suggested management Options'!$C$6, IF(AB160=\"Group B\",'Suggested management Options'!$C$7,IF(AB160=\"Group C\",'Suggested management Options'!$C$8,IF(AB160=\"Group D\",'Suggested management Options'!$C$9,IF(AB160=\"Group E\",'Suggested management Options'!$C$10,IF(AB160=\"Group F\",'Suggested management Options'!$C$11,IF(AB160=\"Group G\",'Suggested management Options'!$C$12,IF(AB160=\"Group O\",'Suggested management Options'!$C$13,IF(AB160=\"Group X\",'Suggested management Options'!$C$14,\"\")))))))))))","v":""},"",null,1,"","","","","","","","",null,false,false,false,false,false,false,false,false,false,false,false,"",null,1,0,0,0,0,0,0,0]
["Frankenia parvula",5208,"T","EN","B1ab(iii)+2ab(iii)","EN","WHTB","CENTRAL WHEATBELT","Mortlock River","-","IRP","No","No","No",null,null,"Yes","No",null,null,"Yes","Long-lived","assumption","Yes","Likely Yes","Yes",null,"Group B",{"$f":"IF(AB161=\"Group A.1\",'Suggested management Options'!$C$4, IF(AB161=\"Group A.2(i)\", 'Suggested management Options'!$C$5, IF(AB161=\"Group A.2(ii)\", 'Suggested management Options'!$C$6, IF(AB161=\"Group B\",'Suggested management Options'!$C$7,IF(AB161=\"Group C\",'Suggested management Options'!$C$8,IF(AB161=\"Group D\",'Suggested management Options'!$C$9,IF(AB161=\"Group E\",'Suggested management Options'!$C$10,IF(AB161=\"Group F\",'Suggested management Options'!$C$11,IF(AB161=\"Group G\",'Suggested management Options'!$C$12,IF(AB161=\"Group O\",'Suggested management Options'!$C$13,IF(AB161=\"Group X\",'Suggested management Options'!$C$14,\"\")))))))))))","v":"Maintain effective population sizes of >250 reproductively mature individuals. Augment populations of <250 individuals if cost effective."},"MAYBE TRANSLOCATE IF COST-EFFECTIVE",null,1,0,"",1,1,1,1,1,"",null,false,false,false,true,false,false,false,false,false,false,false,"Group B",null,1,0,1,1,0,0,1,0]
["Gastrolobium appressum",3888,"T","EN","C2a","VU","MWST","MOORA","Watheroo-Marchagee","Sep-Nov","IRP","No",null,null,null,null,"Yes",null,null,null,null,null,null,null,null,null,null,"",{"$f":"IF(AB162=\"Group A.1\",'Suggested management Options'!$C$4, IF(AB162=\"Group A.2(i)\", 'Suggested management Options'!$C$5, IF(AB162=\"Group A.2(ii)\", 'Suggested management Options'!$C$6, IF(AB162=\"Group B\",'Suggested management Options'!$C$7,IF(AB162=\"Group C\",'Suggested management Options'!$C$8,IF(AB162=\"Group D\",'Suggested management Options'!$C$9,IF(AB162=\"Group E\",'Suggested management Options'!$C$10,IF(AB162=\"Group F\",'Suggested management Options'!$C$11,IF(AB162=\"Group G\",'Suggested management Options'!$C$12,IF(AB162=\"Group O\",'Suggested management Options'!$C$13,IF(AB162=\"Group X\",'Suggested management Options'!$C$14,\"\")))))))))))","v":""},"",null,1,"","","","","","","","",null,false,false,false,false,false,false,false,false,false,false,false,"",null,1,0,0,0,0,0,0,0]
["Gastrolobium argyrotrichum",44440,"T","CR","B1ab(iii,iv)+2ab(iii,iv); C2a(i)","CR","SWST","BLACKWOOD","Quindalup","Dec",null,"No",null,null,null,null,"Yes",null,null,null,null,null,null,null,null,null,null,"",{"$f":"IF(AB163=\"Group A.1\",'Suggested management Options'!$C$4, IF(AB163=\"Group A.2(i)\", 'Suggested management Options'!$C$5, IF(AB163=\"Group A.2(ii)\", 'Suggested management Options'!$C$6, IF(AB163=\"Group B\",'Suggested management Options'!$C$7,IF(AB163=\"Group C\",'Suggested management Options'!$C$8,IF(AB163=\"Group D\",'Suggested management Options'!$C$9,IF(AB163=\"Group E\",'Suggested management Options'!$C$10,IF(AB163=\"Group F\",'Suggested management Options'!$C$11,IF(AB163=\"Group G\",'Suggested management Options'!$C$12,IF(AB163=\"Group O\",'Suggested management Options'!$C$13,IF(AB163=\"Group X\",'Suggested management Options'!$C$14,\"\")))))))))))","v":""},"",null,1,"","","","","","","","",null,false,false,false,false,false,false,false,false,false,false,false,"",null,1,0,0,0,0,0,0,0]
["Gastrolobium diabolophyllum",19113,"T","CR","B1ab(iv); C2a(ii)","CR","WHTB","CENTRAL WHEATBELT","Dulyalbin",null,"IRP","No","No","No",null,null,"Yes","Likely Yes",null,"Yes","Yes","Long-lived","assumption","Yes","Likely Yes","Yes","Yes","Group B",{"$f":"IF(AB164=\"Group A.1\",'Suggested management Options'!$C$4, IF(AB164=\"Group A.2(i)\", 'Suggested management Options'!$C$5, IF(AB164=\"Group A.2(ii)\", 'Suggested management Options'!$C$6, IF(AB164=\"Group B\",'Suggested management Options'!$C$7,IF(AB164=\"Group C\",'Suggested management Options'!$C$8,IF(AB164=\"Group D\",'Suggested management Options'!$C$9,IF(AB164=\"Group E\",'Suggested management Options'!$C$10,IF(AB164=\"Group F\",'Suggested management Options'!$C$11,IF(AB164=\"Group G\",'Suggested management Options'!$C$12,IF(AB164=\"Group O\",'Suggested management Options'!$C$13,IF(AB164=\"Group X\",'Suggested management Options'!$C$14,\"\")))))))))))","v":"Maintain effective population sizes of >250 reproductively mature individuals. Augment populations of <250 individuals if cost effective."},"MAYBE TRANSLOCATE IF COST-EFFECTIVE",null,1,1,1,1,1,1,1,1,1,null,false,false,false,true,false,false,false,false,false,false,false,"Group B",null,1,1,1,1,0,0,1,0]
["Gastrolobium glaucum",3902,"T","CR","C1","EN","WHTB","CENTRAL WHEATBELT","Wongan Hills","Aug-sep","IRP","No","No","No",null,"clonal","No","Yes-fire","clonal ","No","Yes","Long-lived","assumption","Yes","Unknown","Yes","Yes","Group A.2(i)",{"$f":"IF(AB165=\"Group A.1\",'Suggested management Options'!$C$4, IF(AB165=\"Group A.2(i)\", 'Suggested management Options'!$C$5, IF(AB165=\"Group A.2(ii)\", 'Suggested management Options'!$C$6, IF(AB165=\"Group B\",'Suggested management Options'!$C$7,IF(AB165=\"Group C\",'Suggested management Options'!$C$8,IF(AB165=\"Group D\",'Suggested management Options'!$C$9,IF(AB165=\"Group E\",'Suggested management Options'!$C$10,IF(AB165=\"Group F\",'Suggested management Options'!$C$11,IF(AB165=\"Group G\",'Suggested management Options'!$C$12,IF(AB165=\"Group O\",'Suggested management Options'!$C$13,IF(AB165=\"Group X\",'Suggested management Options'!$C$14,\"\")))))))))))","v":"Species is relatively less secure compared to Group A.1. Monitoring required. Management could include….. ?"},"DON'T TRANSLOCATE",null,0,1,0,1,1,1,-1,1,1,null,false,true,false,false,false,false,false,false,false,false,false,"Group A.2(i)",null,0,1,0,1,0,0,0,1]
["Gastrolobium hamulosum",3904,"T","CR","B2ab(iii), C1","EN","MWST,WHTB","MOORA,CENTRAL WHEATBELT","Wongan Hills, Calingiri",null,"IRP","No","No","No",null,null,"Yes","Likely Yes",null,"Yes","Yes","Long-lived","assumption","Yes","Likely Yes","Yes",null,"Group B",{"$f":"IF(AB166=\"Group A.1\",'Suggested management Options'!$C$4, IF(AB166=\"Group A.2(i)\", 'Suggested management Options'!$C$5, IF(AB166=\"Group A.2(ii)\", 'Suggested management Options'!$C$6, IF(AB166=\"Group B\",'Suggested management Options'!$C$7,IF(AB166=\"Group C\",'Suggested management Options'!$C$8,IF(AB166=\"Group D\",'Suggested management Options'!$C$9,IF(AB166=\"Group E\",'Suggested management Options'!$C$10,IF(AB166=\"Group F\",'Suggested management Options'!$C$11,IF(AB166=\"Group G\",'Suggested management Options'!$C$12,IF(AB166=\"Group O\",'Suggested management Options'!$C$13,IF(AB166=\"Group X\",'Suggested management Options'!$C$14,\"\")))))))))))","v":"Maintain effective population sizes of >250 reproductively mature individuals. Augment populations of <250 individuals if cost effective."},"MAYBE TRANSLOCATE IF COST-EFFECTIVE",null,1,1,1,1,1,1,1,1,"",null,false,false,false,true,false,false,false,false,false,false,false,"Group B",null,1,1,1,1,0,0,1,0]
["Gastrolobium humile",19351,"T","EN","B1ab(iii,iv)+B2ab(iii,iv)","EN","SCST","ALBANY","South Stirling, Pallinup River",null,null,"No",null,null,null,null,"Yes",null,null,null,null,null,null,null,null,null,null,"",{"$f":"IF(AB167=\"Group A.1\",'Suggested management Options'!$C$4, IF(AB167=\"Group A.2(i)\", 'Suggested management Options'!$C$5, IF(AB167=\"Group A.2(ii)\", 'Suggested management Options'!$C$6, IF(AB167=\"Group B\",'Suggested management Options'!$C$7,IF(AB167=\"Group C\",'Suggested management Options'!$C$8,IF(AB167=\"Group D\",'Suggested management Options'!$C$9,IF(AB167=\"Group E\",'Suggested management Options'!$C$10,IF(AB167=\"Group F\",'Suggested management Options'!$C$11,IF(AB167=\"Group G\",'Suggested management Options'!$C$12,IF(AB167=\"Group O\",'Suggested management Options'!$C$13,IF(AB167=\"Group X\",'Suggested management Options'!$C$14,\"\")))))))))))","v":""},"",null,1,"","","","","","","","",null,false,false,false,false,false,false,false,false,false,false,false,"",null,1,0,0,0,0,0,0,0]
["Gastrolobium luteifolium",20493,"T","CR","B1ab(iii,v)+B2ab(iii,v)","CR","SCST","ALBANY","Stirling Range, Mt Trio","Sep","IRP","Syred Rd, Kamballup, 2009",null,null,null,null,"Yes",null,null,null,null,null,null,null,null,null,null,"",{"$f":"IF(AB168=\"Group A.1\",'Suggested management Options'!$C$4, IF(AB168=\"Group A.2(i)\", 'Suggested management Options'!$C$5, IF(AB168=\"Group A.2(ii)\", 'Suggested management Options'!$C$6, IF(AB168=\"Group B\",'Suggested management Options'!$C$7,IF(AB168=\"Group C\",'Suggested management Options'!$C$8,IF(AB168=\"Group D\",'Suggested management Options'!$C$9,IF(AB168=\"Group E\",'Suggested management Options'!$C$10,IF(AB168=\"Group F\",'Suggested management Options'!$C$11,IF(AB168=\"Group G\",'Suggested management Options'!$C$12,IF(AB168=\"Group O\",'Suggested management Options'!$C$13,IF(AB168=\"Group X\",'Suggested management Options'!$C$14,\"\")))))))))))","v":""},"",null,1,"","","","","","","","",null,false,false,false,false,false,false,false,false,false,false,false,"",null,1,0,0,0,0,0,0,0]
["Gastrolobium papilio",20509,"T","CR","B1ab(iii)+2ab(iii); C1+2a(ii)","EN","SWST","BLACKWOOD","Williamson (below Whicher Range), Busselton, Abba Block","Sep-Oct","IRP","Oates Road, Busselton, 2001; Negus' Block, Busselton, 2002",null,null,null,null,"Yes",null,null,null,null,null,null,null,null,null,null,"",{"$f":"IF(AB169=\"Group A.1\",'Suggested management Options'!$C$4, IF(AB169=\"Group A.2(i)\", 'Suggested management Options'!$C$5, IF(AB169=\"Group A.2(ii)\", 'Suggested management Options'!$C$6, IF(AB169=\"Group B\",'Suggested management Options'!$C$7,IF(AB169=\"Group C\",'Suggested management Options'!$C$8,IF(AB169=\"Group D\",'Suggested management Options'!$C$9,IF(AB169=\"Group E\",'Suggested management Options'!$C$10,IF(AB169=\"Group F\",'Suggested management Options'!$C$11,IF(AB169=\"Group G\",'Suggested management Options'!$C$12,IF(AB169=\"Group O\",'Suggested management Options'!$C$13,IF(AB169=\"Group X\",'Suggested management Options'!$C$14,\"\")))))))))))","v":""},"",null,1,"","","","","","","","",null,false,false,false,false,false,false,false,false,false,false,false,"",null,1,0,0,0,0,0,0,0]
["Gastrolobium vestitum",20492,"T","CR","B1ab(iii,v)+2ab(iii,v)","CR","SCST","ALBANY","Stirling Range","Sep,Oct",null,"No",null,null,null,null,"Yes",null,null,null,null,null,null,null,null,null,null,"",{"$f":"IF(AB170=\"Group A.1\",'Suggested management Options'!$C$4, IF(AB170=\"Group A.2(i)\", 'Suggested management Options'!$C$5, IF(AB170=\"Group A.2(ii)\", 'Suggested management Options'!$C$6, IF(AB170=\"Group B\",'Suggested management Options'!$C$7,IF(AB170=\"Group C\",'Suggested management Options'!$C$8,IF(AB170=\"Group D\",'Suggested management Options'!$C$9,IF(AB170=\"Group E\",'Suggested management Options'!$C$10,IF(AB170=\"Group F\",'Suggested management Options'!$C$11,IF(AB170=\"Group G\",'Suggested management Options'!$C$12,IF(AB170=\"Group O\",'Suggested management Options'!$C$13,IF(AB170=\"Group X\",'Suggested management Options'!$C$14,\"\")))))))))))","v":""},"",null,1,"","","","","","","","",null,false,false,false,false,false,false,false,false,false,false,false,"",null,1,0,0,0,0,0,0,0]
["Glyceria drummondii",436,"T","EN","B1+2c","EN","MWST","GERALDTON","Mingenew","-",null,"No",null,null,null,null,"No",null,null,null,null,null,null,null,null,null,null,"",{"$f":"IF(AB171=\"Group A.1\",'Suggested management Options'!$C$4, IF(AB171=\"Group A.2(i)\", 'Suggested management Options'!$C$5, IF(AB171=\"Group A.2(ii)\", 'Suggested management Options'!$C$6, IF(AB171=\"Group B\",'Suggested management Options'!$C$7,IF(AB171=\"Group C\",'Suggested management Options'!$C$8,IF(AB171=\"Group D\",'Suggested management Options'!$C$9,IF(AB171=\"Group E\",'Suggested management Options'!$C$10,IF(AB171=\"Group F\",'Suggested management Options'!$C$11,IF(AB171=\"Group G\",'Suggested management Options'!$C$12,IF(AB171=\"Group O\",'Suggested management Options'!$C$13,IF(AB171=\"Group X\",'Suggested management Options'!$C$14,\"\")))))))))))","v":""},"",null,0,"","","","","","","","",null,false,false,false,false,false,false,false,false,false,false,false,"",null,0,0,0,0,0,0,0,0]
["Goodenia arthrotricha",7491,"T","EN","B2ab(iii,v)","EN","MWST,SWAN","MOORA,PERTH HILLS,SWAN COASTAL","Wannamal, Moora, Ellis Brook, Bindoon","Nov,Dec",null,"No",null,null,null,null,"Yes",null,null,null,null,null,null,null,null,null,null,"",{"$f":"IF(AB172=\"Group A.1\",'Suggested management Options'!$C$4, IF(AB172=\"Group A.2(i)\", 'Suggested management Options'!$C$5, IF(AB172=\"Group A.2(ii)\", 'Suggested management Options'!$C$6, IF(AB172=\"Group B\",'Suggested management Options'!$C$7,IF(AB172=\"Group C\",'Suggested management Options'!$C$8,IF(AB172=\"Group D\",'Suggested management Options'!$C$9,IF(AB172=\"Group E\",'Suggested management Options'!$C$10,IF(AB172=\"Group F\",'Suggested management Options'!$C$11,IF(AB172=\"Group G\",'Suggested management Options'!$C$12,IF(AB172=\"Group O\",'Suggested management Options'!$C$13,IF(AB172=\"Group X\",'Suggested management Options'!$C$14,\"\")))))))))))","v":""},"",null,1,"","","","","","","","",null,false,false,false,false,false,false,false,false,false,false,false,"",null,1,0,0,0,0,0,0,0]
["Goodenia integerrima",12526,"T","EN","D","VU","WHTB","GREAT SOUTHERN","Lake King","Nov","IRP","No","No","No",null,null,"Yes","No","Occurs on low lying dune systems amongst salt lake, ?ephemeral, transient, floods etc ",null,"Yes","Short-lived","assumption","Yes","Likely Yes","Yes","No","Group C",{"$f":"IF(AB173=\"Group A.1\",'Suggested management Options'!$C$4, IF(AB173=\"Group A.2(i)\", 'Suggested management Options'!$C$5, IF(AB173=\"Group A.2(ii)\", 'Suggested management Options'!$C$6, IF(AB173=\"Group B\",'Suggested management Options'!$C$7,IF(AB173=\"Group C\",'Suggested management Options'!$C$8,IF(AB173=\"Group D\",'Suggested management Options'!$C$9,IF(AB173=\"Group E\",'Suggested management Options'!$C$10,IF(AB173=\"Group F\",'Suggested management Options'!$C$11,IF(AB173=\"Group G\",'Suggested management Options'!$C$12,IF(AB173=\"Group O\",'Suggested management Options'!$C$13,IF(AB173=\"Group X\",'Suggested management Options'!$C$14,\"\")))))))))))","v":"Maintain effective population size of >250 reproductively mature individuals. Translocate (immediately?) if cost effective."},"MAYBE TRANSLOCATE IF COST-EFFECTIVE",null,1,0,"",1,0,1,1,1,0,null,false,false,false,false,true,false,false,false,false,false,false,"Group C",null,1,0,1,1,0,0,1,0]
["Grevillea acropogon",19444,"T","EN","B1ab(iii,v)+2ab(iii,v); C2a(ii)",null,"WARR","DONNELLY","Unicup","Aug","IRP","Chariup NR (Lake Unicup area), 2009",null,null,null,null,"Yes",null,null,null,null,null,null,null,null,null,null,"",{"$f":"IF(AB174=\"Group A.1\",'Suggested management Options'!$C$4, IF(AB174=\"Group A.2(i)\", 'Suggested management Options'!$C$5, IF(AB174=\"Group A.2(ii)\", 'Suggested management Options'!$C$6, IF(AB174=\"Group B\",'Suggested management Options'!$C$7,IF(AB174=\"Group C\",'Suggested management Options'!$C$8,IF(AB174=\"Group D\",'Suggested management Options'!$C$9,IF(AB174=\"Group E\",'Suggested management Options'!$C$10,IF(AB174=\"Group F\",'Suggested management Options'!$C$11,IF(AB174=\"Group G\",'Suggested management Options'!$C$12,IF(AB174=\"Group O\",'Suggested management Options'!$C$13,IF(AB174=\"Group X\",'Suggested management Options'!$C$14,\"\")))))))))))","v":""},"",null,1,"","","","","","","","",null,false,false,false,false,false,false,false,false,false,false,false,"",null,1,0,0,0,0,0,0,0]
["Grevillea althoferorum subsp. althoferorum",33558,"T","CR","B1ab(iii,v)+2ab(iii,v); C2a(ii)","EN","MWST","MOORA","Eneabba",null,"IRP","South Eneabba NR, 2005",null,null,null,null,"Yes",null,null,null,null,null,null,null,null,null,null,"",{"$f":"IF(AB175=\"Group A.1\",'Suggested management Options'!$C$4, IF(AB175=\"Group A.2(i)\", 'Suggested management Options'!$C$5, IF(AB175=\"Group A.2(ii)\", 'Suggested management Options'!$C$6, IF(AB175=\"Group B\",'Suggested management Options'!$C$7,IF(AB175=\"Group C\",'Suggested management Options'!$C$8,IF(AB175=\"Group D\",'Suggested management Options'!$C$9,IF(AB175=\"Group E\",'Suggested management Options'!$C$10,IF(AB175=\"Group F\",'Suggested management Options'!$C$11,IF(AB175=\"Group G\",'Suggested management Options'!$C$12,IF(AB175=\"Group O\",'Suggested management Options'!$C$13,IF(AB175=\"Group X\",'Suggested management Options'!$C$14,\"\")))))))))))","v":""},"",null,1,"","","","","","","","",null,false,false,false,false,false,false,false,false,false,false,false,"",null,1,0,0,0,0,0,0,0]
["Grevillea althoferorum subsp. fragilis",33559,"T","CR","B1ab(iii,v)+2ab(iii,v); C2a(iii,v)","EN","SWAN","PERTH HILLS","Bullsbrook",null,"IRP","No",null,null,null,null,"Yes",null,null,null,null,null,null,null,null,null,null,"",{"$f":"IF(AB176=\"Group A.1\",'Suggested management Options'!$C$4, IF(AB176=\"Group A.2(i)\", 'Suggested management Options'!$C$5, IF(AB176=\"Group A.2(ii)\", 'Suggested management Options'!$C$6, IF(AB176=\"Group B\",'Suggested management Options'!$C$7,IF(AB176=\"Group C\",'Suggested management Options'!$C$8,IF(AB176=\"Group D\",'Suggested management Options'!$C$9,IF(AB176=\"Group E\",'Suggested management Options'!$C$10,IF(AB176=\"Group F\",'Suggested management Options'!$C$11,IF(AB176=\"Group G\",'Suggested management Options'!$C$12,IF(AB176=\"Group O\",'Suggested management Options'!$C$13,IF(AB176=\"Group X\",'Suggested management Options'!$C$14,\"\")))))))))))","v":""},"",null,1,"","","","","","","","",null,false,false,false,false,false,false,false,false,false,false,false,"",null,1,0,0,0,0,0,0,0]
["Grevillea batrachioides",1960,"T","CR","C2a(ii)","EN","MWST","MOORA","Mt Lesueur","-","IRP","Lesueur NP, 2004",null,null,null,null,"Yes",null,null,null,null,null,null,null,null,null,null,"",{"$f":"IF(AB177=\"Group A.1\",'Suggested management Options'!$C$4, IF(AB177=\"Group A.2(i)\", 'Suggested management Options'!$C$5, IF(AB177=\"Group A.2(ii)\", 'Suggested management Options'!$C$6, IF(AB177=\"Group B\",'Suggested management Options'!$C$7,IF(AB177=\"Group C\",'Suggested management Options'!$C$8,IF(AB177=\"Group D\",'Suggested management Options'!$C$9,IF(AB177=\"Group E\",'Suggested management Options'!$C$10,IF(AB177=\"Group F\",'Suggested management Options'!$C$11,IF(AB177=\"Group G\",'Suggested management Options'!$C$12,IF(AB177=\"Group O\",'Suggested management Options'!$C$13,IF(AB177=\"Group X\",'Suggested management Options'!$C$14,\"\")))))))))))","v":""},"",null,1,"","","","","","","","",null,false,false,false,false,false,false,false,false,false,false,false,"",null,1,0,0,0,0,0,0,0]
["Grevillea brachystylis subsp. australis",14010,"T","EN","B1+2ce","VU","SWST","BLACKWOOD","Scott River","Dec,Jan",null,"Augusta, 2003",null,null,null,null,"No",null,null,null,null,null,null,null,null,null,null,"",{"$f":"IF(AB178=\"Group A.1\",'Suggested management Options'!$C$4, IF(AB178=\"Group A.2(i)\", 'Suggested management Options'!$C$5, IF(AB178=\"Group A.2(ii)\", 'Suggested management Options'!$C$6, IF(AB178=\"Group B\",'Suggested management Options'!$C$7,IF(AB178=\"Group C\",'Suggested management Options'!$C$8,IF(AB178=\"Group D\",'Suggested management Options'!$C$9,IF(AB178=\"Group E\",'Suggested management Options'!$C$10,IF(AB178=\"Group F\",'Suggested management Options'!$C$11,IF(AB178=\"Group G\",'Suggested management Options'!$C$12,IF(AB178=\"Group O\",'Suggested management Options'!$C$13,IF(AB178=\"Group X\",'Suggested management Options'!$C$14,\"\")))))))))))","v":""},"",null,0,"","","","","","","","",null,false,false,false,false,false,false,false,false,false,false,false,"",null,0,0,0,0,0,0,0,0]
["Grevillea brachystylis subsp. grandis",19414,"T","CR","A4c;  B1ab(iii)+B2ab(iii)","CR","SWST","BLACKWOOD","Busselton (Whicher Range), Jindong","Aug,Dec","IRP","Taylors NR, 2012",null,null,null,null,"Yes",null,null,null,null,null,null,null,null,null,null,"",{"$f":"IF(AB179=\"Group A.1\",'Suggested management Options'!$C$4, IF(AB179=\"Group A.2(i)\", 'Suggested management Options'!$C$5, IF(AB179=\"Group A.2(ii)\", 'Suggested management Options'!$C$6, IF(AB179=\"Group B\",'Suggested management Options'!$C$7,IF(AB179=\"Group C\",'Suggested management Options'!$C$8,IF(AB179=\"Group D\",'Suggested management Options'!$C$9,IF(AB179=\"Group E\",'Suggested management Options'!$C$10,IF(AB179=\"Group F\",'Suggested management Options'!$C$11,IF(AB179=\"Group G\",'Suggested management Options'!$C$12,IF(AB179=\"Group O\",'Suggested management Options'!$C$13,IF(AB179=\"Group X\",'Suggested management Options'!$C$14,\"\")))))))))))","v":""},"",null,1,"","","","","","","","",null,false,false,false,false,false,false,false,false,false,false,false,"",null,1,0,0,0,0,0,0,0]
["Grevillea bracteosa subsp. bracteosa",33580,"T","EN","B1ab(i,ii,iii,iv,v)+2ab(i,ii,iii,iv,v)",null,"MWST,SWAN,WHTB","MOORA,PERTH HILLS,CENTRAL WHEATBELT","Toodyay, Mogumber, Miling, Dalwalinu, Bindi Bindi, Piawanning","Aug-Oct",null,"No","No","No",null,null,"Yes","Likely Yes","assumption","Yes","Yes","Long-lived","assumption","Yes","Likely Yes","Yes",null,"Group B",{"$f":"IF(AB180=\"Group A.1\",'Suggested management Options'!$C$4, IF(AB180=\"Group A.2(i)\", 'Suggested management Options'!$C$5, IF(AB180=\"Group A.2(ii)\", 'Suggested management Options'!$C$6, IF(AB180=\"Group B\",'Suggested management Options'!$C$7,IF(AB180=\"Group C\",'Suggested management Options'!$C$8,IF(AB180=\"Group D\",'Suggested management Options'!$C$9,IF(AB180=\"Group E\",'Suggested management Options'!$C$10,IF(AB180=\"Group F\",'Suggested management Options'!$C$11,IF(AB180=\"Group G\",'Suggested management Options'!$C$12,IF(AB180=\"Group O\",'Suggested management Options'!$C$13,IF(AB180=\"Group X\",'Suggested management Options'!$C$14,\"\")))))))))))","v":"Maintain effective population sizes of >250 reproductively mature individuals. Augment populations of <250 individuals if cost effective."},"MAYBE TRANSLOCATE IF COST-EFFECTIVE",null,1,1,1,1,1,1,1,1,"",null,false,false,false,true,false,false,false,false,false,false,false,"Group B",null,1,1,1,1,0,0,1,0]
["Grevillea bracteosa subsp. howatharra",33579,"T","CR","B1ab(iii,v)+2ab(iii,v)","CR","MWST","MOORA,GERALDTON","Geraldton, Howatharra","Aug-Oct","IRP","No",null,null,null,null,"Yes",null,null,null,null,null,null,null,null,null,null,"",{"$f":"IF(AB181=\"Group A.1\",'Suggested management Options'!$C$4, IF(AB181=\"Group A.2(i)\", 'Suggested management Options'!$C$5, IF(AB181=\"Group A.2(ii)\", 'Suggested management Options'!$C$6, IF(AB181=\"Group B\",'Suggested management Options'!$C$7,IF(AB181=\"Group C\",'Suggested management Options'!$C$8,IF(AB181=\"Group D\",'Suggested management Options'!$C$9,IF(AB181=\"Group E\",'Suggested management Options'!$C$10,IF(AB181=\"Group F\",'Suggested management Options'!$C$11,IF(AB181=\"Group G\",'Suggested management Options'!$C$12,IF(AB181=\"Group O\",'Suggested management Options'!$C$13,IF(AB181=\"Group X\",'Suggested management Options'!$C$14,\"\")))))))))))","v":""},"",null,1,"","","","","","","","",null,false,false,false,false,false,false,false,false,false,false,false,"",null,1,0,0,0,0,0,0,0]
["Grevillea calliantha",12221,"T","CR","B1+2ce","EN","MWST","MOORA","Cataby-Dandaragan","Aug","IRP","Water Reserve 11712, 1998; Minyulo NR, 2010",null,null,null,null,"No",null,null,null,null,null,null,null,null,null,null,"",{"$f":"IF(AB182=\"Group A.1\",'Suggested management Options'!$C$4, IF(AB182=\"Group A.2(i)\", 'Suggested management Options'!$C$5, IF(AB182=\"Group A.2(ii)\", 'Suggested management Options'!$C$6, IF(AB182=\"Group B\",'Suggested management Options'!$C$7,IF(AB182=\"Group C\",'Suggested management Options'!$C$8,IF(AB182=\"Group D\",'Suggested management Options'!$C$9,IF(AB182=\"Group E\",'Suggested management Options'!$C$10,IF(AB182=\"Group F\",'Suggested management Options'!$C$11,IF(AB182=\"Group G\",'Suggested management Options'!$C$12,IF(AB182=\"Group O\",'Suggested management Options'!$C$13,IF(AB182=\"Group X\",'Suggested management Options'!$C$14,\"\")))))))))))","v":""},"",null,0,"","","","","","","","",null,false,false,false,false,false,false,false,false,false,false,false,"",null,0,0,0,0,0,0,0,0]
["Grevillea christineae",1976,"T","EN","B1+2c","EN","MWST,SWAN,WHTB","MOORA,PERTH HILLS,CENTRAL WHEATBELT","Mortlock River, Goomalling, Watheroo, Upper Swan","Sep",null,"Goomalling, 1999","Yes","No",null,null,"No","Likely Yes","assumption","No","No","Long-lived","assumption","No","Likely Yes","Yes","Yes","Group A.2(i)",{"$f":"IF(AB183=\"Group A.1\",'Suggested management Options'!$C$4, IF(AB183=\"Group A.2(i)\", 'Suggested management Options'!$C$5, IF(AB183=\"Group A.2(ii)\", 'Suggested management Options'!$C$6, IF(AB183=\"Group B\",'Suggested management Options'!$C$7,IF(AB183=\"Group C\",'Suggested management Options'!$C$8,IF(AB183=\"Group D\",'Suggested management Options'!$C$9,IF(AB183=\"Group E\",'Suggested management Options'!$C$10,IF(AB183=\"Group F\",'Suggested management Options'!$C$11,IF(AB183=\"Group G\",'Suggested management Options'!$C$12,IF(AB183=\"Group O\",'Suggested management Options'!$C$13,IF(AB183=\"Group X\",'Suggested management Options'!$C$14,\"\")))))))))))","v":"Species is relatively less secure compared to Group A.1. Monitoring required. Management could include….. ?"},"DON'T TRANSLOCATE",null,0,1,0,0,1,0,1,1,1,null,false,true,false,false,false,false,false,false,false,false,false,"Group A.2(i)",null,0,1,0,1,1,1,1,1]
["Grevillea curviloba subsp. curviloba",14408,"T","CR","B1ab(iii)+B2ab(iii)","EN","SWAN","PERTH HILLS,SWAN COASTAL","Bullsbrook, Muchea","Oct","IRP","No",null,null,null,null,"Yes",null,null,null,null,null,null,null,null,null,null,"",{"$f":"IF(AB184=\"Group A.1\",'Suggested management Options'!$C$4, IF(AB184=\"Group A.2(i)\", 'Suggested management Options'!$C$5, IF(AB184=\"Group A.2(ii)\", 'Suggested management Options'!$C$6, IF(AB184=\"Group B\",'Suggested management Options'!$C$7,IF(AB184=\"Group C\",'Suggested management Options'!$C$8,IF(AB184=\"Group D\",'Suggested management Options'!$C$9,IF(AB184=\"Group E\",'Suggested management Options'!$C$10,IF(AB184=\"Group F\",'Suggested management Options'!$C$11,IF(AB184=\"Group G\",'Suggested management Options'!$C$12,IF(AB184=\"Group O\",'Suggested management Options'!$C$13,IF(AB184=\"Group X\",'Suggested management Options'!$C$14,\"\")))))))))))","v":""},"",null,1,"","","","","","","","",null,false,false,false,false,false,false,false,false,false,false,false,"",null,1,0,0,0,0,0,0,0]
["Grevillea curviloba subsp. incurva",14409,"T","EN","C2a(i)","EN","SWAN","PERTH HILLS,SWAN COASTAL","Muchea, Gingin","Aug,Sep","IRP","No",null,null,null,null,"Yes",null,null,null,null,null,null,null,null,null,null,"",{"$f":"IF(AB185=\"Group A.1\",'Suggested management Options'!$C$4, IF(AB185=\"Group A.2(i)\", 'Suggested management Options'!$C$5, IF(AB185=\"Group A.2(ii)\", 'Suggested management Options'!$C$6, IF(AB185=\"Group B\",'Suggested management Options'!$C$7,IF(AB185=\"Group C\",'Suggested management Options'!$C$8,IF(AB185=\"Group D\",'Suggested management Options'!$C$9,IF(AB185=\"Group E\",'Suggested management Options'!$C$10,IF(AB185=\"Group F\",'Suggested management Options'!$C$11,IF(AB185=\"Group G\",'Suggested management Options'!$C$12,IF(AB185=\"Group O\",'Suggested management Options'!$C$13,IF(AB185=\"Group X\",'Suggested management Options'!$C$14,\"\")))))))))))","v":""},"",null,1,"","","","","","","","",null,false,false,false,false,false,false,false,false,false,false,false,"",null,1,0,0,0,0,0,0,0]
["Grevillea dryandroides subsp. dryandroides",14411,"T","CR","B1ab(iii,v)+B2ab(iii,v); C2a(i)","EN","WHTB","CENTRAL WHEATBELT","Ballidu","Sep-Oc,Fe-Ma","IRP","Wongan Hills, 2000","Yes","Yes",null,null,"Yes","Yes-fire","likely","Yes","No","Short-lived","likely ","No","Likely Yes","Yes",null,"Group E",{"$f":"IF(AB186=\"Group A.1\",'Suggested management Options'!$C$4, IF(AB186=\"Group A.2(i)\", 'Suggested management Options'!$C$5, IF(AB186=\"Group A.2(ii)\", 'Suggested management Options'!$C$6, IF(AB186=\"Group B\",'Suggested management Options'!$C$7,IF(AB186=\"Group C\",'Suggested management Options'!$C$8,IF(AB186=\"Group D\",'Suggested management Options'!$C$9,IF(AB186=\"Group E\",'Suggested management Options'!$C$10,IF(AB186=\"Group F\",'Suggested management Options'!$C$11,IF(AB186=\"Group G\",'Suggested management Options'!$C$12,IF(AB186=\"Group O\",'Suggested management Options'!$C$13,IF(AB186=\"Group X\",'Suggested management Options'!$C$14,\"\")))))))))))","v":"Population will be maintained in-situ in the long term. Highest priority will be to increase effective population size to >250 mature plants through promoting in-situ recruitment and/or seed collection, external propagation and subsequent restocking."},"MAYBE TRANSLOCATE IF COST-EFFECTIVE",null,1,1,1,0,0,0,1,1,"",null,false,false,false,false,false,false,true,false,false,false,false,"Group E",null,1,1,1,0,1,1,1,0]
["Grevillea elongata",14526,"T","EN","C2a","VU","SWST","BLACKWOOD","Ruabon, Abba SF, Whicher Range, Butler SF","Oct","IRP","No",null,null,null,null,"Yes",null,null,null,null,null,null,null,null,null,null,"",{"$f":"IF(AB187=\"Group A.1\",'Suggested management Options'!$C$4, IF(AB187=\"Group A.2(i)\", 'Suggested management Options'!$C$5, IF(AB187=\"Group A.2(ii)\", 'Suggested management Options'!$C$6, IF(AB187=\"Group B\",'Suggested management Options'!$C$7,IF(AB187=\"Group C\",'Suggested management Options'!$C$8,IF(AB187=\"Group D\",'Suggested management Options'!$C$9,IF(AB187=\"Group E\",'Suggested management Options'!$C$10,IF(AB187=\"Group F\",'Suggested management Options'!$C$11,IF(AB187=\"Group G\",'Suggested management Options'!$C$12,IF(AB187=\"Group O\",'Suggested management Options'!$C$13,IF(AB187=\"Group X\",'Suggested management Options'!$C$14,\"\")))))))))))","v":""},"",null,1,"","","","","","","","",null,false,false,false,false,false,false,false,false,false,false,false,"",null,1,0,0,0,0,0,0,0]
["Grevillea humifusa",15987,"T","CR","B1ab(iii)+2ab(iii)","EN","MWST","MOORA","Eragilga Hills, Jurien","May-Sep","IRP","Coomallo NR, 2003; Hill River NR, 2010",null,null,null,null,"Yes",null,null,null,null,null,null,null,null,null,null,"",{"$f":"IF(AB188=\"Group A.1\",'Suggested management Options'!$C$4, IF(AB188=\"Group A.2(i)\", 'Suggested management Options'!$C$5, IF(AB188=\"Group A.2(ii)\", 'Suggested management Options'!$C$6, IF(AB188=\"Group B\",'Suggested management Options'!$C$7,IF(AB188=\"Group C\",'Suggested management Options'!$C$8,IF(AB188=\"Group D\",'Suggested management Options'!$C$9,IF(AB188=\"Group E\",'Suggested management Options'!$C$10,IF(AB188=\"Group F\",'Suggested management Options'!$C$11,IF(AB188=\"Group G\",'Suggested management Options'!$C$12,IF(AB188=\"Group O\",'Suggested management Options'!$C$13,IF(AB188=\"Group X\",'Suggested management Options'!$C$14,\"\")))))))))))","v":""},"",null,1,"","","","","","","","",null,false,false,false,false,false,false,false,false,false,false,false,"",null,1,0,0,0,0,0,0,0]
["Grevillea involucrata",2024,"T","EN","C2a; D","EN","WHTB","GREAT SOUTHERN","Hyden-Lake Magenta, Dragon Rocks","Jun-Jul","IRP","No","No","Yes",null,"translocate if disturbance within Dragon Rocks sites is unsuccessful","Yes","Yes-fire","populations usually discovered on roadsides. Population at Dragon rocks NR targeted fro disturbance and plants returned from soil seedbank into vegetation up to 50m away from tracks.","Yes","No","Short-lived","known","No","Likely Yes","Yes",null,"Group E",{"$f":"IF(AB189=\"Group A.1\",'Suggested management Options'!$C$4, IF(AB189=\"Group A.2(i)\", 'Suggested management Options'!$C$5, IF(AB189=\"Group A.2(ii)\", 'Suggested management Options'!$C$6, IF(AB189=\"Group B\",'Suggested management Options'!$C$7,IF(AB189=\"Group C\",'Suggested management Options'!$C$8,IF(AB189=\"Group D\",'Suggested management Options'!$C$9,IF(AB189=\"Group E\",'Suggested management Options'!$C$10,IF(AB189=\"Group F\",'Suggested management Options'!$C$11,IF(AB189=\"Group G\",'Suggested management Options'!$C$12,IF(AB189=\"Group O\",'Suggested management Options'!$C$13,IF(AB189=\"Group X\",'Suggested management Options'!$C$14,\"\")))))))))))","v":"Population will be maintained in-situ in the long term. Highest priority will be to increase effective population size to >250 mature plants through promoting in-situ recruitment and/or seed collection, external propagation and subsequent restocking."},"MAYBE TRANSLOCATE IF COST-EFFECTIVE",null,1,1,1,0,0,0,1,1,"",null,false,false,false,false,false,false,true,false,false,false,false,"Group E",null,1,1,1,0,1,1,1,0]
["Grevillea maccutcheonii",17112,"T","CR","B1+2c; C2a; D","EN","SWST","BLACKWOOD","Tutunup",null,"IRP","Negus' Block, Busselton, 2000; Oates Road, Busselton, 2000",null,null,null,null,"Yes",null,null,null,null,null,null,null,null,null,null,"",{"$f":"IF(AB190=\"Group A.1\",'Suggested management Options'!$C$4, IF(AB190=\"Group A.2(i)\", 'Suggested management Options'!$C$5, IF(AB190=\"Group A.2(ii)\", 'Suggested management Options'!$C$6, IF(AB190=\"Group B\",'Suggested management Options'!$C$7,IF(AB190=\"Group C\",'Suggested management Options'!$C$8,IF(AB190=\"Group D\",'Suggested management Options'!$C$9,IF(AB190=\"Group E\",'Suggested management Options'!$C$10,IF(AB190=\"Group F\",'Suggested management Options'!$C$11,IF(AB190=\"Group G\",'Suggested management Options'!$C$12,IF(AB190=\"Group O\",'Suggested management Options'!$C$13,IF(AB190=\"Group X\",'Suggested management Options'!$C$14,\"\")))))))))))","v":""},"",null,1,"","","","","","","","",null,false,false,false,false,false,false,false,false,false,false,false,"",null,1,0,0,0,0,0,0,0]
["Grevillea maxwellii",2038,"T","CR","B1ab(iii,v)+2ab(iii,v)","EN","SCST","ALBANY","Pallinup River","Aug-Sep","IRP","Pallinup (Private property), 2014",null,null,null,null,"Yes",null,null,null,null,null,null,null,null,null,null,"",{"$f":"IF(AB191=\"Group A.1\",'Suggested management Options'!$C$4, IF(AB191=\"Group A.2(i)\", 'Suggested management Options'!$C$5, IF(AB191=\"Group A.2(ii)\", 'Suggested management Options'!$C$6, IF(AB191=\"Group B\",'Suggested management Options'!$C$7,IF(AB191=\"Group C\",'Suggested management Options'!$C$8,IF(AB191=\"Group D\",'Suggested management Options'!$C$9,IF(AB191=\"Group E\",'Suggested management Options'!$C$10,IF(AB191=\"Group F\",'Suggested management Options'!$C$11,IF(AB191=\"Group G\",'Suggested management Options'!$C$12,IF(AB191=\"Group O\",'Suggested management Options'!$C$13,IF(AB191=\"Group X\",'Suggested management Options'!$C$14,\"\")))))))))))","v":""},"",null,1,"","","","","","","","",null,false,false,false,false,false,false,false,false,false,false,false,"",null,1,0,0,0,0,0,0,0]
["Grevillea murex",2044,"T","EN","C2a","EN","MWST","MOORA","Three Srings, Arrino","Aug-Oct","IRP","No",null,null,null,null,"Yes",null,null,null,null,null,null,null,null,null,null,"",{"$f":"IF(AB192=\"Group A.1\",'Suggested management Options'!$C$4, IF(AB192=\"Group A.2(i)\", 'Suggested management Options'!$C$5, IF(AB192=\"Group A.2(ii)\", 'Suggested management Options'!$C$6, IF(AB192=\"Group B\",'Suggested management Options'!$C$7,IF(AB192=\"Group C\",'Suggested management Options'!$C$8,IF(AB192=\"Group D\",'Suggested management Options'!$C$9,IF(AB192=\"Group E\",'Suggested management Options'!$C$10,IF(AB192=\"Group F\",'Suggested management Options'!$C$11,IF(AB192=\"Group G\",'Suggested management Options'!$C$12,IF(AB192=\"Group O\",'Suggested management Options'!$C$13,IF(AB192=\"Group X\",'Suggested management Options'!$C$14,\"\")))))))))))","v":""},"",null,1,"","","","","","","","",null,false,false,false,false,false,false,false,false,false,false,false,"",null,1,0,0,0,0,0,0,0]
["Grevillea phanerophlebia",2063,"T","CR","B1+2e; D",null,"MWST","GERALDTON","Mullewa, Mingenew, Eradu",null,"IRP","No",null,null,null,null,"Yes",null,null,null,null,null,null,null,null,null,null,"",{"$f":"IF(AB193=\"Group A.1\",'Suggested management Options'!$C$4, IF(AB193=\"Group A.2(i)\", 'Suggested management Options'!$C$5, IF(AB193=\"Group A.2(ii)\", 'Suggested management Options'!$C$6, IF(AB193=\"Group B\",'Suggested management Options'!$C$7,IF(AB193=\"Group C\",'Suggested management Options'!$C$8,IF(AB193=\"Group D\",'Suggested management Options'!$C$9,IF(AB193=\"Group E\",'Suggested management Options'!$C$10,IF(AB193=\"Group F\",'Suggested management Options'!$C$11,IF(AB193=\"Group G\",'Suggested management Options'!$C$12,IF(AB193=\"Group O\",'Suggested management Options'!$C$13,IF(AB193=\"Group X\",'Suggested management Options'!$C$14,\"\")))))))))))","v":""},"",null,1,"","","","","","","","",null,false,false,false,false,false,false,false,false,false,false,false,"",null,1,0,0,0,0,0,0,0]
["Grevillea pythara",13941,"T","CR","B1ab(iii)+2ab(iii); C2a(ii)","EN","WHTB","CENTRAL WHEATBELT","Pithara",null,"IRP","No","No","Yes",null,"Clonal, only 4 genetically distinct individuals","Yes","Likely Yes",null,"No","No","Long-lived","assumption","No","Likely No","No",null,"Group O",{"$f":"IF(AB194=\"Group A.1\",'Suggested management Options'!$C$4, IF(AB194=\"Group A.2(i)\", 'Suggested management Options'!$C$5, IF(AB194=\"Group A.2(ii)\", 'Suggested management Options'!$C$6, IF(AB194=\"Group B\",'Suggested management Options'!$C$7,IF(AB194=\"Group C\",'Suggested management Options'!$C$8,IF(AB194=\"Group D\",'Suggested management Options'!$C$9,IF(AB194=\"Group E\",'Suggested management Options'!$C$10,IF(AB194=\"Group F\",'Suggested management Options'!$C$11,IF(AB194=\"Group G\",'Suggested management Options'!$C$12,IF(AB194=\"Group O\",'Suggested management Options'!$C$13,IF(AB194=\"Group X\",'Suggested management Options'!$C$14,\"\")))))))))))","v":"Introduce disturbance and then re-evaluate"},"INTRODUCE DISTURBANCE FIRST",null,1,1,0,0,1,0,0,0,"",null,false,false,false,false,false,false,false,false,false,true,false,"Group O",null,1,1,0,0,1,1,0,0]
["Grevillea rara",14418,"T","EN","A2c; B1+2d","EN","SWST","WELLINGTON","Collie",null,"IRP","No",null,null,null,null,{"$f":"IF(OR(ISNUMBER(FIND(\"D\",E195)), ISNUMBER(FIND(\"C2a\", E195)),ISNUMBER(FIND(\"C2(a)\",E195)),ISNUMBER(FIND(\"B2a\",E195)), ISNUMBER(FIND(\"2a\",E195))), \"Yes\", \"No\")","v":"No"},null,null,null,null,null,null,null,null,null,null,"",{"$f":"IF(AB195=\"Group A.1\",'Suggested management Options'!$C$4, IF(AB195=\"Group A.2(i)\", 'Suggested management Options'!$C$5, IF(AB195=\"Group A.2(ii)\", 'Suggested management Options'!$C$6, IF(AB195=\"Group B\",'Suggested management Options'!$C$7,IF(AB195=\"Group C\",'Suggested management Options'!$C$8,IF(AB195=\"Group D\",'Suggested management Options'!$C$9,IF(AB195=\"Group E\",'Suggested management Options'!$C$10,IF(AB195=\"Group F\",'Suggested management Options'!$C$11,IF(AB195=\"Group G\",'Suggested management Options'!$C$12,IF(AB195=\"Group O\",'Suggested management Options'!$C$13,IF(AB195=\"Group X\",'Suggested management Options'!$C$14,\"\")))))))))))","v":""},"",null,0,"","","","","","","","",null,false,false,false,false,false,false,false,false,false,false,false,"",null,0,0,0,0,0,0,0,0]
["Grevillea scapigera",2091,"T","CR","B1ab(i,ii,iii,1v,v)+2ab(i,ii,iii,1v,v); C2a; D","EN","WHTB","GREAT SOUTHERN","Brookton-Hyden","Oct-Nov","IRP","Hartley's, 1993; Corrigin Airport, 1994; Bullaring, 1995","Yes","No","Yes","3 translocation sites established with large and viable seedbanks established along with in-situ soil seedbank viability trials","Yes","Likely Yes","populations usually discovered on roadsides and railway lines","Yes","No","Short-lived","known","No","No","No",null,{"$f":"BA196","v":"Group G"},{"$f":"IF(AB196=\"Group A.1\",'Suggested management Options'!$C$4, IF(AB196=\"Group A.2(i)\", 'Suggested management Options'!$C$5, IF(AB196=\"Group A.2(ii)\", 'Suggested management Options'!$C$6, IF(AB196=\"Group B\",'Suggested management Options'!$C$7,IF(AB196=\"Group C\",'Suggested management Options'!$C$8,IF(AB196=\"Group D\",'Suggested management Options'!$C$9,IF(AB196=\"Group E\",'Suggested management Options'!$C$10,IF(AB196=\"Group F\",'Suggested management Options'!$C$11,IF(AB196=\"Group G\",'Suggested management Options'!$C$12,IF(AB196=\"Group O\",'Suggested management Options'!$C$13,IF(AB196=\"Group X\",'Suggested management Options'!$C$14,\"\")))))))))))","v":"Population will only be maintained in-situ in the short term for the purpose of salvage, where practical. Collect cuttings, seeds, germplasm etc. and maintain in ex-situ collections OR translocate/augment to create a population >250. (maybe need to add actions beyond translocate for non-Wheatbelt regions)"},{"$f":"IF(OR(AB196=\"Group A.1\", AB196=\"Group A.2(i)\", AB196=\"Group A.2(ii)\", AB196=\"Group D\"), \"DON'T TRANSLOCATE\", IF(OR(AB196=\"Group B\", AB196=\"Group C\", AB196=\"Group E\"), \"MAYBE TRANSLOCATE IF COST-EFFECTIVE\", IF(OR(AB196=\"Group F\", AB196=\"Group G\"), \"DEFINITELY TRANSLOCATE\", IF(AB196=\"Group X\", \"EVALUATE SEED BANK\", IF(AB196=\"Group O\", \"INTRODUCE DISTURBANCE FIRST\", \"\")))))","v":"DEFINITELY TRANSLOCATE"},null,{"$f":"IF(Q196=\"Yes\",1,IF(Q196=\"No\",0,\"\"))","v":1},{"$f":"IF(OR(R196=\"Yes-fire\",R196=\"Yes-other\",R196=\"Likely Yes\"),1,IF(OR(R196=\"Likely No\",R196=\"No\"),0,IF(R196=\"Unknown\",-1,\"\")))","v":1},{"$f":"IF(T196=\"Yes\",1,IF(T196=\"No\",0,\"\"))","v":1},{"$f":"IF(U196=\"Yes\",1,IF(U196=\"No\",0,\"\"))","v":0},{"$f":"IF(V196=\"Long-lived\",1,IF(V196=\"Short-lived\",0,\"\"))","v":0},{"$f":"IF(X196=\"Yes\",1,IF(X196=\"No\",0,\"\"))","v":0},{"$f":"IF(OR(Y196=\"Yes\",Y196=\"Likely Yes\"),1,IF(OR(Y196=\"Likely No\",Y196=\"No\"),0,IF(Y196=\"Unknown\",-1,\"\")))","v":0},{"$f":"IF(Z196=\"Yes\",1,IF(Z196=\"No\",0,\"\"))","v":0},{"$f":"IF(AA196=\"Yes\",1,IF(AA196=\"No\",0,\"\"))","v":""},null,{"$f":"AND(AF196=0,AN196=0)","v":false},{"$f":"AND(AF196=0,AJ196=1,AN196=1)","v":false},{"$f":"AND(AF196=0,AJ196=0,AN196=1)","v":false},{"$f":"AND(AF196=1,OR(AND(AG196=1,AH196=1),AG196=0),AI196=1,AJ196=1)","v":false},{"$f":"AND(AF196=1,OR(AND(AG196=1,AH196=1),AG196=0),AI196=1,AJ196=0)","v":false},{"$f":"AND(AF196=1,OR(AND(AG196=1,AH196=1),AG196=0),AI196=0,AK196=1)","v":false},{"$f":"AND(AF196=1,OR(AND(AG196=1,AH196=1),AG196=0),AI196=0,AK196=0,AL196=1,AM196=1)","v":false},{"$f":"AND(AF196=1,OR(AND(AG196=1,AH196=1),AG196=0),AI196=0,AK196=0,AL196=1,AM196=0)","v":false},{"$f":"AND(AF196=1,OR(AND(AG196=1,AH196=1),AG196=0),AI196=0,AK196=0,AL196=0)","v":true},{"$f":"AND(AF196=1,AG196=1,AH196=0)","v":false},{"$f":"AND(AF196=1,OR(AND(AG196=1,AH196=1),AG196=0),AI196=0,AK196=0,AL196=-1)","v":false},"Group G",null,{"$f":"IF(AF196=1,1,0)","v":1},{"$f":"IF(AG196=1,1,0)","v":1},{"$f":"IF(AND(BA196<>\"\",OR(AND(AG196=1,AH196=1),AG196=0)),1,0)","v":1},{"$f":"IF(AND(BA196<>\"\",OR(AI196=1,AN196=1)),1,0)","v":0},{"$f":"IF(AND(BA196<>\"\",AI196=0),1,0)","v":1},{"$f":"IF(AND(BA196<>\"\",AK196=0),1,0)","v":1},{"$f":"IF(AND(BA196<>\"\",AL196=1),1,0)","v":0},{"$f":"IF(AND(BA196<>\"\",AF196=0),1,0)","v":0}]
["Grevillea sp. Gillingarra (R.J. Cranfield 4087)",31354,"T","CR","B1ab(iii)+2ab(iii); D","CR","MWST","MOORA","Gillingarra","Sep","IRP","No",null,null,null,null,"Yes","Likely No",null,null,"No",null,null,"No","Likely No",null,null,{"$f":"BA197","v":"Group G"},{"$f":"IF(AB197=\"Group A.1\",'Suggested management Options'!$C$4, IF(AB197=\"Group A.2(i)\", 'Suggested management Options'!$C$5, IF(AB197=\"Group A.2(ii)\", 'Suggested management Options'!$C$6, IF(AB197=\"Group B\",'Suggested management Options'!$C$7,IF(AB197=\"Group C\",'Suggested management Options'!$C$8,IF(AB197=\"Group D\",'Suggested management Options'!$C$9,IF(AB197=\"Group E\",'Suggested management Options'!$C$10,IF(AB197=\"Group F\",'Suggested management Options'!$C$11,IF(AB197=\"Group G\",'Suggested management Options'!$C$12,IF(AB197=\"Group O\",'Suggested management Options'!$C$13,IF(AB197=\"Group X\",'Suggested management Options'!$C$14,\"\")))))))))))","v":"Population will only be maintained in-situ in the short term for the purpose of salvage, where practical. Collect cuttings, seeds, germplasm etc. and maintain in ex-situ collections OR translocate/augment to create a population >250. (maybe need to add actions beyond translocate for non-Wheatbelt regions)"},"DEFINITELY TRANSLOCATE",null,1,0,"",0,"",0,0,"","",null,false,false,false,false,false,false,false,false,true,false,false,"Group G",null,1,0,1,0,1,1,0,0]
["Grevillea thelemanniana",2107,"T","CR","A2ac, B1ab(i,ii,iii,iv,v)","CR","SWAN","SWAN COASTAL","Kenwick","Jun-Sep",null,"No",null,null,null,null,"Yes",null,null,null,null,null,null,null,null,null,null,"",{"$f":"IF(AB198=\"Group A.1\",'Suggested management Options'!$C$4, IF(AB198=\"Group A.2(i)\", 'Suggested management Options'!$C$5, IF(AB198=\"Group A.2(ii)\", 'Suggested management Options'!$C$6, IF(AB198=\"Group B\",'Suggested management Options'!$C$7,IF(AB198=\"Group C\",'Suggested management Options'!$C$8,IF(AB198=\"Group D\",'Suggested management Options'!$C$9,IF(AB198=\"Group E\",'Suggested management Options'!$C$10,IF(AB198=\"Group F\",'Suggested management Options'!$C$11,IF(AB198=\"Group G\",'Suggested management Options'!$C$12,IF(AB198=\"Group O\",'Suggested management Options'!$C$13,IF(AB198=\"Group X\",'Suggested management Options'!$C$14,\"\")))))))))))","v":""},"",null,1,"","","","","","","","",null,false,false,false,false,false,false,false,false,false,false,false,"",null,1,0,0,0,0,0,0,0]
["Guichenotia seorsiflora",17289,"T","CR","C2a(i); D","CR","WHTB","GREAT SOUTHERN","Youndegin, Corrigin","Jul-Sep","IRP","No","No","No",null,null,"Yes","Yes-fire","Bushfire affected part of population. Seedlings found in burnt areas","Yes","No","Long-lived","assumption","No","Likely Yes","Yes",null,"Group E",{"$f":"IF(AB199=\"Group A.1\",'Suggested management Options'!$C$4, IF(AB199=\"Group A.2(i)\", 'Suggested management Options'!$C$5, IF(AB199=\"Group A.2(ii)\", 'Suggested management Options'!$C$6, IF(AB199=\"Group B\",'Suggested management Options'!$C$7,IF(AB199=\"Group C\",'Suggested management Options'!$C$8,IF(AB199=\"Group D\",'Suggested management Options'!$C$9,IF(AB199=\"Group E\",'Suggested management Options'!$C$10,IF(AB199=\"Group F\",'Suggested management Options'!$C$11,IF(AB199=\"Group G\",'Suggested management Options'!$C$12,IF(AB199=\"Group O\",'Suggested management Options'!$C$13,IF(AB199=\"Group X\",'Suggested management Options'!$C$14,\"\")))))))))))","v":"Population will be maintained in-situ in the long term. Highest priority will be to increase effective population size to >250 mature plants through promoting in-situ recruitment and/or seed collection, external propagation and subsequent restocking."},"MAYBE TRANSLOCATE IF COST-EFFECTIVE",null,1,1,1,0,1,0,1,1,"",null,false,false,false,false,false,false,true,false,false,false,false,"Group E",null,1,1,1,0,1,1,1,0]
["Gyrostemon reticulatus",2785,"T","CR","B1ab(iii)+2ab(iii)","CR","WHTB","CENTRAL WHEATBELT","Wubin, Kalannie, Tardun, Perenjori","Oct-Nov","IRP","No",null,null,null,null,"Yes","Yes-fire","?short-lived fire ephemeral","No","No","Short-lived","known","No","Unknown","Yes",null,"Group O",{"$f":"IF(AB200=\"Group A.1\",'Suggested management Options'!$C$4, IF(AB200=\"Group A.2(i)\", 'Suggested management Options'!$C$5, IF(AB200=\"Group A.2(ii)\", 'Suggested management Options'!$C$6, IF(AB200=\"Group B\",'Suggested management Options'!$C$7,IF(AB200=\"Group C\",'Suggested management Options'!$C$8,IF(AB200=\"Group D\",'Suggested management Options'!$C$9,IF(AB200=\"Group E\",'Suggested management Options'!$C$10,IF(AB200=\"Group F\",'Suggested management Options'!$C$11,IF(AB200=\"Group G\",'Suggested management Options'!$C$12,IF(AB200=\"Group O\",'Suggested management Options'!$C$13,IF(AB200=\"Group X\",'Suggested management Options'!$C$14,\"\")))))))))))","v":"Introduce disturbance and then re-evaluate"},"INTRODUCE DISTURBANCE FIRST",null,1,1,0,0,0,0,-1,1,"",null,false,false,false,false,false,false,false,false,false,true,false,"Group O",null,1,1,0,0,1,1,0,0]
["Hakea aculeata",2125,"T","EN","A2c","VU","WHTB","GREAT SOUTHERN,CENTRAL WHEATBELT","Cunderdin-Brookton","Sep-Oct",null,"No","No",null,null,null,"No","Likely Yes","resprouted following experimental recruitment burn","No","Yes","Long-lived","likely ","Yes","Likely No","Yes","Yes","Group A.2(i)",{"$f":"IF(AB201=\"Group A.1\",'Suggested management Options'!$C$4, IF(AB201=\"Group A.2(i)\", 'Suggested management Options'!$C$5, IF(AB201=\"Group A.2(ii)\", 'Suggested management Options'!$C$6, IF(AB201=\"Group B\",'Suggested management Options'!$C$7,IF(AB201=\"Group C\",'Suggested management Options'!$C$8,IF(AB201=\"Group D\",'Suggested management Options'!$C$9,IF(AB201=\"Group E\",'Suggested management Options'!$C$10,IF(AB201=\"Group F\",'Suggested management Options'!$C$11,IF(AB201=\"Group G\",'Suggested management Options'!$C$12,IF(AB201=\"Group O\",'Suggested management Options'!$C$13,IF(AB201=\"Group X\",'Suggested management Options'!$C$14,\"\")))))))))))","v":"Species is relatively less secure compared to Group A.1. Monitoring required. Management could include….. ?"},"DON'T TRANSLOCATE",null,0,1,0,1,1,1,0,1,1,null,false,true,false,false,false,false,false,false,false,false,false,"Group A.2(i)",null,0,1,0,1,0,0,0,1]
["Haloragis platycarpa",6177,"T","CR","B1ab(iii)+2ab(iii); D","CR","WHTB","CENTRAL WHEATBELT","Dalwallinu","Oct","IRP","No","No","Yes",null,null,"Yes","Likely Yes",null,"Yes","No","Short-lived","known?","Yes","Likely Yes","Yes","Yes","Group D",{"$f":"IF(AB202=\"Group A.1\",'Suggested management Options'!$C$4, IF(AB202=\"Group A.2(i)\", 'Suggested management Options'!$C$5, IF(AB202=\"Group A.2(ii)\", 'Suggested management Options'!$C$6, IF(AB202=\"Group B\",'Suggested management Options'!$C$7,IF(AB202=\"Group C\",'Suggested management Options'!$C$8,IF(AB202=\"Group D\",'Suggested management Options'!$C$9,IF(AB202=\"Group E\",'Suggested management Options'!$C$10,IF(AB202=\"Group F\",'Suggested management Options'!$C$11,IF(AB202=\"Group G\",'Suggested management Options'!$C$12,IF(AB202=\"Group O\",'Suggested management Options'!$C$13,IF(AB202=\"Group X\",'Suggested management Options'!$C$14,\"\")))))))))))","v":"Protect seedlings and juveniles to increase chances of reaching reproductive maturity"},"DON'T TRANSLOCATE",null,1,1,1,0,0,1,1,1,1,null,false,false,false,false,false,true,false,false,false,false,false,"Group D",null,1,1,1,1,1,0,1,0]
["Hemiandra gardneri",6835,"T","CR","B1ab(i,ii,iii,iv,v)+2ab(i,ii,iii,iv,v)","EN","MWST","MOORA","Coorow-Moora","Sep-Oct","IRP","No",null,null,null,null,"Yes",null,null,null,null,null,null,null,null,null,null,"",{"$f":"IF(AB203=\"Group A.1\",'Suggested management Options'!$C$4, IF(AB203=\"Group A.2(i)\", 'Suggested management Options'!$C$5, IF(AB203=\"Group A.2(ii)\", 'Suggested management Options'!$C$6, IF(AB203=\"Group B\",'Suggested management Options'!$C$7,IF(AB203=\"Group C\",'Suggested management Options'!$C$8,IF(AB203=\"Group D\",'Suggested management Options'!$C$9,IF(AB203=\"Group E\",'Suggested management Options'!$C$10,IF(AB203=\"Group F\",'Suggested management Options'!$C$11,IF(AB203=\"Group G\",'Suggested management Options'!$C$12,IF(AB203=\"Group O\",'Suggested management Options'!$C$13,IF(AB203=\"Group X\",'Suggested management Options'!$C$14,\"\")))))))))))","v":""},"",null,1,"","","","","","","","",null,false,false,false,false,false,false,false,false,false,false,false,"",null,1,0,0,0,0,0,0,0]
["Hemiandra rutilans",6841,"T","CR","A1ac; B1+2a-e; D","EN","WHTB","CENTRAL WHEATBELT","Dowerin",null,"IRP","No","No","No",null,null,"Yes","Likely Yes",null,"No","No","Long-lived","assumption","No","Unknown","Yes",null,"Group O",{"$f":"IF(AB204=\"Group A.1\",'Suggested management Options'!$C$4, IF(AB204=\"Group A.2(i)\", 'Suggested management Options'!$C$5, IF(AB204=\"Group A.2(ii)\", 'Suggested management Options'!$C$6, IF(AB204=\"Group B\",'Suggested management Options'!$C$7,IF(AB204=\"Group C\",'Suggested management Options'!$C$8,IF(AB204=\"Group D\",'Suggested management Options'!$C$9,IF(AB204=\"Group E\",'Suggested management Options'!$C$10,IF(AB204=\"Group F\",'Suggested management Options'!$C$11,IF(AB204=\"Group G\",'Suggested management Options'!$C$12,IF(AB204=\"Group O\",'Suggested management Options'!$C$13,IF(AB204=\"Group X\",'Suggested management Options'!$C$14,\"\")))))))))))","v":"Introduce disturbance and then re-evaluate"},"INTRODUCE DISTURBANCE FIRST",null,1,1,0,0,1,0,-1,1,"",null,false,false,false,false,false,false,false,false,false,true,false,"Group O",null,1,1,0,0,1,1,0,0]
["Hemigenia ramosissima",6867,"T","CR","C2a","CR","WHTB","GREAT SOUTHERN","Beaufort River","Oct-Nov","IRP","Water Reserve 9090 (Birdwood NR), 2007; Water Reserve 10664 (Hale Road), 2008","Yes","No",null,null,"Yes","Likely No","occurs in claypans prone to occasional floods","Yes","Yes","Long-lived","assumption","Yes","Likely No","Yes","No","Group B",{"$f":"IF(AB205=\"Group A.1\",'Suggested management Options'!$C$4, IF(AB205=\"Group A.2(i)\", 'Suggested management Options'!$C$5, IF(AB205=\"Group A.2(ii)\", 'Suggested management Options'!$C$6, IF(AB205=\"Group B\",'Suggested management Options'!$C$7,IF(AB205=\"Group C\",'Suggested management Options'!$C$8,IF(AB205=\"Group D\",'Suggested management Options'!$C$9,IF(AB205=\"Group E\",'Suggested management Options'!$C$10,IF(AB205=\"Group F\",'Suggested management Options'!$C$11,IF(AB205=\"Group G\",'Suggested management Options'!$C$12,IF(AB205=\"Group O\",'Suggested management Options'!$C$13,IF(AB205=\"Group X\",'Suggested management Options'!$C$14,\"\")))))))))))","v":"Maintain effective population sizes of >250 reproductively mature individuals. Augment populations of <250 individuals if cost effective."},"MAYBE TRANSLOCATE IF COST-EFFECTIVE",null,1,0,1,1,1,1,0,1,0,null,false,false,false,true,false,false,false,false,false,false,false,"Group B",null,1,0,1,1,0,0,0,0]
["Hibbertia abyssus",46534,"T","CR","B1ab(iii)+2ab(iii)","CR","SCST","ALBANY","Ravensthorpe Range, Bandalup Hill","Oc-Nov, Feb","IRP","No",null,null,null,null,"Yes",null,null,null,null,null,null,null,null,null,null,"",{"$f":"IF(AB206=\"Group A.1\",'Suggested management Options'!$C$4, IF(AB206=\"Group A.2(i)\", 'Suggested management Options'!$C$5, IF(AB206=\"Group A.2(ii)\", 'Suggested management Options'!$C$6, IF(AB206=\"Group B\",'Suggested management Options'!$C$7,IF(AB206=\"Group C\",'Suggested management Options'!$C$8,IF(AB206=\"Group D\",'Suggested management Options'!$C$9,IF(AB206=\"Group E\",'Suggested management Options'!$C$10,IF(AB206=\"Group F\",'Suggested management Options'!$C$11,IF(AB206=\"Group G\",'Suggested management Options'!$C$12,IF(AB206=\"Group O\",'Suggested management Options'!$C$13,IF(AB206=\"Group X\",'Suggested management Options'!$C$14,\"\")))))))))))","v":""},"",null,1,"","","","","","","","",null,false,false,false,false,false,false,false,false,false,false,false,"",null,1,0,0,0,0,0,0,0]
["Hibbertia priceana",19686,"T","EN","D","CR","SCST,WHTB","ALBANY,GREAT SOUTHERN","Ongerup, Dongolocking","Jun-Aug",null,"No","Yes","No",null,"South coast was looking at including this species in one of their translocation sites","Yes","Likely Yes",null,"No","Yes","Long-lived",null,"Yes","Unknown","Yes","Yes","Group O",{"$f":"IF(AB207=\"Group A.1\",'Suggested management Options'!$C$4, IF(AB207=\"Group A.2(i)\", 'Suggested management Options'!$C$5, IF(AB207=\"Group A.2(ii)\", 'Suggested management Options'!$C$6, IF(AB207=\"Group B\",'Suggested management Options'!$C$7,IF(AB207=\"Group C\",'Suggested management Options'!$C$8,IF(AB207=\"Group D\",'Suggested management Options'!$C$9,IF(AB207=\"Group E\",'Suggested management Options'!$C$10,IF(AB207=\"Group F\",'Suggested management Options'!$C$11,IF(AB207=\"Group G\",'Suggested management Options'!$C$12,IF(AB207=\"Group O\",'Suggested management Options'!$C$13,IF(AB207=\"Group X\",'Suggested management Options'!$C$14,\"\")))))))))))","v":"Introduce disturbance and then re-evaluate"},"INTRODUCE DISTURBANCE FIRST",null,1,1,0,1,1,1,-1,1,1,null,false,false,false,false,false,false,false,false,false,true,false,"Group O",null,1,1,0,1,0,0,0,0]
["Hibbertia sp. Toolbrunup (J.R. Wheeler 2504)",47077,"T","CR","B1ab(v)+2ab(v); C2a(i); D",null,"SCST","ALBANY","Stirling Range N.P.","Sep",null,"No",null,null,null,null,"Yes",null,null,null,null,null,null,null,null,null,null,"",{"$f":"IF(AB208=\"Group A.1\",'Suggested management Options'!$C$4, IF(AB208=\"Group A.2(i)\", 'Suggested management Options'!$C$5, IF(AB208=\"Group A.2(ii)\", 'Suggested management Options'!$C$6, IF(AB208=\"Group B\",'Suggested management Options'!$C$7,IF(AB208=\"Group C\",'Suggested management Options'!$C$8,IF(AB208=\"Group D\",'Suggested management Options'!$C$9,IF(AB208=\"Group E\",'Suggested management Options'!$C$10,IF(AB208=\"Group F\",'Suggested management Options'!$C$11,IF(AB208=\"Group G\",'Suggested management Options'!$C$12,IF(AB208=\"Group O\",'Suggested management Options'!$C$13,IF(AB208=\"Group X\",'Suggested management Options'!$C$14,\"\")))))))))))","v":""},"",null,1,"","","","","","","","",null,false,false,false,false,false,false,false,false,false,false,false,"",null,1,0,0,0,0,0,0,0]
["Hybanthus cymulosus",5217,"T","CR","A2c; B1ab(iii)+B2ab(iii)","CR","MWST","GERALDTON","Mt Singleton, Ninghan",null,"IRP","No",null,null,null,null,"Yes",null,null,null,null,null,null,null,null,null,null,"",{"$f":"IF(AB209=\"Group A.1\",'Suggested management Options'!$C$4, IF(AB209=\"Group A.2(i)\", 'Suggested management Options'!$C$5, IF(AB209=\"Group A.2(ii)\", 'Suggested management Options'!$C$6, IF(AB209=\"Group B\",'Suggested management Options'!$C$7,IF(AB209=\"Group C\",'Suggested management Options'!$C$8,IF(AB209=\"Group D\",'Suggested management Options'!$C$9,IF(AB209=\"Group E\",'Suggested management Options'!$C$10,IF(AB209=\"Group F\",'Suggested management Options'!$C$11,IF(AB209=\"Group G\",'Suggested management Options'!$C$12,IF(AB209=\"Group O\",'Suggested management Options'!$C$13,IF(AB209=\"Group X\",'Suggested management Options'!$C$14,\"\")))))))))))","v":""},"",null,1,"","","","","","","","",null,false,false,false,false,false,false,false,false,false,false,false,"",null,1,0,0,0,0,0,0,0]
["Hypocalymma angustifolium subsp. Hutt River (S. Patrick 2982)",35071,"T","EN","B1ab(iii,v)+2ab(iii,v)",null,"MWST","MOORA,GERALDTON","Arrino,  Kalbarri","Aug-Sep",null,"No",null,null,null,null,"Yes",null,null,null,null,null,null,null,null,null,null,"",{"$f":"IF(AB210=\"Group A.1\",'Suggested management Options'!$C$4, IF(AB210=\"Group A.2(i)\", 'Suggested management Options'!$C$5, IF(AB210=\"Group A.2(ii)\", 'Suggested management Options'!$C$6, IF(AB210=\"Group B\",'Suggested management Options'!$C$7,IF(AB210=\"Group C\",'Suggested management Options'!$C$8,IF(AB210=\"Group D\",'Suggested management Options'!$C$9,IF(AB210=\"Group E\",'Suggested management Options'!$C$10,IF(AB210=\"Group F\",'Suggested management Options'!$C$11,IF(AB210=\"Group G\",'Suggested management Options'!$C$12,IF(AB210=\"Group O\",'Suggested management Options'!$C$13,IF(AB210=\"Group X\",'Suggested management Options'!$C$14,\"\")))))))))))","v":""},"",null,1,"","","","","","","","",null,false,false,false,false,false,false,false,false,false,false,false,"",null,1,0,0,0,0,0,0,0]
["Hypocalymma sp. Cascade (R. Bruhn 20896)",18522,"T","EN","B1ab(iii,v)+2ab(iii,v)",null,"SCST","ESPERANCE","Cascade","Aug",null,"No",null,null,null,null,"Yes",null,null,null,null,null,null,null,null,null,null,"",{"$f":"IF(AB211=\"Group A.1\",'Suggested management Options'!$C$4, IF(AB211=\"Group A.2(i)\", 'Suggested management Options'!$C$5, IF(AB211=\"Group A.2(ii)\", 'Suggested management Options'!$C$6, IF(AB211=\"Group B\",'Suggested management Options'!$C$7,IF(AB211=\"Group C\",'Suggested management Options'!$C$8,IF(AB211=\"Group D\",'Suggested management Options'!$C$9,IF(AB211=\"Group E\",'Suggested management Options'!$C$10,IF(AB211=\"Group F\",'Suggested management Options'!$C$11,IF(AB211=\"Group G\",'Suggested management Options'!$C$12,IF(AB211=\"Group O\",'Suggested management Options'!$C$13,IF(AB211=\"Group X\",'Suggested management Options'!$C$14,\"\")))))))))))","v":""},"",null,1,"","","","","","","","",null,false,false,false,false,false,false,false,false,false,false,false,{"$f":"IF(AP211,\"Group A.1\",\"\")&IF(AQ211,\"Group A.2(i)\",\"\")&IF(AR211,\"Group A.2(ii)\",\"\")&IF(AS211,\"Group B\",\"\")&IF(AT211,\"Group C\",\"\")&IF(AU211,\"Group D\",\"\")&IF(AV211,\"Group E\",\"\")&IF(AW211,\"Group F\",\"\")&IF(AX211,\"Group G\",\"\")&IF(AY211,\"Group O\",\"\")&IF(AZ211,\"Group X\",\"\")","v":""},null,1,0,0,0,0,0,0,0]
["Hypocalymma sylvestre",19601,"T","EN","B1ab(iii)+B2ab(iii)","EN","SWAN","PERTH HILLS","Chittering","Aug-Oct",null,"No",null,null,null,null,"Yes",null,null,null,null,null,null,null,null,null,null,"",{"$f":"IF(AB212=\"Group A.1\",'Suggested management Options'!$C$4, IF(AB212=\"Group A.2(i)\", 'Suggested management Options'!$C$5, IF(AB212=\"Group A.2(ii)\", 'Suggested management Options'!$C$6, IF(AB212=\"Group B\",'Suggested management Options'!$C$7,IF(AB212=\"Group C\",'Suggested management Options'!$C$8,IF(AB212=\"Group D\",'Suggested management Options'!$C$9,IF(AB212=\"Group E\",'Suggested management Options'!$C$10,IF(AB212=\"Group F\",'Suggested management Options'!$C$11,IF(AB212=\"Group G\",'Suggested management Options'!$C$12,IF(AB212=\"Group O\",'Suggested management Options'!$C$13,IF(AB212=\"Group X\",'Suggested management Options'!$C$14,\"\")))))))))))","v":""},"",null,1,"","","","","","","","",null,false,false,false,false,false,false,false,false,false,false,false,"",null,1,0,0,0,0,0,0,0]
["Isopogon robustus",25898,"T","CR","B2ab(v); C2a(ii)","CR","WHTB","CENTRAL WHEATBELT","Parker Range, Marvel Loch","Sep-Oct","IRP","No","No","No",null,null,"Yes","Likely Yes",null,"Yes","Yes","Long-lived","likely","Yes","Likely Yes","Yes",null,"Group B",{"$f":"IF(AB213=\"Group A.1\",'Suggested management Options'!$C$4, IF(AB213=\"Group A.2(i)\", 'Suggested management Options'!$C$5, IF(AB213=\"Group A.2(ii)\", 'Suggested management Options'!$C$6, IF(AB213=\"Group B\",'Suggested management Options'!$C$7,IF(AB213=\"Group C\",'Suggested management Options'!$C$8,IF(AB213=\"Group D\",'Suggested management Options'!$C$9,IF(AB213=\"Group E\",'Suggested management Options'!$C$10,IF(AB213=\"Group F\",'Suggested management Options'!$C$11,IF(AB213=\"Group G\",'Suggested management Options'!$C$12,IF(AB213=\"Group O\",'Suggested management Options'!$C$13,IF(AB213=\"Group X\",'Suggested management Options'!$C$14,\"\")))))))))))","v":"Maintain effective population sizes of >250 reproductively mature individuals. Augment populations of <250 individuals if cost effective."},"MAYBE TRANSLOCATE IF COST-EFFECTIVE",null,1,1,1,1,1,1,1,1,"",null,false,false,false,true,false,false,false,false,false,false,false,"Group B",null,1,1,1,1,0,0,1,0]
["Isopogon uncinatus",2242,"T","CR","B1ab(iii,iv,v)+2ab(iii,iv,v)","EN","SCST","ALBANY","Albany",null,"IRP","No",null,null,null,null,"Yes",null,null,null,null,null,null,null,null,null,null,"",{"$f":"IF(AB214=\"Group A.1\",'Suggested management Options'!$C$4, IF(AB214=\"Group A.2(i)\", 'Suggested management Options'!$C$5, IF(AB214=\"Group A.2(ii)\", 'Suggested management Options'!$C$6, IF(AB214=\"Group B\",'Suggested management Options'!$C$7,IF(AB214=\"Group C\",'Suggested management Options'!$C$8,IF(AB214=\"Group D\",'Suggested management Options'!$C$9,IF(AB214=\"Group E\",'Suggested management Options'!$C$10,IF(AB214=\"Group F\",'Suggested management Options'!$C$11,IF(AB214=\"Group G\",'Suggested management Options'!$C$12,IF(AB214=\"Group O\",'Suggested management Options'!$C$13,IF(AB214=\"Group X\",'Suggested management Options'!$C$14,\"\")))))))))))","v":""},"",null,1,"","","","","","","","",null,false,false,false,false,false,false,false,false,false,false,false,"",null,1,0,0,0,0,0,0,0]
["Jacksonia pungens",14744,"T","CR","B2ab(iii)","EN","MWST","MOORA","Sth of Marchagee","Oct-Feb","IRP","No",null,null,null,null,"Yes",null,null,null,null,null,null,null,null,null,null,"",{"$f":"IF(AB215=\"Group A.1\",'Suggested management Options'!$C$4, IF(AB215=\"Group A.2(i)\", 'Suggested management Options'!$C$5, IF(AB215=\"Group A.2(ii)\", 'Suggested management Options'!$C$6, IF(AB215=\"Group B\",'Suggested management Options'!$C$7,IF(AB215=\"Group C\",'Suggested management Options'!$C$8,IF(AB215=\"Group D\",'Suggested management Options'!$C$9,IF(AB215=\"Group E\",'Suggested management Options'!$C$10,IF(AB215=\"Group F\",'Suggested management Options'!$C$11,IF(AB215=\"Group G\",'Suggested management Options'!$C$12,IF(AB215=\"Group O\",'Suggested management Options'!$C$13,IF(AB215=\"Group X\",'Suggested management Options'!$C$14,\"\")))))))))))","v":""},"",null,1,"","","","","","","","",null,false,false,false,false,false,false,false,false,false,false,false,"",null,1,0,0,0,0,0,0,0]
["Jacksonia quairading",14750,"T","EN","B1+2e; C2b","EN","WHTB","CENTRAL WHEATBELT","Quairading","Oct",null,"No","No","No",null,null,"No","Yes-fire",null,"Yes","Yes","Short-lived","possibly?","Yes","Likely Yes","No","No","Group A.1",{"$f":"IF(AB216=\"Group A.1\",'Suggested management Options'!$C$4, IF(AB216=\"Group A.2(i)\", 'Suggested management Options'!$C$5, IF(AB216=\"Group A.2(ii)\", 'Suggested management Options'!$C$6, IF(AB216=\"Group B\",'Suggested management Options'!$C$7,IF(AB216=\"Group C\",'Suggested management Options'!$C$8,IF(AB216=\"Group D\",'Suggested management Options'!$C$9,IF(AB216=\"Group E\",'Suggested management Options'!$C$10,IF(AB216=\"Group F\",'Suggested management Options'!$C$11,IF(AB216=\"Group G\",'Suggested management Options'!$C$12,IF(AB216=\"Group O\",'Suggested management Options'!$C$13,IF(AB216=\"Group X\",'Suggested management Options'!$C$14,\"\")))))))))))","v":"These species are secure relative to other threatened species. Lower priority for intervention beyond monitoring. This may change should fragmentation or immediate threat arise."},"DON'T TRANSLOCATE",null,0,1,1,1,0,1,1,0,0,null,true,false,false,false,false,false,false,false,false,false,false,"Group A.1",null,0,1,1,1,0,0,1,1]
["Jacksonia velveta",19373,"T","EN","C2a(i); B1ab(iii,v)+2ab(iii,v)","EN","SWST","WELLINGTON,GREAT SOUTHERN","Collie Basin, Woodanilling, Narrogin","-",null,"No","No","No",null,null,"Yes","Yes-fire",null,"Yes","Yes","Long-lived","assumption","Yes","Likely Yes","Yes","Yes","Group B",{"$f":"IF(AB217=\"Group A.1\",'Suggested management Options'!$C$4, IF(AB217=\"Group A.2(i)\", 'Suggested management Options'!$C$5, IF(AB217=\"Group A.2(ii)\", 'Suggested management Options'!$C$6, IF(AB217=\"Group B\",'Suggested management Options'!$C$7,IF(AB217=\"Group C\",'Suggested management Options'!$C$8,IF(AB217=\"Group D\",'Suggested management Options'!$C$9,IF(AB217=\"Group E\",'Suggested management Options'!$C$10,IF(AB217=\"Group F\",'Suggested management Options'!$C$11,IF(AB217=\"Group G\",'Suggested management Options'!$C$12,IF(AB217=\"Group O\",'Suggested management Options'!$C$13,IF(AB217=\"Group X\",'Suggested management Options'!$C$14,\"\")))))))))))","v":"Maintain effective population sizes of >250 reproductively mature individuals. Augment populations of <250 individuals if cost effective."},"MAYBE TRANSLOCATE IF COST-EFFECTIVE",null,1,1,1,1,1,1,1,1,1,null,false,false,false,true,false,false,false,false,false,false,false,"Group B",null,1,1,1,1,0,0,1,0]
["Kennedia lateritia",33518,"T","EN","D","EN","SWST","BLACKWOOD","Augusta","Sep-Nov",null,"No",null,null,null,null,"Yes",null,null,null,null,null,null,null,null,null,null,"",{"$f":"IF(AB218=\"Group A.1\",'Suggested management Options'!$C$4, IF(AB218=\"Group A.2(i)\", 'Suggested management Options'!$C$5, IF(AB218=\"Group A.2(ii)\", 'Suggested management Options'!$C$6, IF(AB218=\"Group B\",'Suggested management Options'!$C$7,IF(AB218=\"Group C\",'Suggested management Options'!$C$8,IF(AB218=\"Group D\",'Suggested management Options'!$C$9,IF(AB218=\"Group E\",'Suggested management Options'!$C$10,IF(AB218=\"Group F\",'Suggested management Options'!$C$11,IF(AB218=\"Group G\",'Suggested management Options'!$C$12,IF(AB218=\"Group O\",'Suggested management Options'!$C$13,IF(AB218=\"Group X\",'Suggested management Options'!$C$14,\"\")))))))))))","v":""},"",null,1,"","","","","","","","",null,false,false,false,false,false,false,false,false,false,false,false,"",null,1,0,0,0,0,0,0,0]
["Kunzea similis subsp. mediterranea",31151,"T","EN","A3(c)(e)",null,"SCST","ALBANY","Bandalup Hill","Sep-Oct",null,"No",null,null,null,null,"No",null,null,null,null,null,null,null,null,null,null,"",{"$f":"IF(AB219=\"Group A.1\",'Suggested management Options'!$C$4, IF(AB219=\"Group A.2(i)\", 'Suggested management Options'!$C$5, IF(AB219=\"Group A.2(ii)\", 'Suggested management Options'!$C$6, IF(AB219=\"Group B\",'Suggested management Options'!$C$7,IF(AB219=\"Group C\",'Suggested management Options'!$C$8,IF(AB219=\"Group D\",'Suggested management Options'!$C$9,IF(AB219=\"Group E\",'Suggested management Options'!$C$10,IF(AB219=\"Group F\",'Suggested management Options'!$C$11,IF(AB219=\"Group G\",'Suggested management Options'!$C$12,IF(AB219=\"Group O\",'Suggested management Options'!$C$13,IF(AB219=\"Group X\",'Suggested management Options'!$C$14,\"\")))))))))))","v":""},"",null,0,"","","","","","","","",null,false,false,false,false,false,false,false,false,false,false,false,"",null,0,0,0,0,0,0,0,0]
["Kunzea similis subsp. similis",31892,"T","CR","B1ab(iii,v)+2ab(iii,v)","CR","SCST","ALBANY","Fitzgerald River NP","Sep-Oct",null,"No",null,null,null,null,"Yes",null,null,null,null,null,null,null,null,null,null,"",{"$f":"IF(AB220=\"Group A.1\",'Suggested management Options'!$C$4, IF(AB220=\"Group A.2(i)\", 'Suggested management Options'!$C$5, IF(AB220=\"Group A.2(ii)\", 'Suggested management Options'!$C$6, IF(AB220=\"Group B\",'Suggested management Options'!$C$7,IF(AB220=\"Group C\",'Suggested management Options'!$C$8,IF(AB220=\"Group D\",'Suggested management Options'!$C$9,IF(AB220=\"Group E\",'Suggested management Options'!$C$10,IF(AB220=\"Group F\",'Suggested management Options'!$C$11,IF(AB220=\"Group G\",'Suggested management Options'!$C$12,IF(AB220=\"Group O\",'Suggested management Options'!$C$13,IF(AB220=\"Group X\",'Suggested management Options'!$C$14,\"\")))))))))))","v":""},"",null,1,"","","","","","","","",null,false,false,false,false,false,false,false,false,false,false,false,"",null,1,0,0,0,0,0,0,0]
["Lambertia echinata subsp. echinata",13647,"T","CR","A3e; B1ab(iii,v)+2ab(iii,v); C1","EN","SCST","ESPERANCE","E of Esperance","Aug-Oct","IRP","Cape Le Grand NP, Pop1A, 1998; Cape Le Grand NP, nr Frenchmans Peak, 2004; Woody Island NP, 2004; Dalyup NR, 2006; Lushcombe's Seed Orchard, 2006; Coolinup NR, 2010; Alexander Bay NR, 2010",null,null,null,null,"Yes",null,null,null,null,null,null,null,null,null,null,"",{"$f":"IF(AB221=\"Group A.1\",'Suggested management Options'!$C$4, IF(AB221=\"Group A.2(i)\", 'Suggested management Options'!$C$5, IF(AB221=\"Group A.2(ii)\", 'Suggested management Options'!$C$6, IF(AB221=\"Group B\",'Suggested management Options'!$C$7,IF(AB221=\"Group C\",'Suggested management Options'!$C$8,IF(AB221=\"Group D\",'Suggested management Options'!$C$9,IF(AB221=\"Group E\",'Suggested management Options'!$C$10,IF(AB221=\"Group F\",'Suggested management Options'!$C$11,IF(AB221=\"Group G\",'Suggested management Options'!$C$12,IF(AB221=\"Group O\",'Suggested management Options'!$C$13,IF(AB221=\"Group X\",'Suggested management Options'!$C$14,\"\")))))))))))","v":""},"",null,1,"","","","","","","","",null,false,false,false,false,false,false,false,false,false,false,false,"",null,1,0,0,0,0,0,0,0]
["Lambertia echinata subsp. occidentalis",17734,"T","CR","A3e; B1ab(iii,v)+2ab(iii,v); C1","EN","SWST","BLACKWOOD","Busselton, Whicher Range","Oct-Dec","IRP","Negus' Block, Busselton, 2000; Oates Road, Busselton, 2000; Smith Road, Busselton, 2000; Williamson Road, Busselton, 2000",null,null,null,null,"Yes",null,null,null,null,null,null,null,null,null,null,"",{"$f":"IF(AB222=\"Group A.1\",'Suggested management Options'!$C$4, IF(AB222=\"Group A.2(i)\", 'Suggested management Options'!$C$5, IF(AB222=\"Group A.2(ii)\", 'Suggested management Options'!$C$6, IF(AB222=\"Group B\",'Suggested management Options'!$C$7,IF(AB222=\"Group C\",'Suggested management Options'!$C$8,IF(AB222=\"Group D\",'Suggested management Options'!$C$9,IF(AB222=\"Group E\",'Suggested management Options'!$C$10,IF(AB222=\"Group F\",'Suggested management Options'!$C$11,IF(AB222=\"Group G\",'Suggested management Options'!$C$12,IF(AB222=\"Group O\",'Suggested management Options'!$C$13,IF(AB222=\"Group X\",'Suggested management Options'!$C$14,\"\")))))))))))","v":""},"",null,1,"","","","","","","","",null,false,false,false,false,false,false,false,false,false,false,false,"",null,1,0,0,0,0,0,0,0]
["Lambertia fairallii",2246,"T","CR","A3ce; B2b(i,ii,iii,iv)","EN","SCST","ALBANY","Stirling Range NP","May-Jul","IRP","Benmore ITC Tree Farm, 2007; Syred rd, Kamballup, 2012",null,null,null,null,"No",null,null,null,null,null,null,null,null,null,null,"",{"$f":"IF(AB223=\"Group A.1\",'Suggested management Options'!$C$4, IF(AB223=\"Group A.2(i)\", 'Suggested management Options'!$C$5, IF(AB223=\"Group A.2(ii)\", 'Suggested management Options'!$C$6, IF(AB223=\"Group B\",'Suggested management Options'!$C$7,IF(AB223=\"Group C\",'Suggested management Options'!$C$8,IF(AB223=\"Group D\",'Suggested management Options'!$C$9,IF(AB223=\"Group E\",'Suggested management Options'!$C$10,IF(AB223=\"Group F\",'Suggested management Options'!$C$11,IF(AB223=\"Group G\",'Suggested management Options'!$C$12,IF(AB223=\"Group O\",'Suggested management Options'!$C$13,IF(AB223=\"Group X\",'Suggested management Options'!$C$14,\"\")))))))))))","v":""},"",null,0,"","","","","","","","",null,false,false,false,false,false,false,false,false,false,false,false,"",null,0,0,0,0,0,0,0,0]
["Lambertia orbifolia subsp. Scott River Plains (L.W. Sage 684)",19186,"T","EN","B1ab(i,ii,iii,v)+2ab(i,ii,iii,v);C1+2a(i)","EN","SWST","BLACKWOOD","Scott River","Jan-Jul","IRP","Augusta, 2003",null,null,null,null,"Yes",null,null,null,null,null,null,null,null,null,null,"",{"$f":"IF(AB224=\"Group A.1\",'Suggested management Options'!$C$4, IF(AB224=\"Group A.2(i)\", 'Suggested management Options'!$C$5, IF(AB224=\"Group A.2(ii)\", 'Suggested management Options'!$C$6, IF(AB224=\"Group B\",'Suggested management Options'!$C$7,IF(AB224=\"Group C\",'Suggested management Options'!$C$8,IF(AB224=\"Group D\",'Suggested management Options'!$C$9,IF(AB224=\"Group E\",'Suggested management Options'!$C$10,IF(AB224=\"Group F\",'Suggested management Options'!$C$11,IF(AB224=\"Group G\",'Suggested management Options'!$C$12,IF(AB224=\"Group O\",'Suggested management Options'!$C$13,IF(AB224=\"Group X\",'Suggested management Options'!$C$14,\"\")))))))))))","v":""},"",null,1,"","","","","","","","",null,false,false,false,false,false,false,false,false,false,false,false,"",null,1,0,0,0,0,0,0,0]
["Lambertia orbifolia subsp. orbifolia",19187,"T","CR","B2ab(ii,iii)","EN","SCST","ALBANY","Narrikup","Jan-Jul","IRP","Chokerup NR, Narrikup, 1998; Redmond, 2010; Balina, 2019",null,null,null,null,"Yes",null,null,null,null,null,null,null,null,null,null,"",{"$f":"IF(AB225=\"Group A.1\",'Suggested management Options'!$C$4, IF(AB225=\"Group A.2(i)\", 'Suggested management Options'!$C$5, IF(AB225=\"Group A.2(ii)\", 'Suggested management Options'!$C$6, IF(AB225=\"Group B\",'Suggested management Options'!$C$7,IF(AB225=\"Group C\",'Suggested management Options'!$C$8,IF(AB225=\"Group D\",'Suggested management Options'!$C$9,IF(AB225=\"Group E\",'Suggested management Options'!$C$10,IF(AB225=\"Group F\",'Suggested management Options'!$C$11,IF(AB225=\"Group G\",'Suggested management Options'!$C$12,IF(AB225=\"Group O\",'Suggested management Options'!$C$13,IF(AB225=\"Group X\",'Suggested management Options'!$C$14,\"\")))))))))))","v":""},"",null,1,"","","","","","","","",null,false,false,false,false,false,false,false,false,false,false,false,"",null,1,0,0,0,0,0,0,0]
["Lasiopetalum moullean",48348,"T","CR","B1ab(i,ii,iii,iv,v)+2ab(i,ii,iii,iv,v); C2a(i); D",null,"WHTB","CENTRAL WHEATBELT","Mount Caroline N.R.",null,null,"No","No","Yes",null,null,"Yes","Yes-other","fire, granite outcrop systems?","No","No","Long-lived","?","No","Unknown","No",null,"Group O",{"$f":"IF(AB226=\"Group A.1\",'Suggested management Options'!$C$4, IF(AB226=\"Group A.2(i)\", 'Suggested management Options'!$C$5, IF(AB226=\"Group A.2(ii)\", 'Suggested management Options'!$C$6, IF(AB226=\"Group B\",'Suggested management Options'!$C$7,IF(AB226=\"Group C\",'Suggested management Options'!$C$8,IF(AB226=\"Group D\",'Suggested management Options'!$C$9,IF(AB226=\"Group E\",'Suggested management Options'!$C$10,IF(AB226=\"Group F\",'Suggested management Options'!$C$11,IF(AB226=\"Group G\",'Suggested management Options'!$C$12,IF(AB226=\"Group O\",'Suggested management Options'!$C$13,IF(AB226=\"Group X\",'Suggested management Options'!$C$14,\"\")))))))))))","v":"Introduce disturbance and then re-evaluate"},"INTRODUCE DISTURBANCE FIRST",null,1,1,0,0,1,0,-1,0,"",null,false,false,false,false,false,false,false,false,false,true,false,"Group O",null,1,1,0,0,1,1,0,0]
["Lasiopetalum pterocarpum",17000,"T","CR","Ba1b(iii)+2ab(iii); C2a(i,ii); D","EN","SWAN","PERTH HILLS","Serpentine Falls","Aug","IRP","Serpentine NP, 2001; Scarp Road, 2006",null,null,null,null,"Yes",null,null,null,null,null,null,null,null,null,null,"",{"$f":"IF(AB227=\"Group A.1\",'Suggested management Options'!$C$4, IF(AB227=\"Group A.2(i)\", 'Suggested management Options'!$C$5, IF(AB227=\"Group A.2(ii)\", 'Suggested management Options'!$C$6, IF(AB227=\"Group B\",'Suggested management Options'!$C$7,IF(AB227=\"Group C\",'Suggested management Options'!$C$8,IF(AB227=\"Group D\",'Suggested management Options'!$C$9,IF(AB227=\"Group E\",'Suggested management Options'!$C$10,IF(AB227=\"Group F\",'Suggested management Options'!$C$11,IF(AB227=\"Group G\",'Suggested management Options'!$C$12,IF(AB227=\"Group O\",'Suggested management Options'!$C$13,IF(AB227=\"Group X\",'Suggested management Options'!$C$14,\"\")))))))))))","v":""},"",null,1,"","","","","","","","",null,false,false,false,false,false,false,false,false,false,false,false,"",null,1,0,0,0,0,0,0,0]
["Lasiopetalum rotundifolium",5048,"T","EN","B1+2c","EN","MWST,WHTB","MOORA,GREAT SOUTHERN","Brookton, (New Norcia)","Oct",null,"No","No","No",null,null,"No","Yes-fire",null,"Yes","Yes","Long-lived","?","Yes","Likely Yes","Yes","No","Group A.1",{"$f":"IF(AB228=\"Group A.1\",'Suggested management Options'!$C$4, IF(AB228=\"Group A.2(i)\", 'Suggested management Options'!$C$5, IF(AB228=\"Group A.2(ii)\", 'Suggested management Options'!$C$6, IF(AB228=\"Group B\",'Suggested management Options'!$C$7,IF(AB228=\"Group C\",'Suggested management Options'!$C$8,IF(AB228=\"Group D\",'Suggested management Options'!$C$9,IF(AB228=\"Group E\",'Suggested management Options'!$C$10,IF(AB228=\"Group F\",'Suggested management Options'!$C$11,IF(AB228=\"Group G\",'Suggested management Options'!$C$12,IF(AB228=\"Group O\",'Suggested management Options'!$C$13,IF(AB228=\"Group X\",'Suggested management Options'!$C$14,\"\")))))))))))","v":"These species are secure relative to other threatened species. Lower priority for intervention beyond monitoring. This may change should fragmentation or immediate threat arise."},"DON'T TRANSLOCATE",null,0,1,1,1,1,1,1,1,0,null,true,false,false,false,false,false,false,false,false,false,false,"Group A.1",null,0,1,1,1,0,0,1,1]
["Latrobea colophona",31882,"T","CR","B1ab(iii,v)","CR","SCST","ALBANY","Stirling Range","Oct,Nov","IRP","Syred rd, Kamballup, 2009",null,null,null,null,"No",null,null,null,null,null,null,null,null,null,null,"",{"$f":"IF(AB229=\"Group A.1\",'Suggested management Options'!$C$4, IF(AB229=\"Group A.2(i)\", 'Suggested management Options'!$C$5, IF(AB229=\"Group A.2(ii)\", 'Suggested management Options'!$C$6, IF(AB229=\"Group B\",'Suggested management Options'!$C$7,IF(AB229=\"Group C\",'Suggested management Options'!$C$8,IF(AB229=\"Group D\",'Suggested management Options'!$C$9,IF(AB229=\"Group E\",'Suggested management Options'!$C$10,IF(AB229=\"Group F\",'Suggested management Options'!$C$11,IF(AB229=\"Group G\",'Suggested management Options'!$C$12,IF(AB229=\"Group O\",'Suggested management Options'!$C$13,IF(AB229=\"Group X\",'Suggested management Options'!$C$14,\"\")))))))))))","v":""},"",null,0,"","","","","","","","",null,false,false,false,false,false,false,false,false,false,false,false,"",null,0,0,0,0,0,0,0,0]
["Lechenaultia chlorantha",7570,"T","EN","D","VU","MWST","GERALDTON","Kalbarri","Jul-Aug",null,"No",null,null,null,null,"Yes",null,null,null,null,null,null,null,null,null,null,"",{"$f":"IF(AB230=\"Group A.1\",'Suggested management Options'!$C$4, IF(AB230=\"Group A.2(i)\", 'Suggested management Options'!$C$5, IF(AB230=\"Group A.2(ii)\", 'Suggested management Options'!$C$6, IF(AB230=\"Group B\",'Suggested management Options'!$C$7,IF(AB230=\"Group C\",'Suggested management Options'!$C$8,IF(AB230=\"Group D\",'Suggested management Options'!$C$9,IF(AB230=\"Group E\",'Suggested management Options'!$C$10,IF(AB230=\"Group F\",'Suggested management Options'!$C$11,IF(AB230=\"Group G\",'Suggested management Options'!$C$12,IF(AB230=\"Group O\",'Suggested management Options'!$C$13,IF(AB230=\"Group X\",'Suggested management Options'!$C$14,\"\")))))))))))","v":""},"",null,1,"","","","","","","","",null,false,false,false,false,false,false,false,false,false,false,false,"",null,1,0,0,0,0,0,0,0]
["Lepidosperma gibsonii",31764,"T","EN","B1ab(iii,v) + B2ab(iii,v)",null,"MWST","GERALDTON","Mt Gibson",null,"IRP","Mt Gibson, ?",null,null,null,null,"Yes",null,null,null,null,null,null,null,null,null,null,"",{"$f":"IF(AB231=\"Group A.1\",'Suggested management Options'!$C$4, IF(AB231=\"Group A.2(i)\", 'Suggested management Options'!$C$5, IF(AB231=\"Group A.2(ii)\", 'Suggested management Options'!$C$6, IF(AB231=\"Group B\",'Suggested management Options'!$C$7,IF(AB231=\"Group C\",'Suggested management Options'!$C$8,IF(AB231=\"Group D\",'Suggested management Options'!$C$9,IF(AB231=\"Group E\",'Suggested management Options'!$C$10,IF(AB231=\"Group F\",'Suggested management Options'!$C$11,IF(AB231=\"Group G\",'Suggested management Options'!$C$12,IF(AB231=\"Group O\",'Suggested management Options'!$C$13,IF(AB231=\"Group X\",'Suggested management Options'!$C$14,\"\")))))))))))","v":""},"",null,1,"","","","","","","","",null,false,false,false,false,false,false,false,false,false,false,false,"",null,1,0,0,0,0,0,0,0]
["Lepidosperma rostratum",942,"T","EN","B1ab(iii)+2ab(iii)","EN","SWAN","SWAN COASTAL","Cannington, Kenwick, Forrestdale Lake NR","Aug",null,"No",null,null,null,null,"Yes",null,null,null,null,null,null,null,null,null,null,"",{"$f":"IF(AB232=\"Group A.1\",'Suggested management Options'!$C$4, IF(AB232=\"Group A.2(i)\", 'Suggested management Options'!$C$5, IF(AB232=\"Group A.2(ii)\", 'Suggested management Options'!$C$6, IF(AB232=\"Group B\",'Suggested management Options'!$C$7,IF(AB232=\"Group C\",'Suggested management Options'!$C$8,IF(AB232=\"Group D\",'Suggested management Options'!$C$9,IF(AB232=\"Group E\",'Suggested management Options'!$C$10,IF(AB232=\"Group F\",'Suggested management Options'!$C$11,IF(AB232=\"Group G\",'Suggested management Options'!$C$12,IF(AB232=\"Group O\",'Suggested management Options'!$C$13,IF(AB232=\"Group X\",'Suggested management Options'!$C$14,\"\")))))))))))","v":""},"",null,1,"","","","","","","","",null,false,false,false,false,false,false,false,false,false,false,false,"",null,1,0,0,0,0,0,0,0]
["Leucopogon gnaphalioides",6398,"T","CR","A1ae; B1ab(ii,iii,iv,v)+2ab(ii,iii,iv,v); C1","EN","SCST","ALBANY","Stirling Range","Aug,Sep","IRP","Luscombe's seed orchard, 2005; Syred rd, Kamballup, 2012",null,null,null,null,"Yes",null,null,null,null,null,null,null,null,null,null,"",{"$f":"IF(AB233=\"Group A.1\",'Suggested management Options'!$C$4, IF(AB233=\"Group A.2(i)\", 'Suggested management Options'!$C$5, IF(AB233=\"Group A.2(ii)\", 'Suggested management Options'!$C$6, IF(AB233=\"Group B\",'Suggested management Options'!$C$7,IF(AB233=\"Group C\",'Suggested management Options'!$C$8,IF(AB233=\"Group D\",'Suggested management Options'!$C$9,IF(AB233=\"Group E\",'Suggested management Options'!$C$10,IF(AB233=\"Group F\",'Suggested management Options'!$C$11,IF(AB233=\"Group G\",'Suggested management Options'!$C$12,IF(AB233=\"Group O\",'Suggested management Options'!$C$13,IF(AB233=\"Group X\",'Suggested management Options'!$C$14,\"\")))))))))))","v":""},"",null,1,"","","","","","","","",null,false,false,false,false,false,false,false,false,false,false,false,"",null,1,0,0,0,0,0,0,0]
["Leucopogon marginatus",6412,"T","EN","D","EN","MWST","GERALDTON","Arrino, Burma Road","Sep","IRP","No",null,null,null,null,"Yes",null,null,null,null,null,null,null,null,null,null,"",{"$f":"IF(AB234=\"Group A.1\",'Suggested management Options'!$C$4, IF(AB234=\"Group A.2(i)\", 'Suggested management Options'!$C$5, IF(AB234=\"Group A.2(ii)\", 'Suggested management Options'!$C$6, IF(AB234=\"Group B\",'Suggested management Options'!$C$7,IF(AB234=\"Group C\",'Suggested management Options'!$C$8,IF(AB234=\"Group D\",'Suggested management Options'!$C$9,IF(AB234=\"Group E\",'Suggested management Options'!$C$10,IF(AB234=\"Group F\",'Suggested management Options'!$C$11,IF(AB234=\"Group G\",'Suggested management Options'!$C$12,IF(AB234=\"Group O\",'Suggested management Options'!$C$13,IF(AB234=\"Group X\",'Suggested management Options'!$C$14,\"\")))))))))))","v":""},"",null,1,"","","","","","","","",null,false,false,false,false,false,false,false,false,false,false,false,"",null,1,0,0,0,0,0,0,0]
["Leucopogon nitidus",40802,"T","EN","D","EN","MWST","GERALDTON","Geraldton","Jul","IRP","No",null,null,null,null,"Yes",null,null,null,null,null,null,null,null,null,null,"",{"$f":"IF(AB235=\"Group A.1\",'Suggested management Options'!$C$4, IF(AB235=\"Group A.2(i)\", 'Suggested management Options'!$C$5, IF(AB235=\"Group A.2(ii)\", 'Suggested management Options'!$C$6, IF(AB235=\"Group B\",'Suggested management Options'!$C$7,IF(AB235=\"Group C\",'Suggested management Options'!$C$8,IF(AB235=\"Group D\",'Suggested management Options'!$C$9,IF(AB235=\"Group E\",'Suggested management Options'!$C$10,IF(AB235=\"Group F\",'Suggested management Options'!$C$11,IF(AB235=\"Group G\",'Suggested management Options'!$C$12,IF(AB235=\"Group O\",'Suggested management Options'!$C$13,IF(AB235=\"Group X\",'Suggested management Options'!$C$14,\"\")))))))))))","v":""},"",null,1,"","","","","","","","",null,false,false,false,false,false,false,false,false,false,false,false,"",null,1,0,0,0,0,0,0,0]
["Leucopogon obtectus",6418,"T","EN","D","EN","MWST","MOORA","Eneabba","Oct-Nov","IRP","No",null,null,null,null,"Yes",null,null,null,null,null,null,null,null,null,null,"",{"$f":"IF(AB236=\"Group A.1\",'Suggested management Options'!$C$4, IF(AB236=\"Group A.2(i)\", 'Suggested management Options'!$C$5, IF(AB236=\"Group A.2(ii)\", 'Suggested management Options'!$C$6, IF(AB236=\"Group B\",'Suggested management Options'!$C$7,IF(AB236=\"Group C\",'Suggested management Options'!$C$8,IF(AB236=\"Group D\",'Suggested management Options'!$C$9,IF(AB236=\"Group E\",'Suggested management Options'!$C$10,IF(AB236=\"Group F\",'Suggested management Options'!$C$11,IF(AB236=\"Group G\",'Suggested management Options'!$C$12,IF(AB236=\"Group O\",'Suggested management Options'!$C$13,IF(AB236=\"Group X\",'Suggested management Options'!$C$14,\"\")))))))))))","v":""},"",null,1,"","","","","","","","",null,false,false,false,false,false,false,false,false,false,false,false,"",null,1,0,0,0,0,0,0,0]
["Leucopogon sp. Flynn (F. Hort, J. Hort & A. Lowrie 859)",19424,"T","CR","B1ab(iii,v)+B2ab(iii,v)","CR","SWAN","PERTH HILLS","Wandoo CP, York","Dec-Feb","IRP","No",null,null,null,null,"Yes",null,null,null,null,null,null,null,null,null,null,"",{"$f":"IF(AB237=\"Group A.1\",'Suggested management Options'!$C$4, IF(AB237=\"Group A.2(i)\", 'Suggested management Options'!$C$5, IF(AB237=\"Group A.2(ii)\", 'Suggested management Options'!$C$6, IF(AB237=\"Group B\",'Suggested management Options'!$C$7,IF(AB237=\"Group C\",'Suggested management Options'!$C$8,IF(AB237=\"Group D\",'Suggested management Options'!$C$9,IF(AB237=\"Group E\",'Suggested management Options'!$C$10,IF(AB237=\"Group F\",'Suggested management Options'!$C$11,IF(AB237=\"Group G\",'Suggested management Options'!$C$12,IF(AB237=\"Group O\",'Suggested management Options'!$C$13,IF(AB237=\"Group X\",'Suggested management Options'!$C$14,\"\")))))))))))","v":""},"",null,1,"","","","","","","","",null,false,false,false,false,false,false,false,false,false,false,false,"",null,1,0,0,0,0,0,0,0]
["Leucopogon spectabilis",31795,"T","CR","B1ab(iii; v)+2ab(iii; v)","CR","GOLD","KALGOORLIE","Helena & Aurora Range","Sep","IRP","No",null,null,null,null,"Yes",null,null,null,null,null,null,null,null,null,null,"",{"$f":"IF(AB238=\"Group A.1\",'Suggested management Options'!$C$4, IF(AB238=\"Group A.2(i)\", 'Suggested management Options'!$C$5, IF(AB238=\"Group A.2(ii)\", 'Suggested management Options'!$C$6, IF(AB238=\"Group B\",'Suggested management Options'!$C$7,IF(AB238=\"Group C\",'Suggested management Options'!$C$8,IF(AB238=\"Group D\",'Suggested management Options'!$C$9,IF(AB238=\"Group E\",'Suggested management Options'!$C$10,IF(AB238=\"Group F\",'Suggested management Options'!$C$11,IF(AB238=\"Group G\",'Suggested management Options'!$C$12,IF(AB238=\"Group O\",'Suggested management Options'!$C$13,IF(AB238=\"Group X\",'Suggested management Options'!$C$14,\"\")))))))))))","v":""},"",null,1,"","","","","","","","",null,false,false,false,false,false,false,false,false,false,false,false,"",null,1,0,0,0,0,0,0,0]
["Lysiosepalum abollatum",17740,"T","CR","B1ab(iii; iv; v)+B2ab(iii; iv; v); C2a(ii)","CR","WHTB","CENTRAL WHEATBELT","Wongan Hills","Aug,Sep","IRP","Wongan Hills, 2009","Yes","Yes",null,null,"Yes","Likely Yes",null,"No","No","Long-lived","assumption","No","Likely Yes","No",null,"Group O",{"$f":"IF(AB239=\"Group A.1\",'Suggested management Options'!$C$4, IF(AB239=\"Group A.2(i)\", 'Suggested management Options'!$C$5, IF(AB239=\"Group A.2(ii)\", 'Suggested management Options'!$C$6, IF(AB239=\"Group B\",'Suggested management Options'!$C$7,IF(AB239=\"Group C\",'Suggested management Options'!$C$8,IF(AB239=\"Group D\",'Suggested management Options'!$C$9,IF(AB239=\"Group E\",'Suggested management Options'!$C$10,IF(AB239=\"Group F\",'Suggested management Options'!$C$11,IF(AB239=\"Group G\",'Suggested management Options'!$C$12,IF(AB239=\"Group O\",'Suggested management Options'!$C$13,IF(AB239=\"Group X\",'Suggested management Options'!$C$14,\"\")))))))))))","v":"Introduce disturbance and then re-evaluate"},"INTRODUCE DISTURBANCE FIRST",null,1,1,0,0,1,0,1,0,"",null,false,false,false,false,false,false,false,false,false,true,false,"Group O",null,1,1,0,0,1,1,1,0]
["Macarthuria keigheryi",17106,"T","EN","B2ab(iii)","EN","MWST,SWAN","MOORA,SWAN COASTAL","Mullering Brook, Cooljarloo, Kewdale, Forrestfield","Se-De,Fe-Mar","IRP","Welshpool, 2014?",null,null,null,null,"Yes",null,null,null,null,null,null,null,null,null,null,"",{"$f":"IF(AB240=\"Group A.1\",'Suggested management Options'!$C$4, IF(AB240=\"Group A.2(i)\", 'Suggested management Options'!$C$5, IF(AB240=\"Group A.2(ii)\", 'Suggested management Options'!$C$6, IF(AB240=\"Group B\",'Suggested management Options'!$C$7,IF(AB240=\"Group C\",'Suggested management Options'!$C$8,IF(AB240=\"Group D\",'Suggested management Options'!$C$9,IF(AB240=\"Group E\",'Suggested management Options'!$C$10,IF(AB240=\"Group F\",'Suggested management Options'!$C$11,IF(AB240=\"Group G\",'Suggested management Options'!$C$12,IF(AB240=\"Group O\",'Suggested management Options'!$C$13,IF(AB240=\"Group X\",'Suggested management Options'!$C$14,\"\")))))))))))","v":""},"",null,1,"","","","","","","","",null,false,false,false,false,false,false,false,false,false,false,false,"",null,1,0,0,0,0,0,0,0]
["Marianthus aquilonaris",35522,"T","CR","B1ab(iii,v)+2ab(iii,v); C2a(ii)",null,"SCST","ESPERANCE","Bremer Range, Ravensthorpe Range","Sep","IRP","No",null,null,null,null,"Yes",null,null,null,null,null,null,null,null,null,null,"",{"$f":"IF(AB241=\"Group A.1\",'Suggested management Options'!$C$4, IF(AB241=\"Group A.2(i)\", 'Suggested management Options'!$C$5, IF(AB241=\"Group A.2(ii)\", 'Suggested management Options'!$C$6, IF(AB241=\"Group B\",'Suggested management Options'!$C$7,IF(AB241=\"Group C\",'Suggested management Options'!$C$8,IF(AB241=\"Group D\",'Suggested management Options'!$C$9,IF(AB241=\"Group E\",'Suggested management Options'!$C$10,IF(AB241=\"Group F\",'Suggested management Options'!$C$11,IF(AB241=\"Group G\",'Suggested management Options'!$C$12,IF(AB241=\"Group O\",'Suggested management Options'!$C$13,IF(AB241=\"Group X\",'Suggested management Options'!$C$14,\"\")))))))))))","v":""},"",null,1,"","","","","","","","",null,false,false,false,false,false,false,false,false,false,false,false,"",null,1,0,0,0,0,0,0,0]
["Marianthus paralius",25819,"T","EN","B1ab(v)+B2ab(v); C2a(i); D","EN","SWAN","SWAN COASTAL","Seabird","Sep","IRP","No",null,null,null,null,"Yes",null,null,null,null,null,null,null,null,null,null,"",{"$f":"IF(AB242=\"Group A.1\",'Suggested management Options'!$C$4, IF(AB242=\"Group A.2(i)\", 'Suggested management Options'!$C$5, IF(AB242=\"Group A.2(ii)\", 'Suggested management Options'!$C$6, IF(AB242=\"Group B\",'Suggested management Options'!$C$7,IF(AB242=\"Group C\",'Suggested management Options'!$C$8,IF(AB242=\"Group D\",'Suggested management Options'!$C$9,IF(AB242=\"Group E\",'Suggested management Options'!$C$10,IF(AB242=\"Group F\",'Suggested management Options'!$C$11,IF(AB242=\"Group G\",'Suggested management Options'!$C$12,IF(AB242=\"Group O\",'Suggested management Options'!$C$13,IF(AB242=\"Group X\",'Suggested management Options'!$C$14,\"\")))))))))))","v":""},"",null,1,"","","","","","","","",null,false,false,false,false,false,false,false,false,false,false,false,"",null,1,0,0,0,0,0,0,0]
["Melaleuca sciotostyla",5962,"T","EN","D1+2","EN","WHTB","CENTRAL WHEATBELT","Wongan Hills, Cadoux","Aug",null,"No","No","No",null,null,"Yes","Likely Yes",null,"Yes","Yes","Long-lived","assumption","Yes","Unknown","Yes","Yes","Group B",{"$f":"IF(AB243=\"Group A.1\",'Suggested management Options'!$C$4, IF(AB243=\"Group A.2(i)\", 'Suggested management Options'!$C$5, IF(AB243=\"Group A.2(ii)\", 'Suggested management Options'!$C$6, IF(AB243=\"Group B\",'Suggested management Options'!$C$7,IF(AB243=\"Group C\",'Suggested management Options'!$C$8,IF(AB243=\"Group D\",'Suggested management Options'!$C$9,IF(AB243=\"Group E\",'Suggested management Options'!$C$10,IF(AB243=\"Group F\",'Suggested management Options'!$C$11,IF(AB243=\"Group G\",'Suggested management Options'!$C$12,IF(AB243=\"Group O\",'Suggested management Options'!$C$13,IF(AB243=\"Group X\",'Suggested management Options'!$C$14,\"\")))))))))))","v":"Maintain effective population sizes of >250 reproductively mature individuals. Augment populations of <250 individuals if cost effective."},"MAYBE TRANSLOCATE IF COST-EFFECTIVE",null,1,1,1,1,1,1,-1,1,1,null,false,false,false,true,false,false,false,false,false,false,false,"Group B",null,1,1,1,1,0,0,0,0]
["Melaleuca sp. Wanneroo (G.J. Keighery 16705)",33022,"T","EN","B1ab(i,ii,iii,iv,v)+2ab(i,ii,iii,iv,v); C1",null,"SWAN","SWAN COASTAL","Wanneroo","Dec",null,"No",null,null,null,null,"Yes",null,null,null,null,null,null,null,null,null,null,"",{"$f":"IF(AB244=\"Group A.1\",'Suggested management Options'!$C$4, IF(AB244=\"Group A.2(i)\", 'Suggested management Options'!$C$5, IF(AB244=\"Group A.2(ii)\", 'Suggested management Options'!$C$6, IF(AB244=\"Group B\",'Suggested management Options'!$C$7,IF(AB244=\"Group C\",'Suggested management Options'!$C$8,IF(AB244=\"Group D\",'Suggested management Options'!$C$9,IF(AB244=\"Group E\",'Suggested management Options'!$C$10,IF(AB244=\"Group F\",'Suggested management Options'!$C$11,IF(AB244=\"Group G\",'Suggested management Options'!$C$12,IF(AB244=\"Group O\",'Suggested management Options'!$C$13,IF(AB244=\"Group X\",'Suggested management Options'!$C$14,\"\")))))))))))","v":""},"",null,1,"","","","","","","","",null,false,false,false,false,false,false,false,false,false,false,false,"",null,1,0,0,0,0,0,0,0]
["Myoporum cordifolium",12738,"T","EN","C2a","VU","SCST","ALBANY","Ongerup-Jacup","Jun-Nov",null,"No",null,null,null,null,"Yes",null,null,null,null,null,null,null,null,null,null,"",{"$f":"IF(AB245=\"Group A.1\",'Suggested management Options'!$C$4, IF(AB245=\"Group A.2(i)\", 'Suggested management Options'!$C$5, IF(AB245=\"Group A.2(ii)\", 'Suggested management Options'!$C$6, IF(AB245=\"Group B\",'Suggested management Options'!$C$7,IF(AB245=\"Group C\",'Suggested management Options'!$C$8,IF(AB245=\"Group D\",'Suggested management Options'!$C$9,IF(AB245=\"Group E\",'Suggested management Options'!$C$10,IF(AB245=\"Group F\",'Suggested management Options'!$C$11,IF(AB245=\"Group G\",'Suggested management Options'!$C$12,IF(AB245=\"Group O\",'Suggested management Options'!$C$13,IF(AB245=\"Group X\",'Suggested management Options'!$C$14,\"\")))))))))))","v":""},"",null,1,"","","","","","","","",null,false,false,false,false,false,false,false,false,false,false,false,"",null,1,0,0,0,0,0,0,0]
["Myoporum velutinum",14521,"T","EN","B1ab(iii,iv)+2ab(iii,iv)",null,"SCST","ESPERANCE","Mungliginup Ck, Saddleback Hill","Feb,Sep",null,"No",null,null,null,null,"Yes",null,null,null,null,null,null,null,null,null,null,"",{"$f":"IF(AB246=\"Group A.1\",'Suggested management Options'!$C$4, IF(AB246=\"Group A.2(i)\", 'Suggested management Options'!$C$5, IF(AB246=\"Group A.2(ii)\", 'Suggested management Options'!$C$6, IF(AB246=\"Group B\",'Suggested management Options'!$C$7,IF(AB246=\"Group C\",'Suggested management Options'!$C$8,IF(AB246=\"Group D\",'Suggested management Options'!$C$9,IF(AB246=\"Group E\",'Suggested management Options'!$C$10,IF(AB246=\"Group F\",'Suggested management Options'!$C$11,IF(AB246=\"Group G\",'Suggested management Options'!$C$12,IF(AB246=\"Group O\",'Suggested management Options'!$C$13,IF(AB246=\"Group X\",'Suggested management Options'!$C$14,\"\")))))))))))","v":""},"",null,1,"","","","","","","","",null,false,false,false,false,false,false,false,false,false,false,false,"",null,1,0,0,0,0,0,0,0]
["Myriophyllum lapidicola",13082,"T","EN","B2ab(iii,v); C2a(i)","EN","GOLD,WHTB","KALGOORLIE,CENTRAL WHEATBELT","NW of Chiddarcooping Hill, Yowie Rock, Jaurdi, Yanneymooning","Sep","IRP","No","No","No",null,null,"Yes","Likely No",null,null,"No","Short-lived","known","Yes","Likely Yes","Yes",null,"Group D",{"$f":"IF(AB247=\"Group A.1\",'Suggested management Options'!$C$4, IF(AB247=\"Group A.2(i)\", 'Suggested management Options'!$C$5, IF(AB247=\"Group A.2(ii)\", 'Suggested management Options'!$C$6, IF(AB247=\"Group B\",'Suggested management Options'!$C$7,IF(AB247=\"Group C\",'Suggested management Options'!$C$8,IF(AB247=\"Group D\",'Suggested management Options'!$C$9,IF(AB247=\"Group E\",'Suggested management Options'!$C$10,IF(AB247=\"Group F\",'Suggested management Options'!$C$11,IF(AB247=\"Group G\",'Suggested management Options'!$C$12,IF(AB247=\"Group O\",'Suggested management Options'!$C$13,IF(AB247=\"Group X\",'Suggested management Options'!$C$14,\"\")))))))))))","v":"Protect seedlings and juveniles to increase chances of reaching reproductive maturity"},"DON'T TRANSLOCATE",null,1,0,"",0,0,1,1,1,"",null,false,false,false,false,false,true,false,false,false,false,false,"Group D",null,1,0,1,0,1,0,1,0]
["Ornduffia calthifolia",36201,"T","EN","C2a","EN","SCST","ALBANY","Porongurup Range","Sep-Dec","IRP","No",null,null,null,null,"Yes",null,null,null,null,null,null,null,null,null,null,"",{"$f":"IF(AB248=\"Group A.1\",'Suggested management Options'!$C$4, IF(AB248=\"Group A.2(i)\", 'Suggested management Options'!$C$5, IF(AB248=\"Group A.2(ii)\", 'Suggested management Options'!$C$6, IF(AB248=\"Group B\",'Suggested management Options'!$C$7,IF(AB248=\"Group C\",'Suggested management Options'!$C$8,IF(AB248=\"Group D\",'Suggested management Options'!$C$9,IF(AB248=\"Group E\",'Suggested management Options'!$C$10,IF(AB248=\"Group F\",'Suggested management Options'!$C$11,IF(AB248=\"Group G\",'Suggested management Options'!$C$12,IF(AB248=\"Group O\",'Suggested management Options'!$C$13,IF(AB248=\"Group X\",'Suggested management Options'!$C$14,\"\")))))))))))","v":""},"",null,1,"","","","","","","","",null,false,false,false,false,false,false,false,false,false,false,false,"",null,1,0,0,0,0,0,0,0]
["Pandanus spiralis var. flammeus",11511,"T","EN","C2a; D","EN","KIMB","WEST KIMBERLEY","SE of Broome","Nov","IRP","No",null,null,null,null,"Yes",null,null,null,null,null,null,null,null,null,null,"",{"$f":"IF(AB249=\"Group A.1\",'Suggested management Options'!$C$4, IF(AB249=\"Group A.2(i)\", 'Suggested management Options'!$C$5, IF(AB249=\"Group A.2(ii)\", 'Suggested management Options'!$C$6, IF(AB249=\"Group B\",'Suggested management Options'!$C$7,IF(AB249=\"Group C\",'Suggested management Options'!$C$8,IF(AB249=\"Group D\",'Suggested management Options'!$C$9,IF(AB249=\"Group E\",'Suggested management Options'!$C$10,IF(AB249=\"Group F\",'Suggested management Options'!$C$11,IF(AB249=\"Group G\",'Suggested management Options'!$C$12,IF(AB249=\"Group O\",'Suggested management Options'!$C$13,IF(AB249=\"Group X\",'Suggested management Options'!$C$14,\"\")))))))))))","v":""},"",null,1,"","","","","","","","",null,false,false,false,false,false,false,false,false,false,false,false,"",null,1,0,0,0,0,0,0,0]
["Patersonia spirifolia",29612,"T","EN","B1ab(iii,v)+2ab(iii,v);C2a(ii)b","EN","MWST","MOORA","Badgingarra","Oct-Nov","IRP","No",null,null,null,null,"Yes",null,null,null,null,null,null,null,null,null,null,"",{"$f":"IF(AB250=\"Group A.1\",'Suggested management Options'!$C$4, IF(AB250=\"Group A.2(i)\", 'Suggested management Options'!$C$5, IF(AB250=\"Group A.2(ii)\", 'Suggested management Options'!$C$6, IF(AB250=\"Group B\",'Suggested management Options'!$C$7,IF(AB250=\"Group C\",'Suggested management Options'!$C$8,IF(AB250=\"Group D\",'Suggested management Options'!$C$9,IF(AB250=\"Group E\",'Suggested management Options'!$C$10,IF(AB250=\"Group F\",'Suggested management Options'!$C$11,IF(AB250=\"Group G\",'Suggested management Options'!$C$12,IF(AB250=\"Group O\",'Suggested management Options'!$C$13,IF(AB250=\"Group X\",'Suggested management Options'!$C$14,\"\")))))))))))","v":""},"",null,1,"","","","","","","","",null,false,false,false,false,false,false,false,false,false,false,false,"",null,1,0,0,0,0,0,0,0]
["Persoonia micranthera",14565,"T","CR","B1ab(i,ii,iii,v); C2a(i); D","EN","SCST","ALBANY","Stirling Range N.P.","Feb","IRP","Syred rd, Kamballup, 2005; Luscombe's seed Orchard, 2009",null,null,null,null,"Yes",null,null,null,null,null,null,null,null,null,null,"",{"$f":"IF(AB251=\"Group A.1\",'Suggested management Options'!$C$4, IF(AB251=\"Group A.2(i)\", 'Suggested management Options'!$C$5, IF(AB251=\"Group A.2(ii)\", 'Suggested management Options'!$C$6, IF(AB251=\"Group B\",'Suggested management Options'!$C$7,IF(AB251=\"Group C\",'Suggested management Options'!$C$8,IF(AB251=\"Group D\",'Suggested management Options'!$C$9,IF(AB251=\"Group E\",'Suggested management Options'!$C$10,IF(AB251=\"Group F\",'Suggested management Options'!$C$11,IF(AB251=\"Group G\",'Suggested management Options'!$C$12,IF(AB251=\"Group O\",'Suggested management Options'!$C$13,IF(AB251=\"Group X\",'Suggested management Options'!$C$14,\"\")))))))))))","v":""},"",null,1,"","","","","","","","",null,false,false,false,false,false,false,false,false,false,false,false,"",null,1,0,0,0,0,0,0,0]
["Petrophile latericola",14085,"T","CR","A2c; C1","EN","SWST","BLACKWOOD","Ruabon, Williamson","Oct,Nov","IRP","Negus' Block, Busselton, 2001; Oates Road, Busselton, 2010",null,null,null,null,"No",null,null,null,null,null,null,null,null,null,null,"",{"$f":"IF(AB252=\"Group A.1\",'Suggested management Options'!$C$4, IF(AB252=\"Group A.2(i)\", 'Suggested management Options'!$C$5, IF(AB252=\"Group A.2(ii)\", 'Suggested management Options'!$C$6, IF(AB252=\"Group B\",'Suggested management Options'!$C$7,IF(AB252=\"Group C\",'Suggested management Options'!$C$8,IF(AB252=\"Group D\",'Suggested management Options'!$C$9,IF(AB252=\"Group E\",'Suggested management Options'!$C$10,IF(AB252=\"Group F\",'Suggested management Options'!$C$11,IF(AB252=\"Group G\",'Suggested management Options'!$C$12,IF(AB252=\"Group O\",'Suggested management Options'!$C$13,IF(AB252=\"Group X\",'Suggested management Options'!$C$14,\"\")))))))))))","v":""},"",null,0,"","","","","","","","",null,false,false,false,false,false,false,false,false,false,false,false,"",null,0,0,0,0,0,0,0,0]
["Philotheca basistyla",13497,"T","CR","A1c; B1ab(iii)+2ab(iii); C1","EN","WHTB","CENTRAL WHEATBELT","Trayning","Aug","IRP","No","No","Yes",null,null,"Yes","Likely Yes",null,"Yes","No","Short-lived","?","No","Likely Yes","No",null,"Group F",{"$f":"IF(AB253=\"Group A.1\",'Suggested management Options'!$C$4, IF(AB253=\"Group A.2(i)\", 'Suggested management Options'!$C$5, IF(AB253=\"Group A.2(ii)\", 'Suggested management Options'!$C$6, IF(AB253=\"Group B\",'Suggested management Options'!$C$7,IF(AB253=\"Group C\",'Suggested management Options'!$C$8,IF(AB253=\"Group D\",'Suggested management Options'!$C$9,IF(AB253=\"Group E\",'Suggested management Options'!$C$10,IF(AB253=\"Group F\",'Suggested management Options'!$C$11,IF(AB253=\"Group G\",'Suggested management Options'!$C$12,IF(AB253=\"Group O\",'Suggested management Options'!$C$13,IF(AB253=\"Group X\",'Suggested management Options'!$C$14,\"\")))))))))))","v":"Population will be maintained in-situ in the medium term for the purpose of \"salvage\". Collect cuttings and/or seeds for ex-situ conservation. If cost effective consider augmentation of other populations and/or translocation. For species with soil seed banks this may involve regenerating and managing the population in-situ to recover plant material from 1st and 2nd generations for subsequent salvage."},"DEFINITELY TRANSLOCATE",null,1,1,1,0,0,0,1,0,"",null,false,false,false,false,false,false,false,true,false,false,false,"Group F",null,1,1,1,0,1,1,1,0]
["Philotheca falcata",18517,"T","EN","D","CR","WHTB","CENTRAL WHEATBELT","Yellowdine","Oct",null,"No","No","No",null,null,"Yes","Likely Yes",null,"No","Yes","Short-lived","?","No","Likely Yes","Yes",null,"Group O",{"$f":"IF(AB254=\"Group A.1\",'Suggested management Options'!$C$4, IF(AB254=\"Group A.2(i)\", 'Suggested management Options'!$C$5, IF(AB254=\"Group A.2(ii)\", 'Suggested management Options'!$C$6, IF(AB254=\"Group B\",'Suggested management Options'!$C$7,IF(AB254=\"Group C\",'Suggested management Options'!$C$8,IF(AB254=\"Group D\",'Suggested management Options'!$C$9,IF(AB254=\"Group E\",'Suggested management Options'!$C$10,IF(AB254=\"Group F\",'Suggested management Options'!$C$11,IF(AB254=\"Group G\",'Suggested management Options'!$C$12,IF(AB254=\"Group O\",'Suggested management Options'!$C$13,IF(AB254=\"Group X\",'Suggested management Options'!$C$14,\"\")))))))))))","v":"Introduce disturbance and then re-evaluate"},"INTRODUCE DISTURBANCE FIRST",null,1,1,0,1,0,0,1,1,"",null,false,false,false,false,false,false,false,false,false,true,false,"Group O",null,1,1,0,1,0,1,1,0]
["Philotheca wonganensis",18505,"T","EN","C2a","EN","MWST,WHTB","GERALDTON,CENTRAL WHEATBELT","Wongan Hills, Northampton","Aug-Sep",null,"No","No","No",null,null,"Yes","Likely Yes",null,"No","Yes","Short-lived","?","Yes","Likely Yes","Yes","Yes","Group O",{"$f":"IF(AB255=\"Group A.1\",'Suggested management Options'!$C$4, IF(AB255=\"Group A.2(i)\", 'Suggested management Options'!$C$5, IF(AB255=\"Group A.2(ii)\", 'Suggested management Options'!$C$6, IF(AB255=\"Group B\",'Suggested management Options'!$C$7,IF(AB255=\"Group C\",'Suggested management Options'!$C$8,IF(AB255=\"Group D\",'Suggested management Options'!$C$9,IF(AB255=\"Group E\",'Suggested management Options'!$C$10,IF(AB255=\"Group F\",'Suggested management Options'!$C$11,IF(AB255=\"Group G\",'Suggested management Options'!$C$12,IF(AB255=\"Group O\",'Suggested management Options'!$C$13,IF(AB255=\"Group X\",'Suggested management Options'!$C$14,\"\")))))))))))","v":"Introduce disturbance and then re-evaluate"},"INTRODUCE DISTURBANCE FIRST",null,1,1,0,1,0,1,1,1,1,null,false,false,false,false,false,false,false,false,false,true,false,"Group O",null,1,1,0,1,0,0,1,0]
["Pityrodia scabra subsp. scabra",42560,"T","CR","B1ab(iii,v)+2ab(iii,v); C1; D","EN","WHTB","CENTRAL WHEATBELT","Cowcowing","Aug-Nov","IRP","NR, Wyalkatchem, 1995; PP, Wyalkatchem, 1995","No","No",null,null,"Yes","Likely Yes",null,"Yes","No","Short-lived","known","No","Likely Yes","No",null,"Group F",{"$f":"IF(AB256=\"Group A.1\",'Suggested management Options'!$C$4, IF(AB256=\"Group A.2(i)\", 'Suggested management Options'!$C$5, IF(AB256=\"Group A.2(ii)\", 'Suggested management Options'!$C$6, IF(AB256=\"Group B\",'Suggested management Options'!$C$7,IF(AB256=\"Group C\",'Suggested management Options'!$C$8,IF(AB256=\"Group D\",'Suggested management Options'!$C$9,IF(AB256=\"Group E\",'Suggested management Options'!$C$10,IF(AB256=\"Group F\",'Suggested management Options'!$C$11,IF(AB256=\"Group G\",'Suggested management Options'!$C$12,IF(AB256=\"Group O\",'Suggested management Options'!$C$13,IF(AB256=\"Group X\",'Suggested management Options'!$C$14,\"\")))))))))))","v":"Population will be maintained in-situ in the medium term for the purpose of \"salvage\". Collect cuttings and/or seeds for ex-situ conservation. If cost effective consider augmentation of other populations and/or translocation. For species with soil seed banks this may involve regenerating and managing the population in-situ to recover plant material from 1st and 2nd generations for subsequent salvage."},"DEFINITELY TRANSLOCATE",null,1,1,1,0,0,0,1,0,"",null,false,false,false,false,false,false,false,true,false,false,false,"Group F",null,1,1,1,0,1,1,1,0]
["Pityrodia sp. Marble Bar (G. Woodman & D. Coultas GWDC Opp 4)",37720,"T","EN","B1ab(ii,iii,v)+2ab(ii,iii,v)","EN","PILB","KARRATHA","Marble Bar","Aug",null,"No",null,null,null,null,"Yes",null,null,null,null,null,null,null,null,null,null,"",{"$f":"IF(AB257=\"Group A.1\",'Suggested management Options'!$C$4, IF(AB257=\"Group A.2(i)\", 'Suggested management Options'!$C$5, IF(AB257=\"Group A.2(ii)\", 'Suggested management Options'!$C$6, IF(AB257=\"Group B\",'Suggested management Options'!$C$7,IF(AB257=\"Group C\",'Suggested management Options'!$C$8,IF(AB257=\"Group D\",'Suggested management Options'!$C$9,IF(AB257=\"Group E\",'Suggested management Options'!$C$10,IF(AB257=\"Group F\",'Suggested management Options'!$C$11,IF(AB257=\"Group G\",'Suggested management Options'!$C$12,IF(AB257=\"Group O\",'Suggested management Options'!$C$13,IF(AB257=\"Group X\",'Suggested management Options'!$C$14,\"\")))))))))))","v":""},"",null,1,"","","","","","","","",null,false,false,false,false,false,false,false,false,false,false,false,"",null,1,0,0,0,0,0,0,0]
["Pterostylis sinuata",37460,"T","CR","B1ab(i,ii,iii,iv,v)+2ab(i,ii,iii,iv,v); C2a(i,ii);D","EN","MWST","GERALDTON","NW of Northampton","Aug-Sep","IRP","No",null,null,null,null,"Yes",null,null,null,null,null,null,null,null,null,null,"",{"$f":"IF(AB258=\"Group A.1\",'Suggested management Options'!$C$4, IF(AB258=\"Group A.2(i)\", 'Suggested management Options'!$C$5, IF(AB258=\"Group A.2(ii)\", 'Suggested management Options'!$C$6, IF(AB258=\"Group B\",'Suggested management Options'!$C$7,IF(AB258=\"Group C\",'Suggested management Options'!$C$8,IF(AB258=\"Group D\",'Suggested management Options'!$C$9,IF(AB258=\"Group E\",'Suggested management Options'!$C$10,IF(AB258=\"Group F\",'Suggested management Options'!$C$11,IF(AB258=\"Group G\",'Suggested management Options'!$C$12,IF(AB258=\"Group O\",'Suggested management Options'!$C$13,IF(AB258=\"Group X\",'Suggested management Options'!$C$14,\"\")))))))))))","v":""},"",null,1,"","","","","","","","",null,false,false,false,false,false,false,false,false,false,false,false,"",null,1,0,0,0,0,0,0,0]
["Ptilotus pyramidatus",2753,"T","CR","B1ab(iii)+2ab(iii); D","CR","SWAN","SWAN COASTAL","Kenwick","Oct","IRP","No",null,null,null,null,{"$f":"IF(OR(ISNUMBER(FIND(\"D\",E259)), ISNUMBER(FIND(\"C2a\", E259)),ISNUMBER(FIND(\"C2(a)\",E259)),ISNUMBER(FIND(\"B2a\",E259)), ISNUMBER(FIND(\"2a\",E259))), \"Yes\", \"No\")","v":"Yes"},null,null,null,null,null,null,null,null,null,null,"",{"$f":"IF(AB259=\"Group A.1\",'Suggested management Options'!$C$4, IF(AB259=\"Group A.2(i)\", 'Suggested management Options'!$C$5, IF(AB259=\"Group A.2(ii)\", 'Suggested management Options'!$C$6, IF(AB259=\"Group B\",'Suggested management Options'!$C$7,IF(AB259=\"Group C\",'Suggested management Options'!$C$8,IF(AB259=\"Group D\",'Suggested management Options'!$C$9,IF(AB259=\"Group E\",'Suggested management Options'!$C$10,IF(AB259=\"Group F\",'Suggested management Options'!$C$11,IF(AB259=\"Group G\",'Suggested management Options'!$C$12,IF(AB259=\"Group O\",'Suggested management Options'!$C$13,IF(AB259=\"Group X\",'Suggested management Options'!$C$14,\"\")))))))))))","v":""},"",null,1,"","","","","","","","",null,false,false,false,false,false,false,false,false,false,false,false,"",null,1,0,0,0,0,0,0,0]
["Reedia spathacea",958,"T","EN","A4ac","CR","SWST,WARR","BLACKWOOD,DONNELLY,FRANKLAND","Warren, Careys Flat, Blackwood River, Walpole-Nornalup",null,null,"No",null,null,null,null,"No",null,null,null,null,null,null,null,null,null,null,{"$f":"BA260","v":""},{"$f":"IF(AB260=\"Group A.1\",'Suggested management Options'!$C$4, IF(AB260=\"Group A.2(i)\", 'Suggested management Options'!$C$5, IF(AB260=\"Group A.2(ii)\", 'Suggested management Options'!$C$6, IF(AB260=\"Group B\",'Suggested management Options'!$C$7,IF(AB260=\"Group C\",'Suggested management Options'!$C$8,IF(AB260=\"Group D\",'Suggested management Options'!$C$9,IF(AB260=\"Group E\",'Suggested management Options'!$C$10,IF(AB260=\"Group F\",'Suggested management Options'!$C$11,IF(AB260=\"Group G\",'Suggested management Options'!$C$12,IF(AB260=\"Group O\",'Suggested management Options'!$C$13,IF(AB260=\"Group X\",'Suggested management Options'!$C$14,\"\")))))))))))","v":""},{"$f":"IF(OR(AB260=\"Group A.1\", AB260=\"Group A.2(i)\", AB260=\"Group A.2(ii)\", AB260=\"Group D\"), \"DON'T TRANSLOCATE\", IF(OR(AB260=\"Group B\", AB260=\"Group C\", AB260=\"Group E\"), \"MAYBE TRANSLOCATE IF COST-EFFECTIVE\", IF(OR(AB260=\"Group F\", AB260=\"Group G\"), \"DEFINITELY TRANSLOCATE\", IF(AB260=\"Group X\", \"EVALUATE SEED BANK\", IF(AB260=\"Group O\", \"INTRODUCE DISTURBANCE FIRST\", \"\")))))","v":""},null,{"$f":"IF(Q260=\"Yes\",1,IF(Q260=\"No\",0,\"\"))","v":0},{"$f":"IF(OR(R260=\"Yes-fire\",R260=\"Yes-other\",R260=\"Likely Yes\"),1,IF(OR(R260=\"Likely No\",R260=\"No\"),0,IF(R260=\"Unknown\",-1,\"\")))","v":""},{"$f":"IF(T260=\"Yes\",1,IF(T260=\"No\",0,\"\"))","v":""},{"$f":"IF(U260=\"Yes\",1,IF(U260=\"No\",0,\"\"))","v":""},{"$f":"IF(V260=\"Long-lived\",1,IF(V260=\"Short-lived\",0,\"\"))","v":""},{"$f":"IF(X260=\"Yes\",1,IF(X260=\"No\",0,\"\"))","v":""},{"$f":"IF(OR(Y260=\"Yes\",Y260=\"Likely Yes\"),1,IF(OR(Y260=\"Likely No\",Y260=\"No\"),0,IF(Y260=\"Unknown\",-1,\"\")))","v":""},{"$f":"IF(Z260=\"Yes\",1,IF(Z260=\"No\",0,\"\"))","v":""},{"$f":"IF(AA260=\"Yes\",1,IF(AA260=\"No\",0,\"\"))","v":""},null,{"$f":"AND(AF260=0,AN260=0)","v":false},{"$f":"AND(AF260=0,AJ260=1,AN260=1)","v":false},{"$f":"AND(AF260=0,AJ260=0,AN260=1)","v":false},{"$f":"AND(AF260=1,OR(AND(AG260=1,AH260=1),AG260=0),AI260=1,AJ260=1)","v":false},{"$f":"AND(AF260=1,OR(AND(AG260=1,AH260=1),AG260=0),AI260=1,AJ260=0)","v":false},{"$f":"AND(AF260=1,OR(AND(AG260=1,AH260=1),AG260=0),AI260=0,AK260=1)","v":false},{"$f":"AND(AF260=1,OR(AND(AG260=1,AH260=1),AG260=0),AI260=0,AK260=0,AL260=1,AM260=1)","v":false},{"$f":"AND(AF260=1,OR(AND(AG260=1,AH260=1),AG260=0),AI260=0,AK260=0,AL260=1,AM260=0)","v":false},{"$f":"AND(AF260=1,OR(AND(AG260=1,AH260=1),AG260=0),AI260=0,AK260=0,AL260=0)","v":false},{"$f":"AND(AF260=1,AG260=1,AH260=0)","v":false},{"$f":"AND(AF260=1,OR(AND(AG260=1,AH260=1),AG260=0),AI260=0,AK260=0,AL260=-1)","v":false},"",null,{"$f":"IF(AF260=1,1,0)","v":0},{"$f":"IF(AG260=1,1,0)","v":0},{"$f":"IF(AND(BA260<>\"\",OR(AND(AG260=1,AH260=1),AG260=0)),1,0)","v":0},{"$f":"IF(AND(BA260<>\"\",OR(AI260=1,AN260=1)),1,0)","v":0},{"$f":"IF(AND(BA260<>\"\",AI260=0),1,0)","v":0},{"$f":"IF(AND(BA260<>\"\",AK260=0),1,0)","v":0},{"$f":"IF(AND(BA260<>\"\",AL260=1),1,0)","v":0},{"$f":"IF(AND(BA260<>\"\",AF260=0),1,0)","v":0}]
["Rhacocarpus rehmannianus var. webbianus",23538,"T","CR","B1+2bc",null,"WARR","DONNELLY,FRANKLAND","Mt Chudalup, Mt Roe N.P.",null,"IRP","No",null,null,null,null,"No",null,null,null,null,null,null,null,null,null,null,"",{"$f":"IF(AB261=\"Group A.1\",'Suggested management Options'!$C$4, IF(AB261=\"Group A.2(i)\", 'Suggested management Options'!$C$5, IF(AB261=\"Group A.2(ii)\", 'Suggested management Options'!$C$6, IF(AB261=\"Group B\",'Suggested management Options'!$C$7,IF(AB261=\"Group C\",'Suggested management Options'!$C$8,IF(AB261=\"Group D\",'Suggested management Options'!$C$9,IF(AB261=\"Group E\",'Suggested management Options'!$C$10,IF(AB261=\"Group F\",'Suggested management Options'!$C$11,IF(AB261=\"Group G\",'Suggested management Options'!$C$12,IF(AB261=\"Group O\",'Suggested management Options'!$C$13,IF(AB261=\"Group X\",'Suggested management Options'!$C$14,\"\")))))))))))","v":""},"",null,0,"","","","","","","","",null,false,false,false,false,false,false,false,false,false,false,false,"",null,0,0,0,0,0,0,0,0]
["Rhizanthella gardneri",1699,"T","CR","C1+2a(i); D","EN","SCST,WHTB","ESPERANCE,GREAT SOUTHERN,CENTRAL WHEATBELT","Wubin-Munglinup","May-Jul","IRP","No","No","No",null,null,"Yes","Likely No","population not found after fire at munglinup. Irrigation to encourage regeneration of critical habitat could be useful",null,"No","Long-lived","likely","No","Likely Yes","Yes",null,"Group E",{"$f":"IF(AB262=\"Group A.1\",'Suggested management Options'!$C$4, IF(AB262=\"Group A.2(i)\", 'Suggested management Options'!$C$5, IF(AB262=\"Group A.2(ii)\", 'Suggested management Options'!$C$6, IF(AB262=\"Group B\",'Suggested management Options'!$C$7,IF(AB262=\"Group C\",'Suggested management Options'!$C$8,IF(AB262=\"Group D\",'Suggested management Options'!$C$9,IF(AB262=\"Group E\",'Suggested management Options'!$C$10,IF(AB262=\"Group F\",'Suggested management Options'!$C$11,IF(AB262=\"Group G\",'Suggested management Options'!$C$12,IF(AB262=\"Group O\",'Suggested management Options'!$C$13,IF(AB262=\"Group X\",'Suggested management Options'!$C$14,\"\")))))))))))","v":"Population will be maintained in-situ in the long term. Highest priority will be to increase effective population size to >250 mature plants through promoting in-situ recruitment and/or seed collection, external propagation and subsequent restocking."},"MAYBE TRANSLOCATE IF COST-EFFECTIVE",null,1,0,"",0,1,0,1,1,"",null,false,false,false,false,false,false,true,false,false,false,false,"Group E",null,1,0,1,0,1,1,1,0]
["Rhizanthella johnstonii",48612,"T","CR","B1ab(iii)+2ab(iii); D",null,"SCST","ESPERANCE","Munglinup","late Jun - mid-July",null,"No",null,null,null,null,"Yes",null,null,null,null,null,null,null,null,null,null,"",{"$f":"IF(AB263=\"Group A.1\",'Suggested management Options'!$C$4, IF(AB263=\"Group A.2(i)\", 'Suggested management Options'!$C$5, IF(AB263=\"Group A.2(ii)\", 'Suggested management Options'!$C$6, IF(AB263=\"Group B\",'Suggested management Options'!$C$7,IF(AB263=\"Group C\",'Suggested management Options'!$C$8,IF(AB263=\"Group D\",'Suggested management Options'!$C$9,IF(AB263=\"Group E\",'Suggested management Options'!$C$10,IF(AB263=\"Group F\",'Suggested management Options'!$C$11,IF(AB263=\"Group G\",'Suggested management Options'!$C$12,IF(AB263=\"Group O\",'Suggested management Options'!$C$13,IF(AB263=\"Group X\",'Suggested management Options'!$C$14,\"\")))))))))))","v":""},"",null,1,"","","","","","","","",null,false,false,false,false,false,false,false,false,false,false,false,"",null,1,0,0,0,0,0,0,0]
["Ricinocarpos brevis",14225,"T","EN","B1ab(ii,iii,v)+2ab(ii,iii,v)","EN","GOLD","KALGOORLIE","Diemals, Perrinvale, Windarling","Jun-Jul","IRP","Windarling, ?",null,null,null,null,"Yes",null,null,null,null,null,null,null,null,null,null,"",{"$f":"IF(AB264=\"Group A.1\",'Suggested management Options'!$C$4, IF(AB264=\"Group A.2(i)\", 'Suggested management Options'!$C$5, IF(AB264=\"Group A.2(ii)\", 'Suggested management Options'!$C$6, IF(AB264=\"Group B\",'Suggested management Options'!$C$7,IF(AB264=\"Group C\",'Suggested management Options'!$C$8,IF(AB264=\"Group D\",'Suggested management Options'!$C$9,IF(AB264=\"Group E\",'Suggested management Options'!$C$10,IF(AB264=\"Group F\",'Suggested management Options'!$C$11,IF(AB264=\"Group G\",'Suggested management Options'!$C$12,IF(AB264=\"Group O\",'Suggested management Options'!$C$13,IF(AB264=\"Group X\",'Suggested management Options'!$C$14,\"\")))))))))))","v":""},"",null,1,"","","","","","","","",null,false,false,false,false,false,false,false,false,false,false,false,"",null,1,0,0,0,0,0,0,0]
["Scaevola macrophylla",7622,"T","CR","D","CR","SCST","ALBANY","Cape Riche","-","IRP","No",null,null,null,null,"Yes",null,null,null,null,null,null,null,null,null,null,"",{"$f":"IF(AB265=\"Group A.1\",'Suggested management Options'!$C$4, IF(AB265=\"Group A.2(i)\", 'Suggested management Options'!$C$5, IF(AB265=\"Group A.2(ii)\", 'Suggested management Options'!$C$6, IF(AB265=\"Group B\",'Suggested management Options'!$C$7,IF(AB265=\"Group C\",'Suggested management Options'!$C$8,IF(AB265=\"Group D\",'Suggested management Options'!$C$9,IF(AB265=\"Group E\",'Suggested management Options'!$C$10,IF(AB265=\"Group F\",'Suggested management Options'!$C$11,IF(AB265=\"Group G\",'Suggested management Options'!$C$12,IF(AB265=\"Group O\",'Suggested management Options'!$C$13,IF(AB265=\"Group X\",'Suggested management Options'!$C$14,\"\")))))))))))","v":""},"",null,1,"","","","","","","","",null,false,false,false,false,false,false,false,false,false,false,false,"",null,1,0,0,0,0,0,0,0]
["Schoenia filifolia subsp. subulifolia",13356,"T","EN","A2c; B1ab(iii); D","EN","MWST","GERALDTON","Champion Bay, Geraldton",null,"IRP","Coalseam Conservation Park sites 1,2 and 3, all in 2015",null,null,null,null,"Yes",null,null,null,null,null,null,null,null,null,null,"",{"$f":"IF(AB266=\"Group A.1\",'Suggested management Options'!$C$4, IF(AB266=\"Group A.2(i)\", 'Suggested management Options'!$C$5, IF(AB266=\"Group A.2(ii)\", 'Suggested management Options'!$C$6, IF(AB266=\"Group B\",'Suggested management Options'!$C$7,IF(AB266=\"Group C\",'Suggested management Options'!$C$8,IF(AB266=\"Group D\",'Suggested management Options'!$C$9,IF(AB266=\"Group E\",'Suggested management Options'!$C$10,IF(AB266=\"Group F\",'Suggested management Options'!$C$11,IF(AB266=\"Group G\",'Suggested management Options'!$C$12,IF(AB266=\"Group O\",'Suggested management Options'!$C$13,IF(AB266=\"Group X\",'Suggested management Options'!$C$14,\"\")))))))))))","v":""},"",null,1,"","","","","","","","",null,false,false,false,false,false,false,false,false,false,false,false,"",null,1,0,0,0,0,0,0,0]
["Seringia exastia",46817,"T","CR","B1ab(iii,v)+2ab(iii,v)",null,"KIMB","WEST KIMBERLEY","Broome",null,"IRP","No",null,null,null,null,"Yes",null,null,null,null,null,null,null,null,null,null,"",{"$f":"IF(AB267=\"Group A.1\",'Suggested management Options'!$C$4, IF(AB267=\"Group A.2(i)\", 'Suggested management Options'!$C$5, IF(AB267=\"Group A.2(ii)\", 'Suggested management Options'!$C$6, IF(AB267=\"Group B\",'Suggested management Options'!$C$7,IF(AB267=\"Group C\",'Suggested management Options'!$C$8,IF(AB267=\"Group D\",'Suggested management Options'!$C$9,IF(AB267=\"Group E\",'Suggested management Options'!$C$10,IF(AB267=\"Group F\",'Suggested management Options'!$C$11,IF(AB267=\"Group G\",'Suggested management Options'!$C$12,IF(AB267=\"Group O\",'Suggested management Options'!$C$13,IF(AB267=\"Group X\",'Suggested management Options'!$C$14,\"\")))))))))))","v":""},"",null,1,"","","","","","","","",null,false,false,false,false,false,false,false,false,false,false,false,"",null,1,0,0,0,0,0,0,0]
["Sphenotoma drummondii",6468,"T","EN","C2a","EN","SCST,WARR","ALBANY,FRANKLAND","Stirling Range N.P., Mt Frankland, Porongurup R.","Oct","IRP","No",null,null,null,null,"Yes",null,null,null,null,null,null,null,null,null,null,"",{"$f":"IF(AB268=\"Group A.1\",'Suggested management Options'!$C$4, IF(AB268=\"Group A.2(i)\", 'Suggested management Options'!$C$5, IF(AB268=\"Group A.2(ii)\", 'Suggested management Options'!$C$6, IF(AB268=\"Group B\",'Suggested management Options'!$C$7,IF(AB268=\"Group C\",'Suggested management Options'!$C$8,IF(AB268=\"Group D\",'Suggested management Options'!$C$9,IF(AB268=\"Group E\",'Suggested management Options'!$C$10,IF(AB268=\"Group F\",'Suggested management Options'!$C$11,IF(AB268=\"Group G\",'Suggested management Options'!$C$12,IF(AB268=\"Group O\",'Suggested management Options'!$C$13,IF(AB268=\"Group X\",'Suggested management Options'!$C$14,\"\")))))))))))","v":""},"",null,1,"","","","","","","","",null,false,false,false,false,false,false,false,false,false,false,false,"",null,1,0,0,0,0,0,0,0]
["Stylidium amabile",23470,"T","CR","B1ab(v)+2ab(v); C2a(ii)",null,"MWST","GERALDTON","Latham",null,"IRP","No",null,null,null,null,"Yes",null,null,null,null,null,null,null,null,null,null,"",{"$f":"IF(AB269=\"Group A.1\",'Suggested management Options'!$C$4, IF(AB269=\"Group A.2(i)\", 'Suggested management Options'!$C$5, IF(AB269=\"Group A.2(ii)\", 'Suggested management Options'!$C$6, IF(AB269=\"Group B\",'Suggested management Options'!$C$7,IF(AB269=\"Group C\",'Suggested management Options'!$C$8,IF(AB269=\"Group D\",'Suggested management Options'!$C$9,IF(AB269=\"Group E\",'Suggested management Options'!$C$10,IF(AB269=\"Group F\",'Suggested management Options'!$C$11,IF(AB269=\"Group G\",'Suggested management Options'!$C$12,IF(AB269=\"Group O\",'Suggested management Options'!$C$13,IF(AB269=\"Group X\",'Suggested management Options'!$C$14,\"\")))))))))))","v":""},"",null,1,"","","","","","","","",null,false,false,false,false,false,false,false,false,false,false,false,"",null,1,0,0,0,0,0,0,0]
["Stylidium applanatum",25803,"T","CR","B1ab(iii)+2ab(iii)","CR","WHTB","GREAT SOUTHERN","Corrigin",null,"IRP","No","No","Yes",null,null,"Yes","Likely Yes","Bushfire affected part of population. Some plants resprouted","Yes","Yes","Long-lived","assumption","Yes","Likely Yes","Yes","No","Group B",{"$f":"IF(AB270=\"Group A.1\",'Suggested management Options'!$C$4, IF(AB270=\"Group A.2(i)\", 'Suggested management Options'!$C$5, IF(AB270=\"Group A.2(ii)\", 'Suggested management Options'!$C$6, IF(AB270=\"Group B\",'Suggested management Options'!$C$7,IF(AB270=\"Group C\",'Suggested management Options'!$C$8,IF(AB270=\"Group D\",'Suggested management Options'!$C$9,IF(AB270=\"Group E\",'Suggested management Options'!$C$10,IF(AB270=\"Group F\",'Suggested management Options'!$C$11,IF(AB270=\"Group G\",'Suggested management Options'!$C$12,IF(AB270=\"Group O\",'Suggested management Options'!$C$13,IF(AB270=\"Group X\",'Suggested management Options'!$C$14,\"\")))))))))))","v":"Maintain effective population sizes of >250 reproductively mature individuals. Augment populations of <250 individuals if cost effective."},"MAYBE TRANSLOCATE IF COST-EFFECTIVE",null,1,1,1,1,1,1,1,1,0,null,false,false,false,true,false,false,false,false,false,false,false,"Group B",null,1,1,1,1,0,0,1,0]
["Stylidium asymmetricum",40700,"T","EN","B1ab(ii,iii,v)+2ab(ii,iii,v)",null,"SWAN","PERTH HILLS","Wandoo N.P.","Jan-Feb, Nov",null,"No",null,null,null,null,"Yes",null,null,null,null,null,null,null,null,null,null,"",{"$f":"IF(AB271=\"Group A.1\",'Suggested management Options'!$C$4, IF(AB271=\"Group A.2(i)\", 'Suggested management Options'!$C$5, IF(AB271=\"Group A.2(ii)\", 'Suggested management Options'!$C$6, IF(AB271=\"Group B\",'Suggested management Options'!$C$7,IF(AB271=\"Group C\",'Suggested management Options'!$C$8,IF(AB271=\"Group D\",'Suggested management Options'!$C$9,IF(AB271=\"Group E\",'Suggested management Options'!$C$10,IF(AB271=\"Group F\",'Suggested management Options'!$C$11,IF(AB271=\"Group G\",'Suggested management Options'!$C$12,IF(AB271=\"Group O\",'Suggested management Options'!$C$13,IF(AB271=\"Group X\",'Suggested management Options'!$C$14,\"\")))))))))))","v":""},"",null,1,"","","","","","","","",null,false,false,false,false,false,false,false,false,false,false,false,"",null,1,0,0,0,0,0,0,0]
["Stylidium coroniforme subsp. amblyphyllum",23472,"T","EN","B1ab(iii) + 2ab(iii)",null,"WHTB","CENTRAL WHEATBELT","Quairading",null,null,"No","No","No",null,null,"Yes","Likely Yes",null,"No","Yes","Long-lived","assumption","Yes","Likely Yes","Yes","No","Group O",{"$f":"IF(AB272=\"Group A.1\",'Suggested management Options'!$C$4, IF(AB272=\"Group A.2(i)\", 'Suggested management Options'!$C$5, IF(AB272=\"Group A.2(ii)\", 'Suggested management Options'!$C$6, IF(AB272=\"Group B\",'Suggested management Options'!$C$7,IF(AB272=\"Group C\",'Suggested management Options'!$C$8,IF(AB272=\"Group D\",'Suggested management Options'!$C$9,IF(AB272=\"Group E\",'Suggested management Options'!$C$10,IF(AB272=\"Group F\",'Suggested management Options'!$C$11,IF(AB272=\"Group G\",'Suggested management Options'!$C$12,IF(AB272=\"Group O\",'Suggested management Options'!$C$13,IF(AB272=\"Group X\",'Suggested management Options'!$C$14,\"\")))))))))))","v":"Introduce disturbance and then re-evaluate"},"INTRODUCE DISTURBANCE FIRST",null,1,1,0,1,1,1,1,1,0,null,false,false,false,false,false,false,false,false,false,true,false,"Group O",null,1,1,0,1,0,0,1,0]
["Stylidium coroniforme subsp. coroniforme",23471,"T","EN","B1ab(iii,v)+2ab(iii,v); C2a(i)","EN","MWST,WHTB","GERALDTON,CENTRAL WHEATBELT","Wongan Hills, Latham","Sep","IRP","No","No","No",null,null,"Yes","Likely Yes",null,"No","Yes","Short-lived","observed","Yes","Likely Yes","Yes","No","Group O",{"$f":"IF(AB273=\"Group A.1\",'Suggested management Options'!$C$4, IF(AB273=\"Group A.2(i)\", 'Suggested management Options'!$C$5, IF(AB273=\"Group A.2(ii)\", 'Suggested management Options'!$C$6, IF(AB273=\"Group B\",'Suggested management Options'!$C$7,IF(AB273=\"Group C\",'Suggested management Options'!$C$8,IF(AB273=\"Group D\",'Suggested management Options'!$C$9,IF(AB273=\"Group E\",'Suggested management Options'!$C$10,IF(AB273=\"Group F\",'Suggested management Options'!$C$11,IF(AB273=\"Group G\",'Suggested management Options'!$C$12,IF(AB273=\"Group O\",'Suggested management Options'!$C$13,IF(AB273=\"Group X\",'Suggested management Options'!$C$14,\"\")))))))))))","v":"Introduce disturbance and then re-evaluate"},"INTRODUCE DISTURBANCE FIRST",null,1,1,0,1,0,1,1,1,0,null,false,false,false,false,false,false,false,false,false,true,false,"Group O",null,1,1,0,1,0,0,1,0]
["Stylidium semaphorum",17410,"T","CR","B1&2a,b(v); C2a(I,ii): D","CR","SWAN","PERTH HILLS","Wannamal","Sep-Oct","IRP","No",null,null,null,null,"Yes",null,null,null,null,null,null,null,null,null,null,"",{"$f":"IF(AB274=\"Group A.1\",'Suggested management Options'!$C$4, IF(AB274=\"Group A.2(i)\", 'Suggested management Options'!$C$5, IF(AB274=\"Group A.2(ii)\", 'Suggested management Options'!$C$6, IF(AB274=\"Group B\",'Suggested management Options'!$C$7,IF(AB274=\"Group C\",'Suggested management Options'!$C$8,IF(AB274=\"Group D\",'Suggested management Options'!$C$9,IF(AB274=\"Group E\",'Suggested management Options'!$C$10,IF(AB274=\"Group F\",'Suggested management Options'!$C$11,IF(AB274=\"Group G\",'Suggested management Options'!$C$12,IF(AB274=\"Group O\",'Suggested management Options'!$C$13,IF(AB274=\"Group X\",'Suggested management Options'!$C$14,\"\")))))))))))","v":""},"",null,1,"","","","","","","","",null,false,false,false,false,false,false,false,false,false,false,false,"",null,1,0,0,0,0,0,0,0]
["Styphelia longissima",48294,"T","CR","B1ab(iii,v)+2ab(iii,v)","CR","MWST","MOORA","Eneabba","Jul",null,"No",null,null,null,null,"Yes",null,null,null,null,null,null,null,null,null,null,"",{"$f":"IF(AB275=\"Group A.1\",'Suggested management Options'!$C$4, IF(AB275=\"Group A.2(i)\", 'Suggested management Options'!$C$5, IF(AB275=\"Group A.2(ii)\", 'Suggested management Options'!$C$6, IF(AB275=\"Group B\",'Suggested management Options'!$C$7,IF(AB275=\"Group C\",'Suggested management Options'!$C$8,IF(AB275=\"Group D\",'Suggested management Options'!$C$9,IF(AB275=\"Group E\",'Suggested management Options'!$C$10,IF(AB275=\"Group F\",'Suggested management Options'!$C$11,IF(AB275=\"Group G\",'Suggested management Options'!$C$12,IF(AB275=\"Group O\",'Suggested management Options'!$C$13,IF(AB275=\"Group X\",'Suggested management Options'!$C$14,\"\")))))))))))","v":""},"",null,1,"","","","","","","","",null,false,false,false,false,false,false,false,false,false,false,false,{"$f":"IF(AP275,\"Group A.1\",\"\")&IF(AQ275,\"Group A.2(i)\",\"\")&IF(AR275,\"Group A.2(ii)\",\"\")&IF(AS275,\"Group B\",\"\")&IF(AT275,\"Group C\",\"\")&IF(AU275,\"Group D\",\"\")&IF(AV275,\"Group E\",\"\")&IF(AW275,\"Group F\",\"\")&IF(AX275,\"Group G\",\"\")&IF(AY275,\"Group O\",\"\")&IF(AZ275,\"Group X\",\"\")","v":""},null,1,0,0,0,0,0,0,0]
["Symonanthus bancroftii",7044,"T","CR","A1c; B1ab(iii,v)+2ab(iii,v); C1; D","EN","WHTB","CENTRAL WHEATBELT","Bruce Rock","Jun(Sep)","IRP","Ardath, 2002; Bruce Rock (Nangeen Hill Nature Reserve?), 2002","Yes","No",null,null,"Yes","Yes-fire","populations discovered on roadsides, railway lines and in a recently burnt reserve","Yes","No","Short-lived","known","No","Yes","Yes",null,"Group E",{"$f":"IF(AB276=\"Group A.1\",'Suggested management Options'!$C$4, IF(AB276=\"Group A.2(i)\", 'Suggested management Options'!$C$5, IF(AB276=\"Group A.2(ii)\", 'Suggested management Options'!$C$6, IF(AB276=\"Group B\",'Suggested management Options'!$C$7,IF(AB276=\"Group C\",'Suggested management Options'!$C$8,IF(AB276=\"Group D\",'Suggested management Options'!$C$9,IF(AB276=\"Group E\",'Suggested management Options'!$C$10,IF(AB276=\"Group F\",'Suggested management Options'!$C$11,IF(AB276=\"Group G\",'Suggested management Options'!$C$12,IF(AB276=\"Group O\",'Suggested management Options'!$C$13,IF(AB276=\"Group X\",'Suggested management Options'!$C$14,\"\")))))))))))","v":"Population will be maintained in-situ in the long term. Highest priority will be to increase effective population size to >250 mature plants through promoting in-situ recruitment and/or seed collection, external propagation and subsequent restocking."},"MAYBE TRANSLOCATE IF COST-EFFECTIVE",null,1,1,1,0,0,0,1,1,"",null,false,false,false,false,false,false,true,false,false,false,false,"Group E",null,1,1,1,0,1,1,1,0]
["Synaphea quartzitica",16374,"T","EN","D","EN","MWST","MOORA","Moora","Jul-Oct","IRP","NR near Gunyidi, 2005",null,null,null,null,"Yes",null,null,null,null,null,null,null,null,null,null,"",{"$f":"IF(AB277=\"Group A.1\",'Suggested management Options'!$C$4, IF(AB277=\"Group A.2(i)\", 'Suggested management Options'!$C$5, IF(AB277=\"Group A.2(ii)\", 'Suggested management Options'!$C$6, IF(AB277=\"Group B\",'Suggested management Options'!$C$7,IF(AB277=\"Group C\",'Suggested management Options'!$C$8,IF(AB277=\"Group D\",'Suggested management Options'!$C$9,IF(AB277=\"Group E\",'Suggested management Options'!$C$10,IF(AB277=\"Group F\",'Suggested management Options'!$C$11,IF(AB277=\"Group G\",'Suggested management Options'!$C$12,IF(AB277=\"Group O\",'Suggested management Options'!$C$13,IF(AB277=\"Group X\",'Suggested management Options'!$C$14,\"\")))))))))))","v":""},"",null,1,"","","","","","","","",null,false,false,false,false,false,false,false,false,false,false,false,"",null,1,0,0,0,0,0,0,0]
["Synaphea sp. Fairbridge Farm (D. Papenfus 696)",18590,"T","CR","B1ab(iii)","CR","SWAN,SWST","SWAN COASTAL,WELLINGTON","Pinjarra, Dardanup, Serpentine, Kooljerrenup N.R., Dardanup","Oct","IRP","No",null,null,null,null,"No",null,null,null,null,null,null,null,null,null,null,"",{"$f":"IF(AB278=\"Group A.1\",'Suggested management Options'!$C$4, IF(AB278=\"Group A.2(i)\", 'Suggested management Options'!$C$5, IF(AB278=\"Group A.2(ii)\", 'Suggested management Options'!$C$6, IF(AB278=\"Group B\",'Suggested management Options'!$C$7,IF(AB278=\"Group C\",'Suggested management Options'!$C$8,IF(AB278=\"Group D\",'Suggested management Options'!$C$9,IF(AB278=\"Group E\",'Suggested management Options'!$C$10,IF(AB278=\"Group F\",'Suggested management Options'!$C$11,IF(AB278=\"Group G\",'Suggested management Options'!$C$12,IF(AB278=\"Group O\",'Suggested management Options'!$C$13,IF(AB278=\"Group X\",'Suggested management Options'!$C$14,\"\")))))))))))","v":""},"",null,0,"","","","","","","","",null,false,false,false,false,false,false,false,false,false,false,false,"",null,0,0,0,0,0,0,0,0]
["Synaphea sp. Pinjarra (R. Davis 6578)",19055,"T","CR","B1+2ce","CR","SWAN","SWAN COASTAL","Dandalup","Sep","IRP","No",null,null,null,null,"No",null,null,null,null,null,null,null,null,null,null,"",{"$f":"IF(AB279=\"Group A.1\",'Suggested management Options'!$C$4, IF(AB279=\"Group A.2(i)\", 'Suggested management Options'!$C$5, IF(AB279=\"Group A.2(ii)\", 'Suggested management Options'!$C$6, IF(AB279=\"Group B\",'Suggested management Options'!$C$7,IF(AB279=\"Group C\",'Suggested management Options'!$C$8,IF(AB279=\"Group D\",'Suggested management Options'!$C$9,IF(AB279=\"Group E\",'Suggested management Options'!$C$10,IF(AB279=\"Group F\",'Suggested management Options'!$C$11,IF(AB279=\"Group G\",'Suggested management Options'!$C$12,IF(AB279=\"Group O\",'Suggested management Options'!$C$13,IF(AB279=\"Group X\",'Suggested management Options'!$C$14,\"\")))))))))))","v":""},"",null,0,"","","","","","","","",null,false,false,false,false,false,false,false,false,false,false,false,"",null,0,0,0,0,0,0,0,0]
["Synaphea sp. Pinjarra Plain (A.S. George 17182)",30751,"T","EN","B1ab(i,ii,iii,iv,v)+B2ab(i,ii,iii,iv,v); C2(a)(i)","EN","SWAN","SWAN COASTAL","Mundijong, Serpentine","Oct","IRP","No",null,null,null,null,"Yes",null,null,null,null,null,null,null,null,null,null,"",{"$f":"IF(AB280=\"Group A.1\",'Suggested management Options'!$C$4, IF(AB280=\"Group A.2(i)\", 'Suggested management Options'!$C$5, IF(AB280=\"Group A.2(ii)\", 'Suggested management Options'!$C$6, IF(AB280=\"Group B\",'Suggested management Options'!$C$7,IF(AB280=\"Group C\",'Suggested management Options'!$C$8,IF(AB280=\"Group D\",'Suggested management Options'!$C$9,IF(AB280=\"Group E\",'Suggested management Options'!$C$10,IF(AB280=\"Group F\",'Suggested management Options'!$C$11,IF(AB280=\"Group G\",'Suggested management Options'!$C$12,IF(AB280=\"Group O\",'Suggested management Options'!$C$13,IF(AB280=\"Group X\",'Suggested management Options'!$C$14,\"\")))))))))))","v":""},"",null,1,"","","","","","","","",null,false,false,false,false,false,false,false,false,false,false,false,"",null,1,0,0,0,0,0,0,0]
["Synaphea sp. Serpentine (G.R. Brand 103)",28354,"T","CR","B1ab(ii,iii,v)","CR","SWAN,SWST","SWAN COASTAL,WELLINGTON","Serpentine, Mundijong, Byford, Yarloop","Aug-Nov","IRP","No",null,null,null,null,"No",null,null,null,null,null,null,null,null,null,null,"",{"$f":"IF(AB281=\"Group A.1\",'Suggested management Options'!$C$4, IF(AB281=\"Group A.2(i)\", 'Suggested management Options'!$C$5, IF(AB281=\"Group A.2(ii)\", 'Suggested management Options'!$C$6, IF(AB281=\"Group B\",'Suggested management Options'!$C$7,IF(AB281=\"Group C\",'Suggested management Options'!$C$8,IF(AB281=\"Group D\",'Suggested management Options'!$C$9,IF(AB281=\"Group E\",'Suggested management Options'!$C$10,IF(AB281=\"Group F\",'Suggested management Options'!$C$11,IF(AB281=\"Group G\",'Suggested management Options'!$C$12,IF(AB281=\"Group O\",'Suggested management Options'!$C$13,IF(AB281=\"Group X\",'Suggested management Options'!$C$14,\"\")))))))))))","v":""},"",null,0,"","","","","","","","",null,false,false,false,false,false,false,false,false,false,false,false,"",null,0,0,0,0,0,0,0,0]
["Synaphea stenoloba",16749,"T","CR","B1ab(iii)+2ab(iii)","EN","SWAN","PERTH HILLS,SWAN COASTAL","Pinjarra","Aug-Oct","IRP","Alcoa, Pinjarra, 2005; Dwellingup, 2017",null,null,null,null,"Yes",null,null,null,null,null,null,null,null,null,null,"",{"$f":"IF(AB282=\"Group A.1\",'Suggested management Options'!$C$4, IF(AB282=\"Group A.2(i)\", 'Suggested management Options'!$C$5, IF(AB282=\"Group A.2(ii)\", 'Suggested management Options'!$C$6, IF(AB282=\"Group B\",'Suggested management Options'!$C$7,IF(AB282=\"Group C\",'Suggested management Options'!$C$8,IF(AB282=\"Group D\",'Suggested management Options'!$C$9,IF(AB282=\"Group E\",'Suggested management Options'!$C$10,IF(AB282=\"Group F\",'Suggested management Options'!$C$11,IF(AB282=\"Group G\",'Suggested management Options'!$C$12,IF(AB282=\"Group O\",'Suggested management Options'!$C$13,IF(AB282=\"Group X\",'Suggested management Options'!$C$14,\"\")))))))))))","v":""},"",null,1,"","","","","","","","",null,false,false,false,false,false,false,false,false,false,false,false,"",null,1,0,0,0,0,0,0,0]
["Tetratheca deltoidea",4529,"T","CR","B1ab(iii,v)+2ab(iii,v); D","EN","WHTB","CENTRAL WHEATBELT","Mt Caroline","Aug-Sep","IRP","No","No","Yes",null,null,"Yes","Likely No","granite habitat","No","No","Short-lived","?","No","Likely Yes","Yes",null,"Group E",{"$f":"IF(AB283=\"Group A.1\",'Suggested management Options'!$C$4, IF(AB283=\"Group A.2(i)\", 'Suggested management Options'!$C$5, IF(AB283=\"Group A.2(ii)\", 'Suggested management Options'!$C$6, IF(AB283=\"Group B\",'Suggested management Options'!$C$7,IF(AB283=\"Group C\",'Suggested management Options'!$C$8,IF(AB283=\"Group D\",'Suggested management Options'!$C$9,IF(AB283=\"Group E\",'Suggested management Options'!$C$10,IF(AB283=\"Group F\",'Suggested management Options'!$C$11,IF(AB283=\"Group G\",'Suggested management Options'!$C$12,IF(AB283=\"Group O\",'Suggested management Options'!$C$13,IF(AB283=\"Group X\",'Suggested management Options'!$C$14,\"\")))))))))))","v":"Population will be maintained in-situ in the long term. Highest priority will be to increase effective population size to >250 mature plants through promoting in-situ recruitment and/or seed collection, external propagation and subsequent restocking."},"MAYBE TRANSLOCATE IF COST-EFFECTIVE",null,1,0,0,0,0,0,1,1,"",null,false,false,false,false,false,false,true,false,false,false,false,"Group E",null,1,0,1,0,1,1,1,0]
["Tetratheca nephelioides",23989,"T","EN","B1ab(iii)+2ab(iii); D","CR","MWST","MOORA","Eneabba","Sep",null,"No",null,null,null,null,"Yes",null,null,null,null,null,null,null,null,null,null,"",{"$f":"IF(AB284=\"Group A.1\",'Suggested management Options'!$C$4, IF(AB284=\"Group A.2(i)\", 'Suggested management Options'!$C$5, IF(AB284=\"Group A.2(ii)\", 'Suggested management Options'!$C$6, IF(AB284=\"Group B\",'Suggested management Options'!$C$7,IF(AB284=\"Group C\",'Suggested management Options'!$C$8,IF(AB284=\"Group D\",'Suggested management Options'!$C$9,IF(AB284=\"Group E\",'Suggested management Options'!$C$10,IF(AB284=\"Group F\",'Suggested management Options'!$C$11,IF(AB284=\"Group G\",'Suggested management Options'!$C$12,IF(AB284=\"Group O\",'Suggested management Options'!$C$13,IF(AB284=\"Group X\",'Suggested management Options'!$C$14,\"\")))))))))))","v":""},"",null,1,"","","","","","","","",null,false,false,false,false,false,false,false,false,false,false,false,"",null,1,0,0,0,0,0,0,0]
["Tetratheca paynterae subsp. paynterae",23988,"T","CR","B1ab(ii,iii,v)","EN","GOLD","KALGOORLIE","Windarling Range","Apr-Nov","IRP","Windarling, ?",null,null,null,null,"No",null,null,null,null,null,null,null,null,null,null,"",{"$f":"IF(AB285=\"Group A.1\",'Suggested management Options'!$C$4, IF(AB285=\"Group A.2(i)\", 'Suggested management Options'!$C$5, IF(AB285=\"Group A.2(ii)\", 'Suggested management Options'!$C$6, IF(AB285=\"Group B\",'Suggested management Options'!$C$7,IF(AB285=\"Group C\",'Suggested management Options'!$C$8,IF(AB285=\"Group D\",'Suggested management Options'!$C$9,IF(AB285=\"Group E\",'Suggested management Options'!$C$10,IF(AB285=\"Group F\",'Suggested management Options'!$C$11,IF(AB285=\"Group G\",'Suggested management Options'!$C$12,IF(AB285=\"Group O\",'Suggested management Options'!$C$13,IF(AB285=\"Group X\",'Suggested management Options'!$C$14,\"\")))))))))))","v":""},"",null,0,"","","","","","","","",null,false,false,false,false,false,false,false,false,false,false,false,"",null,0,0,0,0,0,0,0,0]
["Thelymitra dedmaniarum",13687,"T","CR","B1ab(i,ii,iii,v); C2a(i); D","EN","SWAN","PERTH HILLS,SWAN COASTAL","Gidgegannup, Red Hill, Boonanarring NR","Oct-Nov","IRP","?,?",null,null,null,null,"Yes",null,null,null,null,null,null,null,null,null,null,"",{"$f":"IF(AB286=\"Group A.1\",'Suggested management Options'!$C$4, IF(AB286=\"Group A.2(i)\", 'Suggested management Options'!$C$5, IF(AB286=\"Group A.2(ii)\", 'Suggested management Options'!$C$6, IF(AB286=\"Group B\",'Suggested management Options'!$C$7,IF(AB286=\"Group C\",'Suggested management Options'!$C$8,IF(AB286=\"Group D\",'Suggested management Options'!$C$9,IF(AB286=\"Group E\",'Suggested management Options'!$C$10,IF(AB286=\"Group F\",'Suggested management Options'!$C$11,IF(AB286=\"Group G\",'Suggested management Options'!$C$12,IF(AB286=\"Group O\",'Suggested management Options'!$C$13,IF(AB286=\"Group X\",'Suggested management Options'!$C$14,\"\")))))))))))","v":""},"",null,1,"","","","","","","","",null,false,false,false,false,false,false,false,false,false,false,false,"",null,1,0,0,0,0,0,0,0]
["Thelymitra stellata",10862,"T","EN","D; C2a","EN","MWST,SWAN,WHTB","MOORA,PERTH HILLS,GREAT SOUTHERN","Perth-Three Springs, Pinjarra, Dumbleyung, Corrigin, Bungendore Park, Unnamed Shire Reserve 34155, Hartfield Rd, Mt Peron, Jurien Bay, Mt Lesueur NP, Arthur River, Coomallo NR, Julimar, Chittering, Armadale","Oct-Nov",null,"?,?","No","No",null,null,"Yes","Likely No",null,null,"No","Long-lived","assumption","No","Likely Yes","Yes",null,"Group E",{"$f":"IF(AB287=\"Group A.1\",'Suggested management Options'!$C$4, IF(AB287=\"Group A.2(i)\", 'Suggested management Options'!$C$5, IF(AB287=\"Group A.2(ii)\", 'Suggested management Options'!$C$6, IF(AB287=\"Group B\",'Suggested management Options'!$C$7,IF(AB287=\"Group C\",'Suggested management Options'!$C$8,IF(AB287=\"Group D\",'Suggested management Options'!$C$9,IF(AB287=\"Group E\",'Suggested management Options'!$C$10,IF(AB287=\"Group F\",'Suggested management Options'!$C$11,IF(AB287=\"Group G\",'Suggested management Options'!$C$12,IF(AB287=\"Group O\",'Suggested management Options'!$C$13,IF(AB287=\"Group X\",'Suggested management Options'!$C$14,\"\")))))))))))","v":"Population will be maintained in-situ in the long term. Highest priority will be to increase effective population size to >250 mature plants through promoting in-situ recruitment and/or seed collection, external propagation and subsequent restocking."},"MAYBE TRANSLOCATE IF COST-EFFECTIVE",null,1,0,"",0,1,0,1,1,"",null,false,false,false,false,false,false,true,false,false,false,false,"Group E",null,1,0,1,0,1,1,1,0]
["Thomasia sp. Green Hill (S. Paust 1322)",14248,"T","CR","B1ab(iii)+2ab(iii)","EN","MWST,WHTB","MOORA","New Norcia","Oct","IRP","No",null,null,null,null,"Yes","Likely Yes",null,"Yes","No","Long-lived",null,"No","Likely Yes","Yes",null,"Group E",{"$f":"IF(AB288=\"Group A.1\",'Suggested management Options'!$C$4, IF(AB288=\"Group A.2(i)\", 'Suggested management Options'!$C$5, IF(AB288=\"Group A.2(ii)\", 'Suggested management Options'!$C$6, IF(AB288=\"Group B\",'Suggested management Options'!$C$7,IF(AB288=\"Group C\",'Suggested management Options'!$C$8,IF(AB288=\"Group D\",'Suggested management Options'!$C$9,IF(AB288=\"Group E\",'Suggested management Options'!$C$10,IF(AB288=\"Group F\",'Suggested management Options'!$C$11,IF(AB288=\"Group G\",'Suggested management Options'!$C$12,IF(AB288=\"Group O\",'Suggested management Options'!$C$13,IF(AB288=\"Group X\",'Suggested management Options'!$C$14,\"\")))))))))))","v":"Population will be maintained in-situ in the long term. Highest priority will be to increase effective population size to >250 mature plants through promoting in-situ recruitment and/or seed collection, external propagation and subsequent restocking."},"MAYBE TRANSLOCATE IF COST-EFFECTIVE",null,1,1,1,0,1,0,1,1,"",null,false,false,false,false,false,false,true,false,false,false,false,"Group E",null,1,1,1,0,1,1,1,0]
["Trithuria occidentalis",32658,"T","CR","B1ab(iii)+2ab(iii)","EN","SWAN,WHTB","SWAN COASTAL,CENTRAL WHEATBELT","Ellenbrook N.R.,  (Midland), Gillingarra","Sep-Nov","IRP","No",null,null,null,null,"Yes",null,null,null,null,null,null,null,null,null,null,"",{"$f":"IF(AB289=\"Group A.1\",'Suggested management Options'!$C$4, IF(AB289=\"Group A.2(i)\", 'Suggested management Options'!$C$5, IF(AB289=\"Group A.2(ii)\", 'Suggested management Options'!$C$6, IF(AB289=\"Group B\",'Suggested management Options'!$C$7,IF(AB289=\"Group C\",'Suggested management Options'!$C$8,IF(AB289=\"Group D\",'Suggested management Options'!$C$9,IF(AB289=\"Group E\",'Suggested management Options'!$C$10,IF(AB289=\"Group F\",'Suggested management Options'!$C$11,IF(AB289=\"Group G\",'Suggested management Options'!$C$12,IF(AB289=\"Group O\",'Suggested management Options'!$C$13,IF(AB289=\"Group X\",'Suggested management Options'!$C$14,\"\")))))))))))","v":""},"",null,1,"","","","","","","","",null,false,false,false,false,false,false,false,false,false,false,false,"",null,1,0,0,0,0,0,0,0]
["Typhonium sp. Kununurra (A.N. Start ANS 1467)",20710,"T","EN","A3c, B2ab(ii,iii,iv)",null,"KIMB","EAST KIMBERLEY","Kununurra, NT",null,null,"No",null,null,null,null,"Yes",null,null,null,null,null,null,null,null,null,null,"",{"$f":"IF(AB290=\"Group A.1\",'Suggested management Options'!$C$4, IF(AB290=\"Group A.2(i)\", 'Suggested management Options'!$C$5, IF(AB290=\"Group A.2(ii)\", 'Suggested management Options'!$C$6, IF(AB290=\"Group B\",'Suggested management Options'!$C$7,IF(AB290=\"Group C\",'Suggested management Options'!$C$8,IF(AB290=\"Group D\",'Suggested management Options'!$C$9,IF(AB290=\"Group E\",'Suggested management Options'!$C$10,IF(AB290=\"Group F\",'Suggested management Options'!$C$11,IF(AB290=\"Group G\",'Suggested management Options'!$C$12,IF(AB290=\"Group O\",'Suggested management Options'!$C$13,IF(AB290=\"Group X\",'Suggested management Options'!$C$14,\"\")))))))))))","v":""},"",null,1,"","","","","","","","",null,false,false,false,false,false,false,false,false,false,false,false,"",null,1,0,0,0,0,0,0,0]
["Verticordia albida",12389,"T","CR","A2c (IUCN 2000)","EN","MWST","MOORA,GERALDTON","Three Springs, Eneabba, Wicherina","Dec","IRP","PP sw of Three Springs, 2004",null,null,null,null,"No",null,null,null,null,null,null,null,null,null,null,"",{"$f":"IF(AB291=\"Group A.1\",'Suggested management Options'!$C$4, IF(AB291=\"Group A.2(i)\", 'Suggested management Options'!$C$5, IF(AB291=\"Group A.2(ii)\", 'Suggested management Options'!$C$6, IF(AB291=\"Group B\",'Suggested management Options'!$C$7,IF(AB291=\"Group C\",'Suggested management Options'!$C$8,IF(AB291=\"Group D\",'Suggested management Options'!$C$9,IF(AB291=\"Group E\",'Suggested management Options'!$C$10,IF(AB291=\"Group F\",'Suggested management Options'!$C$11,IF(AB291=\"Group G\",'Suggested management Options'!$C$12,IF(AB291=\"Group O\",'Suggested management Options'!$C$13,IF(AB291=\"Group X\",'Suggested management Options'!$C$14,\"\")))))))))))","v":""},"",null,0,"","","","","","","","",null,false,false,false,false,false,false,false,false,false,false,false,"",null,0,0,0,0,0,0,0,0]
["Verticordia apecta",14660,"T","CR","B1ab(ii,v); D","CR","WARR","FRANKLAND","Mount Barker","Nov","IRP","No",null,null,null,null,"Yes",null,null,null,null,null,null,null,null,null,null,"",{"$f":"IF(AB292=\"Group A.1\",'Suggested management Options'!$C$4, IF(AB292=\"Group A.2(i)\", 'Suggested management Options'!$C$5, IF(AB292=\"Group A.2(ii)\", 'Suggested management Options'!$C$6, IF(AB292=\"Group B\",'Suggested management Options'!$C$7,IF(AB292=\"Group C\",'Suggested management Options'!$C$8,IF(AB292=\"Group D\",'Suggested management Options'!$C$9,IF(AB292=\"Group E\",'Suggested management Options'!$C$10,IF(AB292=\"Group F\",'Suggested management Options'!$C$11,IF(AB292=\"Group G\",'Suggested management Options'!$C$12,IF(AB292=\"Group O\",'Suggested management Options'!$C$13,IF(AB292=\"Group X\",'Suggested management Options'!$C$14,\"\")))))))))))","v":""},"",null,1,"","","","","","","","",null,false,false,false,false,false,false,false,false,false,false,false,"",null,1,0,0,0,0,0,0,0]
["Verticordia densiflora var. pedunculata",12412,"T","EN","C2a","EN","SWST,WARR","BLACKWOOD,DONNELLY","Busselton, Perup, Ruabon, Manjimup","Dec",null,"No",null,null,null,null,"Yes",null,null,null,null,null,null,null,null,null,null,"",{"$f":"IF(AB293=\"Group A.1\",'Suggested management Options'!$C$4, IF(AB293=\"Group A.2(i)\", 'Suggested management Options'!$C$5, IF(AB293=\"Group A.2(ii)\", 'Suggested management Options'!$C$6, IF(AB293=\"Group B\",'Suggested management Options'!$C$7,IF(AB293=\"Group C\",'Suggested management Options'!$C$8,IF(AB293=\"Group D\",'Suggested management Options'!$C$9,IF(AB293=\"Group E\",'Suggested management Options'!$C$10,IF(AB293=\"Group F\",'Suggested management Options'!$C$11,IF(AB293=\"Group G\",'Suggested management Options'!$C$12,IF(AB293=\"Group O\",'Suggested management Options'!$C$13,IF(AB293=\"Group X\",'Suggested management Options'!$C$14,\"\")))))))))))","v":""},"",null,1,"","","","","","","","",null,false,false,false,false,false,false,false,false,false,false,false,"",null,1,0,0,0,0,0,0,0]
["Verticordia fimbrilepis subsp. australis",12424,"T","EN","C2b","VU","SCST,WARR","ALBANY,FRANKLAND","Kent River, Albany",null,null,"No",null,null,null,null,"No",null,null,null,null,null,null,null,null,null,null,"",{"$f":"IF(AB294=\"Group A.1\",'Suggested management Options'!$C$4, IF(AB294=\"Group A.2(i)\", 'Suggested management Options'!$C$5, IF(AB294=\"Group A.2(ii)\", 'Suggested management Options'!$C$6, IF(AB294=\"Group B\",'Suggested management Options'!$C$7,IF(AB294=\"Group C\",'Suggested management Options'!$C$8,IF(AB294=\"Group D\",'Suggested management Options'!$C$9,IF(AB294=\"Group E\",'Suggested management Options'!$C$10,IF(AB294=\"Group F\",'Suggested management Options'!$C$11,IF(AB294=\"Group G\",'Suggested management Options'!$C$12,IF(AB294=\"Group O\",'Suggested management Options'!$C$13,IF(AB294=\"Group X\",'Suggested management Options'!$C$14,\"\")))))))))))","v":""},"",null,0,"","","","","","","","",null,false,false,false,false,false,false,false,false,false,false,false,"",null,0,0,0,0,0,0,0,0]
["Verticordia hughanii",6089,"T","EN","B1+2c","EN","WHTB","CENTRAL WHEATBELT","Dowerin-Goomalling","Nov-Feb","IRP","No","No","No",null,null,"No","Yes-fire",null,"No","Yes","Long-lived","likely","Yes","Likely Yes","Yes","Yes","Group A.2(i)",{"$f":"IF(AB295=\"Group A.1\",'Suggested management Options'!$C$4, IF(AB295=\"Group A.2(i)\", 'Suggested management Options'!$C$5, IF(AB295=\"Group A.2(ii)\", 'Suggested management Options'!$C$6, IF(AB295=\"Group B\",'Suggested management Options'!$C$7,IF(AB295=\"Group C\",'Suggested management Options'!$C$8,IF(AB295=\"Group D\",'Suggested management Options'!$C$9,IF(AB295=\"Group E\",'Suggested management Options'!$C$10,IF(AB295=\"Group F\",'Suggested management Options'!$C$11,IF(AB295=\"Group G\",'Suggested management Options'!$C$12,IF(AB295=\"Group O\",'Suggested management Options'!$C$13,IF(AB295=\"Group X\",'Suggested management Options'!$C$14,\"\")))))))))))","v":"Species is relatively less secure compared to Group A.1. Monitoring required. Management could include….. ?"},"DON'T TRANSLOCATE",null,0,1,0,1,1,1,1,1,1,null,false,true,false,false,false,false,false,false,false,false,false,"Group A.2(i)",null,0,1,0,1,0,0,1,1]
["Verticordia pityrhops",12447,"T","EN","C2b","EN","SCST","ALBANY","East Mt Barren","Mar","RP","No",null,null,null,null,"No",null,null,null,null,null,null,null,null,null,null,"",{"$f":"IF(AB296=\"Group A.1\",'Suggested management Options'!$C$4, IF(AB296=\"Group A.2(i)\", 'Suggested management Options'!$C$5, IF(AB296=\"Group A.2(ii)\", 'Suggested management Options'!$C$6, IF(AB296=\"Group B\",'Suggested management Options'!$C$7,IF(AB296=\"Group C\",'Suggested management Options'!$C$8,IF(AB296=\"Group D\",'Suggested management Options'!$C$9,IF(AB296=\"Group E\",'Suggested management Options'!$C$10,IF(AB296=\"Group F\",'Suggested management Options'!$C$11,IF(AB296=\"Group G\",'Suggested management Options'!$C$12,IF(AB296=\"Group O\",'Suggested management Options'!$C$13,IF(AB296=\"Group X\",'Suggested management Options'!$C$14,\"\")))))))))))","v":""},"",null,0,"","","","","","","","",null,false,false,false,false,false,false,false,false,false,false,false,"",null,0,0,0,0,0,0,0,0]
["Verticordia plumosa var. ananeotes",12448,"T","CR","B1ab(iii,v)+2ab(iii,v)","EN","SWAN,SWST","BLACKWOOD,SWAN COASTAL","Busselton, Serpentine - Blackwood","Dec","IRP","No",null,null,null,null,"Yes",null,null,null,null,null,null,null,null,null,null,"",{"$f":"IF(AB297=\"Group A.1\",'Suggested management Options'!$C$4, IF(AB297=\"Group A.2(i)\", 'Suggested management Options'!$C$5, IF(AB297=\"Group A.2(ii)\", 'Suggested management Options'!$C$6, IF(AB297=\"Group B\",'Suggested management Options'!$C$7,IF(AB297=\"Group C\",'Suggested management Options'!$C$8,IF(AB297=\"Group D\",'Suggested management Options'!$C$9,IF(AB297=\"Group E\",'Suggested management Options'!$C$10,IF(AB297=\"Group F\",'Suggested management Options'!$C$11,IF(AB297=\"Group G\",'Suggested management Options'!$C$12,IF(AB297=\"Group O\",'Suggested management Options'!$C$13,IF(AB297=\"Group X\",'Suggested management Options'!$C$14,\"\")))))))))))","v":""},"",null,1,"","","","","","","","",null,false,false,false,false,false,false,false,false,false,false,false,"",null,1,0,0,0,0,0,0,0]
["Verticordia plumosa var. vassensis",12453,"T","EN","B1+2ce","EN","SWST","BLACKWOOD","Ambergate, Ruabon, Tutanup","Oct",null,"Acton Park Road, 2009",null,null,null,null,"No",null,null,null,null,null,null,null,null,null,null,"",{"$f":"IF(AB298=\"Group A.1\",'Suggested management Options'!$C$4, IF(AB298=\"Group A.2(i)\", 'Suggested management Options'!$C$5, IF(AB298=\"Group A.2(ii)\", 'Suggested management Options'!$C$6, IF(AB298=\"Group B\",'Suggested management Options'!$C$7,IF(AB298=\"Group C\",'Suggested management Options'!$C$8,IF(AB298=\"Group D\",'Suggested management Options'!$C$9,IF(AB298=\"Group E\",'Suggested management Options'!$C$10,IF(AB298=\"Group F\",'Suggested management Options'!$C$11,IF(AB298=\"Group G\",'Suggested management Options'!$C$12,IF(AB298=\"Group O\",'Suggested management Options'!$C$13,IF(AB298=\"Group X\",'Suggested management Options'!$C$14,\"\")))))))))))","v":""},"",null,0,"","","","","","","","",null,false,false,false,false,false,false,false,false,false,false,false,"",null,0,0,0,0,0,0,0,0]
["Verticordia spicata subsp. squamosa",12462,"T","CR","A4c; Ba1ab(i,ii,iii,iv,v)+2ab(i,ii,iii,iv,v); C2a(i); D","EN","MWST","MOORA","Three Springs, Morawa","Dec","IRP","Christmas Corner, 2001; Sandpit site, 2017; Wongoondy NR; Mingenew, 2018",null,null,null,null,"Yes",null,null,null,null,null,null,null,null,null,null,"",{"$f":"IF(AB299=\"Group A.1\",'Suggested management Options'!$C$4, IF(AB299=\"Group A.2(i)\", 'Suggested management Options'!$C$5, IF(AB299=\"Group A.2(ii)\", 'Suggested management Options'!$C$6, IF(AB299=\"Group B\",'Suggested management Options'!$C$7,IF(AB299=\"Group C\",'Suggested management Options'!$C$8,IF(AB299=\"Group D\",'Suggested management Options'!$C$9,IF(AB299=\"Group E\",'Suggested management Options'!$C$10,IF(AB299=\"Group F\",'Suggested management Options'!$C$11,IF(AB299=\"Group G\",'Suggested management Options'!$C$12,IF(AB299=\"Group O\",'Suggested management Options'!$C$13,IF(AB299=\"Group X\",'Suggested management Options'!$C$14,\"\")))))))))))","v":""},"",null,1,"","","","","","","","",null,false,false,false,false,false,false,false,false,false,false,false,"",null,1,0,0,0,0,0,0,0]
["Verticordia staminosa subsp. cylindracea var. erecta",12464,"T","CR","B1+2ab(iii,v)",null,"WHTB","GREAT SOUTHERN","Newdegate","Jun-Aug","IRP","No","No","No",null,null,"Yes","Likely No","granite habitat",null,"Yes","Long-lived","likley","Yes","Likely Yes","Yes","Yes","Group B",{"$f":"IF(AB300=\"Group A.1\",'Suggested management Options'!$C$4, IF(AB300=\"Group A.2(i)\", 'Suggested management Options'!$C$5, IF(AB300=\"Group A.2(ii)\", 'Suggested management Options'!$C$6, IF(AB300=\"Group B\",'Suggested management Options'!$C$7,IF(AB300=\"Group C\",'Suggested management Options'!$C$8,IF(AB300=\"Group D\",'Suggested management Options'!$C$9,IF(AB300=\"Group E\",'Suggested management Options'!$C$10,IF(AB300=\"Group F\",'Suggested management Options'!$C$11,IF(AB300=\"Group G\",'Suggested management Options'!$C$12,IF(AB300=\"Group O\",'Suggested management Options'!$C$13,IF(AB300=\"Group X\",'Suggested management Options'!$C$14,\"\")))))))))))","v":"Maintain effective population sizes of >250 reproductively mature individuals. Augment populations of <250 individuals if cost effective."},"MAYBE TRANSLOCATE IF COST-EFFECTIVE",null,1,0,"",1,1,1,1,1,1,null,false,false,false,true,false,false,false,false,false,false,false,"Group B",null,1,0,1,1,0,0,1,0]
["Verticordia staminosa subsp. staminosa",15614,"T","CR","B1+2c","EN","WHTB","CENTRAL WHEATBELT","Wongan Hills","Jun-Aug","IRP","No","No","Yes",null,null,"No","Likely No",null,null,"Yes","Long-lived","likley","Yes","Likely Yes","Yes","Yes","Group A.2(i)",{"$f":"IF(AB301=\"Group A.1\",'Suggested management Options'!$C$4, IF(AB301=\"Group A.2(i)\", 'Suggested management Options'!$C$5, IF(AB301=\"Group A.2(ii)\", 'Suggested management Options'!$C$6, IF(AB301=\"Group B\",'Suggested management Options'!$C$7,IF(AB301=\"Group C\",'Suggested management Options'!$C$8,IF(AB301=\"Group D\",'Suggested management Options'!$C$9,IF(AB301=\"Group E\",'Suggested management Options'!$C$10,IF(AB301=\"Group F\",'Suggested management Options'!$C$11,IF(AB301=\"Group G\",'Suggested management Options'!$C$12,IF(AB301=\"Group O\",'Suggested management Options'!$C$13,IF(AB301=\"Group X\",'Suggested management Options'!$C$14,\"\")))))))))))","v":"Species is relatively less secure compared to Group A.1. Monitoring required. Management could include….. ?"},"DON'T TRANSLOCATE",null,0,0,"",1,1,1,1,1,1,null,false,true,false,false,false,false,false,false,false,false,false,"Group A.2(i)",null,0,0,1,1,0,0,1,1]
["Xyris exilis",17482,"T","EN","C2b","VU","SCST","ALBANY","Stirling Range National Park","Nov-Dec",null,"No",null,null,null,null,"No",null,null,null,null,null,null,null,null,null,null,"",{"$f":"IF(AB302=\"Group A.1\",'Suggested management Options'!$C$4, IF(AB302=\"Group A.2(i)\", 'Suggested management Options'!$C$5, IF(AB302=\"Group A.2(ii)\", 'Suggested management Options'!$C$6, IF(AB302=\"Group B\",'Suggested management Options'!$C$7,IF(AB302=\"Group C\",'Suggested management Options'!$C$8,IF(AB302=\"Group D\",'Suggested management Options'!$C$9,IF(AB302=\"Group E\",'Suggested management Options'!$C$10,IF(AB302=\"Group F\",'Suggested management Options'!$C$11,IF(AB302=\"Group G\",'Suggested management Options'!$C$12,IF(AB302=\"Group O\",'Suggested management Options'!$C$13,IF(AB302=\"Group X\",'Suggested management Options'!$C$14,\"\")))))))))))","v":""},"",null,0,"","","","","","","","",null,false,false,false,false,false,false,false,false,false,false,false,"",null,0,0,0,0,0,0,0,0]

{"sheet":"Suggested management Options","index":2,"n_rows":14,"n_cols":3,"rows_kept":14,"cut":false,"hidden":false,"merged":[[0,0,0,2]]}
["Suggested management options for each group"]
[]
["Most secure, lower priority for intervention, lower costs.","Group","Suggested management options"]
[null,"A.1","These species are secure relative to other threatened species. Lower priority for intervention beyond monitoring. This may change should fragmentation or immediate threat arise."]
[null,"A.2(i)","Species is relatively less secure compared to Group A.1. Monitoring required. Management could include….. ?"]
[null,"A.2(ii)","Species is relatively less secure compared to Group A.1 and A.2(i). Monitoring required. Management could include collecting seed material/germplasm?."]
[null,"B","Maintain effective population sizes of >250 reproductively mature individuals. Augment populations of <250 individuals if cost effective."]
[null,"C","Maintain effective population size of >250 reproductively mature individuals. Translocate (immediately?) if cost effective."]
[null,"D","Protect seedlings and juveniles to increase chances of reaching reproductive maturity"]
[null,"E","Population will be maintained in-situ in the long term. Highest priority will be to increase effective population size to >250 mature plants through promoting in-situ recruitment and/or seed collection, external propagation and subsequent restocking."]
[null,"F","Population will be maintained in-situ in the medium term for the purpose of \"salvage\". Collect cuttings and/or seeds for ex-situ conservation. If cost effective consider augmentation of other populations and/or translocation. For species with soil seed banks this may involve regenerating and managing the population in-situ to recover plant material from 1st and 2nd generations for subsequent salvage."]
[null,"G","Population will only be maintained in-situ in the short term for the purpose of salvage, where practical. Collect cuttings, seeds, germplasm etc. and maintain in ex-situ collections OR translocate/augment to create a population >250. (maybe need to add actions beyond translocate for non-Wheatbelt regions)"]
[null,"O","Introduce disturbance and then re-evaluate"]
["Least secure, higher priority for intervention, higher costs.","X","Assess presence, viability and genetic variation of the seed bank. In many cases it may not be feasible to do this. If previous count data exists, identify the population size before the decline. If before decline there were 50 to 100 individuals counted, it could be assumed that the seed bank may have 250 genetically different seeds. This would apply only to species with persistent seeds. Failing this contact Science & Conservation Division for advice."]

{"sheet":"Wheatbelt_filtered","index":3,"n_rows":74,"n_cols":30,"rows_kept":74,"cut":false,"hidden":true,"merged":[[0,28,1,28],[0,29,1,29],[0,6,1,6],[0,7,1,7],[0,8,1,8],[0,9,1,9],[0,10,1,10],[0,27,1,27],[0,12,1,12],[0,13,1,13],[0,14,1,14],[0,15,1,15],[0,11,1,11],[0,17,1,17],[0,5,1,5],[0,0,1,0],[0,1,1,1],[0,2,1,2],[0,3,1,3],[0,4,1,4]]}
["Name ID","Taxon","Status","Rank","IUCN Criteria","EPBC","DBCA Region","DBCA District","Distribution","Flowering Period","Recovery Plan","Already translocated? If yes, year(s) and site","Current Translocation (DBCA/P&W)","Flagged for possible future translocation (DBCA)?","Germination protocol? ","Transloaction and  germination comments (including disturbance trial notes)","Decision Node 0","Longevity Comments","Decision Node 1","Decision Node 2 (Answer for species with less than 250 mature individuals)","Disturbance Comments","Decision Node 2.1 (Answer only if species is a disturbance opportunist)","Decision Node 3","Decision Node 4","Decision Node 5","Decision Node 6","Decision Node 1.1 (Answer only for species with more than 250 mature individuals)","CLASSIFICATION","DESCRIPTION OF CLASSIFICATION","TRANSLOCATE BASED ON SPECIES' GROUP?"]
[null,null,null,null,null,null,null,null,null,null,null,null,null,null,null,null,"Is it a long-lived (greater than 5-10 years) or short-lived (less than 5-10 years) taxa?",null,"Does the species have less than 250 mature individuals (IUCN criterion C2(a) or criterion D) OR Is it present in only a few locations / have a severely fragmented area of occupancy (IUCN criterion B2(a))?","Will the species respond positively to introduction of disturbance as a management technique? (Consider lifehistory, previous evidence. If yes, please choose what TYPE of disturbance)","Generally we use fire, but increasingly push to consider utiliisation of other techniques, might be worth eperimemntal adaptation actions, esp if fire deemed too expensive/risky","Has disturbance been applied for disturbance opportunists?","Is there AT LEAST ONE known population of more than 250 reproductively mature individuals?","Is the total size of any single population, (including seedlings and juveniles) greater than 250?","Is a viable and genetically diverse seed bank present at the site/population?","Is it feasible to manage the threats in-situ (including resources and tenure considerations)?","Is there a significant declining trend towards less than 250 mature individuals?"]
["Acacia ataxiphylla subsp. magna",14687,"T","EN","B1ab(iii,iv,v)+2ab(iii,iv,v); C2a(i); D","EN","WHTB","CENTRAL WHEATBELT","Charles Gardner Reserve, Cunderdin","Jul","IRP",null,null,null,null,null,"Long-lived",null,"Yes","Yes-fire",null,null,null,null,null,null,null,{"$f":"IF(AND(S3=\"No\",AA3=\"No\"),\"Group A.1\",IF(AND(S3=\"No\", AA3=\"Yes\", Q3=\"Long-lived\"), \"Group A.2(i)\", IF(AND(S3=\"No\", AA3=\"Yes\", Q3=\"Short-lived\"), \"Group A.2(ii)\", IF(AND(S3=\"Yes\", OR(T3=\"Yes-fire\", T3=\"Likely Yes\"),V3=\"No\"), \"Group O\", IF(AND(S3=\"Yes\", OR(T3=\"Yes-fire\", T3=\"Likely Yes\"), V3=\"Yes\", W3=\"Yes\", Q3=\"Long-lived\" ),\"Group B\", IF(AND(S3=\"Yes\", OR(T3=\"Yes-other\", T3=\"Likely No\", T3=\"No\"), W3=\"Yes\", Q3=\"Long-lived\"),\"Group B\", IF(AND(S3=\"Yes\", OR(T3=\"Yes-fire\", T3=\"Likely Yes\"), V3=\"Yes\", W3=\"Yes\", Q3=\"Short-lived\" ),\"Group C\", IF(AND(S3=\"Yes\", OR(T3=\"Yes-other\", T3=\"Likely No\", T3=\"No\"), W3=\"Yes\", Q3=\"Short-lived\" ),\"Group C\", IF(AND(S3=\"Yes\", OR(T3=\"Yes-fire\", T3=\"Likely Yes\"), V3=\"Yes\", W3=\"No\", X3=\"Yes\" ),\"Group D\",  IF(AND(S3=\"Yes\", OR(T3=\"Yes-other\", T3=\"Likely No\", T3=\"No\"), W3=\"No\", X3=\"Yes\" ),\"Group D\",  IF(AND(S3=\"Yes\",OR(T3=\"Yes-fire\", T3=\"Likely Yes\"), V3=\"Yes\", W3=\"No\", X3=\"No\",OR(Y3=\"Yes\",Y3=\"Likely Yes\"),Z3=\"Yes\"),\"Group E\", IF(AND(S3=\"Yes\", OR(T3=\"Yes-other\", T3=\"Likely No\", T3=\"No\"), W3=\"No\", X3=\"No\",OR(Y3=\"Yes\",Y3=\"Likely Yes\"),Z3=\"Yes\"),\"Group E\", IF(AND(S3=\"Yes\",OR(T3=\"Yes-fire\", T3=\"Likely Yes\"), V3=\"Yes\", W3=\"No\", X3=\"No\",OR(Y3=\"Yes\",Y3=\"Likely Yes\"),Z3=\"No\"),\"Group F\", IF(AND(S3=\"Yes\", OR(T3=\"Yes-other\", T3=\"Likely No\", T3=\"No\"), W3=\"No\", X3=\"No\",OR(Y3=\"Yes\",Y3=\"Likely Yes\"),Z3=\"No\"),\"Group F\",  IF(AND(S3=\"Yes\",OR(T3=\"Yes-fire\", T3=\"Likely Yes\"), V3=\"Yes\", W3=\"No\", X3=\"No\",OR(Y3=\"No\",Y3=\"Likely No\")),\"Group G\", IF(AND(S3=\"Yes\", OR(T3=\"Yes-other\", T3=\"Likely No\", T3=\"No\"), W3=\"No\", X3=\"No\",OR(Y3=\"No\",Y3=\"Likely No\")),\"Group G\", IF(AND(S3=\"Yes\", OR(T3=\"Yes-fire\", T3=\"Likely Yes\"), V3=\"Yes\", W3=\"No\", X3=\"No\",Y3=\"Unknown\"),\"Group X\", IF(AND(S3=\"Yes\", OR(T3=\"Yes-other\", T3=\"Likely No\", T3=\"No\"), W3=\"No\", X3=\"No\",Y3=\"Unknown\"),\"Group X\",\"\"))))))))))))))))))","v":""},{"$f":"IF(AB3=\"Group A.1\",'Suggested management Options'!$C$4, IF(AB3=\"Group A.2(i)\", 'Suggested management Options'!$C$5, IF(AB3=\"Group A.2(ii)\", 'Suggested management Options'!$C$6, IF(AB3=\"Group B\",'Suggested management Options'!$C$7,IF(AB3=\"Group C\",'Suggested management Options'!$C$8,IF(AB3=\"Group D\",'Suggested management Options'!$C$9,IF(AB3=\"Group E\",'Suggested management Options'!$C$10,IF(AB3=\"Group F\",'Suggested management Options'!$C$11,IF(AB3=\"Group G\",'Suggested management Options'!$C$12,IF(AB3=\"Group O\",'Suggested management Options'!$C$13,IF(AB3=\"Group X\",'Suggested management Options'!$C$14,\"\")))))))))))","v":""},{"$f":"IF(OR(AB3=\"Group A.1\", AB3=\"Group A.2(i)\", AB3=\"Group A.2(ii)\", AB3=\"Group D\"), \"DON'T TRANSLOCATE\", IF(OR(AB3=\"Group B\", AB3=\"Group C\", AB3=\"Group E\"), \"MAYBE TRANSLOCATE IF COST-EFFECTIVE\", IF(OR(AB3=\"Group F\", AB3=\"Group G\"), \"DEFINITELY TRANSLOCATE\", IF(AB3=\"Group X\", \"EVALUATE SEED BANK\", IF(AB3=\"Group O\", \"INTRODUCE DISTURBANCE FIRST\", \"\")))))","v":""}]
["Acacia chapmanii subsp. australis",14059,"T","EN","B1ab(v)+2ab(v);C1","EN","SWAN, WHTB","PERTH HILLS,CENTRAL WHEATBELT","Bolgart, Wyening",null,"IRP",null,"No",null,"Yes","A fire/disturbance trial was conducted for this species in 2004 by the Swan Region","Long-lived",null,"Yes","Yes-fire",null,null,null,null,null,null,null,{"$f":"IF(AND(S4=\"No\",AA4=\"No\"),\"Group A.1\",IF(AND(S4=\"No\", AA4=\"Yes\", Q4=\"Long-lived\"), \"Group A.2(i)\", IF(AND(S4=\"No\", AA4=\"Yes\", Q4=\"Short-lived\"), \"Group A.2(ii)\", IF(AND(S4=\"Yes\", OR(T4=\"Yes-fire\", T4=\"Likely Yes\"),V4=\"No\"), \"Group O\", IF(AND(S4=\"Yes\", OR(T4=\"Yes-fire\", T4=\"Likely Yes\"), V4=\"Yes\", W4=\"Yes\", Q4=\"Long-lived\" ),\"Group B\", IF(AND(S4=\"Yes\", OR(T4=\"Yes-other\", T4=\"Likely No\", T4=\"No\"), W4=\"Yes\", Q4=\"Long-lived\"),\"Group B\", IF(AND(S4=\"Yes\", OR(T4=\"Yes-fire\", T4=\"Likely Yes\"), V4=\"Yes\", W4=\"Yes\", Q4=\"Short-lived\" ),\"Group C\", IF(AND(S4=\"Yes\", OR(T4=\"Yes-other\", T4=\"Likely No\", T4=\"No\"), W4=\"Yes\", Q4=\"Short-lived\" ),\"Group C\", IF(AND(S4=\"Yes\", OR(T4=\"Yes-fire\", T4=\"Likely Yes\"), V4=\"Yes\", W4=\"No\", X4=\"Yes\" ),\"Group D\",  IF(AND(S4=\"Yes\", OR(T4=\"Yes-other\", T4=\"Likely No\", T4=\"No\"), W4=\"No\", X4=\"Yes\" ),\"Group D\",  IF(AND(S4=\"Yes\",OR(T4=\"Yes-fire\", T4=\"Likely Yes\"), V4=\"Yes\", W4=\"No\", X4=\"No\",OR(Y4=\"Yes\",Y4=\"Likely Yes\"),Z4=\"Yes\"),\"Group E\", IF(AND(S4=\"Yes\", OR(T4=\"Yes-other\", T4=\"Likely No\", T4=\"No\"), W4=\"No\", X4=\"No\",OR(Y4=\"Yes\",Y4=\"Likely Yes\"),Z4=\"Yes\"),\"Group E\", IF(AND(S4=\"Yes\",OR(T4=\"Yes-fire\", T4=\"Likely Yes\"), V4=\"Yes\", W4=\"No\", X4=\"No\",OR(Y4=\"Yes\",Y4=\"Likely Yes\"),Z4=\"No\"),\"Group F\", IF(AND(S4=\"Yes\", OR(T4=\"Yes-other\", T4=\"Likely No\", T4=\"No\"), W4=\"No\", X4=\"No\",OR(Y4=\"Yes\",Y4=\"Likely Yes\"),Z4=\"No\"),\"Group F\",  IF(AND(S4=\"Yes\",OR(T4=\"Yes-fire\", T4=\"Likely Yes\"), V4=\"Yes\", W4=\"No\", X4=\"No\",OR(Y4=\"No\",Y4=\"Likely No\")),\"Group G\", IF(AND(S4=\"Yes\", OR(T4=\"Yes-other\", T4=\"Likely No\", T4=\"No\"), W4=\"No\", X4=\"No\",OR(Y4=\"No\",Y4=\"Likely No\")),\"Group G\", IF(AND(S4=\"Yes\", OR(T4=\"Yes-fire\", T4=\"Likely Yes\"), V4=\"Yes\", W4=\"No\", X4=\"No\",Y4=\"Unknown\"),\"Group X\", IF(AND(S4=\"Yes\", OR(T4=\"Yes-other\", T4=\"Likely No\", T4=\"No\"), W4=\"No\", X4=\"No\",Y4=\"Unknown\"),\"Group X\",\"\"))))))))))))))))))","v":""},{"$f":"IF(AB4=\"Group A.1\",'Suggested management Options'!$C$4, IF(AB4=\"Group A.2(i)\", 'Suggested management Options'!$C$5, IF(AB4=\"Group A.2(ii)\", 'Suggested management Options'!$C$6, IF(AB4=\"Group B\",'Suggested management Options'!$C$7,IF(AB4=\"Group C\",'Suggested management Options'!$C$8,IF(AB4=\"Group D\",'Suggested management Options'!$C$9,IF(AB4=\"Group E\",'Suggested management Options'!$C$10,IF(AB4=\"Group F\",'Suggested management Options'!$C$11,IF(AB4=\"Group G\",'Suggested management Options'!$C$12,IF(AB4=\"Group O\",'Suggested management Options'!$C$13,IF(AB4=\"Group X\",'Suggested management Options'!$C$14,\"\")))))))))))","v":""},{"$f":"IF(OR(AB4=\"Group A.1\", AB4=\"Group A.2(i)\", AB4=\"Group A.2(ii)\", AB4=\"Group D\"), \"DON'T TRANSLOCATE\", IF(OR(AB4=\"Group B\", AB4=\"Group C\", AB4=\"Group E\"), \"MAYBE TRANSLOCATE IF COST-EFFECTIVE\", IF(OR(AB4=\"Group F\", AB4=\"Group G\"), \"DEFINITELY TRANSLOCATE\", IF(AB4=\"Group X\", \"EVALUATE SEED BANK\", IF(AB4=\"Group O\", \"INTRODUCE DISTURBANCE FIRST\", \"\")))))","v":""}]
["Acacia cochlocarpa subsp. velutinosa",14063,"T","CR","B1ab(v)+2ab(v)","CR","WHTB","CENTRAL WHEATBELT","Manmanning, Wongan Hills, Cunderdin","Jun-Aug","IRP",null,null,null,null,null,"Long-lived",null,"Yes","Yes-fire",null,null,null,null,null,null,null,"",{"$f":"IF(AB5=\"Group A.1\",'Suggested management Options'!$C$4, IF(AB5=\"Group A.2(i)\", 'Suggested management Options'!$C$5, IF(AB5=\"Group A.2(ii)\", 'Suggested management Options'!$C$6, IF(AB5=\"Group B\",'Suggested management Options'!$C$7,IF(AB5=\"Group C\",'Suggested management Options'!$C$8,IF(AB5=\"Group D\",'Suggested management Options'!$C$9,IF(AB5=\"Group E\",'Suggested management Options'!$C$10,IF(AB5=\"Group F\",'Suggested management Options'!$C$11,IF(AB5=\"Group G\",'Suggested management Options'!$C$12,IF(AB5=\"Group O\",'Suggested management Options'!$C$13,IF(AB5=\"Group X\",'Suggested management Options'!$C$14,\"\")))))))))))","v":""},""]
["Acacia depressa",3295,"T","EN","C2a","VU","WHTB","GREAT SOUTHERN","W of Lake Grace","Dec-Jan",null,null,null,null,null,null,"Long-lived",null,"No","Yes-fire",null,"Yes",null,null,null,null,null,"",{"$f":"IF(AB6=\"Group A.1\",'Suggested management Options'!$C$4, IF(AB6=\"Group A.2(i)\", 'Suggested management Options'!$C$5, IF(AB6=\"Group A.2(ii)\", 'Suggested management Options'!$C$6, IF(AB6=\"Group B\",'Suggested management Options'!$C$7,IF(AB6=\"Group C\",'Suggested management Options'!$C$8,IF(AB6=\"Group D\",'Suggested management Options'!$C$9,IF(AB6=\"Group E\",'Suggested management Options'!$C$10,IF(AB6=\"Group F\",'Suggested management Options'!$C$11,IF(AB6=\"Group G\",'Suggested management Options'!$C$12,IF(AB6=\"Group O\",'Suggested management Options'!$C$13,IF(AB6=\"Group X\",'Suggested management Options'!$C$14,\"\")))))))))))","v":""},""]
["Acacia insolita subsp. recurva",14121,"T","CR","B1ab(ii,iii,v)+2ab(ii.iii.v)","EN","WHTB","GREAT SOUTHERN","East Yornaning NR, Narrogin","Sep","IRP",null,null,null,null,null,"Long-lived",null,"Yes","Yes-fire",null,"Yes",null,null,null,null,null,"",{"$f":"IF(AB7=\"Group A.1\",'Suggested management Options'!$C$4, IF(AB7=\"Group A.2(i)\", 'Suggested management Options'!$C$5, IF(AB7=\"Group A.2(ii)\", 'Suggested management Options'!$C$6, IF(AB7=\"Group B\",'Suggested management Options'!$C$7,IF(AB7=\"Group C\",'Suggested management Options'!$C$8,IF(AB7=\"Group D\",'Suggested management Options'!$C$9,IF(AB7=\"Group E\",'Suggested management Options'!$C$10,IF(AB7=\"Group F\",'Suggested management Options'!$C$11,IF(AB7=\"Group G\",'Suggested management Options'!$C$12,IF(AB7=\"Group O\",'Suggested management Options'!$C$13,IF(AB7=\"Group X\",'Suggested management Options'!$C$14,\"\")))))))))))","v":""},""]
["Acacia leptoneura",3415,"T","CR","B1ab(iii)+2ab(iii); D","CR","WHTB","CENTRAL WHEATBELT","Dowerin",null,"IRP",null,null,null,null,null,"Long-lived",null,"Yes","Yes-fire",null,null,null,null,null,null,null,"",{"$f":"IF(AB8=\"Group A.1\",'Suggested management Options'!$C$4, IF(AB8=\"Group A.2(i)\", 'Suggested management Options'!$C$5, IF(AB8=\"Group A.2(ii)\", 'Suggested management Options'!$C$6, IF(AB8=\"Group B\",'Suggested management Options'!$C$7,IF(AB8=\"Group C\",'Suggested management Options'!$C$8,IF(AB8=\"Group D\",'Suggested management Options'!$C$9,IF(AB8=\"Group E\",'Suggested management Options'!$C$10,IF(AB8=\"Group F\",'Suggested management Options'!$C$11,IF(AB8=\"Group G\",'Suggested management Options'!$C$12,IF(AB8=\"Group O\",'Suggested management Options'!$C$13,IF(AB8=\"Group X\",'Suggested management Options'!$C$14,\"\")))))))))))","v":""},""]
["Acacia pharangites",3487,"T","CR","B1ab(v)+2ab(v);C2a(i)","EN","WHTB","CENTRAL WHEATBELT","Wongan Hills","Aug-Sep","IRP",null,null,null,null,null,"Long-lived",null,"Yes","Yes-fire","Results? (Bree)","Yes",null,null,null,null,null,"",{"$f":"IF(AB9=\"Group A.1\",'Suggested management Options'!$C$4, IF(AB9=\"Group A.2(i)\", 'Suggested management Options'!$C$5, IF(AB9=\"Group A.2(ii)\", 'Suggested management Options'!$C$6, IF(AB9=\"Group B\",'Suggested management Options'!$C$7,IF(AB9=\"Group C\",'Suggested management Options'!$C$8,IF(AB9=\"Group D\",'Suggested management Options'!$C$9,IF(AB9=\"Group E\",'Suggested management Options'!$C$10,IF(AB9=\"Group F\",'Suggested management Options'!$C$11,IF(AB9=\"Group G\",'Suggested management Options'!$C$12,IF(AB9=\"Group O\",'Suggested management Options'!$C$13,IF(AB9=\"Group X\",'Suggested management Options'!$C$14,\"\")))))))))))","v":""},""]
["Acacia pygmaea",13611,"T","EN","D","EN","WHTB","CENTRAL WHEATBELT","Wongan Hills","Mar-May","IRP",null,null,null,null,null,"Long-lived",null,"Yes","Yes-fire",null,null,null,null,null,null,null,"",{"$f":"IF(AB10=\"Group A.1\",'Suggested management Options'!$C$4, IF(AB10=\"Group A.2(i)\", 'Suggested management Options'!$C$5, IF(AB10=\"Group A.2(ii)\", 'Suggested management Options'!$C$6, IF(AB10=\"Group B\",'Suggested management Options'!$C$7,IF(AB10=\"Group C\",'Suggested management Options'!$C$8,IF(AB10=\"Group D\",'Suggested management Options'!$C$9,IF(AB10=\"Group E\",'Suggested management Options'!$C$10,IF(AB10=\"Group F\",'Suggested management Options'!$C$11,IF(AB10=\"Group G\",'Suggested management Options'!$C$12,IF(AB10=\"Group O\",'Suggested management Options'!$C$13,IF(AB10=\"Group X\",'Suggested management Options'!$C$14,\"\")))))))))))","v":""},""]
["Acacia sciophanes",3531,"T","CR","B1ab(iii,v)+2ab(iii,v)","EN","WHTB","CENTRAL WHEATBELT","Mukinbudin, Victoria Rock","Sep-Jan","IRP",null,null,null,null,null,"Long-lived",null,"No","Yes-fire",null,null,null,null,null,null,null,"",{"$f":"IF(AB11=\"Group A.1\",'Suggested management Options'!$C$4, IF(AB11=\"Group A.2(i)\", 'Suggested management Options'!$C$5, IF(AB11=\"Group A.2(ii)\", 'Suggested management Options'!$C$6, IF(AB11=\"Group B\",'Suggested management Options'!$C$7,IF(AB11=\"Group C\",'Suggested management Options'!$C$8,IF(AB11=\"Group D\",'Suggested management Options'!$C$9,IF(AB11=\"Group E\",'Suggested management Options'!$C$10,IF(AB11=\"Group F\",'Suggested management Options'!$C$11,IF(AB11=\"Group G\",'Suggested management Options'!$C$12,IF(AB11=\"Group O\",'Suggested management Options'!$C$13,IF(AB11=\"Group X\",'Suggested management Options'!$C$14,\"\")))))))))))","v":""},""]
["Acacia subflexuosa subsp. capillata",14146,"T","CR","D","EN","WHTB","CENTRAL WHEATBELT","S of Cunderdin","Aug-Sep","IRP","Charles Gardener NR, Tammin, 2008",null,null,null,null,"Long-lived",null,"Yes","Yes-fire",null,null,null,null,null,null,null,"",{"$f":"IF(AB12=\"Group A.1\",'Suggested management Options'!$C$4, IF(AB12=\"Group A.2(i)\", 'Suggested management Options'!$C$5, IF(AB12=\"Group A.2(ii)\", 'Suggested management Options'!$C$6, IF(AB12=\"Group B\",'Suggested management Options'!$C$7,IF(AB12=\"Group C\",'Suggested management Options'!$C$8,IF(AB12=\"Group D\",'Suggested management Options'!$C$9,IF(AB12=\"Group E\",'Suggested management Options'!$C$10,IF(AB12=\"Group F\",'Suggested management Options'!$C$11,IF(AB12=\"Group G\",'Suggested management Options'!$C$12,IF(AB12=\"Group O\",'Suggested management Options'!$C$13,IF(AB12=\"Group X\",'Suggested management Options'!$C$14,\"\")))))))))))","v":""},""]
["Acacia vassalii",3594,"T","CR","B2ab(iii,v)","EN","MWST,WHTB","MOORA,CENTRAL WHEATBELT","Wongan Hills-Watheroo","Jul-Aug","IRP",null,null,null,null,null,"Long-lived",null,"No","Yes-fire","Prescribed burns conducted around the Wongan Hills township - outcome?","Yes",null,null,null,null,null,"",{"$f":"IF(AB13=\"Group A.1\",'Suggested management Options'!$C$4, IF(AB13=\"Group A.2(i)\", 'Suggested management Options'!$C$5, IF(AB13=\"Group A.2(ii)\", 'Suggested management Options'!$C$6, IF(AB13=\"Group B\",'Suggested management Options'!$C$7,IF(AB13=\"Group C\",'Suggested management Options'!$C$8,IF(AB13=\"Group D\",'Suggested management Options'!$C$9,IF(AB13=\"Group E\",'Suggested management Options'!$C$10,IF(AB13=\"Group F\",'Suggested management Options'!$C$11,IF(AB13=\"Group G\",'Suggested management Options'!$C$12,IF(AB13=\"Group O\",'Suggested management Options'!$C$13,IF(AB13=\"Group X\",'Suggested management Options'!$C$14,\"\")))))))))))","v":""},""]
["Acacia volubilis",3597,"T","CR","B1ab(iii,v)+2ab(iii,v); C2a(i)","EN","WHTB","CENTRAL WHEATBELT","Cunderdin","-","IRP","Museum Grounds @ Cunderdin, 2004; Christison's property, Cunderdin, 2004",null,null,null,null,"Long-lived",null,"Yes","Yes-fire",null,null,null,null,null,null,null,"",{"$f":"IF(AB14=\"Group A.1\",'Suggested management Options'!$C$4, IF(AB14=\"Group A.2(i)\", 'Suggested management Options'!$C$5, IF(AB14=\"Group A.2(ii)\", 'Suggested management Options'!$C$6, IF(AB14=\"Group B\",'Suggested management Options'!$C$7,IF(AB14=\"Group C\",'Suggested management Options'!$C$8,IF(AB14=\"Group D\",'Suggested management Options'!$C$9,IF(AB14=\"Group E\",'Suggested management Options'!$C$10,IF(AB14=\"Group F\",'Suggested management Options'!$C$11,IF(AB14=\"Group G\",'Suggested management Options'!$C$12,IF(AB14=\"Group O\",'Suggested management Options'!$C$13,IF(AB14=\"Group X\",'Suggested management Options'!$C$14,\"\")))))))))))","v":""},""]
["Adenanthos pungens subsp. effusus",11593,"T","CR","B2ab(iii,v)","EN","WHTB","GREAT SOUTHERN","Marribank, Tambellup","Aug-Nov","IRP",null,null,null,null,null,"Long-lived",null,"No","Likely No","no lignotiuber. GK doesn't know for sure. Shiuold cope.but wouldn't love it. In central wheatbelt you don't have to stress about bringing in PC because v. dry. Odd entity. Edge habitat. Won't burn. Fairly unstable. The erect one comes back from seed in the Stirlings, so might do?  (thius one is prostrate). ??? Lignotiuber?? ",null,null,null,null,null,null,"",{"$f":"IF(AB15=\"Group A.1\",'Suggested management Options'!$C$4, IF(AB15=\"Group A.2(i)\", 'Suggested management Options'!$C$5, IF(AB15=\"Group A.2(ii)\", 'Suggested management Options'!$C$6, IF(AB15=\"Group B\",'Suggested management Options'!$C$7,IF(AB15=\"Group C\",'Suggested management Options'!$C$8,IF(AB15=\"Group D\",'Suggested management Options'!$C$9,IF(AB15=\"Group E\",'Suggested management Options'!$C$10,IF(AB15=\"Group F\",'Suggested management Options'!$C$11,IF(AB15=\"Group G\",'Suggested management Options'!$C$12,IF(AB15=\"Group O\",'Suggested management Options'!$C$13,IF(AB15=\"Group X\",'Suggested management Options'!$C$14,\"\")))))))))))","v":""},""]
["Androcalva adenothalia",40902,"T","CR","B1ab(i,ii,iii,iv)+2ab(i,ii,iii,iv); D",null,"MWST,WHTB","GERALDTON,CENTRAL WHEATBELT","Canna, Morawa.",null,"IRP",null,null,null,null,"No seed","Long-lived","Likely long lived? ","Yes","Yes-fire","post-fire species. No central wheatbelt fire now. GK reckons that is why the androcalva's are rare.",null,null,null,null,null,null,"",{"$f":"IF(AB16=\"Group A.1\",'Suggested management Options'!$C$4, IF(AB16=\"Group A.2(i)\", 'Suggested management Options'!$C$5, IF(AB16=\"Group A.2(ii)\", 'Suggested management Options'!$C$6, IF(AB16=\"Group B\",'Suggested management Options'!$C$7,IF(AB16=\"Group C\",'Suggested management Options'!$C$8,IF(AB16=\"Group D\",'Suggested management Options'!$C$9,IF(AB16=\"Group E\",'Suggested management Options'!$C$10,IF(AB16=\"Group F\",'Suggested management Options'!$C$11,IF(AB16=\"Group G\",'Suggested management Options'!$C$12,IF(AB16=\"Group O\",'Suggested management Options'!$C$13,IF(AB16=\"Group X\",'Suggested management Options'!$C$14,\"\")))))))))))","v":""},""]
["Banksia cuneata",1812,"T","EN","B1ab(i,ii,iii,iv,v)+2ab(i,ii,iii,iv,v); C1+2a(i)","EN","WHTB","GREAT SOUTHERN,CENTRAL WHEATBELT","Beverley-Quairading","Jun-Dec","IRP","Quairading Stacey study site, 1995; Quairading Johnston study site, 1995; Quairading  Reserve 12397, 1996; Quairading, Stone Road, 1996; Lazaway Farm, 1996",null,null,null,null,"Long-lived",null,"Yes","Yes-fire","Already translocated? Going OK? ",null,null,null,null,null,null,"",{"$f":"IF(AB17=\"Group A.1\",'Suggested management Options'!$C$4, IF(AB17=\"Group A.2(i)\", 'Suggested management Options'!$C$5, IF(AB17=\"Group A.2(ii)\", 'Suggested management Options'!$C$6, IF(AB17=\"Group B\",'Suggested management Options'!$C$7,IF(AB17=\"Group C\",'Suggested management Options'!$C$8,IF(AB17=\"Group D\",'Suggested management Options'!$C$9,IF(AB17=\"Group E\",'Suggested management Options'!$C$10,IF(AB17=\"Group F\",'Suggested management Options'!$C$11,IF(AB17=\"Group G\",'Suggested management Options'!$C$12,IF(AB17=\"Group O\",'Suggested management Options'!$C$13,IF(AB17=\"Group X\",'Suggested management Options'!$C$14,\"\")))))))))))","v":""},""]
["Banksia ionthocarpa subsp. chrysophoenix",32219,"T","CR","B1ab(iii,v)+2ab(iii,v)","EN","WHTB","GREAT SOUTHERN","Pingelly","Oct","IRP",null,null,null,null,"No seed","Long-lived",null,"Yes","Yes-fire","Yes fire, but likely to die and so few left… this would be a very bold decision… Lower RISK to translocate. BUT hard… ",null,null,null,null,null,null,"",{"$f":"IF(AB18=\"Group A.1\",'Suggested management Options'!$C$4, IF(AB18=\"Group A.2(i)\", 'Suggested management Options'!$C$5, IF(AB18=\"Group A.2(ii)\", 'Suggested management Options'!$C$6, IF(AB18=\"Group B\",'Suggested management Options'!$C$7,IF(AB18=\"Group C\",'Suggested management Options'!$C$8,IF(AB18=\"Group D\",'Suggested management Options'!$C$9,IF(AB18=\"Group E\",'Suggested management Options'!$C$10,IF(AB18=\"Group F\",'Suggested management Options'!$C$11,IF(AB18=\"Group G\",'Suggested management Options'!$C$12,IF(AB18=\"Group O\",'Suggested management Options'!$C$13,IF(AB18=\"Group X\",'Suggested management Options'!$C$14,\"\")))))))))))","v":""},""]
["Banksia oligantha",11152,"T","EN","B1ab(iii)+2ab(iii)","EN","WHTB","GREAT SOUTHERN","Wagin, Harrismith, Wangeling Gully N.R.","Oct-Nov","IRP",null,null,null,null,null,"Long-lived",null,"No","Yes-fire",null,null,null,null,null,null,null,"",{"$f":"IF(AB19=\"Group A.1\",'Suggested management Options'!$C$4, IF(AB19=\"Group A.2(i)\", 'Suggested management Options'!$C$5, IF(AB19=\"Group A.2(ii)\", 'Suggested management Options'!$C$6, IF(AB19=\"Group B\",'Suggested management Options'!$C$7,IF(AB19=\"Group C\",'Suggested management Options'!$C$8,IF(AB19=\"Group D\",'Suggested management Options'!$C$9,IF(AB19=\"Group E\",'Suggested management Options'!$C$10,IF(AB19=\"Group F\",'Suggested management Options'!$C$11,IF(AB19=\"Group G\",'Suggested management Options'!$C$12,IF(AB19=\"Group O\",'Suggested management Options'!$C$13,IF(AB19=\"Group X\",'Suggested management Options'!$C$14,\"\")))))))))))","v":""},""]
["Caladenia christineae",13617,"T","EN","D","VU","WARR, WHTB","DONNELLY,FRANKLAND,GREAT SOUTHERN","Manjimup-Mount Barker, Bridgetown, Lake Muir, Nuniup Lake","Sep-Oct",null,null,null,null,null,null,"Long-lived",null,"Yes","Likely No",null,null,null,null,null,null,null,"",{"$f":"IF(AB20=\"Group A.1\",'Suggested management Options'!$C$4, IF(AB20=\"Group A.2(i)\", 'Suggested management Options'!$C$5, IF(AB20=\"Group A.2(ii)\", 'Suggested management Options'!$C$6, IF(AB20=\"Group B\",'Suggested management Options'!$C$7,IF(AB20=\"Group C\",'Suggested management Options'!$C$8,IF(AB20=\"Group D\",'Suggested management Options'!$C$9,IF(AB20=\"Group E\",'Suggested management Options'!$C$10,IF(AB20=\"Group F\",'Suggested management Options'!$C$11,IF(AB20=\"Group G\",'Suggested management Options'!$C$12,IF(AB20=\"Group O\",'Suggested management Options'!$C$13,IF(AB20=\"Group X\",'Suggested management Options'!$C$14,\"\")))))))))))","v":""},""]
["Caladenia dorrienii",10850,"T","EN","B1ab(iii,iv,v)+B2ab(iii,iv,v)","EN","SWAN, SWST, WARR, WHTB","BLACKWOOD, DONNELLY, PERTH HILLS, GREAT SOUTHERN","Frankland-Brookton, Boyup Brook, Perup","Sep-Oct",null,null,"No",null,"No","Don't anticipate challenges with germination","Long-lived",null,"Yes","Likely No",null,null,null,null,null,null,null,"",{"$f":"IF(AB21=\"Group A.1\",'Suggested management Options'!$C$4, IF(AB21=\"Group A.2(i)\", 'Suggested management Options'!$C$5, IF(AB21=\"Group A.2(ii)\", 'Suggested management Options'!$C$6, IF(AB21=\"Group B\",'Suggested management Options'!$C$7,IF(AB21=\"Group C\",'Suggested management Options'!$C$8,IF(AB21=\"Group D\",'Suggested management Options'!$C$9,IF(AB21=\"Group E\",'Suggested management Options'!$C$10,IF(AB21=\"Group F\",'Suggested management Options'!$C$11,IF(AB21=\"Group G\",'Suggested management Options'!$C$12,IF(AB21=\"Group O\",'Suggested management Options'!$C$13,IF(AB21=\"Group X\",'Suggested management Options'!$C$14,\"\")))))))))))","v":""},""]
["Caladenia drakeoides",19217,"T","CR","B2a,b,(ii,iii,iv,v)","EN","MWST, WHTB","MOORA, CENTRAL WHEATBELT","Meckering-Coorow","Aug-Oct","IRP",null,null,null,null,null,"Long-lived",null,"Yes","Likely No",null,null,null,null,null,null,null,"",{"$f":"IF(AB22=\"Group A.1\",'Suggested management Options'!$C$4, IF(AB22=\"Group A.2(i)\", 'Suggested management Options'!$C$5, IF(AB22=\"Group A.2(ii)\", 'Suggested management Options'!$C$6, IF(AB22=\"Group B\",'Suggested management Options'!$C$7,IF(AB22=\"Group C\",'Suggested management Options'!$C$8,IF(AB22=\"Group D\",'Suggested management Options'!$C$9,IF(AB22=\"Group E\",'Suggested management Options'!$C$10,IF(AB22=\"Group F\",'Suggested management Options'!$C$11,IF(AB22=\"Group G\",'Suggested management Options'!$C$12,IF(AB22=\"Group O\",'Suggested management Options'!$C$13,IF(AB22=\"Group X\",'Suggested management Options'!$C$14,\"\")))))))))))","v":""},""]
["Caladenia graniticola",20716,"T","EN","B1ab(iii,v)+2ab(iii,v); C2a(i); D",null,"WHTB","GREAT SOUTHERN","Pingaring","Sep-Oct","IRP",null,null,null,null,null,"Long-lived",null,"Yes","Likely No",null,null,null,null,null,null,null,"",{"$f":"IF(AB23=\"Group A.1\",'Suggested management Options'!$C$4, IF(AB23=\"Group A.2(i)\", 'Suggested management Options'!$C$5, IF(AB23=\"Group A.2(ii)\", 'Suggested management Options'!$C$6, IF(AB23=\"Group B\",'Suggested management Options'!$C$7,IF(AB23=\"Group C\",'Suggested management Options'!$C$8,IF(AB23=\"Group D\",'Suggested management Options'!$C$9,IF(AB23=\"Group E\",'Suggested management Options'!$C$10,IF(AB23=\"Group F\",'Suggested management Options'!$C$11,IF(AB23=\"Group G\",'Suggested management Options'!$C$12,IF(AB23=\"Group O\",'Suggested management Options'!$C$13,IF(AB23=\"Group X\",'Suggested management Options'!$C$14,\"\")))))))))))","v":""},""]
["Caladenia hopperiana",44901,"T","EN","B1ab(iii)+2ab(iii)","EN","SWAN, WHTB","PERTH HILLS,GREAT SOUTHERN","Quindanning","Sep-Oct","IRP",null,"No",null,"No","Don't anticipate challenges with germination","Long-lived",null,"Yes","Likely No",null,null,null,null,null,null,null,"",{"$f":"IF(AB24=\"Group A.1\",'Suggested management Options'!$C$4, IF(AB24=\"Group A.2(i)\", 'Suggested management Options'!$C$5, IF(AB24=\"Group A.2(ii)\", 'Suggested management Options'!$C$6, IF(AB24=\"Group B\",'Suggested management Options'!$C$7,IF(AB24=\"Group C\",'Suggested management Options'!$C$8,IF(AB24=\"Group D\",'Suggested management Options'!$C$9,IF(AB24=\"Group E\",'Suggested management Options'!$C$10,IF(AB24=\"Group F\",'Suggested management Options'!$C$11,IF(AB24=\"Group G\",'Suggested management Options'!$C$12,IF(AB24=\"Group O\",'Suggested management Options'!$C$13,IF(AB24=\"Group X\",'Suggested management Options'!$C$14,\"\")))))))))))","v":""},""]
["Caladenia luteola",17864,"T","CR","B1ab(iii,v)+B2ab(iii,v); C2a(ii)","CR","WHTB","GREAT SOUTHERN","Woodanilling","Sep-Oct","IRP",null,null,null,null,null,"Long-lived",null,"Yes","Likely No",null,null,null,null,null,null,null,"",{"$f":"IF(AB25=\"Group A.1\",'Suggested management Options'!$C$4, IF(AB25=\"Group A.2(i)\", 'Suggested management Options'!$C$5, IF(AB25=\"Group A.2(ii)\", 'Suggested management Options'!$C$6, IF(AB25=\"Group B\",'Suggested management Options'!$C$7,IF(AB25=\"Group C\",'Suggested management Options'!$C$8,IF(AB25=\"Group D\",'Suggested management Options'!$C$9,IF(AB25=\"Group E\",'Suggested management Options'!$C$10,IF(AB25=\"Group F\",'Suggested management Options'!$C$11,IF(AB25=\"Group G\",'Suggested management Options'!$C$12,IF(AB25=\"Group O\",'Suggested management Options'!$C$13,IF(AB25=\"Group X\",'Suggested management Options'!$C$14,\"\")))))))))))","v":""},""]
["Caladenia melanema",13861,"T","CR","B2ab(iii); C2a(ii)","CR","WHTB","GREAT SOUTHERN","Pingrup, Lake Altham","Aug-Sep","IRP",null,null,null,null,null,"Long-lived",null,"Yes","Likely No",null,null,null,null,null,null,null,"",{"$f":"IF(AB26=\"Group A.1\",'Suggested management Options'!$C$4, IF(AB26=\"Group A.2(i)\", 'Suggested management Options'!$C$5, IF(AB26=\"Group A.2(ii)\", 'Suggested management Options'!$C$6, IF(AB26=\"Group B\",'Suggested management Options'!$C$7,IF(AB26=\"Group C\",'Suggested management Options'!$C$8,IF(AB26=\"Group D\",'Suggested management Options'!$C$9,IF(AB26=\"Group E\",'Suggested management Options'!$C$10,IF(AB26=\"Group F\",'Suggested management Options'!$C$11,IF(AB26=\"Group G\",'Suggested management Options'!$C$12,IF(AB26=\"Group O\",'Suggested management Options'!$C$13,IF(AB26=\"Group X\",'Suggested management Options'!$C$14,\"\")))))))))))","v":""},""]
["Caladenia williamsiae",19873,"T","CR","D","EN","WHTB","GREAT SOUTHERN","Brookton","Aug-Sep","IRP",null,null,null,null,null,"Long-lived",null,"Yes","Likely No",null,null,null,null,null,null,null,"",{"$f":"IF(AB27=\"Group A.1\",'Suggested management Options'!$C$4, IF(AB27=\"Group A.2(i)\", 'Suggested management Options'!$C$5, IF(AB27=\"Group A.2(ii)\", 'Suggested management Options'!$C$6, IF(AB27=\"Group B\",'Suggested management Options'!$C$7,IF(AB27=\"Group C\",'Suggested management Options'!$C$8,IF(AB27=\"Group D\",'Suggested management Options'!$C$9,IF(AB27=\"Group E\",'Suggested management Options'!$C$10,IF(AB27=\"Group F\",'Suggested management Options'!$C$11,IF(AB27=\"Group G\",'Suggested management Options'!$C$12,IF(AB27=\"Group O\",'Suggested management Options'!$C$13,IF(AB27=\"Group X\",'Suggested management Options'!$C$14,\"\")))))))))))","v":""},""]
["Conospermum galeatum",14002,"T","CR","B1ab(iii,iv)+B2ab(iii,iv); D","CR","WHTB","CENTRAL WHEATBELT","Kellerberrin, Yilgarn",null,null,null,null,null,null,null,null,null,"Yes","Yes-fire","post-fire species. No central wheatbelt fire now. \nSeedlings emerged post-prescribed burn in Charles Gardiner NR in 2015","Yes",null,null,null,null,null,"",{"$f":"IF(AB28=\"Group A.1\",'Suggested management Options'!$C$4, IF(AB28=\"Group A.2(i)\", 'Suggested management Options'!$C$5, IF(AB28=\"Group A.2(ii)\", 'Suggested management Options'!$C$6, IF(AB28=\"Group B\",'Suggested management Options'!$C$7,IF(AB28=\"Group C\",'Suggested management Options'!$C$8,IF(AB28=\"Group D\",'Suggested management Options'!$C$9,IF(AB28=\"Group E\",'Suggested management Options'!$C$10,IF(AB28=\"Group F\",'Suggested management Options'!$C$11,IF(AB28=\"Group G\",'Suggested management Options'!$C$12,IF(AB28=\"Group O\",'Suggested management Options'!$C$13,IF(AB28=\"Group X\",'Suggested management Options'!$C$14,\"\")))))))))))","v":""},""]
["Conostylis setigera subsp. dasys",11363,"T","CR","B1ab(iii)+2ab(iii)","CR","WHTB","GREAT SOUTHERN","Kojonup","Oct-Nov","IRP",null,null,null,null,"Germination challenge anticipated","Long-lived",null,"Yes","Yes-fire",null,null,null,null,null,null,null,"",{"$f":"IF(AB29=\"Group A.1\",'Suggested management Options'!$C$4, IF(AB29=\"Group A.2(i)\", 'Suggested management Options'!$C$5, IF(AB29=\"Group A.2(ii)\", 'Suggested management Options'!$C$6, IF(AB29=\"Group B\",'Suggested management Options'!$C$7,IF(AB29=\"Group C\",'Suggested management Options'!$C$8,IF(AB29=\"Group D\",'Suggested management Options'!$C$9,IF(AB29=\"Group E\",'Suggested management Options'!$C$10,IF(AB29=\"Group F\",'Suggested management Options'!$C$11,IF(AB29=\"Group G\",'Suggested management Options'!$C$12,IF(AB29=\"Group O\",'Suggested management Options'!$C$13,IF(AB29=\"Group X\",'Suggested management Options'!$C$14,\"\")))))))))))","v":""},""]
["Cyphanthera odgersii subsp. occidentalis",11751,"T","CR","B1ab(iii,v)+2ab(iii,v); C2a(ii)","EN","WHTB","CENTRAL WHEATBELT","Cowcowing","Sep-Dec","IRP","Cowcowing, 2014",null,null,null,null,null,null,"Yes","Yes-fire","open country. Like fire . Needs to be hot fire. ",null,null,null,null,null,null,"",{"$f":"IF(AB30=\"Group A.1\",'Suggested management Options'!$C$4, IF(AB30=\"Group A.2(i)\", 'Suggested management Options'!$C$5, IF(AB30=\"Group A.2(ii)\", 'Suggested management Options'!$C$6, IF(AB30=\"Group B\",'Suggested management Options'!$C$7,IF(AB30=\"Group C\",'Suggested management Options'!$C$8,IF(AB30=\"Group D\",'Suggested management Options'!$C$9,IF(AB30=\"Group E\",'Suggested management Options'!$C$10,IF(AB30=\"Group F\",'Suggested management Options'!$C$11,IF(AB30=\"Group G\",'Suggested management Options'!$C$12,IF(AB30=\"Group O\",'Suggested management Options'!$C$13,IF(AB30=\"Group X\",'Suggested management Options'!$C$14,\"\")))))))))))","v":""},""]
["Darwinia carnea",5507,"T","CR","B1ab(iii,v)+2ab(iii,v); C2a(i)","EN","MWST,WHTB","MOORA,GREAT SOUTHERN","Narrogin, Mogumber","Oct-Dec","IRP",null,null,null,null,null,"Long-lived",null,"Yes","Likely Yes",null,null,null,null,null,null,null,"",{"$f":"IF(AB31=\"Group A.1\",'Suggested management Options'!$C$4, IF(AB31=\"Group A.2(i)\", 'Suggested management Options'!$C$5, IF(AB31=\"Group A.2(ii)\", 'Suggested management Options'!$C$6, IF(AB31=\"Group B\",'Suggested management Options'!$C$7,IF(AB31=\"Group C\",'Suggested management Options'!$C$8,IF(AB31=\"Group D\",'Suggested management Options'!$C$9,IF(AB31=\"Group E\",'Suggested management Options'!$C$10,IF(AB31=\"Group F\",'Suggested management Options'!$C$11,IF(AB31=\"Group G\",'Suggested management Options'!$C$12,IF(AB31=\"Group O\",'Suggested management Options'!$C$13,IF(AB31=\"Group X\",'Suggested management Options'!$C$14,\"\")))))))))))","v":""},""]
["Dasymalla axillaris",41022,"T","CR","C1+C2a(i)b","CR","MWST,SWAN,WHTB","GERALDTON, SWAN COASTAL, CENTRAL WHEATBELT","Pithara, Morawa, Lake Moore, Gnangara, Wongan Hills, Maya, Caron, Buntine, Latham, Perenjori","Jul-Oct","IRP",null,null,null,null,null,null,null,"Yes","Yes-fire","graders now. Any diturbance is fine",null,null,null,null,null,null,"",{"$f":"IF(AB32=\"Group A.1\",'Suggested management Options'!$C$4, IF(AB32=\"Group A.2(i)\", 'Suggested management Options'!$C$5, IF(AB32=\"Group A.2(ii)\", 'Suggested management Options'!$C$6, IF(AB32=\"Group B\",'Suggested management Options'!$C$7,IF(AB32=\"Group C\",'Suggested management Options'!$C$8,IF(AB32=\"Group D\",'Suggested management Options'!$C$9,IF(AB32=\"Group E\",'Suggested management Options'!$C$10,IF(AB32=\"Group F\",'Suggested management Options'!$C$11,IF(AB32=\"Group G\",'Suggested management Options'!$C$12,IF(AB32=\"Group O\",'Suggested management Options'!$C$13,IF(AB32=\"Group X\",'Suggested management Options'!$C$14,\"\")))))))))))","v":""},""]
["Daviesia cunderdin",16988,"T","CR","B1ab(iii,v)+2ab(iii,v); C2a(ii); D","EN","WHTB","CENTRAL WHEATBELT","Cunderdin","May","IRP","Christison's property, 2004",null,null,null,null,null,null,"Yes","Likely Yes","Small-scale experimental burns have rersulted in seed germination (IRP 2009)","Yes",null,null,null,null,null,"",{"$f":"IF(AB33=\"Group A.1\",'Suggested management Options'!$C$4, IF(AB33=\"Group A.2(i)\", 'Suggested management Options'!$C$5, IF(AB33=\"Group A.2(ii)\", 'Suggested management Options'!$C$6, IF(AB33=\"Group B\",'Suggested management Options'!$C$7,IF(AB33=\"Group C\",'Suggested management Options'!$C$8,IF(AB33=\"Group D\",'Suggested management Options'!$C$9,IF(AB33=\"Group E\",'Suggested management Options'!$C$10,IF(AB33=\"Group F\",'Suggested management Options'!$C$11,IF(AB33=\"Group G\",'Suggested management Options'!$C$12,IF(AB33=\"Group O\",'Suggested management Options'!$C$13,IF(AB33=\"Group X\",'Suggested management Options'!$C$14,\"\")))))))))))","v":""},""]
["Daviesia euphorbioides",3810,"T","CR","B2ab(iii,v); C2a(ii); D","EN","WHTB","CENTRAL WHEATBELT","Cadoux-Wongan Hills","Jun,Jul","IRP","Dowerin, 2005",null,null,null,null,"Short-lived","5-10 years?","Yes","Likely Yes","Numerous small scale prescribed burns at Wongan Hills demonstrate post-fire germination","Yes",null,null,null,null,null,"",{"$f":"IF(AB34=\"Group A.1\",'Suggested management Options'!$C$4, IF(AB34=\"Group A.2(i)\", 'Suggested management Options'!$C$5, IF(AB34=\"Group A.2(ii)\", 'Suggested management Options'!$C$6, IF(AB34=\"Group B\",'Suggested management Options'!$C$7,IF(AB34=\"Group C\",'Suggested management Options'!$C$8,IF(AB34=\"Group D\",'Suggested management Options'!$C$9,IF(AB34=\"Group E\",'Suggested management Options'!$C$10,IF(AB34=\"Group F\",'Suggested management Options'!$C$11,IF(AB34=\"Group G\",'Suggested management Options'!$C$12,IF(AB34=\"Group O\",'Suggested management Options'!$C$13,IF(AB34=\"Group X\",'Suggested management Options'!$C$14,\"\")))))))))))","v":""},""]
["Eremophila glabra subsp. chlorella",17150,"T","EN","B2ab(i,ii,iii,iv,v)","EN","MWST,SWAN,WHTB","MOORA, SWAN COASTAL, CENTRAL WHEATBELT","Cannington, Kenwick, Mogumber,  Eneabba,","Jul-Aug","IRP",null,"No","Yes","Yes",null,null,null,"Yes","Yes-fire",null,null,null,null,null,null,null,"",{"$f":"IF(AB35=\"Group A.1\",'Suggested management Options'!$C$4, IF(AB35=\"Group A.2(i)\", 'Suggested management Options'!$C$5, IF(AB35=\"Group A.2(ii)\", 'Suggested management Options'!$C$6, IF(AB35=\"Group B\",'Suggested management Options'!$C$7,IF(AB35=\"Group C\",'Suggested management Options'!$C$8,IF(AB35=\"Group D\",'Suggested management Options'!$C$9,IF(AB35=\"Group E\",'Suggested management Options'!$C$10,IF(AB35=\"Group F\",'Suggested management Options'!$C$11,IF(AB35=\"Group G\",'Suggested management Options'!$C$12,IF(AB35=\"Group O\",'Suggested management Options'!$C$13,IF(AB35=\"Group X\",'Suggested management Options'!$C$14,\"\")))))))))))","v":""},""]
["Eremophila pinnatifida",16039,"T","CR","B1ab(iii)+2ab(iii)","EN","WHTB","CENTRAL WHEATBELT","Dalwallinu","Oct-Dec","IRP",null,null,null,null,null,null,null,"Yes","Yes-fire",null,null,null,null,null,null,null,"",{"$f":"IF(AB36=\"Group A.1\",'Suggested management Options'!$C$4, IF(AB36=\"Group A.2(i)\", 'Suggested management Options'!$C$5, IF(AB36=\"Group A.2(ii)\", 'Suggested management Options'!$C$6, IF(AB36=\"Group B\",'Suggested management Options'!$C$7,IF(AB36=\"Group C\",'Suggested management Options'!$C$8,IF(AB36=\"Group D\",'Suggested management Options'!$C$9,IF(AB36=\"Group E\",'Suggested management Options'!$C$10,IF(AB36=\"Group F\",'Suggested management Options'!$C$11,IF(AB36=\"Group G\",'Suggested management Options'!$C$12,IF(AB36=\"Group O\",'Suggested management Options'!$C$13,IF(AB36=\"Group X\",'Suggested management Options'!$C$14,\"\")))))))))))","v":""},""]
["Eremophila resinosa",7262,"T","EN","C2a","EN","WHTB","CENTRAL WHEATBELT","Yellowdine, Wyalkatchem","Sep-Jan","IRP","Westonia, 2004; Westonia twice in 2009",null,null,null,null,null,null,"Yes","Yes-fire",null,null,null,null,null,null,null,"",{"$f":"IF(AB37=\"Group A.1\",'Suggested management Options'!$C$4, IF(AB37=\"Group A.2(i)\", 'Suggested management Options'!$C$5, IF(AB37=\"Group A.2(ii)\", 'Suggested management Options'!$C$6, IF(AB37=\"Group B\",'Suggested management Options'!$C$7,IF(AB37=\"Group C\",'Suggested management Options'!$C$8,IF(AB37=\"Group D\",'Suggested management Options'!$C$9,IF(AB37=\"Group E\",'Suggested management Options'!$C$10,IF(AB37=\"Group F\",'Suggested management Options'!$C$11,IF(AB37=\"Group G\",'Suggested management Options'!$C$12,IF(AB37=\"Group O\",'Suggested management Options'!$C$13,IF(AB37=\"Group X\",'Suggested management Options'!$C$14,\"\")))))))))))","v":""},""]
["Eremophila subteretifolia",13642,"T","CR","C2a","EN","WHTB","GREAT SOUTHERN","Lake Pallarup-Oldfield River, Lake Milarup","Oct-Jan","IRP",null,null,null,null,null,"Short-lived",null,"Yes","Yes-fire",null,null,null,null,null,null,null,"",{"$f":"IF(AB38=\"Group A.1\",'Suggested management Options'!$C$4, IF(AB38=\"Group A.2(i)\", 'Suggested management Options'!$C$5, IF(AB38=\"Group A.2(ii)\", 'Suggested management Options'!$C$6, IF(AB38=\"Group B\",'Suggested management Options'!$C$7,IF(AB38=\"Group C\",'Suggested management Options'!$C$8,IF(AB38=\"Group D\",'Suggested management Options'!$C$9,IF(AB38=\"Group E\",'Suggested management Options'!$C$10,IF(AB38=\"Group F\",'Suggested management Options'!$C$11,IF(AB38=\"Group G\",'Suggested management Options'!$C$12,IF(AB38=\"Group O\",'Suggested management Options'!$C$13,IF(AB38=\"Group X\",'Suggested management Options'!$C$14,\"\")))))))))))","v":""},""]
["Eremophila verticillata",7279,"T","CR","A2c; B1a; b(ii; v)+2a; b(ii; iv); C1","EN","WHTB","GREAT SOUTHERN","NW of Ravensthorpe","Oct-Jan","IRP","Newdegate, 2002",null,null,null,null,"Short-lived",null,"Yes","Yes-fire",null,null,null,null,null,null,null,"",{"$f":"IF(AB39=\"Group A.1\",'Suggested management Options'!$C$4, IF(AB39=\"Group A.2(i)\", 'Suggested management Options'!$C$5, IF(AB39=\"Group A.2(ii)\", 'Suggested management Options'!$C$6, IF(AB39=\"Group B\",'Suggested management Options'!$C$7,IF(AB39=\"Group C\",'Suggested management Options'!$C$8,IF(AB39=\"Group D\",'Suggested management Options'!$C$9,IF(AB39=\"Group E\",'Suggested management Options'!$C$10,IF(AB39=\"Group F\",'Suggested management Options'!$C$11,IF(AB39=\"Group G\",'Suggested management Options'!$C$12,IF(AB39=\"Group O\",'Suggested management Options'!$C$13,IF(AB39=\"Group X\",'Suggested management Options'!$C$14,\"\")))))))))))","v":""},""]
["Eucalyptus brevipes",5567,"T","EN","D1","EN","WHTB","CENTRAL WHEATBELT","NE of Mukinbudin","Jul-Sep",null,null,null,null,null,null,null,null,"Yes","Likely No",null,null,null,null,null,null,null,"",{"$f":"IF(AB40=\"Group A.1\",'Suggested management Options'!$C$4, IF(AB40=\"Group A.2(i)\", 'Suggested management Options'!$C$5, IF(AB40=\"Group A.2(ii)\", 'Suggested management Options'!$C$6, IF(AB40=\"Group B\",'Suggested management Options'!$C$7,IF(AB40=\"Group C\",'Suggested management Options'!$C$8,IF(AB40=\"Group D\",'Suggested management Options'!$C$9,IF(AB40=\"Group E\",'Suggested management Options'!$C$10,IF(AB40=\"Group F\",'Suggested management Options'!$C$11,IF(AB40=\"Group G\",'Suggested management Options'!$C$12,IF(AB40=\"Group O\",'Suggested management Options'!$C$13,IF(AB40=\"Group X\",'Suggested management Options'!$C$14,\"\")))))))))))","v":""},""]
["Eucalyptus crucis subsp. crucis",11294,"T","EN","C2a","VU","GOLD,WHTB","KALGOORLIE,CENTRAL WHEATBELT","Westonia, Southern Cross, Burracoppin, Ora Banda","Dec-Mar",null,null,null,null,null,null,null,"Many decades",null,"No","Long lived. Would establish. Might die. LL, so not that. ",null,null,null,null,null,null,"",{"$f":"IF(AB41=\"Group A.1\",'Suggested management Options'!$C$4, IF(AB41=\"Group A.2(i)\", 'Suggested management Options'!$C$5, IF(AB41=\"Group A.2(ii)\", 'Suggested management Options'!$C$6, IF(AB41=\"Group B\",'Suggested management Options'!$C$7,IF(AB41=\"Group C\",'Suggested management Options'!$C$8,IF(AB41=\"Group D\",'Suggested management Options'!$C$9,IF(AB41=\"Group E\",'Suggested management Options'!$C$10,IF(AB41=\"Group F\",'Suggested management Options'!$C$11,IF(AB41=\"Group G\",'Suggested management Options'!$C$12,IF(AB41=\"Group O\",'Suggested management Options'!$C$13,IF(AB41=\"Group X\",'Suggested management Options'!$C$14,\"\")))))))))))","v":""},""]
["Frankenia parvula",5208,"T","EN","B1ab(iii)+2ab(iii)","EN","WHTB","CENTRAL WHEATBELT","Mortlock River","-","IRP",null,null,null,null,"No seed",null,null,"Yes","No","It wouldn't get burnt even if you tried. Salt lakes, ?? Dunes? You could plant it out. Killed by fire. But has seeds. ",null,null,null,null,null,null,"",{"$f":"IF(AB42=\"Group A.1\",'Suggested management Options'!$C$4, IF(AB42=\"Group A.2(i)\", 'Suggested management Options'!$C$5, IF(AB42=\"Group A.2(ii)\", 'Suggested management Options'!$C$6, IF(AB42=\"Group B\",'Suggested management Options'!$C$7,IF(AB42=\"Group C\",'Suggested management Options'!$C$8,IF(AB42=\"Group D\",'Suggested management Options'!$C$9,IF(AB42=\"Group E\",'Suggested management Options'!$C$10,IF(AB42=\"Group F\",'Suggested management Options'!$C$11,IF(AB42=\"Group G\",'Suggested management Options'!$C$12,IF(AB42=\"Group O\",'Suggested management Options'!$C$13,IF(AB42=\"Group X\",'Suggested management Options'!$C$14,\"\")))))))))))","v":""},""]
["Gastrolobium diabolophyllum",19113,"T","CR","B1ab(iv); C2a(ii)","CR","WHTB","CENTRAL WHEATBELT","Dulyalbin",null,"IRP",null,null,null,null,null,null,null,"yes","Yes-fire",null,null,null,null,null,null,null,"",{"$f":"IF(AB43=\"Group A.1\",'Suggested management Options'!$C$4, IF(AB43=\"Group A.2(i)\", 'Suggested management Options'!$C$5, IF(AB43=\"Group A.2(ii)\", 'Suggested management Options'!$C$6, IF(AB43=\"Group B\",'Suggested management Options'!$C$7,IF(AB43=\"Group C\",'Suggested management Options'!$C$8,IF(AB43=\"Group D\",'Suggested management Options'!$C$9,IF(AB43=\"Group E\",'Suggested management Options'!$C$10,IF(AB43=\"Group F\",'Suggested management Options'!$C$11,IF(AB43=\"Group G\",'Suggested management Options'!$C$12,IF(AB43=\"Group O\",'Suggested management Options'!$C$13,IF(AB43=\"Group X\",'Suggested management Options'!$C$14,\"\")))))))))))","v":""},""]
["Gastrolobium hamulosum",3904,"T","CR","B2ab(iii), C1","EN","MWST,WHTB","MOORA,CENTRAL WHEATBELT","Wongan Hills, Calingiri",null,"IRP",null,null,null,null,null,null,null,"yes","Yes-fire","See Phillips, Beecham, Jolliffe & Crawford (2016). Fire and the Wongan Hills: Determining fire return intervals for vegetation and Critically Endangered flora. Parks and Wildlife, Northam.","Yes",null,null,null,null,null,"",{"$f":"IF(AB44=\"Group A.1\",'Suggested management Options'!$C$4, IF(AB44=\"Group A.2(i)\", 'Suggested management Options'!$C$5, IF(AB44=\"Group A.2(ii)\", 'Suggested management Options'!$C$6, IF(AB44=\"Group B\",'Suggested management Options'!$C$7,IF(AB44=\"Group C\",'Suggested management Options'!$C$8,IF(AB44=\"Group D\",'Suggested management Options'!$C$9,IF(AB44=\"Group E\",'Suggested management Options'!$C$10,IF(AB44=\"Group F\",'Suggested management Options'!$C$11,IF(AB44=\"Group G\",'Suggested management Options'!$C$12,IF(AB44=\"Group O\",'Suggested management Options'!$C$13,IF(AB44=\"Group X\",'Suggested management Options'!$C$14,\"\")))))))))))","v":""},""]
["Goodenia integerrima",12526,"T","EN","D","VU","WHTB","GREAT SOUTHERN","Lake King","Nov","IRP",null,null,null,null,null,"Short-lived",null,"Yes","No","It wouldn't get burnt even if you tried. Salt lakes, ?? Dunes? You could plant it out. ",null,null,null,null,null,null,"",{"$f":"IF(AB45=\"Group A.1\",'Suggested management Options'!$C$4, IF(AB45=\"Group A.2(i)\", 'Suggested management Options'!$C$5, IF(AB45=\"Group A.2(ii)\", 'Suggested management Options'!$C$6, IF(AB45=\"Group B\",'Suggested management Options'!$C$7,IF(AB45=\"Group C\",'Suggested management Options'!$C$8,IF(AB45=\"Group D\",'Suggested management Options'!$C$9,IF(AB45=\"Group E\",'Suggested management Options'!$C$10,IF(AB45=\"Group F\",'Suggested management Options'!$C$11,IF(AB45=\"Group G\",'Suggested management Options'!$C$12,IF(AB45=\"Group O\",'Suggested management Options'!$C$13,IF(AB45=\"Group X\",'Suggested management Options'!$C$14,\"\")))))))))))","v":""},""]
["Grevillea bracteosa subsp. bracteosa",33580,"T","EN","B1ab(i,ii,iii,iv,v)+2ab(i,ii,iii,iv,v)",null,"MWST,SWAN,WHTB","MOORA,PERTH HILLS,CENTRAL WHEATBELT","Toodyay, Mogumber, Miling, Dalwalinu, Bindi Bindi, Piawanning","Aug-Oct",null,null,"No","No","Yes",null,null,null,"Yes","Likely Yes",null,null,null,null,null,null,null,"",{"$f":"IF(AB46=\"Group A.1\",'Suggested management Options'!$C$4, IF(AB46=\"Group A.2(i)\", 'Suggested management Options'!$C$5, IF(AB46=\"Group A.2(ii)\", 'Suggested management Options'!$C$6, IF(AB46=\"Group B\",'Suggested management Options'!$C$7,IF(AB46=\"Group C\",'Suggested management Options'!$C$8,IF(AB46=\"Group D\",'Suggested management Options'!$C$9,IF(AB46=\"Group E\",'Suggested management Options'!$C$10,IF(AB46=\"Group F\",'Suggested management Options'!$C$11,IF(AB46=\"Group G\",'Suggested management Options'!$C$12,IF(AB46=\"Group O\",'Suggested management Options'!$C$13,IF(AB46=\"Group X\",'Suggested management Options'!$C$14,\"\")))))))))))","v":""},""]
["Grevillea dryandroides subsp. dryandroides",14411,"T","CR","B1ab(iii,v)+B2ab(iii,v); C2a(i)","EN","WHTB","CENTRAL WHEATBELT","Ballidu","Sep-Oc,Fe-Ma","IRP","Wongan Hills, 2000",null,null,null,null,"Long-lived",null,"Yes","Unknown","suckers and doesn't seed. So would have to do cuttings. Should ask Bob Dixon\nRecovery Plan refers to seed regeneration following fire or disturbance, and specifically a BGPA trial resulting in seedling germination following smoke water treatment\n","Yes",null,null,null,null,null,"",{"$f":"IF(AB47=\"Group A.1\",'Suggested management Options'!$C$4, IF(AB47=\"Group A.2(i)\", 'Suggested management Options'!$C$5, IF(AB47=\"Group A.2(ii)\", 'Suggested management Options'!$C$6, IF(AB47=\"Group B\",'Suggested management Options'!$C$7,IF(AB47=\"Group C\",'Suggested management Options'!$C$8,IF(AB47=\"Group D\",'Suggested management Options'!$C$9,IF(AB47=\"Group E\",'Suggested management Options'!$C$10,IF(AB47=\"Group F\",'Suggested management Options'!$C$11,IF(AB47=\"Group G\",'Suggested management Options'!$C$12,IF(AB47=\"Group O\",'Suggested management Options'!$C$13,IF(AB47=\"Group X\",'Suggested management Options'!$C$14,\"\")))))))))))","v":""},""]
["Grevillea involucrata",2024,"T","EN","C2a; D","EN","WHTB","GREAT SOUTHERN","Hyden-Lake Magenta, Dragon Rocks","Jun-Jul","IRP",null,null,null,null,"No germination tests have been conducted on this species however it is not anticipated that there would be any issues based on germination of other grevillea species","Short-lived",null,"Yes","Yes-fire","Regeneration observed following prescribed burn at Dragon Rocks NR in 2017?","Yes",null,null,null,null,null,"",{"$f":"IF(AB48=\"Group A.1\",'Suggested management Options'!$C$4, IF(AB48=\"Group A.2(i)\", 'Suggested management Options'!$C$5, IF(AB48=\"Group A.2(ii)\", 'Suggested management Options'!$C$6, IF(AB48=\"Group B\",'Suggested management Options'!$C$7,IF(AB48=\"Group C\",'Suggested management Options'!$C$8,IF(AB48=\"Group D\",'Suggested management Options'!$C$9,IF(AB48=\"Group E\",'Suggested management Options'!$C$10,IF(AB48=\"Group F\",'Suggested management Options'!$C$11,IF(AB48=\"Group G\",'Suggested management Options'!$C$12,IF(AB48=\"Group O\",'Suggested management Options'!$C$13,IF(AB48=\"Group X\",'Suggested management Options'!$C$14,\"\")))))))))))","v":""},""]
["Grevillea pythara",13941,"T","CR","B1ab(iii)+2ab(iii); C2a(ii)","EN","WHTB","CENTRAL WHEATBELT","Pithara",null,"IRP",null,null,null,null,"No seed","Long-lived",null,"yes","Likely Yes","suckers and doesn't seed. So would have to do cuttings. Should ask Bob Dixon. Probably a hybrid. East of Gero. Clonal",null,null,null,null,null,null,"",{"$f":"IF(AB49=\"Group A.1\",'Suggested management Options'!$C$4, IF(AB49=\"Group A.2(i)\", 'Suggested management Options'!$C$5, IF(AB49=\"Group A.2(ii)\", 'Suggested management Options'!$C$6, IF(AB49=\"Group B\",'Suggested management Options'!$C$7,IF(AB49=\"Group C\",'Suggested management Options'!$C$8,IF(AB49=\"Group D\",'Suggested management Options'!$C$9,IF(AB49=\"Group E\",'Suggested management Options'!$C$10,IF(AB49=\"Group F\",'Suggested management Options'!$C$11,IF(AB49=\"Group G\",'Suggested management Options'!$C$12,IF(AB49=\"Group O\",'Suggested management Options'!$C$13,IF(AB49=\"Group X\",'Suggested management Options'!$C$14,\"\")))))))))))","v":""},""]
["Grevillea scapigera",2091,"T","CR","B1ab(i,ii,iii,1v,v)+2ab(i,ii,iii,1v,v); C2a; D","EN","WHTB","GREAT SOUTHERN","Brookton-Hyden","Oct-Nov","IRP","Hartley's, 1993; Corrigin Airport, 1994; Bullaring, 1995",null,null,null,null,"Short-lived",null,"Yes","Yes-fire",null,null,null,null,null,null,null,"",{"$f":"IF(AB50=\"Group A.1\",'Suggested management Options'!$C$4, IF(AB50=\"Group A.2(i)\", 'Suggested management Options'!$C$5, IF(AB50=\"Group A.2(ii)\", 'Suggested management Options'!$C$6, IF(AB50=\"Group B\",'Suggested management Options'!$C$7,IF(AB50=\"Group C\",'Suggested management Options'!$C$8,IF(AB50=\"Group D\",'Suggested management Options'!$C$9,IF(AB50=\"Group E\",'Suggested management Options'!$C$10,IF(AB50=\"Group F\",'Suggested management Options'!$C$11,IF(AB50=\"Group G\",'Suggested management Options'!$C$12,IF(AB50=\"Group O\",'Suggested management Options'!$C$13,IF(AB50=\"Group X\",'Suggested management Options'!$C$14,\"\")))))))))))","v":""},""]
["Guichenotia seorsiflora",17289,"T","CR","C2a(i); D","CR","WHTB","GREAT SOUTHERN","Youndegin, Corrigin","Jul-Sep","IRP",null,null,null,null,null,"Long-lived",null,"Yes","Unknown","A mystery?? Probably seed. = OK? \nPopulation monitored following bushfire in 2015 - results?","Yes",null,null,null,null,null,"",{"$f":"IF(AB51=\"Group A.1\",'Suggested management Options'!$C$4, IF(AB51=\"Group A.2(i)\", 'Suggested management Options'!$C$5, IF(AB51=\"Group A.2(ii)\", 'Suggested management Options'!$C$6, IF(AB51=\"Group B\",'Suggested management Options'!$C$7,IF(AB51=\"Group C\",'Suggested management Options'!$C$8,IF(AB51=\"Group D\",'Suggested management Options'!$C$9,IF(AB51=\"Group E\",'Suggested management Options'!$C$10,IF(AB51=\"Group F\",'Suggested management Options'!$C$11,IF(AB51=\"Group G\",'Suggested management Options'!$C$12,IF(AB51=\"Group O\",'Suggested management Options'!$C$13,IF(AB51=\"Group X\",'Suggested management Options'!$C$14,\"\")))))))))))","v":""},""]
["Gyrostemon reticulatus",2785,"T","CR","B1ab(iii)+2ab(iii)","CR","WHTB","CENTRAL WHEATBELT","Wubin, Kalannie, Tardun, Perenjori","Oct-Nov","IRP",null,null,null,null,null,"Short-lived",null,"Yes","Yes-fire","post-fire species\nLiterature on other species in genus suggest combination of smoke, heat and moisture.  Doesn't appear to exhibit physical dormancy ie. not hard-seeded.","Yes",null,null,null,null,null,"",{"$f":"IF(AB52=\"Group A.1\",'Suggested management Options'!$C$4, IF(AB52=\"Group A.2(i)\", 'Suggested management Options'!$C$5, IF(AB52=\"Group A.2(ii)\", 'Suggested management Options'!$C$6, IF(AB52=\"Group B\",'Suggested management Options'!$C$7,IF(AB52=\"Group C\",'Suggested management Options'!$C$8,IF(AB52=\"Group D\",'Suggested management Options'!$C$9,IF(AB52=\"Group E\",'Suggested management Options'!$C$10,IF(AB52=\"Group F\",'Suggested management Options'!$C$11,IF(AB52=\"Group G\",'Suggested management Options'!$C$12,IF(AB52=\"Group O\",'Suggested management Options'!$C$13,IF(AB52=\"Group X\",'Suggested management Options'!$C$14,\"\")))))))))))","v":""},""]
["Haloragis platycarpa",6177,"T","CR","B1ab(iii)+2ab(iii); D","CR","WHTB","CENTRAL WHEATBELT","Dalwallinu","Oct","IRP",null,null,null,null,null,null,null,"Yes","Likely Yes","grows is claypans. Sth of Moora. If you could find a claypan you could get it to grow. Should look for more perhaps. Womd pollinated, not very beautiful. \nIs this habitat likely to burn? (Brett)",null,null,null,null,null,null,"",{"$f":"IF(AB53=\"Group A.1\",'Suggested management Options'!$C$4, IF(AB53=\"Group A.2(i)\", 'Suggested management Options'!$C$5, IF(AB53=\"Group A.2(ii)\", 'Suggested management Options'!$C$6, IF(AB53=\"Group B\",'Suggested management Options'!$C$7,IF(AB53=\"Group C\",'Suggested management Options'!$C$8,IF(AB53=\"Group D\",'Suggested management Options'!$C$9,IF(AB53=\"Group E\",'Suggested management Options'!$C$10,IF(AB53=\"Group F\",'Suggested management Options'!$C$11,IF(AB53=\"Group G\",'Suggested management Options'!$C$12,IF(AB53=\"Group O\",'Suggested management Options'!$C$13,IF(AB53=\"Group X\",'Suggested management Options'!$C$14,\"\")))))))))))","v":""},""]
["Hemiandra rutilans",6841,"T","CR","A1ac; B1+2a-e; D","EN","WHTB","CENTRAL WHEATBELT","Dowerin",null,"IRP",null,null,null,null,null,null,null,"Yes","Yes-fire","Disturbance species. Would be hard to do from seed. Would go ok if you just fire it. Definite target!!!!",null,null,null,null,null,null,"",{"$f":"IF(AB54=\"Group A.1\",'Suggested management Options'!$C$4, IF(AB54=\"Group A.2(i)\", 'Suggested management Options'!$C$5, IF(AB54=\"Group A.2(ii)\", 'Suggested management Options'!$C$6, IF(AB54=\"Group B\",'Suggested management Options'!$C$7,IF(AB54=\"Group C\",'Suggested management Options'!$C$8,IF(AB54=\"Group D\",'Suggested management Options'!$C$9,IF(AB54=\"Group E\",'Suggested management Options'!$C$10,IF(AB54=\"Group F\",'Suggested management Options'!$C$11,IF(AB54=\"Group G\",'Suggested management Options'!$C$12,IF(AB54=\"Group O\",'Suggested management Options'!$C$13,IF(AB54=\"Group X\",'Suggested management Options'!$C$14,\"\")))))))))))","v":""},""]
["Hemigenia ramosissima",6867,"T","CR","C2a","CR","WHTB","GREAT SOUTHERN","Beaufort River","Oct-Nov","IRP","Water Reserve 9090 (Birdwood NR), 2007; Water Reserve 10664 (Hale Road), 2008",null,null,null,null,"Long-lived",null,"Yes","Yes-fire","Disturbance species. Would be hard to do from seed. Would go ok if you just fire it. Definite target!!!!\nSeedling regeneration observed at a translocated population (Hale Road) after a bushfire in 2015","Yes",null,null,null,null,null,"",{"$f":"IF(AB55=\"Group A.1\",'Suggested management Options'!$C$4, IF(AB55=\"Group A.2(i)\", 'Suggested management Options'!$C$5, IF(AB55=\"Group A.2(ii)\", 'Suggested management Options'!$C$6, IF(AB55=\"Group B\",'Suggested management Options'!$C$7,IF(AB55=\"Group C\",'Suggested management Options'!$C$8,IF(AB55=\"Group D\",'Suggested management Options'!$C$9,IF(AB55=\"Group E\",'Suggested management Options'!$C$10,IF(AB55=\"Group F\",'Suggested management Options'!$C$11,IF(AB55=\"Group G\",'Suggested management Options'!$C$12,IF(AB55=\"Group O\",'Suggested management Options'!$C$13,IF(AB55=\"Group X\",'Suggested management Options'!$C$14,\"\")))))))))))","v":""},""]
["Hibbertia priceana",19686,"T","EN","D","CR","SCST,WHTB","ALBANY,GREAT SOUTHERN","Ongerup, Dongolocking","Jun-Aug",null,null,null,null,null,null,"Long-lived",null,"Yes","Likely No",null,null,null,null,null,null,null,"",{"$f":"IF(AB56=\"Group A.1\",'Suggested management Options'!$C$4, IF(AB56=\"Group A.2(i)\", 'Suggested management Options'!$C$5, IF(AB56=\"Group A.2(ii)\", 'Suggested management Options'!$C$6, IF(AB56=\"Group B\",'Suggested management Options'!$C$7,IF(AB56=\"Group C\",'Suggested management Options'!$C$8,IF(AB56=\"Group D\",'Suggested management Options'!$C$9,IF(AB56=\"Group E\",'Suggested management Options'!$C$10,IF(AB56=\"Group F\",'Suggested management Options'!$C$11,IF(AB56=\"Group G\",'Suggested management Options'!$C$12,IF(AB56=\"Group O\",'Suggested management Options'!$C$13,IF(AB56=\"Group X\",'Suggested management Options'!$C$14,\"\")))))))))))","v":""},""]
["Isopogon robustus",25898,"T","CR","B2ab(v); C2a(ii)","CR","WHTB","CENTRAL WHEATBELT","Parker Range, Marvel Loch","Sep-Oct","IRP",null,null,null,null,null,null,null,"Yes","No","Grows on the Banded Ironstone. Should grow from seed. Never seen fire. Would be hard. ",null,null,null,null,null,null,"",{"$f":"IF(AB57=\"Group A.1\",'Suggested management Options'!$C$4, IF(AB57=\"Group A.2(i)\", 'Suggested management Options'!$C$5, IF(AB57=\"Group A.2(ii)\", 'Suggested management Options'!$C$6, IF(AB57=\"Group B\",'Suggested management Options'!$C$7,IF(AB57=\"Group C\",'Suggested management Options'!$C$8,IF(AB57=\"Group D\",'Suggested management Options'!$C$9,IF(AB57=\"Group E\",'Suggested management Options'!$C$10,IF(AB57=\"Group F\",'Suggested management Options'!$C$11,IF(AB57=\"Group G\",'Suggested management Options'!$C$12,IF(AB57=\"Group O\",'Suggested management Options'!$C$13,IF(AB57=\"Group X\",'Suggested management Options'!$C$14,\"\")))))))))))","v":""},""]
["Jacksonia velveta",19373,"T","EN","C2a(i); B1ab(iii,v)+2ab(iii,v)","EN","SWST,WHTB","WELLINGTON,GREAT SOUTHERN","Collie Basin, Woodanilling, Narrogin","-",null,null,null,null,null,null,"Long-lived",null,"Yes","Yes-fire","post-fire species",null,null,null,null,null,null,"",{"$f":"IF(AB58=\"Group A.1\",'Suggested management Options'!$C$4, IF(AB58=\"Group A.2(i)\", 'Suggested management Options'!$C$5, IF(AB58=\"Group A.2(ii)\", 'Suggested management Options'!$C$6, IF(AB58=\"Group B\",'Suggested management Options'!$C$7,IF(AB58=\"Group C\",'Suggested management Options'!$C$8,IF(AB58=\"Group D\",'Suggested management Options'!$C$9,IF(AB58=\"Group E\",'Suggested management Options'!$C$10,IF(AB58=\"Group F\",'Suggested management Options'!$C$11,IF(AB58=\"Group G\",'Suggested management Options'!$C$12,IF(AB58=\"Group O\",'Suggested management Options'!$C$13,IF(AB58=\"Group X\",'Suggested management Options'!$C$14,\"\")))))))))))","v":""},""]
["Lasiopetalum moullean",48348,"T","CR","B1ab(i,ii,iii,iv,v)+2ab(i,ii,iii,iv,v); C2a(i); D",null,"WHTB","CENTRAL WHEATBELT","Mount Caroline N.R.",null,null,null,null,null,null,null,null,null,"Yes","Unknown","probably seed. Might depend on habitat. If habitat is good, disturbance = good. But if on a road verge, no good.",null,null,null,null,null,null,"",{"$f":"IF(AB59=\"Group A.1\",'Suggested management Options'!$C$4, IF(AB59=\"Group A.2(i)\", 'Suggested management Options'!$C$5, IF(AB59=\"Group A.2(ii)\", 'Suggested management Options'!$C$6, IF(AB59=\"Group B\",'Suggested management Options'!$C$7,IF(AB59=\"Group C\",'Suggested management Options'!$C$8,IF(AB59=\"Group D\",'Suggested management Options'!$C$9,IF(AB59=\"Group E\",'Suggested management Options'!$C$10,IF(AB59=\"Group F\",'Suggested management Options'!$C$11,IF(AB59=\"Group G\",'Suggested management Options'!$C$12,IF(AB59=\"Group O\",'Suggested management Options'!$C$13,IF(AB59=\"Group X\",'Suggested management Options'!$C$14,\"\")))))))))))","v":""},""]
["Lysiosepalum abollatum",17740,"T","CR","B1ab(iii; iv; v)+B2ab(iii; iv; v); C2a(ii)","CR","WHTB","CENTRAL WHEATBELT","Wongan Hills","Aug,Sep","IRP","Wongan Hills, 2009",null,null,null,null,null,null,"Yes","Unknown","probably seed. Might depend on habitat. If habitat is good, disturbance = good. But if on a road verge, no good.\nObservations (Brett Beecham) at Mt O'Brien suggest this species recruits from seed following physical scarification of seed through the action of water moving soil/seeds downslope",null,null,null,null,null,null,"",{"$f":"IF(AB60=\"Group A.1\",'Suggested management Options'!$C$4, IF(AB60=\"Group A.2(i)\", 'Suggested management Options'!$C$5, IF(AB60=\"Group A.2(ii)\", 'Suggested management Options'!$C$6, IF(AB60=\"Group B\",'Suggested management Options'!$C$7,IF(AB60=\"Group C\",'Suggested management Options'!$C$8,IF(AB60=\"Group D\",'Suggested management Options'!$C$9,IF(AB60=\"Group E\",'Suggested management Options'!$C$10,IF(AB60=\"Group F\",'Suggested management Options'!$C$11,IF(AB60=\"Group G\",'Suggested management Options'!$C$12,IF(AB60=\"Group O\",'Suggested management Options'!$C$13,IF(AB60=\"Group X\",'Suggested management Options'!$C$14,\"\")))))))))))","v":""},""]
["Melaleuca sciotostyla",5962,"T","EN","D1+2","EN","WHTB","CENTRAL WHEATBELT","Wongan Hills, Cadoux","Aug",null,null,null,null,null,null,null,null,"Yes","Unknown",null,null,null,null,null,null,null,"",{"$f":"IF(AB61=\"Group A.1\",'Suggested management Options'!$C$4, IF(AB61=\"Group A.2(i)\", 'Suggested management Options'!$C$5, IF(AB61=\"Group A.2(ii)\", 'Suggested management Options'!$C$6, IF(AB61=\"Group B\",'Suggested management Options'!$C$7,IF(AB61=\"Group C\",'Suggested management Options'!$C$8,IF(AB61=\"Group D\",'Suggested management Options'!$C$9,IF(AB61=\"Group E\",'Suggested management Options'!$C$10,IF(AB61=\"Group F\",'Suggested management Options'!$C$11,IF(AB61=\"Group G\",'Suggested management Options'!$C$12,IF(AB61=\"Group O\",'Suggested management Options'!$C$13,IF(AB61=\"Group X\",'Suggested management Options'!$C$14,\"\")))))))))))","v":""},""]
["Myriophyllum lapidicola",13082,"T","EN","B2ab(iii,v); C2a(i)","EN","GOLD,WHTB","KALGOORLIE,CENTRAL WHEATBELT","NW of Chiddarcooping Hill, Yowie Rock, Jaurdi, Yanneymooning","Sep","IRP",null,null,null,null,null,null,null,"Yes","No","Namahole endemic on granite",null,null,null,null,null,null,"",{"$f":"IF(AB62=\"Group A.1\",'Suggested management Options'!$C$4, IF(AB62=\"Group A.2(i)\", 'Suggested management Options'!$C$5, IF(AB62=\"Group A.2(ii)\", 'Suggested management Options'!$C$6, IF(AB62=\"Group B\",'Suggested management Options'!$C$7,IF(AB62=\"Group C\",'Suggested management Options'!$C$8,IF(AB62=\"Group D\",'Suggested management Options'!$C$9,IF(AB62=\"Group E\",'Suggested management Options'!$C$10,IF(AB62=\"Group F\",'Suggested management Options'!$C$11,IF(AB62=\"Group G\",'Suggested management Options'!$C$12,IF(AB62=\"Group O\",'Suggested management Options'!$C$13,IF(AB62=\"Group X\",'Suggested management Options'!$C$14,\"\")))))))))))","v":""},""]
["Philotheca falcata",18517,"T","EN","D","CR","WHTB","CENTRAL WHEATBELT","Yellowdine","Oct",null,null,null,null,null,null,null,null,"Yes","Likely Yes",null,null,null,null,null,null,null,"",{"$f":"IF(AB63=\"Group A.1\",'Suggested management Options'!$C$4, IF(AB63=\"Group A.2(i)\", 'Suggested management Options'!$C$5, IF(AB63=\"Group A.2(ii)\", 'Suggested management Options'!$C$6, IF(AB63=\"Group B\",'Suggested management Options'!$C$7,IF(AB63=\"Group C\",'Suggested management Options'!$C$8,IF(AB63=\"Group D\",'Suggested management Options'!$C$9,IF(AB63=\"Group E\",'Suggested management Options'!$C$10,IF(AB63=\"Group F\",'Suggested management Options'!$C$11,IF(AB63=\"Group G\",'Suggested management Options'!$C$12,IF(AB63=\"Group O\",'Suggested management Options'!$C$13,IF(AB63=\"Group X\",'Suggested management Options'!$C$14,\"\")))))))))))","v":""},""]
["Philotheca wonganensis",18505,"T","EN","C2a","EN","MWST,WHTB","GERALDTON,CENTRAL WHEATBELT","Wongan Hills, Northampton","Aug-Sep",null,null,null,null,null,null,null,null,"Yes","Likely Yes",null,null,null,null,null,null,null,"",{"$f":"IF(AB64=\"Group A.1\",'Suggested management Options'!$C$4, IF(AB64=\"Group A.2(i)\", 'Suggested management Options'!$C$5, IF(AB64=\"Group A.2(ii)\", 'Suggested management Options'!$C$6, IF(AB64=\"Group B\",'Suggested management Options'!$C$7,IF(AB64=\"Group C\",'Suggested management Options'!$C$8,IF(AB64=\"Group D\",'Suggested management Options'!$C$9,IF(AB64=\"Group E\",'Suggested management Options'!$C$10,IF(AB64=\"Group F\",'Suggested management Options'!$C$11,IF(AB64=\"Group G\",'Suggested management Options'!$C$12,IF(AB64=\"Group O\",'Suggested management Options'!$C$13,IF(AB64=\"Group X\",'Suggested management Options'!$C$14,\"\")))))))))))","v":""},""]
["Pityrodia scabra subsp. scabra",42560,"T","CR","B1ab(iii,v)+2ab(iii,v); C1; D","EN","WHTB","CENTRAL WHEATBELT","Cowcowing","Aug-Nov","IRP","NR, Wyalkatchem, 1995; PP, Wyalkatchem, 1995",null,null,null,null,null,null,"Yes","Likely Yes",null,null,null,null,null,null,null,"",{"$f":"IF(AB65=\"Group A.1\",'Suggested management Options'!$C$4, IF(AB65=\"Group A.2(i)\", 'Suggested management Options'!$C$5, IF(AB65=\"Group A.2(ii)\", 'Suggested management Options'!$C$6, IF(AB65=\"Group B\",'Suggested management Options'!$C$7,IF(AB65=\"Group C\",'Suggested management Options'!$C$8,IF(AB65=\"Group D\",'Suggested management Options'!$C$9,IF(AB65=\"Group E\",'Suggested management Options'!$C$10,IF(AB65=\"Group F\",'Suggested management Options'!$C$11,IF(AB65=\"Group G\",'Suggested management Options'!$C$12,IF(AB65=\"Group O\",'Suggested management Options'!$C$13,IF(AB65=\"Group X\",'Suggested management Options'!$C$14,\"\")))))))))))","v":""},""]
["Rhizanthella gardneri",1699,"T","CR","C1+2a(i); D","EN","SCST,WHTB","ESPERANCE,GREAT SOUTHERN,CENTRAL WHEATBELT","Wubin-Munglinup","May-Jul","IRP",null,null,null,null,null,"Long-lived",null,"Yes","Likely Yes",null,null,null,null,null,null,null,"",{"$f":"IF(AB66=\"Group A.1\",'Suggested management Options'!$C$4, IF(AB66=\"Group A.2(i)\", 'Suggested management Options'!$C$5, IF(AB66=\"Group A.2(ii)\", 'Suggested management Options'!$C$6, IF(AB66=\"Group B\",'Suggested management Options'!$C$7,IF(AB66=\"Group C\",'Suggested management Options'!$C$8,IF(AB66=\"Group D\",'Suggested management Options'!$C$9,IF(AB66=\"Group E\",'Suggested management Options'!$C$10,IF(AB66=\"Group F\",'Suggested management Options'!$C$11,IF(AB66=\"Group G\",'Suggested management Options'!$C$12,IF(AB66=\"Group O\",'Suggested management Options'!$C$13,IF(AB66=\"Group X\",'Suggested management Options'!$C$14,\"\")))))))))))","v":""},""]
["Stylidium applanatum",25803,"T","CR","B1ab(iii)+2ab(iii)","CR","WHTB","GREAT SOUTHERN","Corrigin",null,"IRP",null,null,null,null,null,"Short-lived",null,"Yes","Yes-fire","Population monitored post 2015 bushfire - results?","Yes",null,null,null,null,null,"",{"$f":"IF(AB67=\"Group A.1\",'Suggested management Options'!$C$4, IF(AB67=\"Group A.2(i)\", 'Suggested management Options'!$C$5, IF(AB67=\"Group A.2(ii)\", 'Suggested management Options'!$C$6, IF(AB67=\"Group B\",'Suggested management Options'!$C$7,IF(AB67=\"Group C\",'Suggested management Options'!$C$8,IF(AB67=\"Group D\",'Suggested management Options'!$C$9,IF(AB67=\"Group E\",'Suggested management Options'!$C$10,IF(AB67=\"Group F\",'Suggested management Options'!$C$11,IF(AB67=\"Group G\",'Suggested management Options'!$C$12,IF(AB67=\"Group O\",'Suggested management Options'!$C$13,IF(AB67=\"Group X\",'Suggested management Options'!$C$14,\"\")))))))))))","v":""},""]
["Stylidium coroniforme subsp. amblyphyllum",23472,"T","EN","B1ab(iii) + 2ab(iii)",null,"WHTB","CENTRAL WHEATBELT","Quairading",null,null,null,null,null,null,null,null,null,"Yes","Yes-fire",null,null,null,null,null,null,null,{"$f":"IF(AND(S68=\"No\",AA68=\"No\"),\"Group A.1\",IF(AND(S68=\"No\", AA68=\"Yes\", Q68=\"Long-lived\"), \"Group A.2(i)\", IF(AND(S68=\"No\", AA68=\"Yes\", Q68=\"Short-lived\"), \"Group A.2(ii)\", IF(AND(S68=\"Yes\", OR(T68=\"Yes-fire\", T68=\"Likely Yes\"),V68=\"No\"), \"Group O\", IF(AND(S68=\"Yes\", OR(T68=\"Yes-fire\", T68=\"Likely Yes\"), V68=\"Yes\", W68=\"Yes\", Q68=\"Long-lived\" ),\"Group B\", IF(AND(S68=\"Yes\", OR(T68=\"Yes-other\", T68=\"Likely No\", T68=\"No\"), W68=\"Yes\", Q68=\"Long-lived\"),\"Group B\", IF(AND(S68=\"Yes\", OR(T68=\"Yes-fire\", T68=\"Likely Yes\"), V68=\"Yes\", W68=\"Yes\", Q68=\"Short-lived\" ),\"Group C\", IF(AND(S68=\"Yes\", OR(T68=\"Yes-other\", T68=\"Likely No\", T68=\"No\"), W68=\"Yes\", Q68=\"Short-lived\" ),\"Group C\", IF(AND(S68=\"Yes\", OR(T68=\"Yes-fire\", T68=\"Likely Yes\"), V68=\"Yes\", W68=\"No\", X68=\"Yes\" ),\"Group D\",  IF(AND(S68=\"Yes\", OR(T68=\"Yes-other\", T68=\"Likely No\", T68=\"No\"), W68=\"No\", X68=\"Yes\" ),\"Group D\",  IF(AND(S68=\"Yes\",OR(T68=\"Yes-fire\", T68=\"Likely Yes\"), V68=\"Yes\", W68=\"No\", X68=\"No\",OR(Y68=\"Yes\",Y68=\"Likely Yes\"),Z68=\"Yes\"),\"Group E\", IF(AND(S68=\"Yes\", OR(T68=\"Yes-other\", T68=\"Likely No\", T68=\"No\"), W68=\"No\", X68=\"No\",OR(Y68=\"Yes\",Y68=\"Likely Yes\"),Z68=\"Yes\"),\"Group E\", IF(AND(S68=\"Yes\",OR(T68=\"Yes-fire\", T68=\"Likely Yes\"), V68=\"Yes\", W68=\"No\", X68=\"No\",OR(Y68=\"Yes\",Y68=\"Likely Yes\"),Z68=\"No\"),\"Group F\", IF(AND(S68=\"Yes\", OR(T68=\"Yes-other\", T68=\"Likely No\", T68=\"No\"), W68=\"No\", X68=\"No\",OR(Y68=\"Yes\",Y68=\"Likely Yes\"),Z68=\"No\"),\"Group F\",  IF(AND(S68=\"Yes\",OR(T68=\"Yes-fire\", T68=\"Likely Yes\"), V68=\"Yes\", W68=\"No\", X68=\"No\",OR(Y68=\"No\",Y68=\"Likely No\")),\"Group G\", IF(AND(S68=\"Yes\", OR(T68=\"Yes-other\", T68=\"Likely No\", T68=\"No\"), W68=\"No\", X68=\"No\",OR(Y68=\"No\",Y68=\"Likely No\")),\"Group G\", IF(AND(S68=\"Yes\", OR(T68=\"Yes-fire\", T68=\"Likely Yes\"), V68=\"Yes\", W68=\"No\", X68=\"No\",Y68=\"Unknown\"),\"Group X\", IF(AND(S68=\"Yes\", OR(T68=\"Yes-other\", T68=\"Likely No\", T68=\"No\"), W68=\"No\", X68=\"No\",Y68=\"Unknown\"),\"Group X\",\"\"))))))))))))))))))","v":""},{"$f":"IF(AB68=\"Group A.1\",'Suggested management Options'!$C$4, IF(AB68=\"Group A.2(i)\", 'Suggested management Options'!$C$5, IF(AB68=\"Group A.2(ii)\", 'Suggested management Options'!$C$6, IF(AB68=\"Group B\",'Suggested management Options'!$C$7,IF(AB68=\"Group C\",'Suggested management Options'!$C$8,IF(AB68=\"Group D\",'Suggested management Options'!$C$9,IF(AB68=\"Group E\",'Suggested management Options'!$C$10,IF(AB68=\"Group F\",'Suggested management Options'!$C$11,IF(AB68=\"Group G\",'Suggested management Options'!$C$12,IF(AB68=\"Group O\",'Suggested management Options'!$C$13,IF(AB68=\"Group X\",'Suggested management Options'!$C$14,\"\")))))))))))","v":""},{"$f":"IF(OR(AB68=\"Group A.1\", AB68=\"Group A.2(i)\", AB68=\"Group A.2(ii)\", AB68=\"Group D\"), \"DON'T TRANSLOCATE\", IF(OR(AB68=\"Group B\", AB68=\"Group C\", AB68=\"Group E\"), \"MAYBE TRANSLOCATE IF COST-EFFECTIVE\", IF(OR(AB68=\"Group F\", AB68=\"Group G\"), \"DEFINITELY TRANSLOCATE\", IF(AB68=\"Group X\", \"EVALUATE SEED BANK\", IF(AB68=\"Group O\", \"INTRODUCE DISTURBANCE FIRST\", \"\")))))","v":""}]
["Stylidium coroniforme subsp. coroniforme",23471,"T","EN","B1ab(iii,v)+2ab(iii,v); C2a(i)","EN","MWST,WHTB","GERALDTON,CENTRAL WHEATBELT","Wongan Hills, Latham","Sep","IRP",null,null,null,null,null,null,null,"Yes","Yes-fire",null,null,null,null,null,null,null,"",{"$f":"IF(AB69=\"Group A.1\",'Suggested management Options'!$C$4, IF(AB69=\"Group A.2(i)\", 'Suggested management Options'!$C$5, IF(AB69=\"Group A.2(ii)\", 'Suggested management Options'!$C$6, IF(AB69=\"Group B\",'Suggested management Options'!$C$7,IF(AB69=\"Group C\",'Suggested management Options'!$C$8,IF(AB69=\"Group D\",'Suggested management Options'!$C$9,IF(AB69=\"Group E\",'Suggested management Options'!$C$10,IF(AB69=\"Group F\",'Suggested management Options'!$C$11,IF(AB69=\"Group G\",'Suggested management Options'!$C$12,IF(AB69=\"Group O\",'Suggested management Options'!$C$13,IF(AB69=\"Group X\",'Suggested management Options'!$C$14,\"\")))))))))))","v":""},""]
["Symonanthus bancroftii",7044,"T","CR","A1c; B1ab(iii,v)+2ab(iii,v); C1; D","EN","WHTB","CENTRAL WHEATBELT","Bruce Rock","Jun(Sep)","IRP","Ardath, 2002; Bruce Rock (Nangeen Hill Nature Reserve?), 2002",null,null,null,null,"Short-lived",null,"Yes","Yes-fire","Previously unknown population 'discovered' regenerating after a bushfire in 2017at Paperbark Swamp NR","Yes",null,null,null,null,null,"",{"$f":"IF(AB70=\"Group A.1\",'Suggested management Options'!$C$4, IF(AB70=\"Group A.2(i)\", 'Suggested management Options'!$C$5, IF(AB70=\"Group A.2(ii)\", 'Suggested management Options'!$C$6, IF(AB70=\"Group B\",'Suggested management Options'!$C$7,IF(AB70=\"Group C\",'Suggested management Options'!$C$8,IF(AB70=\"Group D\",'Suggested management Options'!$C$9,IF(AB70=\"Group E\",'Suggested management Options'!$C$10,IF(AB70=\"Group F\",'Suggested management Options'!$C$11,IF(AB70=\"Group G\",'Suggested management Options'!$C$12,IF(AB70=\"Group O\",'Suggested management Options'!$C$13,IF(AB70=\"Group X\",'Suggested management Options'!$C$14,\"\")))))))))))","v":""},""]
["Tetratheca deltoidea",4529,"T","CR","B1ab(iii,v)+2ab(iii,v); D","EN","WHTB","CENTRAL WHEATBELT","Mt Caroline","Aug-Sep","IRP",null,null,null,null,null,null,null,"Yes","Likely No",null,null,null,null,null,null,null,"",{"$f":"IF(AB71=\"Group A.1\",'Suggested management Options'!$C$4, IF(AB71=\"Group A.2(i)\", 'Suggested management Options'!$C$5, IF(AB71=\"Group A.2(ii)\", 'Suggested management Options'!$C$6, IF(AB71=\"Group B\",'Suggested management Options'!$C$7,IF(AB71=\"Group C\",'Suggested management Options'!$C$8,IF(AB71=\"Group D\",'Suggested management Options'!$C$9,IF(AB71=\"Group E\",'Suggested management Options'!$C$10,IF(AB71=\"Group F\",'Suggested management Options'!$C$11,IF(AB71=\"Group G\",'Suggested management Options'!$C$12,IF(AB71=\"Group O\",'Suggested management Options'!$C$13,IF(AB71=\"Group X\",'Suggested management Options'!$C$14,\"\")))))))))))","v":""},""]
["Thelymitra stellata",10862,"T","EN","D; C2a","EN","MWST,SWAN,WHTB","MOORA,PERTH HILLS,GREAT SOUTHERN","Perth-Three Springs, Pinjarra, Dumbleyung, Corrigin, Bungendore Park, Unnamed Shire Reserve 34155, Hartfield Rd, Mt Peron, Jurien Bay, Mt Lesueur NP, Arthur River, Coomallo NR, Julimar, Chittering, Armadale","Oct-Nov",null,"?,?","No","No","No",null,"Long-lived",null,"Yes","Likely No",null,null,null,null,null,null,null,"",{"$f":"IF(AB72=\"Group A.1\",'Suggested management Options'!$C$4, IF(AB72=\"Group A.2(i)\", 'Suggested management Options'!$C$5, IF(AB72=\"Group A.2(ii)\", 'Suggested management Options'!$C$6, IF(AB72=\"Group B\",'Suggested management Options'!$C$7,IF(AB72=\"Group C\",'Suggested management Options'!$C$8,IF(AB72=\"Group D\",'Suggested management Options'!$C$9,IF(AB72=\"Group E\",'Suggested management Options'!$C$10,IF(AB72=\"Group F\",'Suggested management Options'!$C$11,IF(AB72=\"Group G\",'Suggested management Options'!$C$12,IF(AB72=\"Group O\",'Suggested management Options'!$C$13,IF(AB72=\"Group X\",'Suggested management Options'!$C$14,\"\")))))))))))","v":""},""]
["Trithuria occidentalis",32658,"T","CR","B1ab(iii)+2ab(iii)","EN","SWAN,WHTB","SWAN COASTAL,CENTRAL WHEATBELT","Ellenbrook N.R.,  (Midland), Gillingarra","Sep-Nov","IRP",null,"No","No","No","Anticipate germination challenges.",null,null,"Yes","Likely No",null,null,null,null,null,null,null,"",{"$f":"IF(AB73=\"Group A.1\",'Suggested management Options'!$C$4, IF(AB73=\"Group A.2(i)\", 'Suggested management Options'!$C$5, IF(AB73=\"Group A.2(ii)\", 'Suggested management Options'!$C$6, IF(AB73=\"Group B\",'Suggested management Options'!$C$7,IF(AB73=\"Group C\",'Suggested management Options'!$C$8,IF(AB73=\"Group D\",'Suggested management Options'!$C$9,IF(AB73=\"Group E\",'Suggested management Options'!$C$10,IF(AB73=\"Group F\",'Suggested management Options'!$C$11,IF(AB73=\"Group G\",'Suggested management Options'!$C$12,IF(AB73=\"Group O\",'Suggested management Options'!$C$13,IF(AB73=\"Group X\",'Suggested management Options'!$C$14,\"\")))))))))))","v":""},""]
["Verticordia staminosa subsp. cylindracea var. erecta",12464,"T","CR","B1+2ab(iii,v)",null,"WHTB","GREAT SOUTHERN","Newdegate","Jun-Aug","IRP",null,null,null,null,null,"Long-lived",null,"Yes","No","Only on granite. Seeder. Does OK. KP have grown it. Could translocate readily. Seed quite viable. Pretty stable where it is. Might be more on private land. Could easily beef up via tranlsocations. Don't seem to mind weedy rocks. Reddy yellow. ",null,null,null,null,null,null,"",{"$f":"IF(AB74=\"Group A.1\",'Suggested management Options'!$C$4, IF(AB74=\"Group A.2(i)\", 'Suggested management Options'!$C$5, IF(AB74=\"Group A.2(ii)\", 'Suggested management Options'!$C$6, IF(AB74=\"Group B\",'Suggested management Options'!$C$7,IF(AB74=\"Group C\",'Suggested management Options'!$C$8,IF(AB74=\"Group D\",'Suggested management Options'!$C$9,IF(AB74=\"Group E\",'Suggested management Options'!$C$10,IF(AB74=\"Group F\",'Suggested management Options'!$C$11,IF(AB74=\"Group G\",'Suggested management Options'!$C$12,IF(AB74=\"Group O\",'Suggested management Options'!$C$13,IF(AB74=\"Group X\",'Suggested management Options'!$C$14,\"\")))))))))))","v":""},""]

{"sheet":"Swan_filtered","index":4,"n_rows":40,"n_cols":30,"rows_kept":40,"cut":false,"hidden":true,"merged":[[0,28,1,28],[0,29,1,29],[0,6,1,6],[0,7,1,7],[0,8,1,8],[0,9,1,9],[0,10,1,10],[0,27,1,27],[0,12,1,12],[0,13,1,13],[0,14,1,14],[0,15,1,15],[0,17,1,17],[0,11,1,11],[0,5,1,5],[0,0,1,0],[0,1,1,1],[0,2,1,2],[0,3,1,3],[0,4,1,4]]}
["Name ID","Taxon","Status","Rank","IUCN Criteria","EPBC","DBCA Region","DBCA District","Distribution","Flowering Period","Recovery Plan","Already translocated? If yes, year(s) and site","Current Translocation (DBCA/P&W)","Flagged for possible future translocation (DBCA)?","Germination protocol? ","Transloaction and  germination comments (including disturbance trial notes)","Decision Node 0","Longevity Comments","Decision Node 1","Decision Node 2 (Answer for species with less than 250 mature individuals)","Disturbance Comments","Decision Node 2.1 (Answer only if species is a disturbance opportunist)","Decision Node 3","Decision Node 4","Decision Node 5","Decision Node 6","Decision Node 1.1 (Answer only for species with more than 250 mature individuals)","CLASSIFICATION","DESCRIPTION OF CLASSIFICATION","TRANSLOCATE BASED ON SPECIES' GROUP?"]
[null,null,null,null,null,null,null,null,null,null,null,null,null,null,null,null,"Is it a long-lived (greater than 5-10 years) or a short-lived (less than 5-10 years) taxa?",null,"Does the species have less than 250 mature individuals (IUCN criterion C2(a) or criterion D) OR Is it present in only a few locations / have a severely fragmented area of occupancy (IUCN criterion B2(a))?","Will the species respond positively to introduction of disturbance as a management technique? (Consider lifehistory, previous evidence. If yes, please choose what TYPE of disturbance)","Generally we use fire, but increasingly push to consider utiliisation of other techniques, might be worth eperimemntal adaptation actions, esp if fire deemed too expensive/risky","Has disturbance been applied for disturbance opportunists?","Is there one known population of more than 250 reproductively mature individuals?","Is the total size of any single population, (including seedlings and juveniles) greater than 250?","Is a viable and genetically diverse seed bank present at the site/population?","Is it feasible to manage the threats in-situ (including resources and tenure considerations)?","Is there a significant declining trend towards less than 250 mature individuals?"]
["Acacia chapmanii subsp. australis",14059,"T","EN","B1ab(v)+2ab(v);C1","EN","SWAN,WHTB","PERTH HILLS,CENTRAL WHEATBELT","Bolgart, Wyening",null,"IRP",null,"No",null,"Yes","A fire/disturbance trial was conducted for this species in ca. 2004 by the Swan Region",null,null,"Yes","Likely Yes",null,"No",null,null,null,null,null,{"$f":"IF(AND(S3=\"No\",AA3=\"No\"),\"Group A.1\",IF(AND(S3=\"No\", AA3=\"Yes\", Q3=\"Long-lived\"), \"Group A.2(i)\", IF(AND(S3=\"No\", AA3=\"Yes\", Q3=\"Short-lived\"), \"Group A.2(ii)\", IF(AND(S3=\"Yes\", OR(T3=\"Yes-fire\", T3=\"Likely Yes\"),V3=\"No\"), \"Group O\", IF(AND(S3=\"Yes\", OR(T3=\"Yes-fire\", T3=\"Likely Yes\"), V3=\"Yes\", W3=\"Yes\", Q3=\"Long-lived\" ),\"Group B\", IF(AND(S3=\"Yes\", OR(T3=\"Yes-other\", T3=\"Likely No\", T3=\"No\"), W3=\"Yes\", Q3=\"Long-lived\"),\"Group B\", IF(AND(S3=\"Yes\", OR(T3=\"Yes-fire\", T3=\"Likely Yes\"), V3=\"Yes\", W3=\"Yes\", Q3=\"Short-lived\" ),\"Group C\", IF(AND(S3=\"Yes\", OR(T3=\"Yes-other\", T3=\"Likely No\", T3=\"No\"), W3=\"Yes\", Q3=\"Short-lived\" ),\"Group C\", IF(AND(S3=\"Yes\", OR(T3=\"Yes-fire\", T3=\"Likely Yes\"), V3=\"Yes\", W3=\"No\", X3=\"Yes\" ),\"Group D\",  IF(AND(S3=\"Yes\", OR(T3=\"Yes-other\", T3=\"Likely No\", T3=\"No\"), W3=\"No\", X3=\"Yes\" ),\"Group D\",  IF(AND(S3=\"Yes\",OR(T3=\"Yes-fire\", T3=\"Likely Yes\"), V3=\"Yes\", W3=\"No\", X3=\"No\",OR(Y3=\"Yes\",Y3=\"Likely Yes\"),Z3=\"Yes\"),\"Group E\", IF(AND(S3=\"Yes\", OR(T3=\"Yes-other\", T3=\"Likely No\", T3=\"No\"), W3=\"No\", X3=\"No\",OR(Y3=\"Yes\",Y3=\"Likely Yes\"),Z3=\"Yes\"),\"Group E\", IF(AND(S3=\"Yes\",OR(T3=\"Yes-fire\", T3=\"Likely Yes\"), V3=\"Yes\", W3=\"No\", X3=\"No\",OR(Y3=\"Yes\",Y3=\"Likely Yes\"),Z3=\"No\"),\"Group F\", IF(AND(S3=\"Yes\", OR(T3=\"Yes-other\", T3=\"Likely No\", T3=\"No\"), W3=\"No\", X3=\"No\",OR(Y3=\"Yes\",Y3=\"Likely Yes\"),Z3=\"No\"),\"Group F\",  IF(AND(S3=\"Yes\",OR(T3=\"Yes-fire\", T3=\"Likely Yes\"), V3=\"Yes\", W3=\"No\", X3=\"No\",OR(Y3=\"No\",Y3=\"Likely No\")),\"Group G\", IF(AND(S3=\"Yes\", OR(T3=\"Yes-other\", T3=\"Likely No\", T3=\"No\"), W3=\"No\", X3=\"No\",OR(Y3=\"No\",Y3=\"Likely No\")),\"Group G\", IF(AND(S3=\"Yes\", OR(T3=\"Yes-fire\", T3=\"Likely Yes\"), V3=\"Yes\", W3=\"No\", X3=\"No\",Y3=\"Unknown\"),\"Group X\", IF(AND(S3=\"Yes\", OR(T3=\"Yes-other\", T3=\"Likely No\", T3=\"No\"), W3=\"No\", X3=\"No\",Y3=\"Unknown\"),\"Group X\",\"\"))))))))))))))))))","v":"Group O"},{"$f":"IF(AB3=\"Group A.1\",'Suggested management Options'!$C$4, IF(AB3=\"Group A.2(i)\", 'Suggested management Options'!$C$5, IF(AB3=\"Group A.2(ii)\", 'Suggested management Options'!$C$6, IF(AB3=\"Group B\",'Suggested management Options'!$C$7,IF(AB3=\"Group C\",'Suggested management Options'!$C$8,IF(AB3=\"Group D\",'Suggested management Options'!$C$9,IF(AB3=\"Group E\",'Suggested management Options'!$C$10,IF(AB3=\"Group F\",'Suggested management Options'!$C$11,IF(AB3=\"Group G\",'Suggested management Options'!$C$12,IF(AB3=\"Group O\",'Suggested management Options'!$C$13,IF(AB3=\"Group X\",'Suggested management Options'!$C$14,\"\")))))))))))","v":"Introduce disturbance and then re-evaluate"},{"$f":"IF(OR(AB3=\"Group A.1\", AB3=\"Group A.2(i)\", AB3=\"Group A.2(ii)\", AB3=\"Group D\"), \"DON'T TRANSLOCATE\", IF(OR(AB3=\"Group B\", AB3=\"Group C\", AB3=\"Group E\"), \"MAYBE TRANSLOCATE IF COST-EFFECTIVE\", IF(OR(AB3=\"Group F\", AB3=\"Group G\"), \"DEFINITELY TRANSLOCATE\", IF(AB3=\"Group X\", \"EVALUATE SEED BANK\", IF(AB3=\"Group O\", \"INTRODUCE DISTURBANCE FIRST\", \"\")))))","v":"INTRODUCE DISTURBANCE FIRST"}]
["Austrostipa bronwenae",38480,"T","EN","B1ab(ii,iii,v) + B2ab(ii,iii,v); C2(a)(i)","EN","SWAN,SWST","SWAN COASTAL, WELLINGTON","Kenwick, Kemerton, Bunbury","Oct-Nov","IRP",null,"No","Yes","Yes",null,null,null,"Yes","Likely Yes",null,"No",null,null,null,null,null,{"$f":"IF(AND(S4=\"No\",AA4=\"No\"),\"Group A.1\",IF(AND(S4=\"No\", AA4=\"Yes\", Q4=\"Long-lived\"), \"Group A.2(i)\", IF(AND(S4=\"No\", AA4=\"Yes\", Q4=\"Short-lived\"), \"Group A.2(ii)\", IF(AND(S4=\"Yes\", OR(T4=\"Yes-fire\", T4=\"Likely Yes\"),V4=\"No\"), \"Group O\", IF(AND(S4=\"Yes\", OR(T4=\"Yes-fire\", T4=\"Likely Yes\"), V4=\"Yes\", W4=\"Yes\", Q4=\"Long-lived\" ),\"Group B\", IF(AND(S4=\"Yes\", OR(T4=\"Yes-other\", T4=\"Likely No\", T4=\"No\"), W4=\"Yes\", Q4=\"Long-lived\"),\"Group B\", IF(AND(S4=\"Yes\", OR(T4=\"Yes-fire\", T4=\"Likely Yes\"), V4=\"Yes\", W4=\"Yes\", Q4=\"Short-lived\" ),\"Group C\", IF(AND(S4=\"Yes\", OR(T4=\"Yes-other\", T4=\"Likely No\", T4=\"No\"), W4=\"Yes\", Q4=\"Short-lived\" ),\"Group C\", IF(AND(S4=\"Yes\", OR(T4=\"Yes-fire\", T4=\"Likely Yes\"), V4=\"Yes\", W4=\"No\", X4=\"Yes\" ),\"Group D\",  IF(AND(S4=\"Yes\", OR(T4=\"Yes-other\", T4=\"Likely No\", T4=\"No\"), W4=\"No\", X4=\"Yes\" ),\"Group D\",  IF(AND(S4=\"Yes\",OR(T4=\"Yes-fire\", T4=\"Likely Yes\"), V4=\"Yes\", W4=\"No\", X4=\"No\",OR(Y4=\"Yes\",Y4=\"Likely Yes\"),Z4=\"Yes\"),\"Group E\", IF(AND(S4=\"Yes\", OR(T4=\"Yes-other\", T4=\"Likely No\", T4=\"No\"), W4=\"No\", X4=\"No\",OR(Y4=\"Yes\",Y4=\"Likely Yes\"),Z4=\"Yes\"),\"Group E\", IF(AND(S4=\"Yes\",OR(T4=\"Yes-fire\", T4=\"Likely Yes\"), V4=\"Yes\", W4=\"No\", X4=\"No\",OR(Y4=\"Yes\",Y4=\"Likely Yes\"),Z4=\"No\"),\"Group F\", IF(AND(S4=\"Yes\", OR(T4=\"Yes-other\", T4=\"Likely No\", T4=\"No\"), W4=\"No\", X4=\"No\",OR(Y4=\"Yes\",Y4=\"Likely Yes\"),Z4=\"No\"),\"Group F\",  IF(AND(S4=\"Yes\",OR(T4=\"Yes-fire\", T4=\"Likely Yes\"), V4=\"Yes\", W4=\"No\", X4=\"No\",OR(Y4=\"No\",Y4=\"Likely No\")),\"Group G\", IF(AND(S4=\"Yes\", OR(T4=\"Yes-other\", T4=\"Likely No\", T4=\"No\"), W4=\"No\", X4=\"No\",OR(Y4=\"No\",Y4=\"Likely No\")),\"Group G\", IF(AND(S4=\"Yes\", OR(T4=\"Yes-fire\", T4=\"Likely Yes\"), V4=\"Yes\", W4=\"No\", X4=\"No\",Y4=\"Unknown\"),\"Group X\", IF(AND(S4=\"Yes\", OR(T4=\"Yes-other\", T4=\"Likely No\", T4=\"No\"), W4=\"No\", X4=\"No\",Y4=\"Unknown\"),\"Group X\",\"\"))))))))))))))))))","v":"Group O"},{"$f":"IF(AB4=\"Group A.1\",'Suggested management Options'!$C$4, IF(AB4=\"Group A.2(i)\", 'Suggested management Options'!$C$5, IF(AB4=\"Group A.2(ii)\", 'Suggested management Options'!$C$6, IF(AB4=\"Group B\",'Suggested management Options'!$C$7,IF(AB4=\"Group C\",'Suggested management Options'!$C$8,IF(AB4=\"Group D\",'Suggested management Options'!$C$9,IF(AB4=\"Group E\",'Suggested management Options'!$C$10,IF(AB4=\"Group F\",'Suggested management Options'!$C$11,IF(AB4=\"Group G\",'Suggested management Options'!$C$12,IF(AB4=\"Group O\",'Suggested management Options'!$C$13,IF(AB4=\"Group X\",'Suggested management Options'!$C$14,\"\")))))))))))","v":"Introduce disturbance and then re-evaluate"},{"$f":"IF(OR(AB4=\"Group A.1\", AB4=\"Group A.2(i)\", AB4=\"Group A.2(ii)\", AB4=\"Group D\"), \"DON'T TRANSLOCATE\", IF(OR(AB4=\"Group B\", AB4=\"Group C\", AB4=\"Group E\"), \"MAYBE TRANSLOCATE IF COST-EFFECTIVE\", IF(OR(AB4=\"Group F\", AB4=\"Group G\"), \"DEFINITELY TRANSLOCATE\", IF(AB4=\"Group X\", \"EVALUATE SEED BANK\", IF(AB4=\"Group O\", \"INTRODUCE DISTURBANCE FIRST\", \"\")))))","v":"INTRODUCE DISTURBANCE FIRST"}]
["Austrostipa jacobsiana",38481,"T","CR","B2ab(ii,iii)","CR","SWAN,SWST","SWAN COASTAL,WELLINGTON","Gosnells, Bunbury","Oct-Nov","IRP",null,"No","Yes","No - but don't anticipate a problem",null,null,null,"Yes","Likely Yes",null,"No",null,null,null,null,null,"Group O",{"$f":"IF(AB5=\"Group A.1\",'Suggested management Options'!$C$4, IF(AB5=\"Group A.2(i)\", 'Suggested management Options'!$C$5, IF(AB5=\"Group A.2(ii)\", 'Suggested management Options'!$C$6, IF(AB5=\"Group B\",'Suggested management Options'!$C$7,IF(AB5=\"Group C\",'Suggested management Options'!$C$8,IF(AB5=\"Group D\",'Suggested management Options'!$C$9,IF(AB5=\"Group E\",'Suggested management Options'!$C$10,IF(AB5=\"Group F\",'Suggested management Options'!$C$11,IF(AB5=\"Group G\",'Suggested management Options'!$C$12,IF(AB5=\"Group O\",'Suggested management Options'!$C$13,IF(AB5=\"Group X\",'Suggested management Options'!$C$14,\"\")))))))))))","v":"Introduce disturbance and then re-evaluate"},"INTRODUCE DISTURBANCE FIRST"]
["Caladenia dorrienii",10850,"T","EN","B1ab(iii,iv,v) + B2ab(iii,iv,v)","EN","SWAN,SWST,WARR,WHTB","BLACKWOOD,DONNELLY,PERTH HILLS,GREAT SOUTHERN","Frankland-Brookton, Boyup Brook, Perup","Sep-Oct",null,null,"No",null,"No - but don't anticipate a problem",null,null,null,"Yes","Likely No",null,null,"No","No","Likely No",null,null,"Group G",{"$f":"IF(AB6=\"Group A.1\",'Suggested management Options'!$C$4, IF(AB6=\"Group A.2(i)\", 'Suggested management Options'!$C$5, IF(AB6=\"Group A.2(ii)\", 'Suggested management Options'!$C$6, IF(AB6=\"Group B\",'Suggested management Options'!$C$7,IF(AB6=\"Group C\",'Suggested management Options'!$C$8,IF(AB6=\"Group D\",'Suggested management Options'!$C$9,IF(AB6=\"Group E\",'Suggested management Options'!$C$10,IF(AB6=\"Group F\",'Suggested management Options'!$C$11,IF(AB6=\"Group G\",'Suggested management Options'!$C$12,IF(AB6=\"Group O\",'Suggested management Options'!$C$13,IF(AB6=\"Group X\",'Suggested management Options'!$C$14,\"\")))))))))))","v":"Population will only be maintained in-situ in the short term for the purpose of salvage, where practical. Collect cuttings, seeds, germplasm etc. and maintain in ex-situ collections OR translocate/augment to create a population >250. (maybe need to add actions beyond translocate for non-Wheatbelt regions)"},"DEFINITELY TRANSLOCATE"]
["Caladenia hopperiana",44901,"T","EN","B1ab(iii) + 2ab(iii)","EN","SWAN,WHTB","PERTH HILLS,GREAT SOUTHERN","Quindanning","Sep-Oct","IRP",null,"No",null,"No - but don't anticipate a problem",null,null,null,"Yes","Likely No",null,null,"No","No","Likely No",null,null,"Group G",{"$f":"IF(AB7=\"Group A.1\",'Suggested management Options'!$C$4, IF(AB7=\"Group A.2(i)\", 'Suggested management Options'!$C$5, IF(AB7=\"Group A.2(ii)\", 'Suggested management Options'!$C$6, IF(AB7=\"Group B\",'Suggested management Options'!$C$7,IF(AB7=\"Group C\",'Suggested management Options'!$C$8,IF(AB7=\"Group D\",'Suggested management Options'!$C$9,IF(AB7=\"Group E\",'Suggested management Options'!$C$10,IF(AB7=\"Group F\",'Suggested management Options'!$C$11,IF(AB7=\"Group G\",'Suggested management Options'!$C$12,IF(AB7=\"Group O\",'Suggested management Options'!$C$13,IF(AB7=\"Group X\",'Suggested management Options'!$C$14,\"\")))))))))))","v":"Population will only be maintained in-situ in the short term for the purpose of salvage, where practical. Collect cuttings, seeds, germplasm etc. and maintain in ex-situ collections OR translocate/augment to create a population >250. (maybe need to add actions beyond translocate for non-Wheatbelt regions)"},"DEFINITELY TRANSLOCATE"]
["Caladenia huegelii",1596,"T","CR","B2ab(i,ii,iii,iv)","EN","SWAN,SWST","BLACKWOOD,SWAN COASTAL,WELLINGTON","Perth - Capel","Aug-Oct","IRP","?, 2007","No",null,"Yes",null,"Long-lived",null,"Yes","Likely No",null,null,"Yes",null,null,null,null,"Group B",{"$f":"IF(AB8=\"Group A.1\",'Suggested management Options'!$C$4, IF(AB8=\"Group A.2(i)\", 'Suggested management Options'!$C$5, IF(AB8=\"Group A.2(ii)\", 'Suggested management Options'!$C$6, IF(AB8=\"Group B\",'Suggested management Options'!$C$7,IF(AB8=\"Group C\",'Suggested management Options'!$C$8,IF(AB8=\"Group D\",'Suggested management Options'!$C$9,IF(AB8=\"Group E\",'Suggested management Options'!$C$10,IF(AB8=\"Group F\",'Suggested management Options'!$C$11,IF(AB8=\"Group G\",'Suggested management Options'!$C$12,IF(AB8=\"Group O\",'Suggested management Options'!$C$13,IF(AB8=\"Group X\",'Suggested management Options'!$C$14,\"\")))))))))))","v":"Maintain effective population sizes of >250 reproductively mature individuals. Augment populations of <250 individuals if cost effective."},"MAYBE TRANSLOCATE IF COST-EFFECTIVE"]
["Calytrix breviseta subsp. breviseta",13653,"T","CR","B1ab(iii,v) + 2ab(iii,v)","EN","SWAN","PERTH HILLS,SWAN COASTAL","Kenwick (Gosnells, Bellevue)","Sep-Oct","IRP","Boundaray Road, 2007; Nicholson Road, 2008","Yes","Yes","Yes","Translocation has been conducted (DBCA)",null,null,"Yes","Likely Yes",null,"No",null,null,null,null,null,"Group O",{"$f":"IF(AB9=\"Group A.1\",'Suggested management Options'!$C$4, IF(AB9=\"Group A.2(i)\", 'Suggested management Options'!$C$5, IF(AB9=\"Group A.2(ii)\", 'Suggested management Options'!$C$6, IF(AB9=\"Group B\",'Suggested management Options'!$C$7,IF(AB9=\"Group C\",'Suggested management Options'!$C$8,IF(AB9=\"Group D\",'Suggested management Options'!$C$9,IF(AB9=\"Group E\",'Suggested management Options'!$C$10,IF(AB9=\"Group F\",'Suggested management Options'!$C$11,IF(AB9=\"Group G\",'Suggested management Options'!$C$12,IF(AB9=\"Group O\",'Suggested management Options'!$C$13,IF(AB9=\"Group X\",'Suggested management Options'!$C$14,\"\")))))))))))","v":"Introduce disturbance and then re-evaluate"},"INTRODUCE DISTURBANCE FIRST"]
["Chorizema varium",3764,"T","EN","A2C; B1+2a","EN","SWAN","SWAN COASTAL","Breton Bay, (Fremantle)","Sep",null,null,"No","Yes","Yes",null,null,null,"Yes","Likely Yes",null,"No",null,null,null,null,null,"Group O",{"$f":"IF(AB10=\"Group A.1\",'Suggested management Options'!$C$4, IF(AB10=\"Group A.2(i)\", 'Suggested management Options'!$C$5, IF(AB10=\"Group A.2(ii)\", 'Suggested management Options'!$C$6, IF(AB10=\"Group B\",'Suggested management Options'!$C$7,IF(AB10=\"Group C\",'Suggested management Options'!$C$8,IF(AB10=\"Group D\",'Suggested management Options'!$C$9,IF(AB10=\"Group E\",'Suggested management Options'!$C$10,IF(AB10=\"Group F\",'Suggested management Options'!$C$11,IF(AB10=\"Group G\",'Suggested management Options'!$C$12,IF(AB10=\"Group O\",'Suggested management Options'!$C$13,IF(AB10=\"Group X\",'Suggested management Options'!$C$14,\"\")))))))))))","v":"Introduce disturbance and then re-evaluate"},"INTRODUCE DISTURBANCE FIRST"]
["Darwinia foetida",34773,"T","EN","B1ab(iii)+2ab(iii)","CR","SWAN","SWAN COASTAL","Muchea",null,null,null,"No",null,"Yes",null,null,null,"Yes","Likely Yes",null,"No",null,null,null,null,null,"Group O",{"$f":"IF(AB11=\"Group A.1\",'Suggested management Options'!$C$4, IF(AB11=\"Group A.2(i)\", 'Suggested management Options'!$C$5, IF(AB11=\"Group A.2(ii)\", 'Suggested management Options'!$C$6, IF(AB11=\"Group B\",'Suggested management Options'!$C$7,IF(AB11=\"Group C\",'Suggested management Options'!$C$8,IF(AB11=\"Group D\",'Suggested management Options'!$C$9,IF(AB11=\"Group E\",'Suggested management Options'!$C$10,IF(AB11=\"Group F\",'Suggested management Options'!$C$11,IF(AB11=\"Group G\",'Suggested management Options'!$C$12,IF(AB11=\"Group O\",'Suggested management Options'!$C$13,IF(AB11=\"Group X\",'Suggested management Options'!$C$14,\"\")))))))))))","v":"Introduce disturbance and then re-evaluate"},"INTRODUCE DISTURBANCE FIRST"]
["Dasymalla axillaris",41022,"T","CR","C1+C2a(i)b","CR","MWST,SWAN,WHTB","GERALDTON,SWAN COASTAL,CENTRAL WHEATBELT","Pithara, Morawa, Lake Moore, Gnangara, Wongan Hills, Maya, Caron, Buntine, Latham, Perenjori","Jul-Oct","IRP",null,"No",null,"Yes",null,null,null,"Yes","Likely Yes",null,null,null,null,null,null,null,"",{"$f":"IF(AB12=\"Group A.1\",'Suggested management Options'!$C$4, IF(AB12=\"Group A.2(i)\", 'Suggested management Options'!$C$5, IF(AB12=\"Group A.2(ii)\", 'Suggested management Options'!$C$6, IF(AB12=\"Group B\",'Suggested management Options'!$C$7,IF(AB12=\"Group C\",'Suggested management Options'!$C$8,IF(AB12=\"Group D\",'Suggested management Options'!$C$9,IF(AB12=\"Group E\",'Suggested management Options'!$C$10,IF(AB12=\"Group F\",'Suggested management Options'!$C$11,IF(AB12=\"Group G\",'Suggested management Options'!$C$12,IF(AB12=\"Group O\",'Suggested management Options'!$C$13,IF(AB12=\"Group X\",'Suggested management Options'!$C$14,\"\")))))))))))","v":""},""]
["Diplolaena andrewsii",4452,"T","EN","B1ab(iii)+B2ab(iii)","EN","SWAN","PERTH HILLS","Swan View, Woorooloo Brook, John Forrest N.P.","Jul-Oct","IRP",null,"No",null,"Yes","Limited seed in storage",null,null,"Yes","Unknown",null,null,null,null,null,null,null,"",{"$f":"IF(AB13=\"Group A.1\",'Suggested management Options'!$C$4, IF(AB13=\"Group A.2(i)\", 'Suggested management Options'!$C$5, IF(AB13=\"Group A.2(ii)\", 'Suggested management Options'!$C$6, IF(AB13=\"Group B\",'Suggested management Options'!$C$7,IF(AB13=\"Group C\",'Suggested management Options'!$C$8,IF(AB13=\"Group D\",'Suggested management Options'!$C$9,IF(AB13=\"Group E\",'Suggested management Options'!$C$10,IF(AB13=\"Group F\",'Suggested management Options'!$C$11,IF(AB13=\"Group G\",'Suggested management Options'!$C$12,IF(AB13=\"Group O\",'Suggested management Options'!$C$13,IF(AB13=\"Group X\",'Suggested management Options'!$C$14,\"\")))))))))))","v":""},""]
["Diuris purdiei",1637,"T","EN","B2ab(iii,iv,v); C2a(i)","EN","SWAN,SWST","BLACKWOOD,SWAN COASTAL","Perth-Waroona, Busselton","Sep-Oct",null,null,"No",null,"Yes","Translocation has been conducted (Kings Park)","Long-lived",null,"Yes","Likely No",null,null,"Yes",null,null,null,null,"Group B",{"$f":"IF(AB14=\"Group A.1\",'Suggested management Options'!$C$4, IF(AB14=\"Group A.2(i)\", 'Suggested management Options'!$C$5, IF(AB14=\"Group A.2(ii)\", 'Suggested management Options'!$C$6, IF(AB14=\"Group B\",'Suggested management Options'!$C$7,IF(AB14=\"Group C\",'Suggested management Options'!$C$8,IF(AB14=\"Group D\",'Suggested management Options'!$C$9,IF(AB14=\"Group E\",'Suggested management Options'!$C$10,IF(AB14=\"Group F\",'Suggested management Options'!$C$11,IF(AB14=\"Group G\",'Suggested management Options'!$C$12,IF(AB14=\"Group O\",'Suggested management Options'!$C$13,IF(AB14=\"Group X\",'Suggested management Options'!$C$14,\"\")))))))))))","v":"Maintain effective population sizes of >250 reproductively mature individuals. Augment populations of <250 individuals if cost effective."},"MAYBE TRANSLOCATE IF COST-EFFECTIVE"]
["Drakaea elastica",1639,"T","CR","B2ab(ii,iii,iv,v)","EN","MWST,SWAN,SWST","BLACKWOOD,MOORA,PERTH HILLS,SWAN COASTAL,WELLINGTON","Gingin-Busselton, Lake Guraga","Oct-Nov","IRP",null,"No",null,"Yes",null,"Long-lived",null,"Yes","Likely No",null,null,"No","No","Likely No",null,null,"Group G",{"$f":"IF(AB15=\"Group A.1\",'Suggested management Options'!$C$4, IF(AB15=\"Group A.2(i)\", 'Suggested management Options'!$C$5, IF(AB15=\"Group A.2(ii)\", 'Suggested management Options'!$C$6, IF(AB15=\"Group B\",'Suggested management Options'!$C$7,IF(AB15=\"Group C\",'Suggested management Options'!$C$8,IF(AB15=\"Group D\",'Suggested management Options'!$C$9,IF(AB15=\"Group E\",'Suggested management Options'!$C$10,IF(AB15=\"Group F\",'Suggested management Options'!$C$11,IF(AB15=\"Group G\",'Suggested management Options'!$C$12,IF(AB15=\"Group O\",'Suggested management Options'!$C$13,IF(AB15=\"Group X\",'Suggested management Options'!$C$14,\"\")))))))))))","v":"Population will only be maintained in-situ in the short term for the purpose of salvage, where practical. Collect cuttings, seeds, germplasm etc. and maintain in ex-situ collections OR translocate/augment to create a population >250. (maybe need to add actions beyond translocate for non-Wheatbelt regions)"},"DEFINITELY TRANSLOCATE"]
["Drakaea micrantha",13635,"T","EN","C2a","VU","SCST,SWAN,SWST,WARR","BLACKWOOD,ALBANY,FRANKLAND,SWAN COASTAL,WELLINGTON","Perth-Augusta-Albany, Denmark, Margaret River","Sep-Oct",null,null,"No",null,null,"No seed in storage",null,null,"Yes","Likely No",null,null,null,null,null,null,null,"",{"$f":"IF(AB16=\"Group A.1\",'Suggested management Options'!$C$4, IF(AB16=\"Group A.2(i)\", 'Suggested management Options'!$C$5, IF(AB16=\"Group A.2(ii)\", 'Suggested management Options'!$C$6, IF(AB16=\"Group B\",'Suggested management Options'!$C$7,IF(AB16=\"Group C\",'Suggested management Options'!$C$8,IF(AB16=\"Group D\",'Suggested management Options'!$C$9,IF(AB16=\"Group E\",'Suggested management Options'!$C$10,IF(AB16=\"Group F\",'Suggested management Options'!$C$11,IF(AB16=\"Group G\",'Suggested management Options'!$C$12,IF(AB16=\"Group O\",'Suggested management Options'!$C$13,IF(AB16=\"Group X\",'Suggested management Options'!$C$14,\"\")))))))))))","v":""},""]
["Eremophila glabra subsp. chlorella",17150,"T","EN","B2ab(i,ii,iii,iv,v)","EN","MWST,SWAN,WHTB","MOORA,SWAN COASTAL,CENTRAL WHEATBELT","Cannington, Kenwick, Mogumber,  Eneabba,","Jul-Aug","IRP",null,"No","Yes","Yes",null,"Long-lived",null,"Yes","Likely Yes",null,"No",null,null,null,null,null,"Group O",{"$f":"IF(AB17=\"Group A.1\",'Suggested management Options'!$C$4, IF(AB17=\"Group A.2(i)\", 'Suggested management Options'!$C$5, IF(AB17=\"Group A.2(ii)\", 'Suggested management Options'!$C$6, IF(AB17=\"Group B\",'Suggested management Options'!$C$7,IF(AB17=\"Group C\",'Suggested management Options'!$C$8,IF(AB17=\"Group D\",'Suggested management Options'!$C$9,IF(AB17=\"Group E\",'Suggested management Options'!$C$10,IF(AB17=\"Group F\",'Suggested management Options'!$C$11,IF(AB17=\"Group G\",'Suggested management Options'!$C$12,IF(AB17=\"Group O\",'Suggested management Options'!$C$13,IF(AB17=\"Group X\",'Suggested management Options'!$C$14,\"\")))))))))))","v":"Introduce disturbance and then re-evaluate"},"INTRODUCE DISTURBANCE FIRST"]
["Eucalyptus x balanites",13090,"T","CR","D","EN","MWST,SWAN","MOORA,SWAN COASTAL","Badgingarra, Armadale","Oct-Jan","IRP",null,"No","Yes","Yes",null,"Long-lived",null,"Yes","Likely No",null,null,"No","No","Likely No",null,null,"Group G",{"$f":"IF(AB18=\"Group A.1\",'Suggested management Options'!$C$4, IF(AB18=\"Group A.2(i)\", 'Suggested management Options'!$C$5, IF(AB18=\"Group A.2(ii)\", 'Suggested management Options'!$C$6, IF(AB18=\"Group B\",'Suggested management Options'!$C$7,IF(AB18=\"Group C\",'Suggested management Options'!$C$8,IF(AB18=\"Group D\",'Suggested management Options'!$C$9,IF(AB18=\"Group E\",'Suggested management Options'!$C$10,IF(AB18=\"Group F\",'Suggested management Options'!$C$11,IF(AB18=\"Group G\",'Suggested management Options'!$C$12,IF(AB18=\"Group O\",'Suggested management Options'!$C$13,IF(AB18=\"Group X\",'Suggested management Options'!$C$14,\"\")))))))))))","v":"Population will only be maintained in-situ in the short term for the purpose of salvage, where practical. Collect cuttings, seeds, germplasm etc. and maintain in ex-situ collections OR translocate/augment to create a population >250. (maybe need to add actions beyond translocate for non-Wheatbelt regions)"},"DEFINITELY TRANSLOCATE"]
["Goodenia arthrotricha",7491,"T","EN","B2ab(iii,v)","EN","MWST,SWAN","MOORA,PERTH HILLS,SWAN COASTAL","Wannamal, Moora, Ellis Brook, Bindoon","Nov,Dec",null,null,null,null,null,null,null,null,"Yes","Unknown",null,null,null,null,null,null,null,"",{"$f":"IF(AB19=\"Group A.1\",'Suggested management Options'!$C$4, IF(AB19=\"Group A.2(i)\", 'Suggested management Options'!$C$5, IF(AB19=\"Group A.2(ii)\", 'Suggested management Options'!$C$6, IF(AB19=\"Group B\",'Suggested management Options'!$C$7,IF(AB19=\"Group C\",'Suggested management Options'!$C$8,IF(AB19=\"Group D\",'Suggested management Options'!$C$9,IF(AB19=\"Group E\",'Suggested management Options'!$C$10,IF(AB19=\"Group F\",'Suggested management Options'!$C$11,IF(AB19=\"Group G\",'Suggested management Options'!$C$12,IF(AB19=\"Group O\",'Suggested management Options'!$C$13,IF(AB19=\"Group X\",'Suggested management Options'!$C$14,\"\")))))))))))","v":""},""]
["Grevillea althoferorum subsp. fragilis",33559,"T","CR","B1ab(iii,v)+2ab(iii,v); C2a(iii,v)","EN","SWAN","PERTH HILLS","Bullsbrook",null,"IRP",null,"No","Yes","Yes",null,null,null,"Yes","Likely Yes",null,"No",null,null,null,null,null,"Group O",{"$f":"IF(AB20=\"Group A.1\",'Suggested management Options'!$C$4, IF(AB20=\"Group A.2(i)\", 'Suggested management Options'!$C$5, IF(AB20=\"Group A.2(ii)\", 'Suggested management Options'!$C$6, IF(AB20=\"Group B\",'Suggested management Options'!$C$7,IF(AB20=\"Group C\",'Suggested management Options'!$C$8,IF(AB20=\"Group D\",'Suggested management Options'!$C$9,IF(AB20=\"Group E\",'Suggested management Options'!$C$10,IF(AB20=\"Group F\",'Suggested management Options'!$C$11,IF(AB20=\"Group G\",'Suggested management Options'!$C$12,IF(AB20=\"Group O\",'Suggested management Options'!$C$13,IF(AB20=\"Group X\",'Suggested management Options'!$C$14,\"\")))))))))))","v":"Introduce disturbance and then re-evaluate"},"INTRODUCE DISTURBANCE FIRST"]
["Grevillea bracteosa subsp. bracteosa",33580,"T","EN","B1ab(i,ii,iii,iv,v)+2ab(i,ii,iii,iv,v)",null,"MWST,SWAN,WHTB","MOORA,PERTH HILLS,CENTRAL WHEATBELT","Toodyay, Mogumber, Miling, Dalwalinu, Bindi Bindi, Piawanning","Aug-Oct",null,null,"No","No","Yes",null,null,null,"Yes","Likely Yes",null,"No",null,null,null,null,null,"Group O",{"$f":"IF(AB21=\"Group A.1\",'Suggested management Options'!$C$4, IF(AB21=\"Group A.2(i)\", 'Suggested management Options'!$C$5, IF(AB21=\"Group A.2(ii)\", 'Suggested management Options'!$C$6, IF(AB21=\"Group B\",'Suggested management Options'!$C$7,IF(AB21=\"Group C\",'Suggested management Options'!$C$8,IF(AB21=\"Group D\",'Suggested management Options'!$C$9,IF(AB21=\"Group E\",'Suggested management Options'!$C$10,IF(AB21=\"Group F\",'Suggested management Options'!$C$11,IF(AB21=\"Group G\",'Suggested management Options'!$C$12,IF(AB21=\"Group O\",'Suggested management Options'!$C$13,IF(AB21=\"Group X\",'Suggested management Options'!$C$14,\"\")))))))))))","v":"Introduce disturbance and then re-evaluate"},"INTRODUCE DISTURBANCE FIRST"]
["Grevillea curviloba subsp. curviloba",14408,"T","CR","B1ab(iii)+B2ab(iii)","EN","SWAN","PERTH HILLS,SWAN COASTAL","Bullsbrook, Muchea","Oct","IRP",null,"No","Yes","Yes",null,"Long-lived",null,"Yes","Likely No","Tolerant of long fire intervals",null,"Yes",null,null,null,null,"Group B",{"$f":"IF(AB22=\"Group A.1\",'Suggested management Options'!$C$4, IF(AB22=\"Group A.2(i)\", 'Suggested management Options'!$C$5, IF(AB22=\"Group A.2(ii)\", 'Suggested management Options'!$C$6, IF(AB22=\"Group B\",'Suggested management Options'!$C$7,IF(AB22=\"Group C\",'Suggested management Options'!$C$8,IF(AB22=\"Group D\",'Suggested management Options'!$C$9,IF(AB22=\"Group E\",'Suggested management Options'!$C$10,IF(AB22=\"Group F\",'Suggested management Options'!$C$11,IF(AB22=\"Group G\",'Suggested management Options'!$C$12,IF(AB22=\"Group O\",'Suggested management Options'!$C$13,IF(AB22=\"Group X\",'Suggested management Options'!$C$14,\"\")))))))))))","v":"Maintain effective population sizes of >250 reproductively mature individuals. Augment populations of <250 individuals if cost effective."},"MAYBE TRANSLOCATE IF COST-EFFECTIVE"]
["Grevillea curviloba subsp. incurva",14409,"T","EN","C2a(i)","EN","SWAN","PERTH HILLS,SWAN COASTAL","Muchea, Gingin","Aug,Sep","IRP",null,"No","Yes","Yes",null,"Long-lived",null,"Yes","Likely No","Tolerant of long fire intervals",null,"Yes",null,null,null,null,"Group B",{"$f":"IF(AB23=\"Group A.1\",'Suggested management Options'!$C$4, IF(AB23=\"Group A.2(i)\", 'Suggested management Options'!$C$5, IF(AB23=\"Group A.2(ii)\", 'Suggested management Options'!$C$6, IF(AB23=\"Group B\",'Suggested management Options'!$C$7,IF(AB23=\"Group C\",'Suggested management Options'!$C$8,IF(AB23=\"Group D\",'Suggested management Options'!$C$9,IF(AB23=\"Group E\",'Suggested management Options'!$C$10,IF(AB23=\"Group F\",'Suggested management Options'!$C$11,IF(AB23=\"Group G\",'Suggested management Options'!$C$12,IF(AB23=\"Group O\",'Suggested management Options'!$C$13,IF(AB23=\"Group X\",'Suggested management Options'!$C$14,\"\")))))))))))","v":"Maintain effective population sizes of >250 reproductively mature individuals. Augment populations of <250 individuals if cost effective."},"MAYBE TRANSLOCATE IF COST-EFFECTIVE"]
["Grevillea thelemanniana",2107,"T","CR","A2ac, B1ab(i,ii,iii,iv,v)","CR","SWAN","SWAN COASTAL","Kenwick","Jun-Sep",null,null,"No","Yes","Yes",null,"Long-lived",null,"Yes","Likely Yes",null,"No",null,null,null,null,null,"Group O",{"$f":"IF(AB24=\"Group A.1\",'Suggested management Options'!$C$4, IF(AB24=\"Group A.2(i)\", 'Suggested management Options'!$C$5, IF(AB24=\"Group A.2(ii)\", 'Suggested management Options'!$C$6, IF(AB24=\"Group B\",'Suggested management Options'!$C$7,IF(AB24=\"Group C\",'Suggested management Options'!$C$8,IF(AB24=\"Group D\",'Suggested management Options'!$C$9,IF(AB24=\"Group E\",'Suggested management Options'!$C$10,IF(AB24=\"Group F\",'Suggested management Options'!$C$11,IF(AB24=\"Group G\",'Suggested management Options'!$C$12,IF(AB24=\"Group O\",'Suggested management Options'!$C$13,IF(AB24=\"Group X\",'Suggested management Options'!$C$14,\"\")))))))))))","v":"Introduce disturbance and then re-evaluate"},"INTRODUCE DISTURBANCE FIRST"]
["Hypocalymma sylvestre",19601,"T","EN","B1ab(iii)+B2ab(iii)","EN","SWAN","PERTH HILLS","Chittering","Aug-Oct",null,null,"No",null,null,"No seed in storage. Anticipate germination challenges.",null,null,"Yes","Likely Yes",null,"No",null,null,null,null,null,"Group O",{"$f":"IF(AB25=\"Group A.1\",'Suggested management Options'!$C$4, IF(AB25=\"Group A.2(i)\", 'Suggested management Options'!$C$5, IF(AB25=\"Group A.2(ii)\", 'Suggested management Options'!$C$6, IF(AB25=\"Group B\",'Suggested management Options'!$C$7,IF(AB25=\"Group C\",'Suggested management Options'!$C$8,IF(AB25=\"Group D\",'Suggested management Options'!$C$9,IF(AB25=\"Group E\",'Suggested management Options'!$C$10,IF(AB25=\"Group F\",'Suggested management Options'!$C$11,IF(AB25=\"Group G\",'Suggested management Options'!$C$12,IF(AB25=\"Group O\",'Suggested management Options'!$C$13,IF(AB25=\"Group X\",'Suggested management Options'!$C$14,\"\")))))))))))","v":"Introduce disturbance and then re-evaluate"},"INTRODUCE DISTURBANCE FIRST"]
["Lasiopetalum pterocarpum",17000,"T","CR","Ba1b(iii)+2ab(iii); C2a(i,ii); D","EN","SWAN","PERTH HILLS","Serpentine Falls","Aug","IRP","Serpentine NP, 2001; Scarp Road, 2006",null,null,null,null,null,null,"Yes","Likely Yes",null,"Yes","No","No","Likely Yes","Yes",null,"Group E",{"$f":"IF(AB26=\"Group A.1\",'Suggested management Options'!$C$4, IF(AB26=\"Group A.2(i)\", 'Suggested management Options'!$C$5, IF(AB26=\"Group A.2(ii)\", 'Suggested management Options'!$C$6, IF(AB26=\"Group B\",'Suggested management Options'!$C$7,IF(AB26=\"Group C\",'Suggested management Options'!$C$8,IF(AB26=\"Group D\",'Suggested management Options'!$C$9,IF(AB26=\"Group E\",'Suggested management Options'!$C$10,IF(AB26=\"Group F\",'Suggested management Options'!$C$11,IF(AB26=\"Group G\",'Suggested management Options'!$C$12,IF(AB26=\"Group O\",'Suggested management Options'!$C$13,IF(AB26=\"Group X\",'Suggested management Options'!$C$14,\"\")))))))))))","v":"Population will be maintained in-situ in the long term. Highest priority will be to increase effective population size to >250 mature plants through promoting in-situ recruitment and/or seed collection, external propagation and subsequent restocking."},"MAYBE TRANSLOCATE IF COST-EFFECTIVE"]
["Lepidosperma rostratum",942,"T","EN","B1ab(iii)+2ab(iii)","EN","SWAN","SWAN COASTAL","Cannington, Kenwick, Forrestdale Lake NR","Aug",null,null,"No",null,"No. Anticipate germination challenges","Limited seed in storage","Long-lived",null,"Yes","Likely No",null,null,"Yes",null,null,null,null,"Group B",{"$f":"IF(AB27=\"Group A.1\",'Suggested management Options'!$C$4, IF(AB27=\"Group A.2(i)\", 'Suggested management Options'!$C$5, IF(AB27=\"Group A.2(ii)\", 'Suggested management Options'!$C$6, IF(AB27=\"Group B\",'Suggested management Options'!$C$7,IF(AB27=\"Group C\",'Suggested management Options'!$C$8,IF(AB27=\"Group D\",'Suggested management Options'!$C$9,IF(AB27=\"Group E\",'Suggested management Options'!$C$10,IF(AB27=\"Group F\",'Suggested management Options'!$C$11,IF(AB27=\"Group G\",'Suggested management Options'!$C$12,IF(AB27=\"Group O\",'Suggested management Options'!$C$13,IF(AB27=\"Group X\",'Suggested management Options'!$C$14,\"\")))))))))))","v":"Maintain effective population sizes of >250 reproductively mature individuals. Augment populations of <250 individuals if cost effective."},"MAYBE TRANSLOCATE IF COST-EFFECTIVE"]
["Leucopogon sp. Flynn (F. Hort, J. Hort & A. Lowrie 859)",19424,"T","CR","B1ab(iii,v)+ B2ab(iii,v)","CR","SWAN","PERTH HILLS","Wandoo CP, York","Dec-Feb","IRP",null,"No","Yes",null,"No seed in storage","Short-lived",null,"Yes","Likely No",null,null,"Yes",null,null,null,null,"Group C",{"$f":"IF(AB28=\"Group A.1\",'Suggested management Options'!$C$4, IF(AB28=\"Group A.2(i)\", 'Suggested management Options'!$C$5, IF(AB28=\"Group A.2(ii)\", 'Suggested management Options'!$C$6, IF(AB28=\"Group B\",'Suggested management Options'!$C$7,IF(AB28=\"Group C\",'Suggested management Options'!$C$8,IF(AB28=\"Group D\",'Suggested management Options'!$C$9,IF(AB28=\"Group E\",'Suggested management Options'!$C$10,IF(AB28=\"Group F\",'Suggested management Options'!$C$11,IF(AB28=\"Group G\",'Suggested management Options'!$C$12,IF(AB28=\"Group O\",'Suggested management Options'!$C$13,IF(AB28=\"Group X\",'Suggested management Options'!$C$14,\"\")))))))))))","v":"Maintain effective population size of >250 reproductively mature individuals. Translocate (immediately?) if cost effective."},"MAYBE TRANSLOCATE IF COST-EFFECTIVE"]
["Macarthuria keigheryi",17106,"T","EN","B2ab(iii)","EN","MWST,SWAN","MOORA,SWAN COASTAL","Mullering Brook, Cooljarloo, Kewdale, Forrestfield","Se-De,Fe-Mar","IRP","Welshpool, 2014?","Yes (as offset in airport land, Kings Park; as offset Main Roads; as offset for industrial development) ",null,"No","Anticipate germination challenges. Translocation has been conducted ","Short-lived",null,"Yes","Yes-fire",null,"Yes","Yes",null,null,null,null,"Group C",{"$f":"IF(AB29=\"Group A.1\",'Suggested management Options'!$C$4, IF(AB29=\"Group A.2(i)\", 'Suggested management Options'!$C$5, IF(AB29=\"Group A.2(ii)\", 'Suggested management Options'!$C$6, IF(AB29=\"Group B\",'Suggested management Options'!$C$7,IF(AB29=\"Group C\",'Suggested management Options'!$C$8,IF(AB29=\"Group D\",'Suggested management Options'!$C$9,IF(AB29=\"Group E\",'Suggested management Options'!$C$10,IF(AB29=\"Group F\",'Suggested management Options'!$C$11,IF(AB29=\"Group G\",'Suggested management Options'!$C$12,IF(AB29=\"Group O\",'Suggested management Options'!$C$13,IF(AB29=\"Group X\",'Suggested management Options'!$C$14,\"\")))))))))))","v":"Maintain effective population size of >250 reproductively mature individuals. Translocate (immediately?) if cost effective."},"MAYBE TRANSLOCATE IF COST-EFFECTIVE"]
["Marianthus paralius",25819,"T","EN","B1ab(v)+B2ab(v); C2a(i); D","EN","SWAN","SWAN COASTAL","Seabird","Sep","IRP",null,null,null,null,null,null,null,"Yes","Likely No",null,null,"No","No","Likely Yes","Yes",null,"Group E",{"$f":"IF(AB30=\"Group A.1\",'Suggested management Options'!$C$4, IF(AB30=\"Group A.2(i)\", 'Suggested management Options'!$C$5, IF(AB30=\"Group A.2(ii)\", 'Suggested management Options'!$C$6, IF(AB30=\"Group B\",'Suggested management Options'!$C$7,IF(AB30=\"Group C\",'Suggested management Options'!$C$8,IF(AB30=\"Group D\",'Suggested management Options'!$C$9,IF(AB30=\"Group E\",'Suggested management Options'!$C$10,IF(AB30=\"Group F\",'Suggested management Options'!$C$11,IF(AB30=\"Group G\",'Suggested management Options'!$C$12,IF(AB30=\"Group O\",'Suggested management Options'!$C$13,IF(AB30=\"Group X\",'Suggested management Options'!$C$14,\"\")))))))))))","v":"Population will be maintained in-situ in the long term. Highest priority will be to increase effective population size to >250 mature plants through promoting in-situ recruitment and/or seed collection, external propagation and subsequent restocking."},"MAYBE TRANSLOCATE IF COST-EFFECTIVE"]
["Melaleuca sp. Wanneroo (G.J. Keighery 16705)",33022,"T","EN","B1ab(i,ii,iii,iv,v)+2ab(i,ii,iii,iv,v); C1",null,"SWAN","SWAN COASTAL","Wanneroo","Dec",null,null,"No",null,"Yes",null,"Long-lived",null,"Yes","Likely No",null,null,"Yes",null,null,null,null,"Group B",{"$f":"IF(AB31=\"Group A.1\",'Suggested management Options'!$C$4, IF(AB31=\"Group A.2(i)\", 'Suggested management Options'!$C$5, IF(AB31=\"Group A.2(ii)\", 'Suggested management Options'!$C$6, IF(AB31=\"Group B\",'Suggested management Options'!$C$7,IF(AB31=\"Group C\",'Suggested management Options'!$C$8,IF(AB31=\"Group D\",'Suggested management Options'!$C$9,IF(AB31=\"Group E\",'Suggested management Options'!$C$10,IF(AB31=\"Group F\",'Suggested management Options'!$C$11,IF(AB31=\"Group G\",'Suggested management Options'!$C$12,IF(AB31=\"Group O\",'Suggested management Options'!$C$13,IF(AB31=\"Group X\",'Suggested management Options'!$C$14,\"\")))))))))))","v":"Maintain effective population sizes of >250 reproductively mature individuals. Augment populations of <250 individuals if cost effective."},"MAYBE TRANSLOCATE IF COST-EFFECTIVE"]
["Ptilotus pyramidatus",2753,"T","CR","B1ab(iii)+2ab(iii); D","CR","SWAN","SWAN COASTAL","Kenwick","Oct","IRP",null,"No","Yes","No","Limited seed in storage",null,null,"Yes","Likely No",null,null,"No","No","Likely No",null,null,"Group G",{"$f":"IF(AB32=\"Group A.1\",'Suggested management Options'!$C$4, IF(AB32=\"Group A.2(i)\", 'Suggested management Options'!$C$5, IF(AB32=\"Group A.2(ii)\", 'Suggested management Options'!$C$6, IF(AB32=\"Group B\",'Suggested management Options'!$C$7,IF(AB32=\"Group C\",'Suggested management Options'!$C$8,IF(AB32=\"Group D\",'Suggested management Options'!$C$9,IF(AB32=\"Group E\",'Suggested management Options'!$C$10,IF(AB32=\"Group F\",'Suggested management Options'!$C$11,IF(AB32=\"Group G\",'Suggested management Options'!$C$12,IF(AB32=\"Group O\",'Suggested management Options'!$C$13,IF(AB32=\"Group X\",'Suggested management Options'!$C$14,\"\")))))))))))","v":"Population will only be maintained in-situ in the short term for the purpose of salvage, where practical. Collect cuttings, seeds, germplasm etc. and maintain in ex-situ collections OR translocate/augment to create a population >250. (maybe need to add actions beyond translocate for non-Wheatbelt regions)"},"DEFINITELY TRANSLOCATE"]
["Stylidium asymmetricum",40700,"T","EN","B1ab(ii,iii,v)+2ab(ii,iii,v)",null,"SWAN","PERTH HILLS","Wandoo N.P.","Jan-Feb, Nov",null,null,null,null,null,null,null,null,"Yes",null,null,null,null,null,null,null,null,"",{"$f":"IF(AB33=\"Group A.1\",'Suggested management Options'!$C$4, IF(AB33=\"Group A.2(i)\", 'Suggested management Options'!$C$5, IF(AB33=\"Group A.2(ii)\", 'Suggested management Options'!$C$6, IF(AB33=\"Group B\",'Suggested management Options'!$C$7,IF(AB33=\"Group C\",'Suggested management Options'!$C$8,IF(AB33=\"Group D\",'Suggested management Options'!$C$9,IF(AB33=\"Group E\",'Suggested management Options'!$C$10,IF(AB33=\"Group F\",'Suggested management Options'!$C$11,IF(AB33=\"Group G\",'Suggested management Options'!$C$12,IF(AB33=\"Group O\",'Suggested management Options'!$C$13,IF(AB33=\"Group X\",'Suggested management Options'!$C$14,\"\")))))))))))","v":""},""]
["Stylidium semaphorum",17410,"T","CR","B1&2a,b(v); C2a(I,ii): D","CR","SWAN","PERTH HILLS","Wannamal","Sep-Oct","IRP",null,"No","Yes","No","Anticipate germination challenges.","Short-lived",null,"Yes","Likely No",null,null,"Yes",null,null,null,null,"Group C",{"$f":"IF(AB34=\"Group A.1\",'Suggested management Options'!$C$4, IF(AB34=\"Group A.2(i)\", 'Suggested management Options'!$C$5, IF(AB34=\"Group A.2(ii)\", 'Suggested management Options'!$C$6, IF(AB34=\"Group B\",'Suggested management Options'!$C$7,IF(AB34=\"Group C\",'Suggested management Options'!$C$8,IF(AB34=\"Group D\",'Suggested management Options'!$C$9,IF(AB34=\"Group E\",'Suggested management Options'!$C$10,IF(AB34=\"Group F\",'Suggested management Options'!$C$11,IF(AB34=\"Group G\",'Suggested management Options'!$C$12,IF(AB34=\"Group O\",'Suggested management Options'!$C$13,IF(AB34=\"Group X\",'Suggested management Options'!$C$14,\"\")))))))))))","v":"Maintain effective population size of >250 reproductively mature individuals. Translocate (immediately?) if cost effective."},"MAYBE TRANSLOCATE IF COST-EFFECTIVE"]
["Synaphea sp. Pinjarra Plain (A.S. George 17182)",30751,"T","EN","B1ab(i,ii,iii,iv,v)+B2ab(i,ii,iii,iv,v); C2(a)(i)","EN","SWAN","SWAN COASTAL","Mundijong, Serpentine","Oct","IRP",null,null,null,null,null,null,null,"Yes","Likely No",null,null,"No","Yes",null,null,null,"Group D",{"$f":"IF(AB35=\"Group A.1\",'Suggested management Options'!$C$4, IF(AB35=\"Group A.2(i)\", 'Suggested management Options'!$C$5, IF(AB35=\"Group A.2(ii)\", 'Suggested management Options'!$C$6, IF(AB35=\"Group B\",'Suggested management Options'!$C$7,IF(AB35=\"Group C\",'Suggested management Options'!$C$8,IF(AB35=\"Group D\",'Suggested management Options'!$C$9,IF(AB35=\"Group E\",'Suggested management Options'!$C$10,IF(AB35=\"Group F\",'Suggested management Options'!$C$11,IF(AB35=\"Group G\",'Suggested management Options'!$C$12,IF(AB35=\"Group O\",'Suggested management Options'!$C$13,IF(AB35=\"Group X\",'Suggested management Options'!$C$14,\"\")))))))))))","v":"Protect seedlings and juveniles to increase chances of reaching reproductive maturity"},"DON'T TRANSLOCATE"]
["Synaphea stenoloba",16749,"T","CR","B1ab(iii)+2ab(iii)","EN","SWAN","PERTH HILLS,SWAN COASTAL","Pinjarra","Aug-Oct","IRP","Alcoa, Pinjarra, 2005; Dwellingup, 2017","Yes (In Wheatbelt Region)","Yes","No","Limited seed in storage","Long-lived",null,"Yes","Likely No",null,null,"Yes",null,null,null,null,"Group B",{"$f":"IF(AB36=\"Group A.1\",'Suggested management Options'!$C$4, IF(AB36=\"Group A.2(i)\", 'Suggested management Options'!$C$5, IF(AB36=\"Group A.2(ii)\", 'Suggested management Options'!$C$6, IF(AB36=\"Group B\",'Suggested management Options'!$C$7,IF(AB36=\"Group C\",'Suggested management Options'!$C$8,IF(AB36=\"Group D\",'Suggested management Options'!$C$9,IF(AB36=\"Group E\",'Suggested management Options'!$C$10,IF(AB36=\"Group F\",'Suggested management Options'!$C$11,IF(AB36=\"Group G\",'Suggested management Options'!$C$12,IF(AB36=\"Group O\",'Suggested management Options'!$C$13,IF(AB36=\"Group X\",'Suggested management Options'!$C$14,\"\")))))))))))","v":"Maintain effective population sizes of >250 reproductively mature individuals. Augment populations of <250 individuals if cost effective."},"MAYBE TRANSLOCATE IF COST-EFFECTIVE"]
["Thelymitra dedmaniarum",13687,"T","CR","B1ab(i,ii,iii,v); C2a(i); D","EN","SWAN","PERTH HILLS,SWAN COASTAL","Gidgegannup, Red Hill, Boonanarring NR","Oct-Nov","IRP","?,?","No","No","Yes","Translocation has been conducted (Kings Park)",null,null,"Yes","Likely No",null,null,"No","No","Likely No",null,null,"Group G",{"$f":"IF(AB37=\"Group A.1\",'Suggested management Options'!$C$4, IF(AB37=\"Group A.2(i)\", 'Suggested management Options'!$C$5, IF(AB37=\"Group A.2(ii)\", 'Suggested management Options'!$C$6, IF(AB37=\"Group B\",'Suggested management Options'!$C$7,IF(AB37=\"Group C\",'Suggested management Options'!$C$8,IF(AB37=\"Group D\",'Suggested management Options'!$C$9,IF(AB37=\"Group E\",'Suggested management Options'!$C$10,IF(AB37=\"Group F\",'Suggested management Options'!$C$11,IF(AB37=\"Group G\",'Suggested management Options'!$C$12,IF(AB37=\"Group O\",'Suggested management Options'!$C$13,IF(AB37=\"Group X\",'Suggested management Options'!$C$14,\"\")))))))))))","v":"Population will only be maintained in-situ in the short term for the purpose of salvage, where practical. Collect cuttings, seeds, germplasm etc. and maintain in ex-situ collections OR translocate/augment to create a population >250. (maybe need to add actions beyond translocate for non-Wheatbelt regions)"},"DEFINITELY TRANSLOCATE"]
["Thelymitra stellata",10862,"T","EN","D; C2a","EN","MWST,SWAN,WHTB","MOORA,PERTH HILLS,GREAT SOUTHERN","Perth-Three Springs, Pinjarra, Dumbleyung, Corrigin, Bungendore Park, Unnamed Shire Reserve 34155, Hartfield Rd, Mt Peron, Jurien Bay, Mt Lesueur NP, Arthur River, Coomallo NR, Julimar, Chittering, Armadale","Oct-Nov",null,"?,?","No","No","No",null,null,null,"Yes","Likely No",null,null,"No","No","Likely No",null,null,"Group G",{"$f":"IF(AB38=\"Group A.1\",'Suggested management Options'!$C$4, IF(AB38=\"Group A.2(i)\", 'Suggested management Options'!$C$5, IF(AB38=\"Group A.2(ii)\", 'Suggested management Options'!$C$6, IF(AB38=\"Group B\",'Suggested management Options'!$C$7,IF(AB38=\"Group C\",'Suggested management Options'!$C$8,IF(AB38=\"Group D\",'Suggested management Options'!$C$9,IF(AB38=\"Group E\",'Suggested management Options'!$C$10,IF(AB38=\"Group F\",'Suggested management Options'!$C$11,IF(AB38=\"Group G\",'Suggested management Options'!$C$12,IF(AB38=\"Group O\",'Suggested management Options'!$C$13,IF(AB38=\"Group X\",'Suggested management Options'!$C$14,\"\")))))))))))","v":"Population will only be maintained in-situ in the short term for the purpose of salvage, where practical. Collect cuttings, seeds, germplasm etc. and maintain in ex-situ collections OR translocate/augment to create a population >250. (maybe need to add actions beyond translocate for non-Wheatbelt regions)"},"DEFINITELY TRANSLOCATE"]
["Trithuria occidentalis",32658,"T","CR","B1ab(iii)+2ab(iii)","EN","SWAN,WHTB","SWAN COASTAL,CENTRAL WHEATBELT","Ellenbrook N.R.,  (Midland), Gillingarra","Sep-Nov","IRP",null,"No","No","No","Anticipate germination challenges.","Short-lived",null,"Yes","Likely No",null,null,"Yes",null,null,null,null,"Group C",{"$f":"IF(AB39=\"Group A.1\",'Suggested management Options'!$C$4, IF(AB39=\"Group A.2(i)\", 'Suggested management Options'!$C$5, IF(AB39=\"Group A.2(ii)\", 'Suggested management Options'!$C$6, IF(AB39=\"Group B\",'Suggested management Options'!$C$7,IF(AB39=\"Group C\",'Suggested management Options'!$C$8,IF(AB39=\"Group D\",'Suggested management Options'!$C$9,IF(AB39=\"Group E\",'Suggested management Options'!$C$10,IF(AB39=\"Group F\",'Suggested management Options'!$C$11,IF(AB39=\"Group G\",'Suggested management Options'!$C$12,IF(AB39=\"Group O\",'Suggested management Options'!$C$13,IF(AB39=\"Group X\",'Suggested management Options'!$C$14,\"\")))))))))))","v":"Maintain effective population size of >250 reproductively mature individuals. Translocate (immediately?) if cost effective."},"MAYBE TRANSLOCATE IF COST-EFFECTIVE"]
["Verticordia plumosa var. ananeotes",12448,"T","CR","B1ab(iii,v)+2ab(iii,v)","EN","SWAN,SWST","BLACKWOOD,SWAN COASTAL","Busselton, Serpentine - Blackwood","Dec","IRP",null,"Yes (In Wheatbelt Region)","No","Yes",null,null,null,"Yes","Likely Yes",null,"No",null,null,null,null,null,"Group O",{"$f":"IF(AB40=\"Group A.1\",'Suggested management Options'!$C$4, IF(AB40=\"Group A.2(i)\", 'Suggested management Options'!$C$5, IF(AB40=\"Group A.2(ii)\", 'Suggested management Options'!$C$6, IF(AB40=\"Group B\",'Suggested management Options'!$C$7,IF(AB40=\"Group C\",'Suggested management Options'!$C$8,IF(AB40=\"Group D\",'Suggested management Options'!$C$9,IF(AB40=\"Group E\",'Suggested management Options'!$C$10,IF(AB40=\"Group F\",'Suggested management Options'!$C$11,IF(AB40=\"Group G\",'Suggested management Options'!$C$12,IF(AB40=\"Group O\",'Suggested management Options'!$C$13,IF(AB40=\"Group X\",'Suggested management Options'!$C$14,\"\")))))))))))","v":"Introduce disturbance and then re-evaluate"},"INTRODUCE DISTURBANCE FIRST"]

{"sheet":"Translocations","index":5,"n_rows":158,"n_cols":6,"rows_kept":158,"cut":false,"hidden":false,"merged":[]}
["Species","Family","Conservation status (EPBC)","Conservation status (State)","Location of translocation site","Start date"]
["Acacia aprica","Mimosaceae","EN","CR","Carnamah Shire Recreation Reserve",1998]
["Acacia aprica","Mimosaceae","EN","CR","Hanningtons Property Coorow","2010"]
["Acacia awestoniana","Mimosaceae","VU","CR","Stirling Range NP","2010"]
["Acacia cochlocarpa subsp. cochlocarpa","Mimosaceae","EN","CR","Gunyidi NR Nth","1998"]
["Acacia cochlocarpa subsp. cochlocarpa","Mimosaceae","EN","CR","Gunyidi NR Sth","1999"]
["Acacia cochlocarpa subsp. cochlocarpa","Mimosaceae","EN","CR","Gunyidi, east midlands hwy","2010"]
["Acacia cochlocarpa subsp. cochlocarpa","Mimosaceae","EN","CR","Gunyidi, east midlands hwy",2017]
["Acacia imitans","Mimosaceae","EN","CR","Mt Gibson station","2010"]
["Acacia subflexuosa subsp. capillata","Mimosaceae","EN","CR","Tammin,  Charles Gardener NR","2008"]
["Acacia unguicula","Mimosaceae","CR","CR","Mt Gibson station","2010"]
["Acacia volubilis","Mimosaceae","EN","CR","Museum Grounds @ Cunderdin","2004"]
["Acacia volubilis","Mimosaceae","EN","CR","Christison's property, Cunderdin","2004"]
["Acacia woodmaniorum","Mimosaceae","Not listed","EN","Karara","?"]
["Andersonia annelsii","Eriaceae","Not listed","CR","Greater Kingston NP",2016]
["Androcalva perlaria","Malvaceae","Not listed","EN","Wellstead","?"]
["Androcalva bivillosa","Malvaceae",null,"CR","Airport",2017]
["Androcalva bivillosa","Malvaceae",null,"CR","Hawkes Head",2017]
["Androcalva bivillosa","Malvaceae",null,"CR","Rangers Station",2017]
["Asterolasia nivea","Rutaceae","VU","VU","Bindoon","pre 1997"]
["Banksia anatona","Proteaceae","CR","CR","Luscombe's seed orchard","2007"]
["Banksia anatona","Proteaceae","CR","CR","Benmore ITC Tree Farm","2008"]
["Banksia anatona","Proteaceae","CR","CR","Stirling Range NP",2019]
["Banksia brownii ","Proteaceae","EN","CR","Torndirrup NP","2008"]
["Banksia brownii ","Proteaceae","EN","CR","Benmore ITC Tree Farm","2007"]
["Banksia brownii ","Proteaceae","EN","CR","Luscombe's seed orchard",2007]
["Banksia brownii ","Proteaceae","EN","CR","Burcher",2017]
["Banksia cuneata","Proteaceae","EN","EN","Quairading Stacey study site","1995"]
["Banksia cuneata","Proteaceae","EN","EN","Quairading Johnston study site",1995]
["Banksia cuneata","Proteaceae","EN","EN","Quairading  Reserve 12397",1996]
["Banksia cuneata","Proteaceae","EN","EN","Quairading, Stone Road",1996]
["Banksia cuneata","Proteaceae","EN","EN","Lazaway Farm",1996]
["Banksia ionthocarpa subsp. ionthocarpa","Proteaceae","EN","CR","Kalgan Plains NR","1999"]
["Banksia montana","Proteaceae","EN","CR","Benmore Tree Farm","2010"]
["Banksia montana","Proteaceae","EN","CR","Luscombe's seed orchard","2003"]
["Banksia montana","Proteaceae","EN","CR","Stirling Range NP",2019]
["Banksia nivea subsp. uliginosa","Proteaceae","EN","EN","Augusta","2003"]
["Banskia oreophila","Proteaceae","Not listed","Not Threatened","Stirling Range NP",2010]
["Caladenia huegelii ","Orchidaceae","EN","CR",null,"2007"]
["Caladenia leucochila (=sp. Collie)","Orchidaceae","EN","CR",null,"2013"]
["Caladenia procera","Orchidaceae","CR","CR","Peppermint Park","2006"]
["Calytrix breviseta subsp. breviseta","Myrtaceae","EN","CR","Nicholson Road","2008"]
["Calytrix breviseta subsp. breviseta","Myrtaceae","EN","CR","Boundary Road","2007"]
["Chamelaucium sp. Gingin (N.G.Marchant 6)","Myrtaceae","EN","VU","Gingin",2010]
["Chorizema humile","Fabaceae","EN","CR","Falconer's Property",2008]
["Chorizema humile","Fabaceae","EN","CR","Waddington NR","2007"]
["Commersonia erythrogyna ","Malvaceae","EN","CR","Wild Horse Swamp NR, Collie","1997"]
["Commersonia erythrogyna ","Malvaceae","EN","CR","Bennelaking Conservation Park, Collie","1998"]
["Commersonia erythrogyna ","Malvaceae","EN","CR","Trigwell NR, Collie","1997"]
["Conospermum undulatum","Proteaceae","VU","VU","Welshpool","2017?"]
["Conospermum undulatum","Proteaceae","VU","VU","Welshpool","2014?"]
["Cyphanthera odgersii subsp. occidentalis","Solanaceae","EN","CR","Cowcowing",2014]
["Darwinia carnea (Mogumber form)","Myrtaceae","EN","CR","Udamung NR",2006]
["Darwinia carnea (Mogumber form)","Myrtaceae","EN","CR","Private property Loc 935",1985]
["Darwinia carnea (Narrogin form)","Myrtaceae","EN","CR","Shire Gravel Pit, Narrogin",1999]
["Darwinia carnea (Narrogin form)","Myrtaceae","EN","CR","State Forest # 51, Near Cuballing",1999]
["Darwinia ferricola","Myrtaceae","EN","EN","Augusta","2003"]
["Darwinia masonii","Myrtaceae","VU","VU","Mt Gibson","?"]
["Darwinia whicherensis","Myrtaceae","EN","CR","Negus' Block, Busselton",2001]
["Darwinia whicherensis","Myrtaceae","EN","CR","Oates Road, Busselton","2001"]
["Daviesia bursarioides","Fabaceae","EN","CR","Sweetman NR","1998"]
["Daviesia cunderdin","Fabaceae","EN","CR","Christison's property","2004"]
["Daviesia euphorbioides","Fabaceae","EN","CR","Dowerin","2005"]
["Daviesia glossosemma","Fabaceae","CR","CR","Syred rd, Kamballup","2010"]
["Daviesia microcarpa","Fabaceae","EN","CR","Population 1c","2004"]
["Daviesia microcarpa","Fabaceae","EN","CR","Water Reserve 6043","2007"]
["Daviesia microcarpa","Fabaceae","EN","CR","Southern Cross","?"]
["Daviesia ovata","Fabaceae","Not listed","CR","ManyPeaks NR",2014]
["Daviesia psuedaphylla","Fabaceae","EN","CR","Syred rd, Kamballup","2010"]
["Eremophila koobabbiensis","Myoporaceae","CR","CR","Coorow","2008"]
["Eremophila lactea","Myoporaceae","EN","CR","Belgian rd. Rehabilited Lime borrow pit","2009"]
["Eremophila nivea","Myoporaceae","EN","CR","Private Property (Milloy's)","2001"]
["Eremophila nivea","Myoporaceae","EN","CR","West Perenjori NR","2001"]
["Eremophila resinosa","Myoporaceae","EN","EN","Westonia","2004"]
["Eremophila resinosa","Myoporaceae","EN","EN","Westonia",2009]
["Eremophila resinosa","Myoporaceae","EN","EN","Westonia",2009]
["Eremophila rostrata subsp. trifida","Myoporaceae","CR","CR","West Perenjori NR",2015]
["Eremophila scaberula","Myoporaceae","EN","CR","Bulbarnet NR","2001"]
["Eremophila verticillata","Myoporaceae","EN","CR","Newdegate","2002"]
["Eucalyptus cuprea","Myrtaceae","EN","CR","Morseby CP",2015]
["Eucalyptus rhodantha","Myrtaceae","VU","VU","Watheroo","1993"]
["Gastrolobium lutiefolium","Fabaceae","CR","CR","Syred rd, Kamballup","2009"]
["Gastrolobium papilio","Fabaceae","EN","CR","Negus' Block, Busselton","2002"]
["Gastrolobium papilio","Fabaceae","EN","CR","Oates Road, Busselton","2001"]
["Grevillea acropogon","Proteaceae","Not listed","CR","Chariup NR, Lake Unicup area","2009"]
["Grevillea althoferorum subsp. althoferorum","Proteaceae","EN","CR","South Eneabba NR","2005"]
["Grevillea batrachioides","Proteaceae","EN","CR","Lesueur NP","2004"]
["Grevillea brachystylis subsp. australis","Proteaceae","VU","EN","Augusta","2003"]
["Grevillea brachystylis subsp. grandis","Proteaceae","VU","CR","Taylors NR",2012]
["Grevillea calliantha","Proteaceae","EN","CR","Minyulo NR","2010"]
["Grevillea calliantha","Proteaceae","EN","CR","Water Reserve 11712","1998"]
["Grevillea christineae","Proteaceae","EN","EN","Goomalling","1999"]
["Grevillea dryandroides subsp. dryandroides","Proteaceae","EN","CR","Wongan Hills","2000"]
["Grevillea humifusa","Proteaceae","EN","CR","Hill River NR","2010"]
["Grevillea humifusa","Proteaceae","EN","CR","Coomallo NR","2003"]
["Grevillea maccutcheonii","Proteaceae","EN","CR","Oates Road, Busselton","2000"]
["Grevillea maccutcheonii","Proteaceae","EN","CR","Negus' Block, Busselton","2000"]
["Grevillea maxwellii","Proteaceae","EN","CR","Private property, Pallinup",2014]
["Grevillea scapigera","Proteaceae","EN","CR","Corrigin Airport","1994"]
["Grevillea scapigera","Proteaceae","EN","CR","Bullaring","1995"]
["Grevillea scapigera","Proteaceae","EN","CR","Hartley's","1993"]
["Hemigenia ramosissima","Lamiaceae","CR","CR","Water Reserve 9090 (Birdwood NR)","2007"]
["Hemigenia ramosissima","Lamiaceae","CR","CR","Water Reserve 10664 (Hale Road)","2008"]
["Lambertia echinata subsp. echinata","Proteaceae","EN","CR","Coolinup NR","2010"]
["Lambertia echinata subsp. echinata","Proteaceae","EN","CR","Alexander Bay NR","2010"]
["Lambertia echinata subsp. echinata","Proteaceae","EN","CR","Dalyup NR","2006"]
["Lambertia echinata subsp. echinata","Proteaceae","EN","CR","Luscombe's seed orchard","2006"]
["Lambertia echinata subsp. echinata","Proteaceae","EN","CR","Cape Le Grand NP, Pop1A","1998"]
["Lambertia echinata subsp. echinata","Proteaceae","EN","CR","Woody Island NR","2004"]
["Lambertia echinata subsp. echinata","Proteaceae","EN","CR","Cape Le Grand NP, nr Frenchmans Peak","2004"]
["Lambertia echinata subsp. occidentalis","Proteaceae","EN","CR","Williamson Road, Busselton","2000"]
["Lambertia echinata subsp. occidentalis","Proteaceae","EN","CR","Smith Road, Busselton","2000"]
["Lambertia echinata subsp. occidentalis","Proteaceae","EN","CR","Oates Road, Busselton","2000"]
["Lambertia echinata subsp. occidentalis","Proteaceae","EN","CR","Negus' Block, Busselton","2000"]
["Lambertia fairallii","Proteaceae","EN","CR","Syred rd, Kamballup",2012]
["Lambertia fairallii","Proteaceae","EN","CR","Benmore ITC Tree Farm","2007"]
["Lambertia orbifolia subsp. orbifolia","Proteaceae","EN","CR","Redmond","2010"]
["Lambertia orbifolia subsp. orbifolia","Proteaceae","EN","CR","Chokerup NR, Narrikup","1998"]
["Lambertia orbifolia subsp. orbifolia","Proteaceae","EN","CR","Balina",2019]
["Lambertia orbifolia subsp. Scott River Plain","Proteaceae","EN","EN","Augusta","2003"]
["Lasiopetalum pterocarpum","Sterculiaceae","EN","CR","Scarp Road",2006]
["Lasiopetalum pterocarpum","Sterculiaceae","EN","CR","Serpentine NP","2001"]
["Latrobea colophona","Fabaceae","Not listed","CR","Syred rd, Kamballup","2009"]
["Lechenaultia larcina","Goodeniaceae","EN","VU","Cullen NR","1998"]
["Lepidosperma gibsonii","Cyperaceae","VU","EN","Mt Gibson","?"]
["Leucopogon gnaphaloides","Epacridaceae","EN","CR","Syred rd, Kamballup",2012]
["Leucopogon gnaphaloides","Epacridaceae","EN","CR","Luscombe's seed orchard","2005"]
["Lysiosepalum abollatum","Sterculiaceae","CR","CR","Wongan Hills","2009"]
["Macthuria keigherii","Molluginaceae","EN","CR","Welshpool","2014?"]
["Malva preissiana ","Malvaceae","Not listed","Not listed","Penguin Island, off Perth ",2014]
["Myoporum turbinatum","Myoporaceae","EN","CR (P4?)","Beaumont NR",2014]
["Persoonia micranthera","Proteaceae","EN","CR","Luscombe's seed orchard","2009"]
["Persoonia micranthera","Proteaceae","EN","CR","Syred rd, Kamballup","2005"]
["Petrophile latericola","Proteaceae","EN","CR","Oates Road, Busselton","2010"]
["Petrophile latericola","Proteaceae","EN","CR","Negus' Block, Busselton","2001"]
["Pityrodia scabra","Lamiaceae","EN","CR","PP, Wyalkatchem",1995]
["Pityrodia scabra","Lamiaceae","EN","CR","NR, Wyalkatchem","1995"]
["Ricinocarpos brevis","Euphorbiaceae","EN","EN","Windarling","?"]
["Schoenia filifolia subsp subulifolia","Asteraceae","EN","EN","Coalseam Conservation Park site 3",2015]
["Schoenia filifolia subsp subulifolia","Asteraceae","EN","EN","Coalseam Conservation Park site 2",2015]
["Schoenia filifolia subsp subulifolia","Asteraceae","EN","EN","Coalseam Conservation Park site 1",2015]
["Symonanthus bancroftii","Solanaceae","EN","CR","Bruce Rock (Nangeen Hill Nature Reserve?)","2002"]
["Symonanthus bancroftii","Solanaceae","EN","CR","Ardath",2002]
["Synaphea quartzitica","Proteaceae","EN","CR","NR near Gunyidi","2005"]
["Synaphea stenoloba","Proteaceae","EN","EN","Dwellingup",2017]
["Synaphea stenoloba","Proteaceae","EN","EN","Alcoa, Pinjarra","2005"]
["Tetratheca paynterae subsp. paynterae","Tremandraceae","EN","CR","Windarling","?"]
["Thelymitra dedmaniarum","Orchidaceae","EN","CR",null,"?"]
["Thelymitra stellata","Orchidaceae","EN","CR",null,"?"]
["Verticordia albida","Myrtaceae","EN","CR","PP sw of Three Springs","2004"]
["Verticordia fimbrilepis subsp. fimbrelepis","Myrtaceae","EV","VU","Arthur River","1998"]
["Verticordia lindleyi subsp. lindleyi","Myrtaceae","Not listed","P3"]
["Verticordia plumosa var plumosa","Myrtaceae","Not listed","Not listed","Acton Park Road","2009?"]
["Verticordia plumosa var vassensis","Myrtaceae","VU","EN","Acton Park Road",2009]
["Verticordia spicata subsp. squamosa","Myrtaceae","EN","CR","Christmas Corner","2001"]
["Verticordia spicata subsp. squamosa","Myrtaceae","EN","CR","Wongoondy NR",2017]
["Verticordia spicata subsp. squamosa","Myrtaceae","EN","CR","Sandpit site",2017]
["Verticordia spicata subsp. squamosa","Myrtaceae","EN","CR","Mingenew",2018]

{"sheet":"Decision Nodes","index":6,"n_rows":8,"n_cols":12,"rows_kept":8,"cut":false,"hidden":false,"merged":[[0,0,1,0],[0,1,1,1],[0,2,1,2]]}
["Current Translocation (DBCA/P&W)","Flagged for possible future translocation (DBCA)?","Germination protocol? ","Decision Node 0","Decision Node 1","Decision Node 2 (Answer only if species has less than 250 mature individuals)","Decision Node 2.1 (Answer only if species is a disturbance opportunist)","Decision Node 3","Decision Node 4","Decision Node 5","Decision Node 6","Decision Node 1.1 (Answer only for species with more than 250 mature individuals)"]
[null,null,null,"Is it a long-lived (greater than 5-10 years) or a short-lived (less than 5-10 years) taxa?","Does the species have less than 250 mature individuals (IUCN criterion C2a or criterion D)","Is it a Disturbance Opportunist? (If yes, please choose how disturbance is applied.)","Has disturbance been applied for disturbance opportunists?","Is there one known population of more than 250 reproductively mature individuals?","Is the total size of any single population, (including seedlings and juveniles) greater than 250?","Is a persistent, viable and genetically diverse seed bank present at the site/population?","Is it feasible to manage the threats in-situ (including resources and tenure considerations)?","Is there a significant declining trend towards less than 250 mature individuals?"]
["Yes","Yes","Yes","Long-lived","Yes","Yes-fire","Yes","Yes","Yes","Yes","Yes","Yes"]
["No","No","No","Short-lived","No","Yes-other","No","No","No","Likely Yes","No","No"]
[null,null,null,null,null,"Likely Yes",null,null,null,"Likely No"]
[null,null,null,null,null,"Likely No",null,null,null,"No"]
[null,null,null,null,null,"No",null,null,null,"Unknown"]
[null,null,null,null,null,"Unknown"]

{"sheet":"Notes","index":7,"n_rows":8,"n_cols":1,"rows_kept":8,"cut":false,"hidden":false,"merged":[[2,0,2,9],[3,0,3,9],[4,0,4,9],[5,0,5,9],[6,0,6,9]]}
["Notes"]
[]
["69/88 records in the Midwest worksheet are only from the Midwest region"]
["57/67 records in the South Coast worksheet are only from the South Coast region"]
["25/41 records in the Southwest worksheet are only from the Southwest region"]
["22/44 records in the Swan worksheet are only from the Swan region"]
["6/16 records in the Warren worksheet are only from the Warren region"]
["65/89 records in the Wheatbelt worksheet are are from the Wheatbelt region"]